Workbook

Sheet الأحد
A1: اســــم المؤسســــــــــــــــــــــــــــــــــــــــــــــة | E1: ورقـــــة الاستهــــلاك اليومـــــــــــــــــــي
A2: طالــــــــــب عبــــد الله-بئر الشهداء- | F2: يـوم: الأحد | G2: 7 | H2: فيفري | I2: 2019 | M2: السنة المالية :2013
A3: طبيعة المواد | C3: مخزون | D3: مــــدخـــــلات اليـوم | F3: مجموع مخزون | G3: مـخرجــــــــــــــــــــات اليـوم | J3: كمية ماتبقى | K3: ملاحظـــــات | M3: تعــــــــداد اليـــوم
D4: الكمية | E4: سعر | F4: البارحـــــــــة | G4: الكمية | H4: سعر | I4: قيمة مخـروجات | J4: فـــي | M4: المستفيدون | N4: فطـور | O4: غـذاء | P4: عشـاء
A5: المستهلكـــة | C5: البارحة | E5: الوحـدة | F5: ومدخلات اليوم | H5: الوحـدة | I5: اليــوم | J5: نهاية اليــوم
A6: 01 | B6: الخبـــــــز | E6: 7.4 | F6: =SUM(C6+D6) -> 0 | H6: =SUM(E6) -> 7.4 | I6: =SUM(G6*H6) -> 0 | J6: =SUM(F6-G6) -> 0 | K6: 01 | M6: نصف داخليون | R6: =SUM(D6*E6) -> 0
A7: 02 | B7: بسباس(كغ) | E7: 80 | F7: =SUM(C7+D7) -> 0 | H7: =SUM(E7) -> 80 | I7: =SUM(G7*H7) -> 0 | J7: =SUM(F7-G7) -> 0 | K7: 02 | M7: م .تربويون | R7: =SUM(D7*E7) -> 0
A8: 03 | B8: بيض | E8: 12 | F8: 0 | H8: =SUM(E8) -> 12 | I8: 0 | J8: 0 | K8: 03 | M8: الأساتــذة | R8: 0
A9: 04 | B9: بطاطا(كغ) | E9: 60 | F9: 0 | H9: 60 | I9: 0 | J9: 0 | K9: 04 | M9: العمـــال | R9: 0
A10: 05 | B10: بصل(كغ) | E10: 100 | F10: 0 | H10: 100 | I10: 0 | J10: 0 | K10: 05 | M10: أعوان متعاقدين | O10: 1 | R10: 0
A11: 06 | B11: جزر(كغ) | E11: 80 | F11: 0 | H11: 80 | I11: 0 | J11: 0 | K11: 06 | M11: المجمـــــوع | N11: =SUM(N6:N10) -> 0 | O11: =SUM(O6:O10) -> 1 | P11: =SUM(P6:P10) -> 0 | R11: 0
A12: 07 | B12: جبن(علبة16ق) | E12: 80 | F12: 0 | H12: 80 | I12: 0 | J12: 0 | K12: 07 | R12: 0
A13: 08 | B13: تفاح(كغ) | E13: 0 | F13: 0 | H13: 0 | I13: 0 | J13: 0 | K13: 08 | R13: 0
A14: 09 | B14: خيار(كغ) | E14: 0 | F14: 0 | H14: 0 | I14: 0 | J14: 0 | K14: 09 | M14: معـدل المستفيدين | O14: =SUM(N11+O11+P11) -> 1 | R14: 0
A15: 10 | B15: طماطم حب(كغ) | E15: 120 | F15: 0 | H15: 120 | I15: 0 | J15: 0 | K15: 10 | R15: 0
A16: 11 | B16: ثوم(كغ) | E16: 400 | F16: 0 | H16: 400 | I16: 0 | J16: 0 | K16: 11 | M16: من الوجبـــات | R16: 0
A17: 12 | B17: سلاطة خس(كغ) | E17: 80 | F17: =SUM(C17+D17) -> 0 | H17: =SUM(E17) -> 80 | I17: =SUM(G17*H17) -> 0 | J17: 0 | K17: 12 | M17: الوجبــــــــــــــات | R17: 0
A18: 13 | B18: برتقال(كغ) | E18: 130 | F18: 0 | H18: 130 | I18: 0 | J18: 0 | K18: 13 | R18: 0
A19: 14 | B19: موز(كغ) | E19: 190 | F19: 0 | H19: 190 | I19: 0 | J19: 0 | K19: 14 | M19: فطــــــــور الصبــاح | R19: 0
A20: 15 | B20: يوسفية | E20: 0 | F20: 0 | H20: 0 | I20: 0 | J20: 0 | K20: 15 | R20: 0
A21: 16 | B21: عنب(كغ) | E21: 0 | F21: 0 | H21: 0 | I21: 0 | J21: 0 | K21: 16 | R21: 0
A22: 17 | B22: شخشوخة(كغ) | E22: 0 | F22: 0 | H22: 0 | I22: 0 | J22: 0 | K22: 17 | R22: 0
A23: 18 | B23: زعرورة (كغ) | E23: 0 | F23: 0 | H23: 0 | I23: 0 | J23: 0 | K23: 18 | R23: 0
A24: 19 | B24: ياؤرت | E24: 15 | F24: 0 | H24: 15 | I24: 0 | J24: 0 | K24: 19 | R24: 0
A25: 20 | B25: شكولاطة | E25: 0 | F25: 0 | H25: 0 | I25: 0 | J25: 0 | K25: 20 | R25: 0
A26: 21 | B26: زيتون اسود(كغ) | E26: 350 | F26: 0 | H26: 350 | I26: 0 | J26: 0 | K26: 21 | M26: الغــــــذاء | R26: 0
A27: 22 | B27: زيتون اخضر(كغ) | E27: 400 | F27: 0 | H27: 400 | I27: 0 | J27: 0 | K27: 22 | M27: خبز+عدس+بيص | R27: 0
A28: 23 | B28: تليتلي(كغ) | E28: 90 | F28: 0 | H28: 90 | I28: 0 | J28: 0 | K28: 23 | M28: سلطة متنوعة | N28: موز | R28: 0
A29: 24 | B29: دويدة(كغ) | E29: 90 | F29: 0 | H29: 90 | I29: 0 | J29: 0 | K29: 24 | R29: 0
A30: 25 | B30: سباقيطي(كغ) | E30: 90 | F30: 0 | H30: 90 | I30: 0 | J30: 0 | K30: 25 | R30: 0
A31: 26 | B31: كسكسي (كغ) | E31: 90 | F31: 0 | H31: 90 | I31: 0 | J31: 0 | K31: 26 | M31: قائمـة المقبولين للطاولة المشتركــة | R31: 0
A32: 27 | B32: مقارونة | E32: 90 | F32: =SUM(C32+D32) -> 0 | H32: 90 | I32: =SUM(G32*H32) -> 0 | J32: 0 | K32: 27 | M32: الأسمــاء | N32: ف.ص | O32: غــداء | P32: ع | R32: 0
A33: 28 | B33: حمص | E33: 240 | F33: 0 | H33: 240 | I33: 0 | J33: 0 | K33: 28 | L33: 1 | M33: ازوال شراف الدين | O33: 8 | R33: 0
A34: 29 | B34: عدس | E34: 120 | F34: =SUM(C34+D34) -> 0 | H34: 120 | I34: =SUM(G34*H34) -> 0 | J34: 0 | K34: 29 | L34: 2 | M34: اوشن صبرينة | O34: 7 | R34: 0
A35: 30 | B35: فاصولياء(كغ) | E35: 200 | F35: =SUM(C35+D35) -> 0 | H35: =SUM(E35) -> 200 | I35: =SUM(G35*H35) -> 0 | J35: 0 | K35: 30 | L35: 3 | M35: قلي أحلام | O35: 3 | R35: 0
A36: 31 | B36: ارزمفور(كغ) | E36: 0 | F36: =SUM(C36+D36) -> 0 | H36: 0 | I36: =SUM(G36*H36) -> 0 | J36: 0 | K36: 31 | L36: 4 | M36: اوش ايمان | O36: 1 | R36: 0
A37: 32 | B37: حلويات | E37: 0 | F37: 0 | H37: =SUM(E37) -> 0 | I37: 0 | J37: 0 | K37: 32 | L37: 5 | M37: عزيون فضيلة | O37: 1 | R37: 0
A38: 33 | B38: خوخ | E38: 0 | F38: 0 | H38: 0 | I38: 0 | J38: 0 | K38: 33 | L38: 6 | M38: شايب عينو السعيد | O38: 8 | R38: 0
A39: 34 | B39: فلفل اسود(كيس15غ) | E39: 0 | F39: 0 | H39: 0 | I39: 0 | J39: 0 | K39: 34 | L39: 7 | M39: زيوش حدة | O39: 11 | R39: 0
A40: 35 | B40: خميرة | E40: 0 | F40: 0 | H40: 0 | I40: 0 | J40: 0 | K40: 35 | L40: 8 | M40: قرازة فتحي | O40: 11 | R40: 0
A41: 36 | B41: كمون | E41: 30 | F41: 0 | H41: 30 | I41: 0 | J41: 0 | K41: 36 | L41: 9 | M41: غضبان فيروز | R41: 0
A42: 37 | B42: ملح(كغ) | E42: 30 | F42: 0 | H42: 30 | I42: 0 | J42: 0 | K42: 37 | L42: 10 | M42: قرفي عليمة | O42: 9 | R42: 0
A43: 38 | B43: طماطم مصبرة(كغ) | E43: 140 | F43: 0 | H43: 140 | I43: 0 | J43: 0 | K43: 38 | L43: 11 | M43: بوناب هوراي | O43: 6 | R43: 0
A44: 39 | B44: زيت المائدة 1لتر | E44: 140 | F44: =SUM(C44+D44) -> 0 | H44: 140 | I44: =SUM(G44*H44) -> 0 | J44: 0 | K44: 39 | L44: 12 | M44: بوناب فريدة | O44: 1 | R44: 0
A45: 40 | B45: زيدة | E45: 70 | F45: 0 | H45: 70 | I45: 0 | J45: 0 | K45: 40 | L45: 13 | M45: جمال بوناب | O45: 1 | R45: 0
A46: 41 | B46: خل(قارورة) | E46: 30 | F46: 0 | H46: 30 | I46: 0 | J46: 0 | K46: 41 | L46: 14 | R46: 0
A47: 42 | B47: لحم دجاج(كغ) | E47: 380 | F47: 0 | H47: 380 | I47: 0 | J47: 0 | K47: 42 | L47: 15 | R47: 0
A48: 43 | B48: فافل | E48: 0 | F48: 0 | H48: 0 | I48: 0 | J48: 0 | K48: 43 | L48: 16 | R48: 0
A49: 44 | B49: لحم عجل(كغ) | E49: 0 | F49: =SUM(C49+D49) -> 0 | H49: 0 | I49: =SUM(G49*H49) -> 0 | J49: 0 | K49: 44 | L49: 17 | R49: 0
A50: 45 | B50: ايجاص(كغ) | E50: 0 | F50: 0 | H50: 0 | I50: 0 | J50: 0 | K50: 45 | L50: 18 | R50: 0
A51: 46 | B51: طونة | E51: 0 | F51: =SUM(C51+D51) -> 0 | H51: 0 | I51: =SUM(G51*H51) -> 0 | J51: 0 | K51: 46 | L51: 19 | R51: 0
A52: 47 | B52: جلبانة خضراء(كغ) | E52: 0 | F52: 0 | H52: 0 | I52: 0 | J52: 0 | K52: 47 | L52: 20 | R52: 0
A53: 48 | B53: مرطبات | E53: 0 | F53: 0 | H53: 0 | I53: 0 | J53: 0 | K53: 48 | L53: 21 | R53: 0
A54: 49 | B54: مايـونــاز500غ | E54: 0 | F54: 0 | H54: 0 | I54: 0 | J54: 0 | K54: 49 | L54: 22 | R54: 0
A55: 50 | B55: مربى | E55: 0 | F55: 0 | H55: 0 | I55: 0 | J55: 0 | K55: 50 | L55: 23 | R55: 0
A56: 51 | B56: مشروبات غازية | E56: 0 | F56: 0 | H56: 0 | I56: 0 | J56: 0 | K56: 51 | L56: 24 | R56: 0
A57: 52 | B57: ماء معدني | E57: 0 | F57: 0 | H57: 0 | I57: 0 | J57: 0 | K57: 52 | L57: 25 | R57: 0
A58: 53 | B58: تمر(كغ) | E58: 160 | F58: 0 | H58: 160 | I58: 0 | J58: 0 | K58: 53 | L58: 26 | R58: 0
A59: 54 | B59: سكر | E59: 0 | F59: 0 | H59: 0 | I59: 0 | J59: 0 | K59: 54 | L59: 27 | R59: 0
A60: 55 | B60: فافل حار | E60: 0 | F60: 0 | H60: 0 | I60: 0 | J60: 0 | K60: 55 | L60: 28 | R60: 0
A61: 56 | B61: حليب سوبرلي | E61: 280 | F61: 0 | H61: 280 | I61: 0 | J61: 0 | K61: 56 | L61: 29 | R61: 0
A62: 57 | B62: فريك | E62: 0 | F62: 0 | H62: 0 | I62: 0 | J62: 0 | K62: 57 | L62: 30 | R62: 0
A63: 58 | B63: جريوات | E63: 0 | F63: =SUM(C63+D63) -> 0 | H63: =SUM(E63) -> 0 | I63: =SUM(G63*H63) -> 0 | J63: 0 | K63: 58 | L63: 31 | R63: 0
A64: 59 | B64: تاي | E64: 0 | F64: 0 | H64: 0 | I64: 0 | J64: 0 | K64: 59 | L64: 32 | R64: 0
A65: 60 | B65: قهوة(كغ) | E65: 0 | F65: 0 | H65: 0 | I65: 0 | J65: 0 | K65: 60 | M65: المجموع | N65: =SUM(N51:N64) -> 0 | O65: =O33+O34+O35+O36+O37+O38+O39+O40+O41+O42+O43+O44+O45+O46+O47+O48+O49+O50+O51+O52+O53+O54+O55+O56+O57+O58+O59+O60+O61+O62+O63+O64 -> 67 | P65: =SUM(P51:P64) -> 0 | R65: 0
A66: 61 | B66: شمندر | E66: 0 | F66: 0 | H66: 0 | I66: 0 | J66: 0 | K66: 61 | R66: 0
A67: 62 | B67: توابل | E67: 0 | F67: 0 | H67: 0 | I67: 0 | J67: 0 | K67: 62 | M67: مصـاريف التغذية للشخـص الواحــد | R67: 0
A68: 63 | B68: إجاص(كغ) | E68: 0 | F68: 0 | H68: 0 | I68: 0 | J68: 0 | K68: 63 | R68: 0
A69: 64 | E69: 0 | F69: 0 | H69: 0 | I69: 0 | J69: 0 | K69: 64 | M69: قيمة مخروجات اليـوم | O69: =SUM(I77) -> 0 | R69: 0
A70: 65 | E70: 0 | F70: 0 | H70: 0 | I70: 0 | J70: 0 | K70: 65 | R70: 0
A71: 66 | E71: 0 | F71: 0 | H71: 0 | I71: 0 | J71: =SUM(F71-G71) -> 0 | K71: 66 | M71: معدل تغذية الأفراد | O71: =SUM(O14) -> 1 | R71: =SUM(D71*E71) -> 0
A72: 67 | E72: 0 | F72: 0 | H72: 0 | I72: 0 | J72: 0 | K72: 67 | R72: 0
A73: 68 | E73: 0 | F73: 0 | H73: 0 | I73: 0 | J73: 0 | K73: 68 | M73: =SUM(I77/O14) -> 0 | O73: = | P73: =M73 -> 0 | R73: 0
A74: 69 | F74: 0 | J74: 0 | K74: 69 | M74: (1) معدل تغذية الأفـراد للوجبــة | R74: 0
A75: 70 | C75: 0 | F75: 0 | J75: 0 | K75: 70 | M75: الغــذاء + العشـاء | R75: 0
A76: 71 | C76: 0 | F76: 0 | J76: 0 | K76: 71 | R76: 0
A77: المجمــــــــــــــوع | C77: =SUM(C6:C76) -> 0 | D77: =SUM(D6:D76) -> 0 | F77: =SUM(F6:F76) -> 0 | G77: =SUM(G6:G76) -> 0 | I77: =SUM(I6:I76) -> 0 | J77: =SUM(J6:J76) -> 0 | R77: =SUM(R11:R76) -> 0
K78: حــرر ببئر الشهداء في: 07 / 04 / 2013....................................

Sheet الإثنين
A1: اســــم المؤسســــــــــــــــــــــــــــــــــــــــــــــة | E1: ورقـــــة الاستهــــلاك اليومـــــــــــــــــــي
A2: طالــــــــــب عبــــد الله-بئر الشهداء- | E2: إضراب | F2: يـوم:الإثنيـن | G2: =SUM(الأحد!G2+1) -> 8 | H2: =الأحد!H2 -> فيفري | I2: 2013 | M2: السنة المالية :2013
A3: طبيعة المواد | C3: مخزون | D3: مــــدخـــــلات اليـوم | F3: مجموع مخزون | G3: مـخرجــــــــــــــــــــات اليـوم | J3: كمية ماتبقى | K3: ملاحظـــــات | M3: تعــــــــداد اليـــوم
D4: الكمية | E4: سعر | F4: البارحـــــــــة | G4: الكمية | H4: سعر | I4: قيمة مخـروجات | J4: فـــي | M4: المستفيدون | N4: فطـور | O4: غـذاء | P4: عشـاء
A5: المستهلكـــة | C5: البارحة | E5: الوحـدة | F5: ومدخلات اليوم | H5: الوحـدة | I5: اليــوم | J5: نهاية اليــوم
A6: =الأحد!A6 -> 01 | B6: =الأحد!B6 -> الخبـــــــز | C6: =SUM(الأحد!J6) -> 0 | D6: 12 | E6: 7.4 | F6: =SUM(C6+D6) -> 12 | H6: =SUM(E6) -> 7.4 | I6: =SUM(G6*H6) -> 0 | J6: =SUM(F6-G6) -> 12 | K6: 01 | M6: نصف داخليون | R6: =SUM(D6*E6) -> 88.8
A7: =الأحد!A7 -> 02 | B7: =الأحد!B7 -> بسباس(كغ) | C7: =SUM(الأحد!J7) -> 0 | D7: 13 | E7: 80 | F7: 13 | H7: 80 | I7: 0 | J7: 13 | K7: 02 | M7: م .تربويون | R7: =SUM(D7*E7) -> 1040
A8: =الأحد!A8 -> 03 | B8: =الأحد!B8 -> بيض | C8: =SUM(الأحد!J8) -> 0 | D8: 0 | E8: 12 | F8: 0 | H8: 12 | I8: 0 | J8: =SUM(F8-G8) -> 0 | K8: 03 | M8: الأساتــذة | R8: 0
A9: =الأحد!A9 -> 04 | B9: =الأحد!B9 -> بطاطا(كغ) | C9: =SUM(الأحد!J9) -> 0 | D9: 12 | E9: 60 | F9: 12 | H9: 60 | I9: 0 | J9: 12 | K9: 04 | M9: العمـــال | R9: 720
A10: =الأحد!A10 -> 05 | B10: =الأحد!B10 -> بصل(كغ) | C10: =SUM(الأحد!J10) -> 0 | D10: 0 | E10: 90 | F10: 0 | H10: 90 | I10: =SUM(G10*H10) -> 0 | J10: 0 | K10: 05 | M10: الإداريين | O10: 1 | R10: 0
A11: =الأحد!A11 -> 06 | B11: =الأحد!B11 -> جزر(كغ) | C11: =SUM(الأحد!J11) -> 0 | D11: 12 | E11: 70 | F11: 12 | H11: 70 | I11: 0 | J11: 12 | K11: 06 | M11: المجمـــــوع | N11: =SUM(N6:N10) -> 0 | O11: =SUM(O6:O10) -> 1 | P11: =SUM(P6:P10) -> 0 | R11: 840
A12: =الأحد!A12 -> 07 | B12: =الأحد!B12 -> جبن(علبة16ق) | C12: =SUM(الأحد!J12) -> 0 | D12: 0 | E12: 80 | F12: 0 | H12: 80 | I12: 0 | J12: 0 | K12: 07 | R12: 0
A13: =الأحد!A13 -> 08 | B13: =الأحد!B13 -> تفاح(كغ) | C13: =SUM(الأحد!J13) -> 0 | D13: 0 | E13: 0 | F13: 0 | G13: 0 | H13: 0 | I13: 0 | J13: 0 | K13: 08 | R13: 0
A14: =الأحد!A14 -> 09 | B14: =الأحد!B14 -> خيار(كغ) | C14: =SUM(الأحد!J14) -> 0 | D14: 0 | E14: 0 | F14: 0 | H14: =SUM(E14) -> 0 | I14: 0 | J14: 0 | K14: 09 | M14: معـدل المستفيدين | O14: =SUM(N11+O11+P11) -> 1 | R14: 0
A15: =الأحد!A15 -> 10 | B15: =الأحد!B15 -> طماطم حب(كغ) | C15: =SUM(الأحد!J15) -> 0 | D15: 0 | E15: 90 | F15: 0 | H15: 90 | I15: 0 | J15: 0 | K15: 10 | R15: 0
A16: =الأحد!A16 -> 11 | B16: =الأحد!B16 -> ثوم(كغ) | C16: =SUM(الأحد!J16) -> 0 | D16: 0 | E16: 400 | F16: 0 | H16: 400 | I16: 0 | J16: 0 | K16: 11 | M16: من الوجبـــات | R16: 0
A17: =الأحد!A17 -> 12 | B17: =الأحد!B17 -> سلاطة خس(كغ) | C17: =SUM(الأحد!J17) -> 0 | D17: 0 | E17: 80 | F17: =SUM(C17+D17) -> 0 | H17: =SUM(E17) -> 80 | I17: =SUM(G17*H17) -> 0 | J17: 0 | K17: 12 | M17: الوجبــــــــــــــات | R17: 0
A18: =الأحد!A18 -> 13 | B18: =الأحد!B18 -> برتقال(كغ) | C18: =SUM(الأحد!J18) -> 0 | D18: 0 | E18: 130 | F18: 0 | H18: 130 | I18: 0 | J18: 0 | K18: 13 | R18: 0
A19: =الأحد!A19 -> 14 | B19: =الأحد!B19 -> موز(كغ) | C19: =SUM(الأحد!J19) -> 0 | D19: 0 | E19: 160 | F19: 0 | H19: 160 | I19: 0 | J19: 0 | K19: 14 | M19: فطــــــــور الصبــاح | R19: 0
A20: =الأحد!A20 -> 15 | B20: =الأحد!B20 -> يوسفية | C20: =SUM(الأحد!J20) -> 0 | D20: 0 | E20: 0 | F20: 0 | H20: 0 | I20: 0 | J20: 0 | K20: 15 | R20: 0
A21: =الأحد!A21 -> 16 | B21: =الأحد!B21 -> عنب(كغ) | C21: =SUM(الأحد!J21) -> 0 | D21: 0 | E21: 0 | F21: 0 | G21: 0 | H21: 0 | I21: 0 | J21: 0 | K21: 16 | R21: 0
A22: =الأحد!A22 -> 17 | B22: =الأحد!B22 -> شخشوخة(كغ) | C22: =SUM(الأحد!J22) -> 0 | D22: 0 | E22: 0 | F22: 0 | H22: 0 | I22: 0 | J22: 0 | K22: 17 | R22: 0
A23: =الأحد!A23 -> 18 | B23: =الأحد!B23 -> زعرورة (كغ) | C23: =SUM(الأحد!J23) -> 0 | D23: 0 | E23: 0 | F23: 0 | H23: 0 | I23: 0 | J23: 0 | K23: 18 | R23: 0
A24: =الأحد!A24 -> 19 | B24: =الأحد!B24 -> ياؤرت | C24: =SUM(الأحد!J24) -> 0 | D24: 0 | E24: 15 | F24: 0 | H24: 15 | I24: 0 | J24: 0 | K24: 19 | R24: 0
A25: =الأحد!A25 -> 20 | B25: =الأحد!B25 -> شكولاطة | C25: =SUM(الأحد!J25) -> 0 | D25: 0 | E25: 0 | F25: 0 | H25: 0 | I25: 0 | J25: 0 | K25: 20 | R25: 0
A26: =الأحد!A26 -> 21 | B26: =الأحد!B26 -> زيتون اسود(كغ) | C26: =SUM(الأحد!J26) -> 0 | D26: 0 | E26: 350 | F26: 0 | H26: 350 | I26: 0 | J26: 0 | K26: 21 | M26: الغــــــذاء | R26: 0
A27: =الأحد!A27 -> 22 | B27: =الأحد!B27 -> زيتون اخضر(كغ) | C27: =SUM(الأحد!J27) -> 0 | D27: 0 | E27: 400 | F27: 0 | H27: 400 | I27: 0 | J27: 0 | K27: 22 | M27: خبز+فاصولياء+لحم دجاج | R27: 0
A28: =الأحد!A28 -> 23 | B28: =الأحد!B28 -> تليتلي(كغ) | C28: =SUM(الأحد!J28) -> 0 | D28: 0 | E28: 90 | F28: 0 | H28: 90 | I28: 0 | J28: 0 | K28: 23 | M28: سلاطة متنوعة | N28: برتقال | R28: 0
A29: =الأحد!A29 -> 24 | B29: =الأحد!B29 -> دويدة(كغ) | C29: =SUM(الأحد!J29) -> 0 | D29: 0 | E29: 90 | F29: 0 | H29: 90 | I29: 0 | J29: 0 | K29: 24 | R29: 0
A30: =الأحد!A30 -> 25 | B30: =الأحد!B30 -> سباقيطي(كغ) | C30: =SUM(الأحد!J30) -> 0 | D30: 0 | E30: 90 | F30: 0 | H30: 90 | I30: 0 | J30: 0 | K30: 25 | R30: 0
A31: =الأحد!A31 -> 26 | B31: =الأحد!B31 -> كسكسي (كغ) | C31: =SUM(الأحد!J31) -> 0 | D31: 0 | E31: 0 | F31: 0 | H31: 0 | I31: 0 | J31: 0 | K31: 26 | M31: قائمـة المقبولين للطاولة المشتركــة | R31: 0
A32: =الأحد!A32 -> 27 | B32: =الأحد!B32 -> مقارونة | C32: =SUM(الأحد!J32) -> 0 | D32: 0 | E32: 0 | F32: =SUM(C32+D32) -> 0 | H32: =SUM(E32) -> 0 | I32: =SUM(G32*H32) -> 0 | J32: 0 | K32: 27 | M32: الأسمــاء | N32: ف.ص | O32: غــداء | P32: ع | R32: 0
A33: =الأحد!A33 -> 28 | B33: =الأحد!B33 -> حمص | C33: =SUM(الأحد!J33) -> 0 | D33: 0 | E33: 0 | F33: 0 | H33: 0 | I33: 0 | J33: 0 | K33: 28 | L33: =الأحد!L33 -> 1 | M33: =الأحد!M33 -> ازوال شراف الدين | R33: 0
A34: =الأحد!A34 -> 29 | B34: =الأحد!B34 -> عدس | C34: =SUM(الأحد!J34) -> 0 | D34: 0 | E34: 120 | F34: 0 | H34: =SUM(E34) -> 120 | I34: 0 | J34: 0 | K34: 29 | L34: =الأحد!L34 -> 2 | M34: =الأحد!M34 -> اوشن صبرينة | R34: 0
A35: =الأحد!A35 -> 30 | B35: =الأحد!B35 -> فاصولياء(كغ) | C35: =SUM(الأحد!J35) -> 0 | D35: 0 | E35: 200 | F35: =SUM(C35+D35) -> 0 | H35: =SUM(E35) -> 200 | I35: =SUM(G35*H35) -> 0 | J35: 0 | K35: 30 | L35: =الأحد!L35 -> 3 | M35: =الأحد!M35 -> قلي أحلام | R35: 0
A36: =الأحد!A36 -> 31 | B36: =الأحد!B36 -> ارزمفور(كغ) | C36: =SUM(الأحد!J36) -> 0 | D36: 0 | E36: 110 | F36: 0 | G36: 0 | H36: =SUM(E36) -> 110 | I36: 0 | J36: 0 | K36: 31 | L36: =الأحد!L36 -> 4 | M36: =الأحد!M36 -> اوش ايمان | R36: 0
A37: =الأحد!A37 -> 32 | B37: =الأحد!B37 -> حلويات | C37: =SUM(الأحد!J37) -> 0 | D37: 0 | E37: 0 | F37: =SUM(C37+D37) -> 0 | H37: 0 | I37: =SUM(G37*H37) -> 0 | J37: 0 | K37: 32 | L37: =الأحد!L37 -> 5 | M37: =الأحد!M37 -> عزيون فضيلة | R37: 0
A38: =الأحد!A38 -> 33 | B38: =الأحد!B38 -> خوخ | C38: =SUM(الأحد!J38) -> 0 | D38: 0 | E38: 0 | F38: 0 | G38: 0 | H38: =SUM(E38) -> 0 | I38: 0 | J38: 0 | K38: 33 | L38: =الأحد!L38 -> 6 | M38: =الأحد!M38 -> شايب عينو السعيد | R38: 0
A39: =الأحد!A39 -> 34 | B39: =الأحد!B39 -> فلفل اسود(كيس15غ) | C39: =SUM(الأحد!J39) -> 0 | D39: 0 | E39: 0 | F39: 0 | G39: 0 | H39: =SUM(E39) -> 0 | I39: 0 | J39: 0 | K39: 34 | L39: =الأحد!L39 -> 7 | M39: =الأحد!M39 -> زيوش حدة | R39: 0
A40: =الأحد!A40 -> 35 | B40: =الأحد!B40 -> خميرة | C40: =SUM(الأحد!J40) -> 0 | D40: 0 | E40: 0 | F40: 0 | G40: 0 | H40: =SUM(E40) -> 0 | I40: 0 | J40: 0 | K40: 35 | L40: =الأحد!L40 -> 8 | M40: =الأحد!M40 -> قرازة فتحي | R40: 0
A41: =الأحد!A41 -> 36 | B41: =الأحد!B41 -> كمون | C41: =SUM(الأحد!J41) -> 0 | D41: 0 | E41: 30 | F41: 0 | H41: =SUM(E41) -> 30 | I41: 0 | J41: 0 | K41: 36 | L41: =الأحد!L41 -> 9 | M41: =الأحد!M41 -> غضبان فيروز | R41: 0
A42: =الأحد!A42 -> 37 | B42: =الأحد!B42 -> ملح(كغ) | C42: =SUM(الأحد!J42) -> 0 | D42: 0 | E42: 30 | F42: 0 | H42: =SUM(E42) -> 30 | I42: 0 | J42: 0 | K42: 37 | L42: =الأحد!L42 -> 10 | M42: =الأحد!M42 -> قرفي عليمة | R42: 0
A43: =الأحد!A43 -> 38 | B43: =الأحد!B43 -> طماطم مصبرة(كغ) | C43: =SUM(الأحد!J43) -> 0 | D43: 0 | E43: 140 | F43: 0 | H43: =SUM(E43) -> 140 | I43: =SUM(G43*H43) -> 0 | J43: 0 | K43: 38 | L43: =الأحد!L43 -> 11 | M43: =الأحد!M43 -> بوناب هوراي | R43: 0
A44: =الأحد!A44 -> 39 | B44: =الأحد!B44 -> زيت المائدة 1لتر | C44: =SUM(الأحد!J44) -> 0 | D44: 0 | E44: 140 | F44: 0 | H44: 140 | I44: 0 | J44: 0 | K44: 39 | L44: =الأحد!L44 -> 12 | M44: =الأحد!M44 -> بوناب فريدة | R44: 0
A45: =الأحد!A45 -> 40 | B45: =الأحد!B45 -> زيدة | C45: =SUM(الأحد!J45) -> 0 | D45: 0 | E45: 70 | F45: 0 | G45: 0 | H45: 70 | I45: 0 | J45: 0 | K45: 40 | L45: =الأحد!L45 -> 13 | M45: =الأحد!M45 -> جمال بوناب | R45: 0
A46: =الأحد!A46 -> 41 | B46: =الأحد!B46 -> خل(قارورة) | C46: =SUM(الأحد!J46) -> 0 | D46: 0 | E46: 30 | F46: 0 | H46: 30 | I46: 0 | J46: 0 | K46: 41 | L46: =الأحد!L46 -> 14 | M46: =الأحد!M46 -> 0 | R46: 0
A47: =الأحد!A47 -> 42 | B47: =الأحد!B47 -> لحم دجاج(كغ) | C47: =SUM(الأحد!J47) -> 0 | D47: 0 | E47: 0 | F47: 0 | H47: 0 | I47: 0 | J47: 0 | K47: 42 | L47: =الأحد!L47 -> 15 | M47: =الأحد!M47 -> 0 | R47: 0
A48: =الأحد!A48 -> 43 | B48: =الأحد!B48 -> فافل | C48: =SUM(الأحد!J48) -> 0 | D48: 0 | E48: 0 | F48: 0 | G48: 0 | H48: 0 | I48: 0 | J48: 0 | K48: 43 | L48: =الأحد!L48 -> 16 | M48: =الأحد!M48 -> 0 | R48: 0
A49: =الأحد!A49 -> 44 | B49: =الأحد!B49 -> لحم عجل(كغ) | C49: =SUM(الأحد!J49) -> 0 | D49: 0 | E49: 0 | F49: 0 | G49: 0 | H49: 0 | I49: 0 | J49: 0 | K49: 44 | L49: =الأحد!L49 -> 17 | M49: =الأحد!M49 -> 0 | R49: 0
A50: =الأحد!A50 -> 45 | B50: =الأحد!B50 -> ايجاص(كغ) | C50: =SUM(الأحد!J50) -> 0 | D50: 0 | E50: 0 | F50: 0 | G50: 0 | H50: 0 | I50: 0 | J50: 0 | K50: 45 | L50: =الأحد!L50 -> 18 | M50: =الأحد!M50 -> 0 | R50: 0
A51: =الأحد!A51 -> 46 | B51: =الأحد!B51 -> طونة | C51: =SUM(الأحد!J51) -> 0 | D51: 0 | E51: 0 | F51: 0 | G51: 0 | H51: =SUM(E51) -> 0 | I51: 0 | J51: 0 | K51: 46 | L51: =الأحد!L51 -> 19 | M51: =الأحد!M51 -> 0 | R51: 0
A52: =الأحد!A52 -> 47 | B52: =الأحد!B52 -> جلبانة خضراء(كغ) | C52: =SUM(الأحد!J52) -> 0 | D52: 0 | E52: 0 | F52: 0 | G52: 0 | H52: 0 | I52: 0 | J52: 0 | K52: 47 | L52: =الأحد!L52 -> 20 | M52: =الأحد!M52 -> 0 | R52: 0
A53: =الأحد!A53 -> 48 | B53: =الأحد!B53 -> مرطبات | C53: =SUM(الأحد!J53) -> 0 | D53: 0 | E53: 0 | F53: 0 | G53: 0 | H53: 0 | I53: 0 | J53: 0 | K53: 48 | L53: =الأحد!L53 -> 21 | M53: =الأحد!M53 -> 0 | R53: 0
A54: =الأحد!A54 -> 49 | B54: =الأحد!B54 -> مايـونــاز500غ | C54: =SUM(الأحد!J54) -> 0 | D54: 0 | E54: 0 | F54: 0 | G54: 0 | H54: 0 | I54: 0 | J54: 0 | K54: 49 | L54: =الأحد!L54 -> 22 | M54: =الأحد!M54 -> 0 | R54: 0
A55: =الأحد!A55 -> 50 | B55: =الأحد!B55 -> مربى | C55: =SUM(الأحد!J55) -> 0 | D55: 0 | E55: 0 | F55: 0 | G55: 0 | H55: 0 | I55: 0 | J55: 0 | K55: 50 | L55: =الأحد!L55 -> 23 | M55: =الأحد!M55 -> 0 | R55: 0
A56: =الأحد!A56 -> 51 | B56: =الأحد!B56 -> مشروبات غازية | C56: =SUM(الأحد!J56) -> 0 | D56: 0 | E56: 0 | F56: 0 | G56: 0 | H56: 0 | I56: 0 | J56: 0 | K56: 51 | L56: =الأحد!L56 -> 24 | M56: =الأحد!M56 -> 0 | R56: 0
A57: =الأحد!A57 -> 52 | B57: =الأحد!B57 -> ماء معدني | C57: =SUM(الأحد!J57) -> 0 | D57: 0 | E57: 0 | F57: 0 | G57: 0 | H57: 0 | I57: 0 | J57: 0 | K57: 52 | L57: =الأحد!L57 -> 25 | M57: =الأحد!M57 -> 0 | R57: 0
A58: =الأحد!A58 -> 53 | B58: =الأحد!B58 -> تمر(كغ) | C58: =SUM(الأحد!J58) -> 0 | D58: 0 | E58: 0 | F58: 0 | G58: 0 | H58: 0 | I58: 0 | J58: 0 | K58: 53 | L58: =الأحد!L58 -> 26 | M58: =الأحد!M58 -> 0 | R58: 0
A59: =الأحد!A59 -> 54 | B59: =الأحد!B59 -> سكر | C59: =SUM(الأحد!J59) -> 0 | D59: 0 | E59: 0 | F59: 0 | G59: 0 | H59: 0 | I59: 0 | J59: 0 | K59: 54 | L59: =الأحد!L59 -> 27 | M59: =الأحد!M59 -> 0 | R59: 0
A60: =الأحد!A60 -> 55 | B60: =الأحد!B60 -> فافل حار | C60: =SUM(الأحد!J60) -> 0 | D60: 0 | E60: 0 | F60: 0 | G60: 0 | H60: 0 | I60: 0 | J60: 0 | K60: 55 | L60: =الأحد!L60 -> 28 | M60: =الأحد!M60 -> 0 | R60: 0
A61: =الأحد!A61 -> 56 | B61: =الأحد!B61 -> حليب سوبرلي | C61: =SUM(الأحد!J61) -> 0 | D61: 0 | E61: 0 | F61: 0 | G61: 0 | H61: 0 | I61: 0 | J61: 0 | K61: 56 | L61: =الأحد!L61 -> 29 | M61: =الأحد!M61 -> 0 | R61: 0
A62: =الأحد!A62 -> 57 | B62: =الأحد!B62 -> فريك | C62: =SUM(الأحد!J62) -> 0 | D62: 0 | E62: 0 | F62: =SUM(C62+D62) -> 0 | G62: 0 | H62: =SUM(E62) -> 0 | I62: =SUM(G62*H62) -> 0 | J62: 0 | K62: 57 | L62: =الأحد!L62 -> 30 | M62: =الأحد!M62 -> 0 | R62: 0
A63: =الأحد!A63 -> 58 | B63: =الأحد!B63 -> جريوات | C63: =SUM(الأحد!J63) -> 0 | D63: 0 | E63: 0 | F63: 0 | G63: 0 | H63: 0 | I63: 0 | J63: 0 | K63: 58 | L63: =الأحد!L63 -> 31 | M63: =الأحد!M63 -> 0 | R63: 0
A64: =الأحد!A64 -> 59 | B64: =الأحد!B64 -> تاي | C64: =SUM(الأحد!J64) -> 0 | D64: 0 | E64: 0 | F64: 0 | G64: 0 | H64: 0 | I64: 0 | J64: 0 | K64: 59 | L64: =الأحد!L64 -> 32 | M64: =الأحد!M64 -> 0 | R64: 0
A65: =الأحد!A65 -> 60 | B65: =الأحد!B65 -> قهوة(كغ) | C65: =SUM(الأحد!J65) -> 0 | D65: 0 | E65: 0 | F65: 0 | G65: 0 | H65: 0 | I65: 0 | J65: 0 | K65: 60 | M65: المجموع | N65: =SUM(N51:N64) -> 0 | O65: =O33+O34+O35+O36+O37+O38+O39+O40+O41+O42+O43+O44+O45+O46+O47+O48+O49+O50+O51+O52+O53+O54+O55+O56+O57+O58+O59+O60+O61+O62+O63+O64 -> 0 | P65: =SUM(P51:P64) -> 0 | R65: 0
A66: =الأحد!A66 -> 61 | B66: =الأحد!B66 -> شمندر | C66: =SUM(الأحد!J66) -> 0 | D66: 0 | E66: 0 | F66: 0 | G66: 0 | H66: 0 | I66: 0 | J66: 0 | K66: 61 | R66: 0
A67: =الأحد!A67 -> 62 | B67: =الأحد!B67 -> توابل | C67: =SUM(الأحد!J67) -> 0 | D67: 0 | E67: 0 | F67: 0 | G67: 0 | H67: 0 | I67: 0 | J67: 0 | K67: 62 | M67: مصـاريف التغذية للشخـص الواحــد | R67: 0
A68: =الأحد!A68 -> 63 | B68: =الأحد!B68 -> إجاص(كغ) | C68: =SUM(الأحد!J68) -> 0 | D68: 0 | E68: 0 | F68: 0 | G68: 0 | H68: 0 | I68: 0 | J68: 0 | K68: 63 | R68: 0
A69: =الأحد!A69 -> 64 | B69: =الأحد!B69 -> 0 | C69: =SUM(الأحد!J69) -> 0 | D69: 0 | E69: 0 | F69: 0 | H69: 0 | I69: 0 | J69: 0 | K69: 64 | M69: قيمة مخروجات اليـوم | O69: =SUM(I77) -> 0 | R69: 0
A70: =الأحد!A70 -> 65 | B70: =الأحد!B70 -> 0 | C70: =SUM(الأحد!J70) -> 0 | D70: 0 | E70: 0 | F70: 0 | H70: 0 | I70: 0 | J70: =SUM(F70-G70) -> 0 | K70: 65 | R70: 0
A71: =الأحد!A71 -> 66 | B71: =الأحد!B71 -> 0 | C71: =SUM(الأحد!J71) -> 0 | D71: 0 | E71: 0 | F71: 0 | G71: 0 | H71: 0 | I71: 0 | J71: 0 | K71: 66 | M71: معدل تغذية الأفراد | O71: =SUM(O14) -> 1 | R71: =SUM(D71*E71) -> 0
A72: =الأحد!A72 -> 67 | B72: =الأحد!B72 -> 0 | C72: =SUM(الأحد!J72) -> 0 | D72: 0 | E72: 0 | F72: 0 | H72: 0 | I72: 0 | J72: 0 | K72: 67 | R72: 0
A73: =الأحد!A73 -> 68 | B73: =الأحد!B73 -> 0 | C73: =SUM(الأحد!J73) -> 0 | D73: 0 | E73: 0 | F73: 0 | H73: 0 | I73: 0 | J73: 0 | K73: 68 | R73: 0
A74: =الأحد!A74 -> 69 | B74: =الأحد!B74 -> 0 | C74: =SUM(الأحد!J74) -> 0 | D74: 0 | F74: 0 | J74: 0 | K74: 69 | M74: =SUM(I77/O14) -> 0 | O74: = | P74: =M74 -> 0 | R74: 0
A75: =الأحد!A75 -> 70 | B75: =الأحد!B75 -> 0 | C75: =SUM(الأحد!J75) -> 0 | D75: 12.2 | F75: 12.2 | G75: 0 | J75: 12.2 | K75: 70 | M75: (1) معدل تغذية الأفـراد للوجبــة | R75: 0
A76: =الأحد!A76 -> 71 | B76: =الأحد!B76 -> 0 | C76: =SUM(الأحد!J76) -> 0 | D76: 0 | F76: 0 | J76: 0 | K76: 71 | M76: الغــذاء + العشـاء | R76: 0
A77: المجمــــــــــــــوع | C77: =SUM(C6:C76) -> 0 | D77: =SUM(D6:D76) -> 61.2 | F77: =SUM(F6:F76) -> 61.2 | G77: =SUM(G6:G76) -> 0 | I77: =SUM(I6:I76) -> 0 | J77: =SUM(J6:J76) -> 61.2 | R77: =SUM(R11:R76) -> 840
K78: حــرر ببئر الشهداء في: 08 / 04 / 2013....................................

Sheet الثلاثاء
A1: اســــم المؤسســــــــــــــــــــــــــــــــــــــــــــــة | E1: ورقـــــة الاستهــــلاك اليومـــــــــــــــــــي
A2: طالــــــــــب عبــــد الله-بئر الشهداء- | E2: إضراب | F2: يـوم:الثلاثاء | G2: =SUM(الأحد!G2+2) -> 9 | H2: =الأحد!H2 -> فيفري | I2: 2013 | M2: السنة المالية :2013
A3: طبيعة المواد | C3: مخزون | D3: مــــدخـــــلات اليـوم | F3: مجموع مخزون | G3: مـخرجــــــــــــــــــــات اليـوم | J3: كمية ماتبقى | K3: ملاحظـــــات | M3: تعــــــــداد اليـــوم
D4: الكمية | E4: سعر | F4: البارحـــــــــة | G4: الكمية | H4: سعر | I4: قيمة مخـروجات | J4: فـــي | M4: المستفيدون | N4: فطـور | O4: غـذاء | P4: عشـاء
A5: المستهلكـــة | C5: البارحة | E5: الوحـدة | F5: ومدخلات اليوم | H5: الوحـدة | I5: اليــوم | J5: نهاية اليــوم
A6: =الأحد!A6 -> 01 | B6: =الأحد!B6 -> الخبـــــــز | C6: =SUM(الإثنين!J6) -> 12 | E6: 7.4 | F6: =SUM(C6+D6) -> 12 | H6: =SUM(E6) -> 7.4 | I6: =SUM(G6*H6) -> 0 | J6: =SUM(F6-G6) -> 12 | K6: 01 | M6: نصف داخليون | R6: =SUM(D6*E6) -> 0
A7: =الأحد!A7 -> 02 | B7: =الأحد!B7 -> بسباس(كغ) | C7: =SUM(الإثنين!J7) -> 13 | E7: 80 | F7: 13 | H7: 80 | I7: 0 | J7: 13 | K7: 02 | M7: م .تربويون | R7: =SUM(D7*E7) -> 0
A8: =الأحد!A8 -> 03 | B8: =الأحد!B8 -> بيض | C8: =SUM(الإثنين!J8) -> 0 | E8: 0 | F8: 0 | G8: 0 | H8: 0 | I8: 0 | J8: 0 | K8: 03 | M8: الأساتــذة | R8: 0
A9: =الأحد!A9 -> 04 | B9: =الأحد!B9 -> بطاطا(كغ) | C9: =SUM(الإثنين!J9) -> 12 | E9: 0 | F9: 12 | H9: 0 | I9: 0 | J9: 12 | K9: 04 | M9: العمـــال | R9: 0
A10: =الأحد!A10 -> 05 | B10: =الأحد!B10 -> بصل(كغ) | C10: =SUM(الإثنين!J10) -> 0 | D10: 35 | E10: 1110 | F10: 35 | H10: 1110 | I10: 0 | J10: 35 | K10: 05 | M10: الإداريين | O10: 2 | R10: 38850
A11: =الأحد!A11 -> 06 | B11: =الأحد!B11 -> جزر(كغ) | C11: =SUM(الإثنين!J11) -> 12 | E11: 70 | F11: 12 | H11: 70 | I11: 0 | J11: 12 | K11: 06 | M11: المجمـــــوع | N11: =SUM(N6:N10) -> 0 | O11: =SUM(O6:O10) -> 2 | P11: =SUM(P6:P10) -> 0 | R11: 0
A12: =الأحد!A12 -> 07 | B12: =الأحد!B12 -> جبن(علبة16ق) | C12: =SUM(الإثنين!J12) -> 0 | E12: 0 | F12: 0 | G12: 0 | H12: 0 | I12: 0 | J12: 0 | K12: 07 | R12: 0
A13: =الأحد!A13 -> 08 | B13: =الأحد!B13 -> تفاح(كغ) | C13: =SUM(الإثنين!J13) -> 0 | E13: 0 | F13: 0 | G13: 0 | H13: 0 | I13: 0 | J13: 0 | K13: 08 | R13: 0
A14: =الأحد!A14 -> 09 | B14: =الأحد!B14 -> خيار(كغ) | C14: =SUM(الإثنين!J14) -> 0 | E14: 0 | F14: 0 | G14: 0 | H14: =SUM(E14) -> 0 | I14: 0 | J14: 0 | K14: 09 | M14: معـدل المستفيدين | O14: =SUM(N11+O11+P11) -> 2 | R14: 0
A15: =الأحد!A15 -> 10 | B15: =الأحد!B15 -> طماطم حب(كغ) | C15: =SUM(الإثنين!J15) -> 0 | E15: 90 | F15: 0 | H15: 90 | I15: 0 | J15: 0 | K15: 10 | R15: 0
A16: =الأحد!A16 -> 11 | B16: =الأحد!B16 -> ثوم(كغ) | C16: =SUM(الإثنين!J16) -> 0 | E16: 0 | F16: 0 | H16: 0 | I16: 0 | J16: 0 | K16: 11 | M16: من الوجبـــات | R16: 0
A17: =الأحد!A17 -> 12 | B17: =الأحد!B17 -> سلاطة خس(كغ) | C17: =SUM(الإثنين!J17) -> 0 | E17: 80 | F17: =SUM(C17+D17) -> 0 | H17: =SUM(E17) -> 80 | I17: =SUM(G17*H17) -> 0 | J17: 0 | K17: 12 | M17: الوجبــــــــــــــات | R17: 0
A18: =الأحد!A18 -> 13 | B18: =الأحد!B18 -> برتقال(كغ) | C18: =SUM(الإثنين!J18) -> 0 | E18: 0 | F18: 0 | G18: 0 | H18: 0 | I18: 0 | J18: 0 | K18: 13 | R18: 0
A19: =الأحد!A19 -> 14 | B19: =الأحد!B19 -> موز(كغ) | C19: =SUM(الإثنين!J19) -> 0 | E19: 0 | F19: 0 | G19: 0 | H19: 0 | I19: 0 | J19: 0 | K19: 14 | M19: فطــــــــور الصبــاح | R19: 0
A20: =الأحد!A20 -> 15 | B20: =الأحد!B20 -> يوسفية | C20: =SUM(الإثنين!J20) -> 0 | E20: 0 | F20: 0 | G20: 0 | H20: 0 | I20: 0 | J20: 0 | K20: 15 | R20: 0
A21: =الأحد!A21 -> 16 | B21: =الأحد!B21 -> عنب(كغ) | C21: =SUM(الإثنين!J21) -> 0 | E21: 0 | F21: 0 | G21: 0 | H21: 0 | I21: 0 | J21: 0 | K21: 16 | R21: 0
A22: =الأحد!A22 -> 17 | B22: =الأحد!B22 -> شخشوخة(كغ) | C22: =SUM(الإثنين!J22) -> 0 | E22: 0 | F22: 0 | G22: 0 | H22: 0 | I22: 0 | J22: 0 | K22: 17 | R22: 0
A23: =الأحد!A23 -> 18 | B23: =الأحد!B23 -> زعرورة (كغ) | C23: =SUM(الإثنين!J23) -> 0 | E23: 0 | F23: 0 | G23: 0 | H23: 0 | I23: 0 | J23: 0 | K23: 18 | R23: 0
A24: =الأحد!A24 -> 19 | B24: =الأحد!B24 -> ياؤرت | C24: =SUM(الإثنين!J24) -> 0 | E24: 15 | F24: 0 | H24: 15 | I24: 0 | J24: 0 | K24: 19 | R24: 0
A25: =الأحد!A25 -> 20 | B25: =الأحد!B25 -> شكولاطة | C25: =SUM(الإثنين!J25) -> 0 | E25: 0 | F25: 0 | G25: 0 | H25: 0 | I25: 0 | J25: 0 | K25: 20 | R25: 0
A26: =الأحد!A26 -> 21 | B26: =الأحد!B26 -> زيتون اسود(كغ) | C26: =SUM(الإثنين!J26) -> 0 | E26: 350 | F26: 0 | H26: 350 | I26: 0 | J26: 0 | K26: 21 | M26: الغــــــذاء | R26: 0
A27: =الأحد!A27 -> 22 | B27: =الأحد!B27 -> زيتون اخضر(كغ) | C27: =SUM(الإثنين!J27) -> 0 | E27: 0 | F27: 0 | G27: 0 | H27: 0 | I27: 0 | J27: 0 | K27: 22 | M27: خبز +بطاطا مرحية +لحم عجل | R27: 0
A28: =الأحد!A28 -> 23 | B28: =الأحد!B28 -> تليتلي(كغ) | C28: =SUM(الإثنين!J28) -> 0 | E28: 0 | F28: 0 | G28: 0 | H28: 0 | I28: 0 | J28: 0 | K28: 23 | M28: سلاطة متنوعة | N28: ياؤورت | R28: 0
A29: =الأحد!A29 -> 24 | B29: =الأحد!B29 -> دويدة(كغ) | C29: =SUM(الإثنين!J29) -> 0 | E29: 0 | F29: 0 | G29: 0 | H29: 0 | I29: 0 | J29: 0 | K29: 24 | R29: 0
A30: =الأحد!A30 -> 25 | B30: =الأحد!B30 -> سباقيطي(كغ) | C30: =SUM(الإثنين!J30) -> 0 | E30: 90 | F30: 0 | G30: 0 | H30: 90 | I30: 0 | J30: 0 | K30: 25 | R30: 0
A31: =الأحد!A31 -> 26 | B31: =الأحد!B31 -> كسكسي (كغ) | C31: =SUM(الإثنين!J31) -> 0 | E31: 0 | F31: 0 | H31: 0 | I31: 0 | J31: 0 | K31: 26 | M31: قائمـة المقبولين للطاولة المشتركــة | R31: 0
A32: =الأحد!A32 -> 27 | B32: =الأحد!B32 -> مقارونة | C32: =SUM(الإثنين!J32) -> 0 | E32: 0 | F32: =SUM(C32+D32) -> 0 | H32: =SUM(E32) -> 0 | I32: =SUM(G32*H32) -> 0 | J32: 0 | K32: 27 | M32: الأسمــاء | N32: ف.ص | O32: غــداء | P32: ع | R32: 0
A33: =الأحد!A33 -> 28 | B33: =الأحد!B33 -> حمص | C33: =SUM(الإثنين!J33) -> 0 | E33: 0 | F33: 0 | H33: 0 | I33: 0 | J33: 0 | K33: 28 | L33: =الأحد!L33 -> 1 | M33: =الأحد!M33 -> ازوال شراف الدين | R33: 0
A34: =الأحد!A34 -> 29 | B34: =الأحد!B34 -> عدس | C34: =SUM(الإثنين!J34) -> 0 | E34: 0 | F34: 0 | H34: =SUM(E34) -> 0 | I34: 0 | J34: 0 | K34: 29 | L34: =الأحد!L34 -> 2 | M34: =الأحد!M34 -> اوشن صبرينة | R34: 0
A35: =الأحد!A35 -> 30 | B35: =الأحد!B35 -> فاصولياء(كغ) | C35: =SUM(الإثنين!J35) -> 0 | E35: 0 | F35: =SUM(C35+D35) -> 0 | H35: =SUM(E35) -> 0 | I35: =SUM(G35*H35) -> 0 | J35: 0 | K35: 30 | L35: =الأحد!L35 -> 3 | M35: =الأحد!M35 -> قلي أحلام | R35: 0
A36: =الأحد!A36 -> 31 | B36: =الأحد!B36 -> ارزمفور(كغ) | C36: =SUM(الإثنين!J36) -> 0 | E36: 0 | F36: 0 | H36: =SUM(E36) -> 0 | I36: 0 | J36: 0 | K36: 31 | L36: =الأحد!L36 -> 4 | M36: =الأحد!M36 -> اوش ايمان | R36: 0
A37: =الأحد!A37 -> 32 | B37: =الأحد!B37 -> حلويات | C37: =SUM(الإثنين!J37) -> 0 | E37: 0 | F37: =SUM(C37+D37) -> 0 | H37: 0 | I37: =SUM(G37*H37) -> 0 | J37: 0 | K37: 32 | L37: =الأحد!L37 -> 5 | M37: =الأحد!M37 -> عزيون فضيلة | R37: 0
A38: =الأحد!A38 -> 33 | B38: =الأحد!B38 -> خوخ | C38: =SUM(الإثنين!J38) -> 0 | E38: 0 | F38: 0 | H38: =SUM(E38) -> 0 | I38: 0 | J38: 0 | K38: 33 | L38: =الأحد!L38 -> 6 | M38: =الأحد!M38 -> شايب عينو السعيد | R38: 0
A39: =الأحد!A39 -> 34 | B39: =الأحد!B39 -> فلفل اسود(كيس15غ) | C39: =SUM(الإثنين!J39) -> 0 | E39: 0 | F39: 0 | G39: 0 | H39: =SUM(E39) -> 0 | I39: 0 | J39: 0 | K39: 34 | L39: =الأحد!L39 -> 7 | M39: =الأحد!M39 -> زيوش حدة | R39: 0
A40: =الأحد!A40 -> 35 | B40: =الأحد!B40 -> خميرة | C40: =SUM(الإثنين!J40) -> 0 | E40: 0 | F40: 0 | G40: 0 | H40: =SUM(E40) -> 0 | I40: 0 | J40: 0 | K40: 35 | L40: =الأحد!L40 -> 8 | M40: =الأحد!M40 -> قرازة فتحي | R40: 0
A41: =الأحد!A41 -> 36 | B41: =الأحد!B41 -> كمون | C41: =SUM(الإثنين!J41) -> 0 | E41: 30 | F41: 0 | H41: =SUM(E41) -> 30 | I41: 0 | J41: 0 | K41: 36 | L41: =الأحد!L41 -> 9 | M41: =الأحد!M41 -> غضبان فيروز | R41: 0
A42: =الأحد!A42 -> 37 | B42: =الأحد!B42 -> ملح(كغ) | C42: =SUM(الإثنين!J42) -> 0 | E42: 0 | F42: 0 | H42: =SUM(E42) -> 0 | I42: 0 | J42: 0 | K42: 37 | L42: =الأحد!L42 -> 10 | M42: =الأحد!M42 -> قرفي عليمة | R42: 0
A43: =الأحد!A43 -> 38 | B43: =الأحد!B43 -> طماطم مصبرة(كغ) | C43: =SUM(الإثنين!J43) -> 0 | E43: 140 | F43: 0 | H43: =SUM(E43) -> 140 | I43: 0 | J43: 0 | K43: 38 | L43: =الأحد!L43 -> 11 | M43: =الأحد!M43 -> بوناب هوراي | R43: 0
A44: =الأحد!A44 -> 39 | B44: =الأحد!B44 -> زيت المائدة 1لتر | C44: =SUM(الإثنين!J44) -> 0 | E44: 70 | F44: 0 | H44: 70 | I44: 0 | J44: 0 | K44: 39 | L44: =الأحد!L44 -> 12 | M44: =الأحد!M44 -> بوناب فريدة | R44: 0
A45: =الأحد!A45 -> 40 | B45: =الأحد!B45 -> زيدة | C45: =SUM(الإثنين!J45) -> 0 | E45: 70 | F45: 0 | H45: 70 | I45: 0 | J45: 0 | K45: 40 | L45: =الأحد!L45 -> 13 | M45: =الأحد!M45 -> جمال بوناب | R45: 0
A46: =الأحد!A46 -> 41 | B46: =الأحد!B46 -> خل(قارورة) | C46: =SUM(الإثنين!J46) -> 0 | E46: 30 | F46: 0 | H46: 30 | I46: 0 | J46: 0 | K46: 41 | L46: =الأحد!L46 -> 14 | M46: =الأحد!M46 -> 0 | R46: 0
A47: =الأحد!A47 -> 42 | B47: =الأحد!B47 -> لحم دجاج(كغ) | C47: =SUM(الإثنين!J47) -> 0 | E47: 450 | F47: 0 | H47: 450 | I47: 0 | J47: 0 | K47: 42 | L47: =الأحد!L47 -> 15 | M47: =الأحد!M47 -> 0 | R47: 0
A48: =الأحد!A48 -> 43 | B48: =الأحد!B48 -> فافل | C48: =SUM(الإثنين!J48) -> 0 | E48: 0 | F48: 0 | H48: 0 | I48: 0 | J48: 0 | K48: 43 | L48: =الأحد!L48 -> 16 | M48: =الأحد!M48 -> 0 | R48: 0
A49: =الأحد!A49 -> 44 | B49: =الأحد!B49 -> لحم عجل(كغ) | C49: =SUM(الإثنين!J49) -> 0 | E49: 115 | F49: 0 | H49: 115 | I49: 0 | J49: 0 | K49: 44 | L49: =الأحد!L49 -> 17 | M49: =الأحد!M49 -> 0 | R49: 0
A50: =الأحد!A50 -> 45 | B50: =الأحد!B50 -> ايجاص(كغ) | C50: =SUM(الإثنين!J50) -> 0 | E50: 0 | F50: 0 | H50: 0 | I50: 0 | J50: 0 | K50: 45 | L50: =الأحد!L50 -> 18 | M50: =الأحد!M50 -> 0 | R50: 0
A51: =الأحد!A51 -> 46 | B51: =الأحد!B51 -> طونة | C51: =SUM(الإثنين!J51) -> 0 | E51: 0 | F51: 0 | H51: =SUM(E51) -> 0 | I51: 0 | J51: 0 | K51: 46 | L51: =الأحد!L51 -> 19 | M51: =الأحد!M51 -> 0 | R51: 0
A52: =الأحد!A52 -> 47 | B52: =الأحد!B52 -> جلبانة خضراء(كغ) | C52: =SUM(الإثنين!J52) -> 0 | E52: 0 | F52: 0 | H52: 0 | I52: 0 | J52: 0 | K52: 47 | L52: =الأحد!L52 -> 20 | M52: =الأحد!M52 -> 0 | R52: 0
A53: =الأحد!A53 -> 48 | B53: =الأحد!B53 -> مرطبات | C53: =SUM(الإثنين!J53) -> 0 | E53: 0 | F53: 0 | H53: 0 | I53: 0 | J53: 0 | K53: 48 | L53: =الأحد!L53 -> 21 | M53: =الأحد!M53 -> 0 | R53: 0
A54: =الأحد!A54 -> 49 | B54: =الأحد!B54 -> مايـونــاز500غ | C54: =SUM(الإثنين!J54) -> 0 | E54: 0 | F54: 0 | H54: 0 | I54: 0 | J54: 0 | K54: 49 | L54: =الأحد!L54 -> 22 | M54: =الأحد!M54 -> 0 | R54: 0
A55: =الأحد!A55 -> 50 | B55: =الأحد!B55 -> مربى | C55: =SUM(الإثنين!J55) -> 0 | E55: 0 | F55: 0 | H55: 0 | I55: 0 | J55: 0 | K55: 50 | L55: =الأحد!L55 -> 23 | M55: =الأحد!M55 -> 0 | R55: 0
A56: =الأحد!A56 -> 51 | B56: =الأحد!B56 -> مشروبات غازية | C56: =SUM(الإثنين!J56) -> 0 | E56: 0 | F56: 0 | H56: 0 | I56: 0 | J56: 0 | K56: 51 | L56: =الأحد!L56 -> 24 | M56: =الأحد!M56 -> 0 | R56: 0
A57: =الأحد!A57 -> 52 | B57: =الأحد!B57 -> ماء معدني | C57: =SUM(الإثنين!J57) -> 0 | E57: 0 | F57: 0 | H57: 0 | I57: 0 | J57: 0 | K57: 52 | L57: =الأحد!L57 -> 25 | M57: =الأحد!M57 -> 0 | R57: 0
A58: =الأحد!A58 -> 53 | B58: =الأحد!B58 -> تمر(كغ) | C58: =SUM(الإثنين!J58) -> 0 | E58: 0 | F58: 0 | I58: 0 | J58: 0 | K58: 53 | L58: =الأحد!L58 -> 26 | M58: =الأحد!M58 -> 0 | R58: 0
A59: =الأحد!A59 -> 54 | B59: =الأحد!B59 -> سكر | C59: =SUM(الإثنين!J59) -> 0 | E59: 0 | F59: 0 | H59: 0 | I59: 0 | J59: 0 | K59: 54 | L59: =الأحد!L59 -> 27 | M59: =الأحد!M59 -> 0 | R59: 0
A60: =الأحد!A60 -> 55 | B60: =الأحد!B60 -> فافل حار | C60: =SUM(الإثنين!J60) -> 0 | E60: 0 | F60: 0 | H60: 0 | I60: 0 | J60: 0 | K60: 55 | L60: =الأحد!L60 -> 28 | M60: =الأحد!M60 -> 0 | R60: 0
A61: =الأحد!A61 -> 56 | B61: =الأحد!B61 -> حليب سوبرلي | C61: =SUM(الإثنين!J61) -> 0 | D61: 0 | E61: 280 | F61: =SUM(C61+D61) -> 0 | H61: =SUM(E61) -> 280 | I61: =SUM(G61*H61) -> 0 | J61: 0 | K61: 56 | L61: =الأحد!L61 -> 29 | M61: =الأحد!M61 -> 0 | R61: 0
A62: =الأحد!A62 -> 57 | B62: =الأحد!B62 -> فريك | C62: =SUM(الإثنين!J62) -> 0 | E62: 0 | F62: 0 | G62: 0 | H62: 0 | I62: 0 | J62: 0 | K62: 57 | L62: =الأحد!L62 -> 30 | M62: =الأحد!M62 -> 0 | R62: 0
A63: =الأحد!A63 -> 58 | B63: =الأحد!B63 -> جريوات | C63: =SUM(الإثنين!J63) -> 0 | E63: 0 | F63: 0 | H63: 0 | I63: 0 | J63: 0 | K63: 58 | L63: =الأحد!L63 -> 31 | M63: =الأحد!M63 -> 0 | R63: 0
A64: =الأحد!A64 -> 59 | B64: =الأحد!B64 -> تاي | C64: =SUM(الإثنين!J64) -> 0 | D64: 0 | E64: 0 | F64: 0 | H64: 0 | I64: 0 | J64: 0 | K64: 59 | L64: =الأحد!L64 -> 32 | M64: =الأحد!M64 -> 0 | R64: 0
A65: =الأحد!A65 -> 60 | B65: =الأحد!B65 -> قهوة(كغ) | C65: =SUM(الإثنين!J65) -> 0 | E65: 0 | F65: 0 | H65: 0 | I65: 0 | J65: 0 | K65: 60 | M65: المجموع | N65: =SUM(N51:N64) -> 0 | O65: =O33+O34+O35+O36+O37+O38+O39+O40+O41+O42+O43+O44+O45+O46+O47+O48+O49+O50+O51+O52+O53+O54+O55+O56+O57+O58+O59+O60+O61+O62+O63+O64 -> 0 | P65: =SUM(P51:P64) -> 0 | R65: 0
A66: =الأحد!A66 -> 61 | B66: =الأحد!B66 -> شمندر | C66: =SUM(الإثنين!J66) -> 0 | E66: 0 | F66: 0 | G66: 0 | H66: 0 | I66: 0 | J66: 0 | K66: 61 | R66: 0
A67: =الأحد!A67 -> 62 | B67: =الأحد!B67 -> توابل | C67: =SUM(الإثنين!J67) -> 0 | E67: 0 | F67: 0 | H67: 0 | I67: 0 | J67: 0 | K67: 62 | R67: 0
A68: =الأحد!A68 -> 63 | B68: =الأحد!B68 -> إجاص(كغ) | C68: =SUM(الإثنين!J68) -> 0 | E68: 0 | F68: 0 | H68: 0 | I68: 0 | J68: 0 | K68: 63 | M68: مصـاريف التغذية للشخـص الواحــد | R68: 0
A69: =الأحد!A69 -> 64 | B69: =الأحد!B69 -> 0 | C69: =SUM(الإثنين!J69) -> 0 | F69: 0 | H69: 0 | I69: 0 | J69: 0 | K69: 64 | R69: 0
A70: =الأحد!A70 -> 65 | B70: =الأحد!B70 -> 0 | C70: =SUM(الإثنين!J70) -> 0 | F70: 0 | H70: 0 | I70: 0 | J70: =SUM(F70-G70) -> 0 | K70: 65 | M70: قيمة مخروجات اليـوم | O70: =SUM(I77) -> 0 | R70: 0
A71: =الأحد!A71 -> 66 | B71: =الأحد!B71 -> 0 | C71: =SUM(الإثنين!J71) -> 0 | F71: 0 | H71: 0 | I71: 0 | J71: 0 | K71: 66 | R71: =SUM(D71*E71) -> 0
A72: =الأحد!A72 -> 67 | B72: =الأحد!B72 -> 0 | C72: =SUM(الإثنين!J72) -> 0 | D72: 0 | F72: =SUM(C72+D72) -> 0 | H72: =SUM(E72) -> 0 | I72: =SUM(G72*H72) -> 0 | J72: 0 | K72: 67 | M72: معدل تغذية الأفراد | O72: =SUM(O14) -> 2 | R72: 0
A73: =الأحد!A73 -> 68 | B73: =الأحد!B73 -> 0 | C73: =SUM(الإثنين!J73) -> 0 | D73: 0 | F73: =SUM(C73+D73) -> 0 | H73: =SUM(E73) -> 0 | I73: =SUM(G73*H73) -> 0 | J73: 0 | K73: 68 | R73: 0
A74: =الأحد!A74 -> 69 | B74: =الأحد!B74 -> 0 | C74: =SUM(الإثنين!J74) -> 0 | F74: =SUM(C74+D74) -> 0 | J74: 0 | K74: 69 | M74: =SUM(I77/O14) -> 0 | O74: = | P74: =M74 -> 0 | R74: 0
A75: =الأحد!A75 -> 70 | B75: =الأحد!B75 -> 0 | C75: =SUM(الإثنين!J75) -> 12.2 | F75: =SUM(C75+D75) -> 12.2 | J75: 12.2 | K75: 70 | M75: (1) معدل تغذية الأفـراد للوجبــة | R75: 0
A76: =الأحد!A76 -> 71 | B76: =الأحد!B76 -> 0 | C76: =SUM(الإثنين!J76) -> 0 | F76: =SUM(C76+D76) -> 0 | J76: 0 | K76: 71 | M76: الغــذاء + العشـاء | R76: 0
A77: المجمــــــــــــــوع | C77: =SUM(C6:C76) -> 61.2 | D77: =SUM(D6:D76) -> 35 | F77: =SUM(F6:F76) -> 96.2 | G77: =SUM(G6:G76) -> 0 | I77: =SUM(I6:I76) -> 0 | J77: =SUM(J6:J76) -> 96.2 | R77: =SUM(R11:R76) -> 0
K78: حــرر ببئر الشهداء في: 09 / 04 / 2013....................................

Sheet الأربعاء
A1: اســــم المؤسســــــــــــــــــــــــــــــــــــــــــــــة | E1: ورقـــــة الاستهــــلاك اليومـــــــــــــــــــي
A2: طالــــــــــب عبــــد الله-بئر الشهداء- | E2: إضراب | F2: يـوم:الأربعاء | G2: =SUM(الأحد!G2+3) -> 10 | H2: =الأحد!H2 -> فيفري | I2: 2013 | M2: السنة المالية :2013
A3: طبيعة المواد | C3: مخزون | D3: مــــدخـــــلات اليـوم | F3: مجموع مخزون | G3: مـخرجــــــــــــــــــــات اليـوم | J3: كمية ماتبقى | K3: ملاحظـــــات | M3: تعــــــــداد اليـــوم
D4: الكمية | E4: سعر | F4: البارحـــــــــة | G4: الكمية | H4: سعر | I4: قيمة مخـروجات | J4: فـــي | M4: المستفيدون | N4: فطـور | O4: غـذاء | P4: عشـاء
A5: المستهلكـــة | C5: البارحة | E5: الوحـدة | F5: ومدخلات اليوم | H5: الوحـدة | I5: اليــوم | J5: نهاية اليــوم
A6: =الأحد!A6 -> 01 | B6: =الأحد!B6 -> الخبـــــــز | C6: =SUM(الثلاثاء!J6) -> 12 | E6: 7.4 | F6: =SUM(C6+D6) -> 12 | H6: =SUM(E6) -> 7.4 | I6: =SUM(G6*H6) -> 0 | J6: =SUM(F6-G6) -> 12 | K6: 01 | M6: نصف داخليون | R6: =SUM(D6*E6) -> 0
A7: =الأحد!A7 -> 02 | B7: =الأحد!B7 -> بسباس(كغ) | C7: =SUM(الثلاثاء!J7) -> 13 | D7: 0 | E7: 80 | F7: 13 | H7: 80 | I7: 0 | J7: 13 | K7: 02 | M7: م .تربويون | R7: =SUM(D7*E7) -> 0
A8: =الأحد!A8 -> 03 | B8: =الأحد!B8 -> بيض | C8: =SUM(الثلاثاء!J8) -> 0 | D8: 0 | E8: 12 | F8: 0 | H8: 12 | I8: 0 | J8: 0 | K8: 03 | M8: الأساتــذة | R8: 0
A9: =الأحد!A9 -> 04 | B9: =الأحد!B9 -> بطاطا(كغ) | C9: =SUM(الثلاثاء!J9) -> 12 | D9: 0 | E9: 0 | F9: 12 | H9: 0 | I9: 0 | J9: 12 | K9: 04 | M9: العمـــال | O9: 1 | R9: 0
A10: =الأحد!A10 -> 05 | B10: =الأحد!B10 -> بصل(كغ) | C10: =SUM(الثلاثاء!J10) -> 35 | D10: 0 | E10: 90 | F10: 35 | H10: 90 | I10: 0 | J10: 35 | K10: 05 | M10: الإداريين | O10: 0 | R10: 0
A11: =الأحد!A11 -> 06 | B11: =الأحد!B11 -> جزر(كغ) | C11: =SUM(الثلاثاء!J11) -> 12 | D11: 0 | E11: 70 | F11: 12 | H11: 70 | I11: 0 | J11: 12 | K11: 06 | M11: المجمـــــوع | N11: =SUM(N6:N10) -> 0 | O11: =SUM(O6:O10) -> 1 | P11: =SUM(P6:P10) -> 0 | R11: 0
A12: =الأحد!A12 -> 07 | B12: =الأحد!B12 -> جبن(علبة16ق) | C12: =SUM(الثلاثاء!J12) -> 0 | D12: 0 | E12: 0 | F12: 0 | H12: 0 | I12: 0 | J12: 0 | K12: 07 | R12: 0
A13: =الأحد!A13 -> 08 | B13: =الأحد!B13 -> تفاح(كغ) | C13: =SUM(الثلاثاء!J13) -> 0 | D13: 0 | E13: 0 | F13: 0 | H13: 0 | I13: 0 | J13: 0 | K13: 08 | R13: 0
A14: =الأحد!A14 -> 09 | B14: =الأحد!B14 -> خيار(كغ) | C14: =SUM(الثلاثاء!J14) -> 0 | D14: 0 | E14: 0 | F14: 0 | H14: =SUM(E14) -> 0 | I14: 0 | J14: 0 | K14: 09 | M14: معـدل المستفيدين | O14: =SUM(N11+O11+P11) -> 1 | R14: 0
A15: =الأحد!A15 -> 10 | B15: =الأحد!B15 -> طماطم حب(كغ) | C15: =SUM(الثلاثاء!J15) -> 0 | D15: 0 | E15: 90 | F15: 0 | H15: 90 | I15: 0 | J15: 0 | K15: 10 | R15: 0
A16: =الأحد!A16 -> 11 | B16: =الأحد!B16 -> ثوم(كغ) | C16: =SUM(الثلاثاء!J16) -> 0 | D16: 0 | E16: 400 | F16: 0 | H16: 400 | I16: 0 | J16: 0 | K16: 11 | M16: من الوجبـــات | R16: 0
A17: =الأحد!A17 -> 12 | B17: =الأحد!B17 -> سلاطة خس(كغ) | C17: =SUM(الثلاثاء!J17) -> 0 | D17: 0 | E17: 80 | F17: =SUM(C17+D17) -> 0 | H17: =SUM(E17) -> 80 | I17: =SUM(G17*H17) -> 0 | J17: 0 | K17: 12 | M17: الوجبــــــــــــــات | R17: 0
A18: =الأحد!A18 -> 13 | B18: =الأحد!B18 -> برتقال(كغ) | C18: =SUM(الثلاثاء!J18) -> 0 | D18: 0 | E18: 130 | F18: 0 | H18: 130 | I18: 0 | J18: 0 | K18: 13 | R18: 0
A19: =الأحد!A19 -> 14 | B19: =الأحد!B19 -> موز(كغ) | C19: =SUM(الثلاثاء!J19) -> 0 | D19: 0 | E19: 1900 | F19: 0 | G19: 35 | H19: 1900 | I19: 66500 | J19: -35 | K19: 14 | M19: فطــــــــور الصبــاح | R19: 0
A20: =الأحد!A20 -> 15 | B20: =الأحد!B20 -> يوسفية | C20: =SUM(الثلاثاء!J20) -> 0 | D20: 0 | E20: 0 | F20: 0 | H20: 0 | I20: 0 | J20: 0 | K20: 15 | R20: 0
A21: =الأحد!A21 -> 16 | B21: =الأحد!B21 -> عنب(كغ) | C21: =SUM(الثلاثاء!J21) -> 0 | D21: 0 | E21: 0 | F21: 0 | H21: 0 | I21: 0 | J21: 0 | K21: 16 | R21: 0
A22: =الأحد!A22 -> 17 | B22: =الأحد!B22 -> شخشوخة(كغ) | C22: =SUM(الثلاثاء!J22) -> 0 | D22: 0 | E22: 0 | F22: 0 | H22: 0 | I22: 0 | J22: 0 | K22: 17 | R22: 0
A23: =الأحد!A23 -> 18 | B23: =الأحد!B23 -> زعرورة (كغ) | C23: =SUM(الثلاثاء!J23) -> 0 | D23: 0 | E23: 0 | F23: 0 | H23: 0 | I23: 0 | J23: 0 | K23: 18 | R23: 0
A24: =الأحد!A24 -> 19 | B24: =الأحد!B24 -> ياؤرت | C24: =SUM(الثلاثاء!J24) -> 0 | D24: 0 | E24: 0 | F24: 0 | H24: 0 | I24: 0 | J24: 0 | K24: 19 | R24: 0
A25: =الأحد!A25 -> 20 | B25: =الأحد!B25 -> شكولاطة | C25: =SUM(الثلاثاء!J25) -> 0 | D25: 0 | E25: 0 | F25: 0 | H25: 0 | I25: 0 | J25: 0 | K25: 20 | R25: 0
A26: =الأحد!A26 -> 21 | B26: =الأحد!B26 -> زيتون اسود(كغ) | C26: =SUM(الثلاثاء!J26) -> 0 | D26: 0 | E26: 350 | F26: 0 | H26: 350 | I26: 0 | J26: 0 | K26: 21 | M26: الغــــــذاء | R26: 0
A27: =الأحد!A27 -> 22 | B27: =الأحد!B27 -> زيتون اخضر(كغ) | C27: =SUM(الثلاثاء!J27) -> 0 | D27: 0 | E27: 0 | F27: 0 | G27: 0 | H27: 0 | I27: 0 | J27: 0 | K27: 22 | M27: خبز +تليتلي+لحم دجاج | R27: 0
A28: =الأحد!A28 -> 23 | B28: =الأحد!B28 -> تليتلي(كغ) | C28: =SUM(الثلاثاء!J28) -> 0 | D28: 0 | E28: 90 | F28: 0 | H28: 90 | I28: 0 | J28: 0 | K28: 23 | M28: سلطة متنوعة | N28: برتقال | R28: 0
A29: =الأحد!A29 -> 24 | B29: =الأحد!B29 -> دويدة(كغ) | C29: =SUM(الثلاثاء!J29) -> 0 | D29: 0 | E29: 0 | F29: 0 | H29: 0 | I29: 0 | J29: 0 | K29: 24 | R29: 0
A30: =الأحد!A30 -> 25 | B30: =الأحد!B30 -> سباقيطي(كغ) | C30: =SUM(الثلاثاء!J30) -> 0 | D30: 0 | E30: 0 | F30: 0 | H30: 0 | I30: 0 | J30: 0 | K30: 25 | R30: 0
A31: =الأحد!A31 -> 26 | B31: =الأحد!B31 -> كسكسي (كغ) | C31: =SUM(الثلاثاء!J31) -> 0 | D31: 0 | E31: 0 | F31: 0 | H31: 0 | I31: 0 | J31: 0 | K31: 26 | M31: قائمـة المقبولين للطاولة المشتركــة | R31: 0
A32: =الأحد!A32 -> 27 | B32: =الأحد!B32 -> مقارونة | C32: =SUM(الثلاثاء!J32) -> 0 | D32: 0 | E32: 0 | F32: =SUM(C32+D32) -> 0 | H32: =SUM(E32) -> 0 | I32: =SUM(G32*H32) -> 0 | J32: 0 | K32: 27 | M32: الأسمــاء | N32: ف.ص | O32: غــداء | P32: ع | R32: 0
A33: =الأحد!A33 -> 28 | B33: =الأحد!B33 -> حمص | C33: =SUM(الثلاثاء!J33) -> 0 | D33: 0 | E33: 240 | F33: 0 | H33: 240 | I33: 0 | J33: 0 | K33: 28 | L33: =الأحد!L33 -> 1 | M33: =الأحد!M33 -> ازوال شراف الدين | R33: 0
A34: =الأحد!A34 -> 29 | B34: =الأحد!B34 -> عدس | C34: =SUM(الثلاثاء!J34) -> 0 | D34: 0 | E34: 0 | F34: 0 | H34: =SUM(E34) -> 0 | I34: 0 | J34: 0 | K34: 29 | L34: =الأحد!L34 -> 2 | M34: =الأحد!M34 -> اوشن صبرينة | R34: 0
A35: =الأحد!A35 -> 30 | B35: =الأحد!B35 -> فاصولياء(كغ) | C35: =SUM(الثلاثاء!J35) -> 0 | D35: 0 | E35: 0 | F35: =SUM(C35+D35) -> 0 | H35: =SUM(E35) -> 0 | I35: =SUM(G35*H35) -> 0 | J35: 0 | K35: 30 | L35: =الأحد!L35 -> 3 | M35: =الأحد!M35 -> قلي أحلام | R35: 0
A36: =الأحد!A36 -> 31 | B36: =الأحد!B36 -> ارزمفور(كغ) | C36: =SUM(الثلاثاء!J36) -> 0 | D36: 0 | E36: 110 | F36: 0 | H36: =SUM(E36) -> 110 | I36: 0 | J36: 0 | K36: 31 | L36: =الأحد!L36 -> 4 | M36: =الأحد!M36 -> اوش ايمان | R36: 0
A37: =الأحد!A37 -> 32 | B37: =الأحد!B37 -> حلويات | C37: =SUM(الثلاثاء!J37) -> 0 | D37: 0 | E37: 0 | F37: =SUM(C37+D37) -> 0 | H37: 0 | I37: =SUM(G37*H37) -> 0 | J37: 0 | K37: 32 | L37: =الأحد!L37 -> 5 | M37: =الأحد!M37 -> عزيون فضيلة | R37: 0
A38: =الأحد!A38 -> 33 | B38: =الأحد!B38 -> خوخ | C38: =SUM(الثلاثاء!J38) -> 0 | D38: 0 | E38: 0 | F38: 0 | H38: =SUM(E38) -> 0 | I38: 0 | J38: 0 | K38: 33 | L38: =الأحد!L38 -> 6 | M38: =الأحد!M38 -> شايب عينو السعيد | R38: 0
A39: =الأحد!A39 -> 34 | B39: =الأحد!B39 -> فلفل اسود(كيس15غ) | C39: =SUM(الثلاثاء!J39) -> 0 | D39: 0 | E39: 0 | F39: 0 | H39: =SUM(E39) -> 0 | I39: 0 | J39: 0 | K39: 34 | L39: =الأحد!L39 -> 7 | M39: =الأحد!M39 -> زيوش حدة | R39: 0
A40: =الأحد!A40 -> 35 | B40: =الأحد!B40 -> خميرة | C40: =SUM(الثلاثاء!J40) -> 0 | D40: 0 | E40: 0 | F40: 0 | H40: =SUM(E40) -> 0 | I40: 0 | J40: 0 | K40: 35 | L40: =الأحد!L40 -> 8 | M40: =الأحد!M40 -> قرازة فتحي | R40: 0
A41: =الأحد!A41 -> 36 | B41: =الأحد!B41 -> كمون | C41: =SUM(الثلاثاء!J41) -> 0 | D41: 0 | E41: 30 | F41: 0 | H41: =SUM(E41) -> 30 | I41: 0 | J41: 0 | K41: 36 | L41: =الأحد!L41 -> 9 | M41: =الأحد!M41 -> غضبان فيروز | R41: 0
A42: =الأحد!A42 -> 37 | B42: =الأحد!B42 -> ملح(كغ) | C42: =SUM(الثلاثاء!J42) -> 0 | D42: 0 | E42: 30 | F42: 0 | H42: =SUM(E42) -> 30 | I42: 0 | J42: 0 | K42: 37 | L42: =الأحد!L42 -> 10 | M42: =الأحد!M42 -> قرفي عليمة | R42: 0
A43: =الأحد!A43 -> 38 | B43: =الأحد!B43 -> طماطم مصبرة(كغ) | C43: =SUM(الثلاثاء!J43) -> 0 | D43: 0 | E43: 140 | F43: 0 | H43: =SUM(E43) -> 140 | I43: 0 | J43: 0 | K43: 38 | L43: =الأحد!L43 -> 11 | M43: =الأحد!M43 -> بوناب هوراي | R43: 0
A44: =الأحد!A44 -> 39 | B44: =الأحد!B44 -> زيت المائدة 1لتر | C44: =SUM(الثلاثاء!J44) -> 0 | D44: 0 | E44: 140 | F44: 0 | H44: 140 | I44: 0 | J44: 0 | K44: 39 | L44: =الأحد!L44 -> 12 | M44: =الأحد!M44 -> بوناب فريدة | R44: 0
A45: =الأحد!A45 -> 40 | B45: =الأحد!B45 -> زيدة | C45: =SUM(الثلاثاء!J45) -> 0 | D45: 0 | E45: 70 | F45: 0 | H45: 70 | I45: 0 | J45: 0 | K45: 40 | L45: =الأحد!L45 -> 13 | M45: =الأحد!M45 -> جمال بوناب | R45: 0
A46: =الأحد!A46 -> 41 | B46: =الأحد!B46 -> خل(قارورة) | C46: =SUM(الثلاثاء!J46) -> 0 | D46: 0 | E46: 30 | F46: 0 | H46: 30 | I46: 0 | J46: 0 | K46: 41 | L46: =الأحد!L46 -> 14 | M46: =الأحد!M46 -> 0 | R46: 0
A47: =الأحد!A47 -> 42 | B47: =الأحد!B47 -> لحم دجاج(كغ) | C47: =SUM(الثلاثاء!J47) -> 0 | D47: 0 | E47: 380 | F47: 0 | H47: 380 | I47: 0 | J47: 0 | K47: 42 | L47: =الأحد!L47 -> 15 | M47: =الأحد!M47 -> 0 | R47: 0
A48: =الأحد!A48 -> 43 | B48: =الأحد!B48 -> فافل | C48: =SUM(الثلاثاء!J48) -> 0 | D48: 0 | E48: 0 | F48: 0 | H48: 0 | I48: 0 | J48: 0 | K48: 43 | L48: =الأحد!L48 -> 16 | M48: =الأحد!M48 -> 0 | Q48: =SUM(الثلاثاء!Q48+الأربعاء!O48) -> 0 | R48: 0
A49: =الأحد!A49 -> 44 | B49: =الأحد!B49 -> لحم عجل(كغ) | C49: =SUM(الثلاثاء!J49) -> 0 | D49: 0 | E49: 0 | F49: 0 | H49: 0 | I49: 0 | J49: 0 | K49: 44 | L49: =الأحد!L49 -> 17 | M49: =الأحد!M49 -> 0 | Q49: =SUM(الثلاثاء!Q49+الأربعاء!O49) -> 0 | R49: 0
A50: =الأحد!A50 -> 45 | B50: =الأحد!B50 -> ايجاص(كغ) | C50: =SUM(الثلاثاء!J50) -> 0 | D50: 0 | E50: 0 | F50: 0 | H50: 0 | I50: 0 | J50: 0 | K50: 45 | L50: =الأحد!L50 -> 18 | M50: =الأحد!M50 -> 0 | Q50: =SUM(الثلاثاء!Q50+الأربعاء!O50) -> 0 | R50: 0
A51: =الأحد!A51 -> 46 | B51: =الأحد!B51 -> طونة | C51: =SUM(الثلاثاء!J51) -> 0 | D51: 0 | E51: 0 | F51: 0 | H51: =SUM(E51) -> 0 | I51: 0 | J51: 0 | K51: 46 | L51: =الأحد!L51 -> 19 | M51: =الأحد!M51 -> 0 | Q51: =SUM(الثلاثاء!Q51+الأربعاء!O51) -> 0 | R51: 0
A52: =الأحد!A52 -> 47 | B52: =الأحد!B52 -> جلبانة خضراء(كغ) | C52: =SUM(الثلاثاء!J52) -> 0 | D52: 0 | E52: 0 | F52: 0 | H52: 0 | I52: 0 | J52: 0 | K52: 47 | L52: =الأحد!L52 -> 20 | M52: =الأحد!M52 -> 0 | Q52: =SUM(الثلاثاء!Q52+الأربعاء!O52) -> 0 | R52: 0
A53: =الأحد!A53 -> 48 | B53: =الأحد!B53 -> مرطبات | C53: =SUM(الثلاثاء!J53) -> 0 | D53: 0 | E53: 0 | F53: 0 | H53: 0 | I53: 0 | J53: 0 | K53: 48 | L53: =الأحد!L53 -> 21 | M53: =الأحد!M53 -> 0 | Q53: =SUM(الثلاثاء!Q53+الأربعاء!O53) -> 0 | R53: 0
A54: =الأحد!A54 -> 49 | B54: =الأحد!B54 -> مايـونــاز500غ | C54: =SUM(الثلاثاء!J54) -> 0 | D54: 0 | E54: 0 | F54: 0 | G54: 0 | H54: 0 | I54: 0 | J54: 0 | K54: 49 | L54: =الأحد!L54 -> 22 | M54: =الأحد!M54 -> 0 | Q54: =SUM(الثلاثاء!Q54+الأربعاء!O54) -> 0 | R54: 0
A55: =الأحد!A55 -> 50 | B55: =الأحد!B55 -> مربى | C55: =SUM(الثلاثاء!J55) -> 0 | D55: 0 | E55: 0 | F55: 0 | H55: 0 | I55: 0 | J55: 0 | K55: 50 | L55: =الأحد!L55 -> 23 | M55: =الأحد!M55 -> 0 | Q55: =SUM(الثلاثاء!Q55+الأربعاء!O55) -> 0 | R55: 0
A56: =الأحد!A56 -> 51 | B56: =الأحد!B56 -> مشروبات غازية | C56: =SUM(الثلاثاء!J56) -> 0 | D56: 0 | E56: 0 | F56: 0 | H56: 0 | I56: 0 | J56: 0 | K56: 51 | L56: =الأحد!L56 -> 24 | M56: =الأحد!M56 -> 0 | Q56: =SUM(الثلاثاء!Q56+الأربعاء!O56) -> 0 | R56: 0
A57: =الأحد!A57 -> 52 | B57: =الأحد!B57 -> ماء معدني | C57: =SUM(الثلاثاء!J57) -> 0 | D57: 0 | E57: 0 | F57: 0 | H57: 0 | I57: 0 | J57: 0 | K57: 52 | L57: =الأحد!L57 -> 25 | M57: =الأحد!M57 -> 0 | Q57: =SUM(الثلاثاء!Q57+الأربعاء!O57) -> 0 | R57: 0
A58: =الأحد!A58 -> 53 | B58: =الأحد!B58 -> تمر(كغ) | C58: =SUM(الثلاثاء!J58) -> 0 | D58: 0 | E58: 0 | F58: 0 | H58: 0 | I58: 0 | J58: 0 | K58: 53 | L58: =الأحد!L58 -> 26 | M58: =الأحد!M58 -> 0 | Q58: =SUM(الثلاثاء!Q58+الأربعاء!O58) -> 0 | R58: 0
A59: =الأحد!A59 -> 54 | B59: =الأحد!B59 -> سكر | C59: =SUM(الثلاثاء!J59) -> 0 | D59: 0 | E59: 0 | F59: 0 | H59: 0 | I59: 0 | J59: 0 | K59: 54 | L59: =الأحد!L59 -> 27 | M59: =الأحد!M59 -> 0 | Q59: =SUM(الثلاثاء!Q59+الأربعاء!O59) -> 0 | R59: 0
A60: =الأحد!A60 -> 55 | B60: =الأحد!B60 -> فافل حار | C60: =SUM(الثلاثاء!J60) -> 0 | D60: 0 | E60: 0 | F60: 0 | H60: 0 | I60: 0 | J60: 0 | K60: 55 | L60: =الأحد!L60 -> 28 | M60: =الأحد!M60 -> 0 | Q60: =SUM(الثلاثاء!Q60+الأربعاء!O60) -> 0 | R60: 0
A61: =الأحد!A61 -> 56 | B61: =الأحد!B61 -> حليب سوبرلي | C61: =SUM(الثلاثاء!J61) -> 0 | D61: 0 | E61: 0 | F61: =SUM(C61+D61) -> 0 | H61: =SUM(E61) -> 0 | I61: =SUM(G61*H61) -> 0 | J61: 0 | K61: 56 | L61: =الأحد!L61 -> 29 | M61: =الأحد!M61 -> 0 | R61: 0
A62: =الأحد!A62 -> 57 | B62: =الأحد!B62 -> فريك | C62: =SUM(الثلاثاء!J62) -> 0 | D62: 0 | E62: 0 | F62: 0 | H62: 0 | I62: 0 | J62: 0 | K62: 57 | L62: =الأحد!L62 -> 30 | M62: =الأحد!M62 -> 0 | R62: 0
A63: =الأحد!A63 -> 58 | B63: =الأحد!B63 -> جريوات | C63: =SUM(الثلاثاء!J63) -> 0 | D63: 0 | E63: 0 | F63: 0 | G63: 0 | H63: 0 | I63: 0 | J63: 0 | K63: 58 | L63: =الأحد!L63 -> 31 | M63: =الأحد!M63 -> 0 | R63: 0
A64: =الأحد!A64 -> 59 | B64: =الأحد!B64 -> تاي | C64: =SUM(الثلاثاء!J64) -> 0 | D64: 0 | E64: 0 | F64: 0 | H64: 0 | I64: 0 | J64: 0 | K64: 59 | L64: =الأحد!L64 -> 32 | M64: =الأحد!M64 -> 0 | R64: 0
A65: =الأحد!A65 -> 60 | B65: =الأحد!B65 -> قهوة(كغ) | C65: =SUM(الثلاثاء!J65) -> 0 | D65: 0 | E65: 0 | F65: 0 | G65: 0 | H65: 0 | I65: 0 | J65: 0 | K65: 60 | M65: المجموع | N65: =SUM(N51:N64) -> 0 | O65: =O33+O34+O35+O36+O37+O38+O39+O40+O41+O42+O43+O44+O45+O46+O47+O48+O49+O50+O51+O52+O53+O54+O55+O56+O57+O58+O59+O60+O61+O62+O63+O64 -> 0 | P65: =SUM(P51:P64) -> 0 | R65: 0
A66: =الأحد!A66 -> 61 | B66: =الأحد!B66 -> شمندر | C66: =SUM(الثلاثاء!J66) -> 0 | D66: 0 | E66: 0 | F66: 0 | H66: 0 | I66: 0 | J66: 0 | K66: 61 | R66: 0
A67: =الأحد!A67 -> 62 | B67: =الأحد!B67 -> توابل | C67: =SUM(الثلاثاء!J67) -> 0 | D67: 0 | E67: 0 | F67: 0 | H67: 0 | I67: 0 | J67: 0 | K67: 62 | R67: 0
A68: =الأحد!A68 -> 63 | B68: =الأحد!B68 -> إجاص(كغ) | C68: =SUM(الثلاثاء!J68) -> 0 | D68: 0 | E68: 0 | F68: 0 | G68: 0 | H68: 0 | I68: 0 | J68: 0 | K68: 63 | M68: مصـاريف التغذية للشخـص الواحــد | R68: 0
A69: =الأحد!A69 -> 64 | B69: =الأحد!B69 -> 0 | C69: =SUM(الثلاثاء!J69) -> 0 | D69: 0 | F69: 0 | G69: 0 | H69: 0 | I69: 0 | J69: =SUM(F69-G69) -> 0 | K69: 64 | R69: 0
A70: =الأحد!A70 -> 65 | B70: =الأحد!B70 -> 0 | C70: =SUM(الثلاثاء!J70) -> 0 | D70: 0 | F70: 0 | G70: 0 | H70: 0 | I70: 0 | J70: 0 | K70: 65 | M70: قيمة مخروجات اليـوم | O70: =SUM(I77) -> 66500 | R70: 0
A71: =الأحد!A71 -> 66 | B71: =الأحد!B71 -> 0 | C71: =SUM(الثلاثاء!J71) -> 0 | D71: 0 | F71: 0 | H71: 0 | I71: 0 | J71: 0 | K71: 66 | R71: =SUM(D71*E71) -> 0
A72: =الأحد!A72 -> 67 | B72: =الأحد!B72 -> 0 | C72: =SUM(الثلاثاء!J72) -> 0 | D72: 0 | F72: =SUM(C72+D72) -> 0 | G72: 0 | H72: =SUM(E72) -> 0 | I72: =SUM(G72*H72) -> 0 | J72: 0 | K72: 67 | M72: معدل تغذية الأفراد | O72: =SUM(O14) -> 1 | R72: 0
A73: =الأحد!A73 -> 68 | B73: =الأحد!B73 -> 0 | C73: =SUM(الثلاثاء!J73) -> 0 | D73: 0 | F73: =SUM(C73+D73) -> 0 | H73: =SUM(E73) -> 0 | I73: =SUM(G73*H73) -> 0 | J73: 0 | K73: 68 | R73: 0
A74: =الأحد!A74 -> 69 | B74: =الأحد!B74 -> 0 | C74: =SUM(الثلاثاء!J74) -> 0 | D74: 0 | E74: 0 | F74: =SUM(C74+D74) -> 0 | G74: 0 | H74: =SUM(E74) -> 0 | I74: =SUM(G74*H74) -> 0 | J74: 0 | K74: 69 | M74: =SUM(I77/O14) -> 66500 | O74: = | P74: =M74 -> 66500 | R74: 0
A75: =الأحد!A75 -> 70 | B75: =الأحد!B75 -> 0 | C75: =SUM(الثلاثاء!J75) -> 12.2 | F75: =SUM(C75+D75) -> 12.2 | G75: 0 | J75: 12.2 | K75: 70 | M75: (1) معدل تغذية الأفـراد للوجبــة | R75: 0
A76: =الأحد!A76 -> 71 | B76: =الأحد!B76 -> 0 | C76: =SUM(الثلاثاء!J76) -> 0 | D76: 0 | E76: 0 | F76: =SUM(C76+D76) -> 0 | G76: 0 | H76: =SUM(E76) -> 0 | I76: =SUM(G76*H76) -> 0 | J76: 0 | K76: 71 | M76: الغــذاء + العشـاء | R76: 0
A77: المجمــــــــــــــوع | C77: =SUM(C6:C76) -> 96.2 | D77: =SUM(D6:D76) -> 0 | F77: =SUM(F6:F76) -> 96.2 | G77: =SUM(G6:G76) -> 35 | I77: =SUM(I6:I76) -> 66500 | J77: =SUM(J6:J76) -> 61.2 | R77: =SUM(R11:R76) -> 0
K78: حــرر ببئر الشهداء في: 10 / 04 / 2013....................................

Sheet الخميس
A1: اســــم المؤسســــــــــــــــــــــــــــــــــــــــــــــة | E1: ورقـــــة الاستهــــلاك اليومـــــــــــــــــــي
A2: طالــــــــــب عبــــد الله-بئر الشهداء- | F2: يـوم:الخميس | G2: 11 | H2: =الأربعاء!H2 -> فيفري | I2: 2013 | M2: السنة المالية :2013
A3: طبيعة المواد | C3: مخزون | D3: مــــدخـــــلات اليـوم | F3: مجموع مخزون | G3: مـخرجــــــــــــــــــــات اليـوم | J3: كمية ماتبقى | K3: ملاحظـــــات | M3: تعــــــــداد اليـــوم
D4: الكمية | E4: سعر | F4: البارحـــــــــة | G4: الكمية | H4: سعر | I4: قيمة مخـروجات | J4: فـــي | M4: المستفيدون | N4: فطـور | O4: غـذاء | P4: عشـاء
A5: المستهلكـــة | C5: البارحة | E5: الوحـدة | F5: ومدخلات اليوم | H5: الوحـدة | I5: اليــوم | J5: نهاية اليــوم
A6: =الأحد!A6 -> 01 | B6: =الأحد!B6 -> الخبـــــــز | C6: =SUM(الأربعاء!J6) -> 12 | E6: 7.4 | F6: =SUM(C6+D6) -> 12 | H6: =SUM(E6) -> 7.4 | I6: =SUM(G6*H6) -> 0 | J6: =SUM(F6-G6) -> 12 | K6: 01 | M6: نصف داخليون | R6: =SUM(D6*E6) -> 0
A7: =الأحد!A7 -> 02 | B7: =الأحد!B7 -> بسباس(كغ) | C7: =SUM(الأربعاء!J7) -> 13 | E7: 80 | F7: 13 | H7: 80 | I7: 0 | J7: 13 | K7: 02 | M7: م .تربويون | R7: =SUM(D7*E7) -> 0
A8: =الأحد!A8 -> 03 | B8: =الأحد!B8 -> بيض | C8: =SUM(الأربعاء!J8) -> 0 | E8: 12 | F8: 0 | H8: 12 | I8: 0 | J8: 0 | K8: 03 | M8: الأساتــذة | R8: 0
A9: =الأحد!A9 -> 04 | B9: =الأحد!B9 -> بطاطا(كغ) | C9: =SUM(الأربعاء!J9) -> 12 | E9: 60 | F9: 12 | H9: 60 | I9: 0 | J9: 12 | K9: 04 | M9: العمـــال | R9: 0
A10: =الأحد!A10 -> 05 | B10: =الأحد!B10 -> بصل(كغ) | C10: =SUM(الأربعاء!J10) -> 35 | E10: 100 | F10: 35 | H10: 100 | I10: 0 | J10: 35 | K10: 05 | M10: أعوان متعاقدين | O10: 3 | R10: 0
A11: =الأحد!A11 -> 06 | B11: =الأحد!B11 -> جزر(كغ) | C11: =SUM(الأربعاء!J11) -> 12 | E11: 80 | F11: 12 | H11: 80 | I11: 0 | J11: 12 | K11: 06 | M11: المجمـــــوع | N11: =SUM(N6:N10) -> 0 | O11: =SUM(O6:O10) -> 3 | P11: =SUM(P6:P10) -> 0 | R11: 0
A12: =الأحد!A12 -> 07 | B12: =الأحد!B12 -> جبن(علبة16ق) | C12: =SUM(الأربعاء!J12) -> 0 | E12: 80 | F12: 0 | H12: 80 | I12: 0 | J12: 0 | K12: 07 | R12: 0
A13: =الأحد!A13 -> 08 | B13: =الأحد!B13 -> تفاح(كغ) | C13: =SUM(الأربعاء!J13) -> 0 | E13: 0 | F13: 0 | H13: 0 | I13: 0 | J13: 0 | K13: 08 | R13: 0
A14: =الأحد!A14 -> 09 | B14: =الأحد!B14 -> خيار(كغ) | C14: =SUM(الأربعاء!J14) -> 0 | E14: 0 | F14: 0 | H14: =SUM(E14) -> 0 | I14: 0 | J14: 0 | K14: 09 | M14: معـدل المستفيدين | O14: =SUM(N11+O11+P11) -> 3 | R14: 0
A15: =الأحد!A15 -> 10 | B15: =الأحد!B15 -> طماطم حب(كغ) | C15: =SUM(الأربعاء!J15) -> 0 | E15: 120 | F15: 0 | H15: 120 | I15: 0 | J15: 0 | K15: 10 | R15: 0
A16: =الأحد!A16 -> 11 | B16: =الأحد!B16 -> ثوم(كغ) | C16: =SUM(الأربعاء!J16) -> 0 | E16: 400 | F16: 0 | H16: 400 | I16: 0 | J16: 0 | K16: 11 | M16: من الوجبـــات | R16: 0
A17: =الأحد!A17 -> 12 | B17: =الأحد!B17 -> سلاطة خس(كغ) | C17: =SUM(الأربعاء!J17) -> 0 | E17: 80 | F17: =SUM(C17+D17) -> 0 | H17: =SUM(E17) -> 80 | I17: =SUM(G17*H17) -> 0 | J17: 0 | K17: 12 | M17: الوجبــــــــــــــات | R17: 0
A18: =الأحد!A18 -> 13 | B18: =الأحد!B18 -> برتقال(كغ) | C18: =SUM(الأربعاء!J18) -> 0 | E18: 130 | F18: 0 | H18: 130 | I18: 0 | J18: 0 | K18: 13 | R18: 0
A19: =الأحد!A19 -> 14 | B19: =الأحد!B19 -> موز(كغ) | C19: =SUM(الأربعاء!J19) -> -35 | E19: 1900 | F19: -35 | G19: 54 | H19: 1900 | I19: 102600 | J19: -89 | K19: 14 | M19: فطــــــــور الصبــاح | R19: 0
A20: =الأحد!A20 -> 15 | B20: =الأحد!B20 -> يوسفية | C20: =SUM(الأربعاء!J20) -> 0 | E20: 0 | F20: 0 | H20: 0 | I20: 0 | J20: 0 | K20: 15 | R20: 0
A21: =الأحد!A21 -> 16 | B21: =الأحد!B21 -> عنب(كغ) | C21: =SUM(الأربعاء!J21) -> 0 | E21: 0 | F21: 0 | H21: 0 | I21: 0 | J21: 0 | K21: 16 | R21: 0
A22: =الأحد!A22 -> 17 | B22: =الأحد!B22 -> شخشوخة(كغ) | C22: =SUM(الأربعاء!J22) -> 0 | E22: 0 | F22: 0 | H22: 0 | I22: 0 | J22: 0 | K22: 17 | R22: 0
A23: =الأحد!A23 -> 18 | B23: =الأحد!B23 -> زعرورة (كغ) | C23: =SUM(الأربعاء!J23) -> 0 | E23: 0 | F23: 0 | H23: 0 | I23: 0 | J23: 0 | K23: 18 | R23: 0
A24: =الأحد!A24 -> 19 | B24: =الأحد!B24 -> ياؤرت | C24: =SUM(الأربعاء!J24) -> 0 | E24: 15 | F24: 0 | H24: 15 | I24: 0 | J24: 0 | K24: 19 | R24: 0
A25: =الأحد!A25 -> 20 | B25: =الأحد!B25 -> شكولاطة | C25: =SUM(الأربعاء!J25) -> 0 | E25: 0 | F25: 0 | H25: 0 | I25: 0 | J25: 0 | K25: 20 | R25: 0
A26: =الأحد!A26 -> 21 | B26: =الأحد!B26 -> زيتون اسود(كغ) | C26: =SUM(الأربعاء!J26) -> 0 | E26: 350 | F26: 0 | H26: 350 | I26: 0 | J26: 0 | K26: 21 | M26: الغــــــذاء | R26: 0
A27: =الأحد!A27 -> 22 | B27: =الأحد!B27 -> زيتون اخضر(كغ) | C27: =SUM(الأربعاء!J27) -> 0 | E27: 400 | F27: 0 | H27: 400 | I27: 0 | J27: 0 | K27: 22 | M27: خبز+دويدة مفورة+بيض | R27: 0
A28: =الأحد!A28 -> 23 | B28: =الأحد!B28 -> تليتلي(كغ) | C28: =SUM(الأربعاء!J28) -> 0 | E28: 90 | F28: 0 | H28: 90 | I28: 0 | J28: 0 | K28: 23 | M28: سلاطة متنوعة | N28: تمر | R28: 0
A29: =الأحد!A29 -> 24 | B29: =الأحد!B29 -> دويدة(كغ) | C29: =SUM(الأربعاء!J29) -> 0 | E29: 90 | F29: 0 | H29: 90 | I29: 0 | J29: 0 | K29: 24 | R29: 0
A30: =الأحد!A30 -> 25 | B30: =الأحد!B30 -> سباقيطي(كغ) | C30: =SUM(الأربعاء!J30) -> 0 | E30: 90 | F30: 0 | H30: 90 | I30: 0 | J30: 0 | K30: 25 | R30: 0
A31: =الأحد!A31 -> 26 | B31: =الأحد!B31 -> كسكسي (كغ) | C31: =SUM(الأربعاء!J31) -> 0 | E31: 90 | F31: 0 | H31: 90 | I31: 0 | J31: 0 | K31: 26 | M31: قائمـة المقبولين للطاولة المشتركــة | R31: 0
A32: =الأحد!A32 -> 27 | B32: =الأحد!B32 -> مقارونة | C32: =SUM(الأربعاء!J32) -> 0 | E32: 90 | F32: =SUM(C32+D32) -> 0 | H32: =SUM(E32) -> 90 | I32: =SUM(G32*H32) -> 0 | J32: 0 | K32: 27 | M32: الأسمــاء | N32: ف.ص | O32: غــداء | P32: ع | R32: 0
A33: =الأحد!A33 -> 28 | B33: =الأحد!B33 -> حمص | C33: =SUM(الأربعاء!J33) -> 0 | E33: 240 | F33: 0 | H33: 240 | I33: 0 | J33: 0 | K33: 28 | L33: =الأحد!L33 -> 1 | M33: =الأحد!M33 -> ازوال شراف الدين | R33: 0
A34: =الأحد!A34 -> 29 | B34: =الأحد!B34 -> عدس | C34: =SUM(الأربعاء!J34) -> 0 | E34: 120 | F34: 0 | H34: =SUM(E34) -> 120 | I34: 0 | J34: 0 | K34: 29 | L34: =الأحد!L34 -> 2 | M34: =الأحد!M34 -> اوشن صبرينة | R34: 0
A35: =الأحد!A35 -> 30 | B35: =الأحد!B35 -> فاصولياء(كغ) | C35: =SUM(الأربعاء!J35) -> 0 | E35: 200 | F35: =SUM(C35+D35) -> 0 | H35: =SUM(E35) -> 200 | I35: =SUM(G35*H35) -> 0 | J35: 0 | K35: 30 | L35: =الأحد!L35 -> 3 | M35: =الأحد!M35 -> قلي أحلام | R35: 0
A36: =الأحد!A36 -> 31 | B36: =الأحد!B36 -> ارزمفور(كغ) | C36: =SUM(الأربعاء!J36) -> 0 | E36: 0 | F36: 0 | H36: =SUM(E36) -> 0 | I36: 0 | J36: 0 | K36: 31 | L36: =الأحد!L36 -> 4 | M36: =الأحد!M36 -> اوش ايمان | R36: 0
A37: =الأحد!A37 -> 32 | B37: =الأحد!B37 -> حلويات | C37: =SUM(الأربعاء!J37) -> 0 | E37: 0 | F37: =SUM(C37+D37) -> 0 | H37: 0 | I37: =SUM(G37*H37) -> 0 | J37: 0 | K37: 32 | L37: =الأحد!L37 -> 5 | M37: =الأحد!M37 -> عزيون فضيلة | R37: 0
A38: =الأحد!A38 -> 33 | B38: =الأحد!B38 -> خوخ | C38: =SUM(الأربعاء!J38) -> 0 | E38: 0 | F38: 0 | H38: =SUM(E38) -> 0 | I38: 0 | J38: 0 | K38: 33 | L38: =الأحد!L38 -> 6 | M38: =الأحد!M38 -> شايب عينو السعيد | R38: 0
A39: =الأحد!A39 -> 34 | B39: =الأحد!B39 -> فلفل اسود(كيس15غ) | C39: =SUM(الأربعاء!J39) -> 0 | E39: 0 | F39: 0 | H39: =SUM(E39) -> 0 | I39: 0 | J39: 0 | K39: 34 | L39: =الأحد!L39 -> 7 | M39: =الأحد!M39 -> زيوش حدة | R39: 0
A40: =الأحد!A40 -> 35 | B40: =الأحد!B40 -> خميرة | C40: =SUM(الأربعاء!J40) -> 0 | E40: 0 | F40: 0 | H40: =SUM(E40) -> 0 | I40: 0 | J40: 0 | K40: 35 | L40: =الأحد!L40 -> 8 | M40: =الأحد!M40 -> قرازة فتحي | R40: 0
A41: =الأحد!A41 -> 36 | B41: =الأحد!B41 -> كمون | C41: =SUM(الأربعاء!J41) -> 0 | E41: 30 | F41: 0 | H41: =SUM(E41) -> 30 | I41: 0 | J41: 0 | K41: 36 | L41: =الأحد!L41 -> 9 | M41: =الأحد!M41 -> غضبان فيروز | R41: 0
A42: =الأحد!A42 -> 37 | B42: =الأحد!B42 -> ملح(كغ) | C42: =SUM(الأربعاء!J42) -> 0 | E42: 30 | F42: 0 | H42: =SUM(E42) -> 30 | I42: 0 | J42: 0 | K42: 37 | L42: =الأحد!L42 -> 10 | M42: =الأحد!M42 -> قرفي عليمة | R42: 0
A43: =الأحد!A43 -> 38 | B43: =الأحد!B43 -> طماطم مصبرة(كغ) | C43: =SUM(الأربعاء!J43) -> 0 | E43: 140 | F43: 0 | H43: =SUM(E43) -> 140 | I43: 0 | J43: 0 | K43: 38 | L43: =الأحد!L43 -> 11 | M43: =الأحد!M43 -> بوناب هوراي | R43: 0
A44: =الأحد!A44 -> 39 | B44: =الأحد!B44 -> زيت المائدة 1لتر | C44: =SUM(الأربعاء!J44) -> 0 | E44: 140 | F44: 0 | H44: 140 | I44: 0 | J44: 0 | K44: 39 | L44: =الأحد!L44 -> 12 | M44: =الأحد!M44 -> بوناب فريدة | R44: 0
A45: =الأحد!A45 -> 40 | B45: =الأحد!B45 -> زيدة | C45: =SUM(الأربعاء!J45) -> 0 | E45: 70 | F45: 0 | H45: 70 | I45: 0 | J45: 0 | K45: 40 | L45: =الأحد!L45 -> 13 | M45: =الأحد!M45 -> جمال بوناب | R45: 0
A46: =الأحد!A46 -> 41 | B46: =الأحد!B46 -> خل(قارورة) | C46: =SUM(الأربعاء!J46) -> 0 | E46: 30 | F46: 0 | H46: 30 | I46: 0 | J46: 0 | K46: 41 | L46: =الأحد!L46 -> 14 | M46: =الأحد!M46 -> 0 | R46: 0
A47: =الأحد!A47 -> 42 | B47: =الأحد!B47 -> لحم دجاج(كغ) | C47: =SUM(الأربعاء!J47) -> 0 | E47: 380 | F47: 0 | H47: 380 | I47: 0 | J47: 0 | K47: 42 | L47: =الأحد!L47 -> 15 | M47: =الأحد!M47 -> 0 | R47: 0
A48: =الأحد!A48 -> 43 | B48: =الأحد!B48 -> فافل | C48: =SUM(الأربعاء!J48) -> 0 | E48: 0 | F48: 0 | H48: 0 | I48: 0 | J48: 0 | K48: 43 | L48: =الأحد!L48 -> 16 | M48: =الأحد!M48 -> 0 | Q48: =SUM(الأربعاء!Q48+الخميس!O48) -> 0 | R48: 0
A49: =الأحد!A49 -> 44 | B49: =الأحد!B49 -> لحم عجل(كغ) | C49: =SUM(الأربعاء!J49) -> 0 | E49: 0 | F49: 0 | H49: 0 | I49: 0 | J49: 0 | K49: 44 | L49: =الأحد!L49 -> 17 | M49: =الأحد!M49 -> 0 | Q49: =SUM(الأربعاء!Q49+الخميس!O49) -> 0 | R49: 0
A50: =الأحد!A50 -> 45 | B50: =الأحد!B50 -> ايجاص(كغ) | C50: =SUM(الأربعاء!J50) -> 0 | E50: 0 | F50: 0 | H50: 0 | I50: 0 | J50: 0 | K50: 45 | L50: =الأحد!L50 -> 18 | M50: =الأحد!M50 -> 0 | Q50: =SUM(الأربعاء!Q50+الخميس!O50) -> 0 | R50: 0
A51: =الأحد!A51 -> 46 | B51: =الأحد!B51 -> طونة | C51: =SUM(الأربعاء!J51) -> 0 | E51: 0 | F51: 0 | H51: =SUM(E51) -> 0 | I51: 0 | J51: 0 | K51: 46 | L51: =الأحد!L51 -> 19 | M51: =الأحد!M51 -> 0 | Q51: =SUM(الأربعاء!Q51+الخميس!O51) -> 0 | R51: 0
A52: =الأحد!A52 -> 47 | B52: =الأحد!B52 -> جلبانة خضراء(كغ) | C52: =SUM(الأربعاء!J52) -> 0 | E52: 0 | F52: 0 | H52: 0 | I52: 0 | J52: 0 | K52: 47 | L52: =الأحد!L52 -> 20 | M52: =الأحد!M52 -> 0 | Q52: =SUM(الأربعاء!Q52+الخميس!O52) -> 0 | R52: 0
A53: =الأحد!A53 -> 48 | B53: =الأحد!B53 -> مرطبات | C53: =SUM(الأربعاء!J53) -> 0 | E53: 0 | F53: 0 | H53: 0 | I53: 0 | J53: 0 | K53: 48 | L53: =الأحد!L53 -> 21 | M53: =الأحد!M53 -> 0 | Q53: =SUM(الأربعاء!Q53+الخميس!O53) -> 0 | R53: 0
A54: =الأحد!A54 -> 49 | B54: =الأحد!B54 -> مايـونــاز500غ | C54: =SUM(الأربعاء!J54) -> 0 | E54: 0 | F54: 0 | H54: 0 | I54: 0 | J54: 0 | K54: 49 | L54: =الأحد!L54 -> 22 | M54: =الأحد!M54 -> 0 | Q54: =SUM(الأربعاء!Q54+الخميس!O54) -> 0 | R54: 0
A55: =الأحد!A55 -> 50 | B55: =الأحد!B55 -> مربى | C55: =SUM(الأربعاء!J55) -> 0 | E55: 0 | F55: 0 | H55: 0 | I55: 0 | J55: 0 | K55: 50 | L55: =الأحد!L55 -> 23 | M55: =الأحد!M55 -> 0 | Q55: =SUM(الأربعاء!Q55+الخميس!O55) -> 0 | R55: 0
A56: =الأحد!A56 -> 51 | B56: =الأحد!B56 -> مشروبات غازية | C56: =SUM(الأربعاء!J56) -> 0 | E56: 0 | F56: 0 | H56: 0 | I56: 0 | J56: 0 | K56: 51 | L56: =الأحد!L56 -> 24 | M56: =الأحد!M56 -> 0 | Q56: =SUM(الأربعاء!Q56+الخميس!O56) -> 0 | R56: 0
A57: =الأحد!A57 -> 52 | B57: =الأحد!B57 -> ماء معدني | C57: =SUM(الأربعاء!J57) -> 0 | E57: 0 | F57: 0 | H57: 0 | I57: 0 | J57: 0 | K57: 52 | L57: =الأحد!L57 -> 25 | M57: =الأحد!M57 -> 0 | Q57: =SUM(الأربعاء!Q57+الخميس!O57) -> 0 | R57: 0
A58: =الأحد!A58 -> 53 | B58: =الأحد!B58 -> تمر(كغ) | C58: =SUM(الأربعاء!J58) -> 0 | E58: 0 | F58: 0 | H58: 0 | I58: 0 | J58: 0 | K58: 53 | L58: =الأحد!L58 -> 26 | M58: =الأحد!M58 -> 0 | Q58: =SUM(الأربعاء!Q58+الخميس!O58) -> 0 | R58: 0
A59: =الأحد!A59 -> 54 | B59: =الأحد!B59 -> سكر | C59: =SUM(الأربعاء!J59) -> 0 | E59: 0 | F59: 0 | H59: 0 | I59: 0 | J59: 0 | K59: 54 | L59: =الأحد!L59 -> 27 | M59: =الأحد!M59 -> 0 | Q59: =SUM(الأربعاء!Q59+الخميس!O59) -> 0 | R59: 0
A60: =الأحد!A60 -> 55 | B60: =الأحد!B60 -> فافل حار | C60: =SUM(الأربعاء!J60) -> 0 | E60: 0 | F60: 0 | H60: 0 | I60: 0 | J60: 0 | K60: 55 | L60: =الأحد!L60 -> 28 | M60: =الأحد!M60 -> 0 | Q60: =SUM(الأربعاء!Q60+الخميس!O60) -> 0 | R60: 0
A61: =الأحد!A61 -> 56 | B61: =الأحد!B61 -> حليب سوبرلي | C61: =SUM(الأربعاء!J61) -> 0 | E61: 280 | F61: =SUM(C61+D61) -> 0 | H61: =SUM(E61) -> 280 | I61: =SUM(G61*H61) -> 0 | J61: 0 | K61: 56 | L61: =الأحد!L61 -> 29 | M61: =الأحد!M61 -> 0 | Q61: =SUM(الأربعاء!Q61+الخميس!O61) -> 0 | R61: 0
A62: =الأحد!A62 -> 57 | B62: =الأحد!B62 -> فريك | C62: =SUM(الأربعاء!J62) -> 0 | E62: 0 | F62: 0 | H62: 0 | I62: 0 | J62: 0 | K62: 57 | L62: =الأحد!L62 -> 30 | M62: =الأحد!M62 -> 0 | Q62: =SUM(الأربعاء!Q62+الخميس!O62) -> 0 | R62: 0
A63: =الأحد!A63 -> 58 | B63: =الأحد!B63 -> جريوات | C63: =SUM(الأربعاء!J63) -> 0 | E63: 0 | F63: 0 | H63: 0 | I63: 0 | J63: 0 | K63: 58 | L63: =الأحد!L63 -> 31 | M63: =الأحد!M63 -> 0 | Q63: =SUM(الأربعاء!Q63+الخميس!O63) -> 0 | R63: 0
A64: =الأحد!A64 -> 59 | B64: =الأحد!B64 -> تاي | C64: =SUM(الأربعاء!J64) -> 0 | E64: 0 | F64: 0 | H64: 0 | I64: 0 | J64: 0 | K64: 59 | L64: =الأحد!L64 -> 32 | M64: =الأحد!M64 -> 0 | Q64: =SUM(الأربعاء!Q64+الخميس!O64) -> 0 | R64: 0
A65: =الأحد!A65 -> 60 | B65: =الأحد!B65 -> قهوة(كغ) | C65: =SUM(الأربعاء!J65) -> 0 | E65: 0 | F65: 0 | H65: 0 | I65: 0 | J65: 0 | K65: 60 | M65: المجموع | N65: =SUM(N51:N64) -> 0 | O65: =O33+O34+O35+O36+O37+O38+O39+O40+O41+O42+O43+O44+O45+O46+O47+O48+O49+O50+O51+O52+O53+O54+O55+O56+O57+O58+O59+O60+O61+O62+O63+O64 -> 0 | P65: =SUM(P51:P64) -> 0 | R65: 0
A66: =الأحد!A66 -> 61 | B66: =الأحد!B66 -> شمندر | C66: =SUM(الأربعاء!J66) -> 0 | E66: 0 | F66: 0 | H66: 0 | I66: 0 | J66: 0 | K66: 61 | R66: 0
A67: =الأحد!A67 -> 62 | B67: =الأحد!B67 -> توابل | C67: =SUM(الأربعاء!J67) -> 0 | E67: 0 | F67: 0 | H67: 0 | I67: 0 | J67: 0 | K67: 62 | R67: 0
A68: =الأحد!A68 -> 63 | B68: =الأحد!B68 -> إجاص(كغ) | C68: =SUM(الأربعاء!J68) -> 0 | E68: 0 | F68: 0 | H68: 0 | I68: 0 | J68: 0 | K68: 63 | M68: مصـاريف التغذية للشخـص الواحــد | R68: 0
A69: =الأحد!A69 -> 64 | B69: =الأحد!B69 -> 0 | C69: =SUM(الأربعاء!J69) -> 0 | E69: 160 | F69: 0 | H69: 160 | I69: 0 | J69: 0 | K69: 64 | R69: 0
A70: =الأحد!A70 -> 65 | B70: =الأحد!B70 -> 0 | C70: =SUM(الأربعاء!J70) -> 0 | E70: 0 | F70: 0 | H70: 0 | I70: 0 | J70: =SUM(F70-G70) -> 0 | K70: 65 | M70: قيمة مخروجات اليـوم | O70: =SUM(I77) -> 102600 | R70: 0
A71: =الأحد!A71 -> 66 | B71: =الأحد!B71 -> 0 | C71: =SUM(الأربعاء!J71) -> 0 | E71: 0 | F71: 0 | H71: 0 | I71: 0 | J71: 0 | K71: 66 | R71: =SUM(D71*E71) -> 0
A72: =الأحد!A72 -> 67 | B72: =الأحد!B72 -> 0 | C72: =SUM(الأربعاء!J72) -> 0 | E72: 0 | F72: =SUM(C72+D72) -> 0 | H72: =SUM(E72) -> 0 | I72: =SUM(G72*H72) -> 0 | J72: 0 | K72: 67 | M72: معدل تغذية الأفراد | O72: =SUM(O14) -> 3 | R72: 0
A73: =الأحد!A73 -> 68 | B73: =الأحد!B73 -> 0 | C73: =SUM(الأربعاء!J73) -> 0 | E73: 0 | F73: =SUM(C73+D73) -> 0 | H73: =SUM(E73) -> 0 | I73: =SUM(G73*H73) -> 0 | J73: 0 | K73: 68 | R73: 0
A74: =الأحد!A74 -> 69 | B74: =الأحد!B74 -> 0 | C74: =SUM(الأربعاء!J74) -> 0 | F74: 0 | H74: 0 | I74: 0 | J74: 0 | K74: 69 | M74: =SUM(I77/O14) -> 34200 | O74: = | P74: =M74 -> 34200 | R74: 0
A75: =الأحد!A75 -> 70 | B75: =الأحد!B75 -> 0 | C75: =SUM(الأربعاء!J75) -> 12.2 | F75: 12.2 | J75: 12.2 | K75: 70 | M75: (1) معدل تغذية الأفـراد للوجبــة | R75: 0
A76: =الأحد!A76 -> 71 | B76: =الأحد!B76 -> 0 | C76: =SUM(الأربعاء!J76) -> 0 | F76: 0 | H76: =SUM(E76) -> 0 | I76: =SUM(G76*H76) -> 0 | J76: 0 | K76: 71 | M76: الغــذاء + العشـاء | R76: 0
A77: المجمــــــــــــــوع | C77: =SUM(C6:C76) -> 61.2 | D77: =SUM(D6:D76) -> 0 | F77: =SUM(F6:F76) -> 61.2 | G77: =SUM(G6:G76) -> 54 | I77: =SUM(I6:I76) -> 102600 | J77: =SUM(J6:J76) -> 7.2 | R77: =SUM(R11:R76) -> 0
K78: حــرر ببئر الشهداء في: 11 / 04 / 2013....................................

Sheet الأحد (2)
A1: اســــم المؤسســــــــــــــــــــــــــــــــــــــــــــــة | E1: ورقـــــة الاستهــــلاك اليومـــــــــــــــــــي
A2: طالــــــــــب عبــــد الله-بئر الشهداء- | E2: وجبة باردة | F2: يـوم:الأحد | G2: =SUM(الخميس!G2+3) -> 14 | H2: =الخميس!H2 -> فيفري | I2: 2013 | J2: إضراب العمال | M2: السنة المالية :2013
A3: طبيعة المواد | C3: مخزون | D3: مــــدخـــــلات اليـوم | F3: مجموع مخزون | G3: مـخرجــــــــــــــــــــات اليـوم | J3: كمية ماتبقى | K3: ملاحظـــــات | M3: تعــــــــداد اليـــوم
D4: الكمية | E4: سعر | F4: البارحـــــــــة | G4: الكمية | H4: سعر | I4: قيمة مخـروجات | J4: فـــي | M4: المستفيدون | N4: فطـور | O4: غـذاء | P4: عشـاء
A5: المستهلكـــة | C5: البارحة | E5: الوحـدة | F5: ومدخلات اليوم | H5: الوحـدة | I5: اليــوم | J5: نهاية اليــوم
A6: =الأحد!A6 -> 01 | B6: =الأحد!B6 -> الخبـــــــز | C6: =SUM(الخميس!J6) -> 12 | E6: 7.4 | F6: =SUM(C6+D6) -> 12 | H6: =SUM(E6) -> 7.4 | I6: =SUM(G6*H6) -> 0 | J6: =SUM(F6-G6) -> 12 | K6: 01 | M6: نصف داخليون | O6: 239 | R6: =SUM(D6*E6) -> 0
A7: =الأحد!A7 -> 02 | B7: =الأحد!B7 -> بسباس(كغ) | C7: =SUM(الخميس!J7) -> 13 | E7: 80 | F7: 13 | H7: 80 | I7: =SUM(G7*H7) -> 0 | J7: 13 | K7: 02 | M7: م .تربويون | O7: 1 | R7: 0
A8: =الأحد!A8 -> 03 | B8: =الأحد!B8 -> بيض | C8: =SUM(الخميس!J8) -> 0 | E8: 12 | F8: 0 | H8: 12 | I8: 0 | J8: 0 | K8: 03 | M8: الأساتــذة | O8: 9 | R8: 0
A9: =الأحد!A9 -> 04 | B9: =الأحد!B9 -> بطاطا(كغ) | C9: =SUM(الخميس!J9) -> 12 | E9: 60 | F9: 12 | H9: 60 | I9: 0 | J9: 12 | K9: 04 | M9: العمـــال | O9: 2 | R9: 0
A10: =الأحد!A10 -> 05 | B10: =الأحد!B10 -> بصل(كغ) | C10: =SUM(الخميس!J10) -> 35 | E10: 100 | F10: 35 | H10: 100 | I10: 0 | J10: 35 | K10: 05 | M10: الإداريين | O10: 3 | R10: 0
A11: =الأحد!A11 -> 06 | B11: =الأحد!B11 -> جزر(كغ) | C11: =SUM(الخميس!J11) -> 12 | E11: 80 | F11: 12 | H11: 80 | I11: 0 | J11: 12 | K11: 06 | M11: المجمـــــوع | N11: =SUM(N6:N10) -> 0 | O11: =SUM(O6:O10) -> 254 | P11: =SUM(P6:P10) -> 0 | R11: 0
A12: =الأحد!A12 -> 07 | B12: =الأحد!B12 -> جبن(علبة16ق) | C12: =SUM(الخميس!J12) -> 0 | E12: 80 | F12: 0 | H12: 80 | I12: 0 | J12: 0 | K12: 07 | R12: 0
A13: =الأحد!A13 -> 08 | B13: =الأحد!B13 -> تفاح(كغ) | C13: =SUM(الخميس!J13) -> 0 | E13: 0 | F13: 0 | I13: 0 | J13: 0 | K13: 08 | R13: =SUM(D13*E13) -> 0
A14: =الأحد!A14 -> 09 | B14: =الأحد!B14 -> خيار(كغ) | C14: =SUM(الخميس!J14) -> 0 | E14: 0 | F14: 0 | H14: =SUM(E14) -> 0 | I14: 0 | J14: 0 | K14: 09 | M14: معـدل المستفيدين | O14: =SUM(N11+O11+P11) -> 254 | R14: 0
A15: =الأحد!A15 -> 10 | B15: =الأحد!B15 -> طماطم حب(كغ) | C15: =SUM(الخميس!J15) -> 0 | E15: 120 | F15: 0 | H15: 120 | I15: 0 | J15: 0 | K15: 10 | R15: 0
A16: =الأحد!A16 -> 11 | B16: =الأحد!B16 -> ثوم(كغ) | C16: =SUM(الخميس!J16) -> 0 | E16: 400 | F16: 0 | H16: 400 | I16: 0 | J16: 0 | K16: 11 | M16: من الوجبـــات | R16: 0
A17: =الأحد!A17 -> 12 | B17: =الأحد!B17 -> سلاطة خس(كغ) | C17: =SUM(الخميس!J17) -> 0 | E17: 80 | F17: =SUM(C17+D17) -> 0 | H17: =SUM(E17) -> 80 | I17: =SUM(G17*H17) -> 0 | J17: 0 | K17: 12 | M17: الوجبــــــــــــــات | R17: 0
A18: =الأحد!A18 -> 13 | B18: =الأحد!B18 -> برتقال(كغ) | C18: =SUM(الخميس!J18) -> 0 | E18: 130 | F18: 0 | H18: 130 | I18: 0 | J18: 0 | K18: 13 | R18: 0
A19: =الأحد!A19 -> 14 | B19: =الأحد!B19 -> موز(كغ) | C19: =SUM(الخميس!J19) -> -89 | E19: 170 | F19: -89 | H19: 170 | I19: 0 | J19: -89 | K19: 14 | M19: فطــــــــور الصبــاح | R19: 0
A20: =الأحد!A20 -> 15 | B20: =الأحد!B20 -> يوسفية | C20: =SUM(الخميس!J20) -> 0 | E20: 0 | F20: 0 | H20: 0 | I20: 0 | J20: 0 | K20: 15 | R20: 0
A21: =الأحد!A21 -> 16 | B21: =الأحد!B21 -> عنب(كغ) | C21: =SUM(الخميس!J21) -> 0 | E21: 0 | F21: 0 | H21: 0 | I21: 0 | J21: 0 | K21: 16 | R21: 0
A22: =الأحد!A22 -> 17 | B22: =الأحد!B22 -> شخشوخة(كغ) | C22: =SUM(الخميس!J22) -> 0 | E22: 0 | F22: 0 | H22: 0 | I22: 0 | J22: 0 | K22: 17 | R22: 0
A23: =الأحد!A23 -> 18 | B23: =الأحد!B23 -> زعرورة (كغ) | C23: =SUM(الخميس!J23) -> 0 | E23: 0 | F23: 0 | H23: 0 | I23: 0 | J23: 0 | K23: 18 | R23: 0
A24: =الأحد!A24 -> 19 | B24: =الأحد!B24 -> ياؤرت | C24: =SUM(الخميس!J24) -> 0 | E24: 15 | F24: 0 | H24: 15 | I24: 0 | J24: 0 | K24: 19 | R24: 0
A25: =الأحد!A25 -> 20 | B25: =الأحد!B25 -> شكولاطة | C25: =SUM(الخميس!J25) -> 0 | E25: 0 | F25: 0 | H25: 0 | I25: 0 | J25: 0 | K25: 20 | R25: 0
A26: =الأحد!A26 -> 21 | B26: =الأحد!B26 -> زيتون اسود(كغ) | C26: =SUM(الخميس!J26) -> 0 | E26: 350 | F26: 0 | H26: 350 | I26: 0 | J26: 0 | K26: 21 | M26: الغــــــذاء | R26: 0
A27: =الأحد!A27 -> 22 | B27: =الأحد!B27 -> زيتون اخضر(كغ) | C27: =SUM(الخميس!J27) -> 0 | E27: 400 | F27: 0 | H27: 400 | I27: 0 | J27: 0 | K27: 22 | M27: خبز+تليتلي+لحم دجاج | R27: 0
A28: =الأحد!A28 -> 23 | B28: =الأحد!B28 -> تليتلي(كغ) | C28: =SUM(الخميس!J28) -> 0 | E28: 90 | F28: 0 | H28: 90 | I28: 0 | J28: 0 | K28: 23 | M28: سلاطة متنوعة | N28: موز | R28: 0
A29: =الأحد!A29 -> 24 | B29: =الأحد!B29 -> دويدة(كغ) | C29: =SUM(الخميس!J29) -> 0 | E29: 90 | F29: 0 | H29: 90 | I29: 0 | J29: 0 | K29: 24 | R29: 0
A30: =الأحد!A30 -> 25 | B30: =الأحد!B30 -> سباقيطي(كغ) | C30: =SUM(الخميس!J30) -> 0 | E30: 90 | F30: 0 | H30: 90 | I30: 0 | J30: 0 | K30: 25 | R30: 0
A31: =الأحد!A31 -> 26 | B31: =الأحد!B31 -> كسكسي (كغ) | C31: =SUM(الخميس!J31) -> 0 | E31: 90 | F31: 0 | H31: 90 | I31: 0 | J31: 0 | K31: 26 | M31: قائمـة المقبولين للطاولة المشتركــة | R31: 0
A32: =الأحد!A32 -> 27 | B32: =الأحد!B32 -> مقارونة | C32: =SUM(الخميس!J32) -> 0 | E32: 90 | F32: 0 | H32: 90 | I32: 0 | J32: 0 | K32: 27 | M32: الأسمــاء | N32: ف.ص | O32: غــداء | P32: ع | R32: 0
A33: =الأحد!A33 -> 28 | B33: =الأحد!B33 -> حمص | C33: =SUM(الخميس!J33) -> 0 | E33: 240 | F33: 0 | H33: 240 | I33: 0 | J33: 0 | K33: 28 | L33: =الأحد!L33 -> 1 | M33: =الأحد!M33 -> ازوال شراف الدين | R33: 0
A34: =الأحد!A34 -> 29 | B34: =الأحد!B34 -> عدس | C34: =SUM(الخميس!J34) -> 0 | E34: 120 | F34: 0 | H34: =SUM(E34) -> 120 | I34: 0 | J34: 0 | K34: 29 | L34: =الأحد!L34 -> 2 | M34: =الأحد!M34 -> اوشن صبرينة | R34: 0
A35: =الأحد!A35 -> 30 | B35: =الأحد!B35 -> فاصولياء(كغ) | C35: =SUM(الخميس!J35) -> 0 | E35: 200 | F35: =SUM(C35+D35) -> 0 | H35: =SUM(E35) -> 200 | I35: =SUM(G35*H35) -> 0 | J35: 0 | K35: 30 | L35: =الأحد!L35 -> 3 | M35: =الأحد!M35 -> قلي أحلام | R35: 0
A36: =الأحد!A36 -> 31 | B36: =الأحد!B36 -> ارزمفور(كغ) | C36: =SUM(الخميس!J36) -> 0 | E36: 110 | F36: 0 | H36: =SUM(E36) -> 110 | I36: 0 | J36: 0 | K36: 31 | L36: =الأحد!L36 -> 4 | M36: =الأحد!M36 -> اوش ايمان | R36: 0
A37: =الأحد!A37 -> 32 | B37: =الأحد!B37 -> حلويات | C37: =SUM(الخميس!J37) -> 0 | E37: 0 | F37: =SUM(C37+D37) -> 0 | H37: 0 | I37: =SUM(G37*H37) -> 0 | J37: 0 | K37: 32 | L37: =الأحد!L37 -> 5 | M37: =الأحد!M37 -> عزيون فضيلة | R37: 0
A38: =الأحد!A38 -> 33 | B38: =الأحد!B38 -> خوخ | C38: =SUM(الخميس!J38) -> 0 | E38: 0 | F38: 0 | H38: =SUM(E38) -> 0 | I38: 0 | J38: 0 | K38: 33 | L38: =الأحد!L38 -> 6 | M38: =الأحد!M38 -> شايب عينو السعيد | R38: 0
A39: =الأحد!A39 -> 34 | B39: =الأحد!B39 -> فلفل اسود(كيس15غ) | C39: =SUM(الخميس!J39) -> 0 | E39: 0 | F39: 0 | H39: 0 | I39: 0 | J39: 0 | K39: 34 | L39: =الأحد!L39 -> 7 | M39: =الأحد!M39 -> زيوش حدة | R39: 0
A40: =الأحد!A40 -> 35 | B40: =الأحد!B40 -> خميرة | C40: =SUM(الخميس!J40) -> 0 | E40: 0 | F40: 0 | H40: 0 | I40: 0 | J40: 0 | K40: 35 | L40: =الأحد!L40 -> 8 | M40: =الأحد!M40 -> قرازة فتحي | R40: 0
A41: =الأحد!A41 -> 36 | B41: =الأحد!B41 -> كمون | C41: =SUM(الخميس!J41) -> 0 | E41: 30 | F41: 0 | H41: 30 | I41: 0 | J41: 0 | K41: 36 | L41: =الأحد!L41 -> 9 | M41: =الأحد!M41 -> غضبان فيروز | R41: 0
A42: =الأحد!A42 -> 37 | B42: =الأحد!B42 -> ملح(كغ) | C42: =SUM(الخميس!J42) -> 0 | E42: 30 | F42: 0 | H42: 30 | I42: 0 | J42: 0 | K42: 37 | L42: =الأحد!L42 -> 10 | M42: =الأحد!M42 -> قرفي عليمة | R42: 0
A43: =الأحد!A43 -> 38 | B43: =الأحد!B43 -> طماطم مصبرة(كغ) | C43: =SUM(الخميس!J43) -> 0 | E43: 140 | F43: 0 | H43: 140 | I43: 0 | J43: 0 | K43: 38 | L43: =الأحد!L43 -> 11 | M43: =الأحد!M43 -> بوناب هوراي | R43: 0
A44: =الأحد!A44 -> 39 | B44: =الأحد!B44 -> زيت المائدة 1لتر | C44: =SUM(الخميس!J44) -> 0 | E44: 140 | F44: 0 | H44: 140 | I44: 0 | J44: 0 | K44: 39 | L44: =الأحد!L44 -> 12 | M44: =الأحد!M44 -> بوناب فريدة | R44: 0
A45: =الأحد!A45 -> 40 | B45: =الأحد!B45 -> زيدة | C45: =SUM(الخميس!J45) -> 0 | E45: 70 | F45: 0 | H45: 70 | I45: 0 | J45: 0 | K45: 40 | L45: =الأحد!L45 -> 13 | M45: =الأحد!M45 -> جمال بوناب | R45: 0
A46: =الأحد!A46 -> 41 | B46: =الأحد!B46 -> خل(قارورة) | C46: =SUM(الخميس!J46) -> 0 | E46: 30 | F46: 0 | H46: =SUM(E46) -> 30 | I46: 0 | J46: 0 | K46: 41 | L46: =الأحد!L46 -> 14 | M46: =الأحد!M46 -> 0 | R46: 0
A47: =الأحد!A47 -> 42 | B47: =الأحد!B47 -> لحم دجاج(كغ) | C47: =SUM(الخميس!J47) -> 0 | E47: 380 | F47: 0 | H47: 380 | I47: 0 | J47: 0 | K47: 42 | L47: =الأحد!L47 -> 15 | M47: =الأحد!M47 -> 0 | R47: 0
A48: =الأحد!A48 -> 43 | B48: =الأحد!B48 -> فافل | C48: =SUM(الخميس!J48) -> 0 | E48: 0 | F48: 0 | H48: 0 | I48: 0 | J48: 0 | K48: 43 | L48: =الأحد!L48 -> 16 | M48: =الأحد!M48 -> 0 | R48: 0
A49: =الأحد!A49 -> 44 | B49: =الأحد!B49 -> لحم عجل(كغ) | C49: =SUM(الخميس!J49) -> 0 | E49: 1200 | F49: 0 | H49: 1200 | I49: 0 | J49: 0 | K49: 44 | L49: =الأحد!L49 -> 17 | M49: =الأحد!M49 -> 0 | R49: 0
A50: =الأحد!A50 -> 45 | B50: =الأحد!B50 -> ايجاص(كغ) | C50: =SUM(الخميس!J50) -> 0 | E50: 0 | F50: 0 | H50: 0 | I50: 0 | J50: 0 | K50: 45 | L50: =الأحد!L50 -> 18 | M50: =الأحد!M50 -> 0 | R50: =SUM(D50*E50) -> 0
A51: =الأحد!A51 -> 46 | B51: =الأحد!B51 -> طونة | C51: =SUM(الخميس!J51) -> 0 | E51: 0 | F51: 0 | H51: 0 | I51: 0 | J51: 0 | K51: 46 | L51: =الأحد!L51 -> 19 | M51: =الأحد!M51 -> 0 | R51: =SUM(D51*E51) -> 0
A52: =الأحد!A52 -> 47 | B52: =الأحد!B52 -> جلبانة خضراء(كغ) | C52: =SUM(الخميس!J52) -> 0 | E52: 0 | F52: 0 | H52: 0 | I52: 0 | J52: 0 | K52: 47 | L52: =الأحد!L52 -> 20 | M52: =الأحد!M52 -> 0 | R52: =SUM(D52*E52) -> 0
A53: =الأحد!A53 -> 48 | B53: =الأحد!B53 -> مرطبات | C53: =SUM(الخميس!J53) -> 0 | E53: 0 | F53: 0 | H53: 0 | I53: 0 | J53: 0 | K53: 48 | L53: =الأحد!L53 -> 21 | M53: =الأحد!M53 -> 0 | R53: 0
A54: =الأحد!A54 -> 49 | B54: =الأحد!B54 -> مايـونــاز500غ | C54: =SUM(الخميس!J54) -> 0 | E54: 120 | F54: 0 | H54: 120 | I54: 0 | J54: 0 | K54: 49 | L54: =الأحد!L54 -> 22 | M54: =الأحد!M54 -> 0 | R54: 0
A55: =الأحد!A55 -> 50 | B55: =الأحد!B55 -> مربى | C55: =SUM(الخميس!J55) -> 0 | E55: 100 | F55: 0 | H55: 100 | I55: 0 | J55: 0 | K55: 50 | L55: =الأحد!L55 -> 23 | M55: =الأحد!M55 -> 0 | R55: 0
A56: =الأحد!A56 -> 51 | B56: =الأحد!B56 -> مشروبات غازية | C56: =SUM(الخميس!J56) -> 0 | E56: 60 | F56: 0 | H56: 60 | I56: 0 | J56: 0 | K56: 51 | L56: =الأحد!L56 -> 24 | M56: =الأحد!M56 -> 0 | R56: 0
A57: =الأحد!A57 -> 52 | B57: =الأحد!B57 -> ماء معدني | C57: =SUM(الخميس!J57) -> 0 | E57: 30 | F57: 0 | H57: 30 | I57: 0 | J57: 0 | K57: 52 | L57: =الأحد!L57 -> 25 | M57: =الأحد!M57 -> 0 | R57: 0
A58: =الأحد!A58 -> 53 | B58: =الأحد!B58 -> تمر(كغ) | C58: =SUM(الخميس!J58) -> 0 | E58: 160 | F58: 0 | H58: 160 | I58: 0 | J58: 0 | K58: 53 | L58: =الأحد!L58 -> 26 | M58: =الأحد!M58 -> 0 | R58: 0
A59: =الأحد!A59 -> 54 | B59: =الأحد!B59 -> سكر | C59: =SUM(الخميس!J59) -> 0 | E59: 0 | F59: 0 | H59: 0 | I59: 0 | J59: 0 | K59: 54 | L59: =الأحد!L59 -> 27 | M59: =الأحد!M59 -> 0 | R59: 0
A60: =الأحد!A60 -> 55 | B60: =الأحد!B60 -> فافل حار | C60: =SUM(الخميس!J60) -> 0 | E60: 0 | F60: 0 | H60: 0 | I60: 0 | J60: 0 | K60: 55 | L60: =الأحد!L60 -> 28 | M60: =الأحد!M60 -> 0 | R60: 0
A61: =الأحد!A61 -> 56 | B61: =الأحد!B61 -> حليب سوبرلي | C61: =SUM(الخميس!J61) -> 0 | E61: 280 | F61: =SUM(C61+D61) -> 0 | H61: =SUM(E61) -> 280 | I61: =SUM(G61*H61) -> 0 | J61: 0 | K61: 56 | L61: =الأحد!L61 -> 29 | M61: =الأحد!M61 -> 0 | R61: 0
A62: =الأحد!A62 -> 57 | B62: =الأحد!B62 -> فريك | C62: =SUM(الخميس!J62) -> 0 | E62: 0 | F62: 0 | H62: 0 | I62: 0 | J62: 0 | K62: 57 | L62: =الأحد!L62 -> 30 | M62: =الأحد!M62 -> 0
A63: =الأحد!A63 -> 58 | B63: =الأحد!B63 -> جريوات | C63: =SUM(الخميس!J63) -> 0 | E63: 0 | F63: 0 | H63: 0 | I63: 0 | J63: 0 | K63: 58 | L63: =الأحد!L63 -> 31 | M63: =الأحد!M63 -> 0
A64: =الأحد!A64 -> 59 | B64: =الأحد!B64 -> تاي | C64: =SUM(الخميس!J64) -> 0 | E64: 0 | F64: 0 | H64: 0 | I64: 0 | J64: 0 | K64: 59 | L64: =الأحد!L64 -> 32 | M64: =الأحد!M64 -> 0 | R64: 0
A65: =الأحد!A65 -> 60 | B65: =الأحد!B65 -> قهوة(كغ) | C65: =SUM(الخميس!J65) -> 0 | E65: 0 | F65: 0 | H65: 0 | I65: 0 | J65: 0 | K65: 60 | M65: المجموع | N65: =SUM(N51:N64) -> 0 | O65: =O33+O34+O35+O36+O37+O38+O39+O40+O41+O42+O43+O44+O45+O46+O47+O48+O49+O50+O51+O52+O53+O54+O55+O56+O57+O58+O59+O60+O61+O62+O63+O64 -> 0 | P65: =SUM(P51:P64) -> 0 | R65: 0
A66: =الأحد!A66 -> 61 | B66: =الأحد!B66 -> شمندر | C66: =SUM(الخميس!J66) -> 0 | E66: 280 | F66: 0 | H66: 280 | I66: 0 | J66: 0 | K66: 61 | R66: 0
A67: =الأحد!A67 -> 62 | B67: =الأحد!B67 -> توابل | C67: =SUM(الخميس!J67) -> 0 | E67: 0 | F67: 0 | H67: 0 | I67: 0 | J67: 0 | K67: 62 | R67: 0
A68: =الأحد!A68 -> 63 | B68: =الأحد!B68 -> إجاص(كغ) | C68: =SUM(الخميس!J68) -> 0 | E68: 0 | F68: 0 | H68: 0 | I68: 0 | J68: 0 | K68: 63 | M68: مصـاريف التغذية للشخـص الواحــد | R68: 0
A69: =الأحد!A69 -> 64 | B69: =الأحد!B69 -> 0 | C69: =SUM(الخميس!J69) -> 0 | E69: 0 | F69: 0 | H69: 0 | I69: 0 | J69: 0 | K69: 64 | R69: 0
A70: =الأحد!A70 -> 65 | B70: =الأحد!B70 -> 0 | C70: =SUM(الخميس!J70) -> 0 | E70: 0 | F70: 0 | H70: 0 | I70: 0 | J70: =SUM(F70-G70) -> 0 | K70: 65 | M70: قيمة مخروجات اليـوم | O70: =SUM(I77) -> 0 | R70: 0
A71: =الأحد!A71 -> 66 | B71: =الأحد!B71 -> 0 | C71: =SUM(الخميس!J71) -> 0 | E71: 0 | F71: 0 | H71: 0 | I71: 0 | J71: 0 | K71: 66 | R71: 0
A72: =الأحد!A72 -> 67 | B72: =الأحد!B72 -> 0 | C72: =SUM(الخميس!J72) -> 0 | E72: 0 | F72: =SUM(C72+D72) -> 0 | H72: =SUM(E72) -> 0 | I72: =SUM(G72*H72) -> 0 | J72: 0 | K72: 67 | M72: معدل تغذية الأفراد | O72: =SUM(O14) -> 254 | R72: 0
A73: =الأحد!A73 -> 68 | B73: =الأحد!B73 -> 0 | C73: =SUM(الخميس!J73) -> 0 | E73: 0 | F73: =SUM(C73+D73) -> 0 | H73: =SUM(E73) -> 0 | I73: =SUM(G73*H73) -> 0 | J73: 0 | K73: 68 | R73: 0
A74: =الأحد!A74 -> 69 | B74: =الأحد!B74 -> 0 | C74: =SUM(الخميس!J74) -> 0 | F74: 0 | H74: 0 | I74: 0 | J74: 0 | K74: 69 | M74: =SUM(I77/O14) -> 0 | O74: = | P74: =M74 -> 0 | R74: 0
A75: =الأحد!A75 -> 70 | B75: =الأحد!B75 -> 0 | C75: =SUM(الخميس!J75) -> 12.2 | F75: =SUM(C75+D75) -> 12.2 | H75: =SUM(E75) -> 0 | I75: =SUM(G75*H75) -> 0 | J75: 12.2 | K75: 70 | M75: (1) معدل تغذية الأفـراد للوجبــة | R75: 0
A76: =الأحد!A76 -> 71 | B76: =الأحد!B76 -> 0 | C76: =SUM(الخميس!J76) -> 0 | E76: 0 | F76: =SUM(C76+D76) -> 0 | H76: =SUM(E76) -> 0 | I76: =SUM(G76*H76) -> 0 | J76: 0 | K76: 71 | M76: الغــذاء + العشـاء | R76: 0
A77: المجموع | C77: =SUM(C6:C76) -> 7.2 | D77: 0 | F77: =SUM(F6:F76) -> 7.2 | G77: =SUM(G6:G76) -> 0 | I77: =SUM(I6:I76) -> 0 | J77: =SUM(J6:J76) -> 7.2 | R77: =SUM(R12:R76) -> 0
K78: حــرر ببئر الشهداء في: 14 / 04 / 2013....................................

Sheet الاثنين (2)
A1: اســــم المؤسســــــــــــــــــــــــــــــــــــــــــــــة | E1: ورقـــــة الاستهــــلاك اليومـــــــــــــــــــي
A2: طالــــــــــب عبــــد الله-بئر الشهداء- | E2: وجبة باردة | F2: يـوم:الإثنين | G2: =SUM(الخميس!G2+4) -> 15 | H2: =الخميس!H2 -> فيفري | I2: 2013 | J2: إضراب العمال | M2: السنة المالية :2013
A3: طبيعة المواد | C3: مخزون | D3: مــــدخـــــلات اليـوم | F3: مجموع مخزون | G3: مـخرجــــــــــــــــــــات اليـوم | J3: كمية ماتبقى | K3: ملاحظـــــات | M3: تعــــــــداد اليـــوم
D4: الكمية | E4: سعر | F4: البارحـــــــــة | G4: الكمية | H4: سعر | I4: قيمة مخـروجات | J4: فـــي | M4: المستفيدون | N4: فطـور | O4: غـذاء | P4: عشـاء
A5: المستهلكـــة | C5: البارحة | E5: الوحـدة | F5: ومدخلات اليوم | H5: الوحـدة | I5: اليــوم | J5: نهاية اليــوم
A6: =الأحد!A6 -> 01 | B6: =الأحد!B6 -> الخبـــــــز | C6: =SUM('الأحد (2)'!J6) -> 12 | E6: 7.4 | F6: =SUM(C6+D6) -> 12 | H6: =SUM(E6) -> 7.4 | I6: =SUM(G6*H6) -> 0 | J6: =SUM(F6-G6) -> 12 | K6: 01 | M6: نصف داخليون | R6: =SUM(D6*E6) -> 0
A7: =الأحد!A7 -> 02 | B7: =الأحد!B7 -> بسباس(كغ) | C7: =SUM('الأحد (2)'!J7) -> 13 | E7: 80 | F7: 13 | H7: 80 | I7: 0 | J7: 13 | K7: 02 | M7: م .تربويون | R7: =SUM(D7*E7) -> 0
A8: =الأحد!A8 -> 03 | B8: =الأحد!B8 -> بيض | C8: =SUM('الأحد (2)'!J8) -> 0 | E8: 12 | F8: 0 | H8: 12 | I8: 0 | J8: 0 | K8: 03 | M8: الأساتــذة | R8: =SUM(D8*E8) -> 0
A9: =الأحد!A9 -> 04 | B9: =الأحد!B9 -> بطاطا(كغ) | C9: =SUM('الأحد (2)'!J9) -> 12 | E9: 60 | F9: 12 | H9: 60 | I9: 0 | J9: 12 | K9: 04 | M9: العمـــال | O9: 2 | R9: =SUM(D9*E9) -> 0
A10: =الأحد!A10 -> 05 | B10: =الأحد!B10 -> بصل(كغ) | C10: =SUM('الأحد (2)'!J10) -> 35 | E10: 100 | F10: 35 | H10: 100 | I10: 0 | J10: 35 | K10: 05 | M10: الإداريين | O10: 0 | R10: =SUM(D10*E10) -> 0
A11: =الأحد!A11 -> 06 | B11: =الأحد!B11 -> جزر(كغ) | C11: =SUM('الأحد (2)'!J11) -> 12 | E11: 80 | F11: 12 | H11: 80 | I11: 0 | J11: 12 | K11: 06 | M11: المجمـــــوع | N11: =SUM(N6:N10) -> 0 | O11: =SUM(O6:O10) -> 2 | P11: =SUM(P6:P10) -> 0
A12: =الأحد!A12 -> 07 | B12: =الأحد!B12 -> جبن(علبة16ق) | C12: =SUM('الأحد (2)'!J12) -> 0 | E12: 80 | F12: 0 | H12: 80 | I12: 0 | J12: 0 | K12: 07 | R12: =SUM(D12*E12) -> 0
A13: =الأحد!A13 -> 08 | B13: =الأحد!B13 -> تفاح(كغ) | C13: =SUM('الأحد (2)'!J13) -> 0 | D13: 0 | E13: 0 | F13: 0 | H13: 0 | I13: 0 | J13: 0 | K13: 08 | R13: =SUM(D13*E13) -> 0
A14: =الأحد!A14 -> 09 | B14: =الأحد!B14 -> خيار(كغ) | C14: =SUM('الأحد (2)'!J14) -> 0 | E14: 0 | F14: 0 | H14: 0 | I14: 0 | J14: 0 | K14: 09 | M14: معـدل المستفيدين | O14: =SUM(N11+O11+P11) -> 2 | R14: 0
A15: =الأحد!A15 -> 10 | B15: =الأحد!B15 -> طماطم حب(كغ) | C15: =SUM('الأحد (2)'!J15) -> 0 | D15: 0 | E15: 120 | F15: 0 | H15: 120 | I15: 0 | J15: 0 | K15: 10 | R15: 0
A16: =الأحد!A16 -> 11 | B16: =الأحد!B16 -> ثوم(كغ) | C16: =SUM('الأحد (2)'!J16) -> 0 | E16: 400 | F16: 0 | H16: 400 | I16: 0 | J16: 0 | K16: 11 | M16: من الوجبـــات | R16: 0
A17: =الأحد!A17 -> 12 | B17: =الأحد!B17 -> سلاطة خس(كغ) | C17: =SUM('الأحد (2)'!J17) -> 0 | E17: 80 | F17: =SUM(C17+D17) -> 0 | H17: =SUM(E17) -> 80 | I17: =SUM(G17*H17) -> 0 | J17: 0 | K17: 12 | M17: الوجبــــــــــــــات | R17: 0
A18: =الأحد!A18 -> 13 | B18: =الأحد!B18 -> برتقال(كغ) | C18: =SUM('الأحد (2)'!J18) -> 0 | E18: 130 | F18: 0 | H18: 130 | I18: 0 | J18: 0 | K18: 13 | R18: 0
A19: =الأحد!A19 -> 14 | B19: =الأحد!B19 -> موز(كغ) | C19: =SUM('الأحد (2)'!J19) -> -89 | E19: 190 | F19: -89 | H19: 190 | I19: 0 | J19: -89 | K19: 14 | M19: فطــــــــور الصبــاح | R19: 0
A20: =الأحد!A20 -> 15 | B20: =الأحد!B20 -> يوسفية | C20: =SUM('الأحد (2)'!J20) -> 0 | E20: 0 | F20: 0 | H20: 0 | I20: 0 | J20: 0 | K20: 15 | R20: 0
A21: =الأحد!A21 -> 16 | B21: =الأحد!B21 -> عنب(كغ) | C21: =SUM('الأحد (2)'!J21) -> 0 | D21: 0 | E21: 0 | F21: 0 | H21: 0 | I21: 0 | J21: 0 | K21: 16 | R21: 0
A22: =الأحد!A22 -> 17 | B22: =الأحد!B22 -> شخشوخة(كغ) | C22: =SUM('الأحد (2)'!J22) -> 0 | E22: 0 | F22: 0 | H22: 0 | I22: 0 | J22: 0 | K22: 17 | R22: 0
A23: =الأحد!A23 -> 18 | B23: =الأحد!B23 -> زعرورة (كغ) | C23: =SUM('الأحد (2)'!J23) -> 0 | E23: 0 | F23: 0 | H23: 0 | I23: 0 | J23: 0 | K23: 18 | R23: 0
A24: =الأحد!A24 -> 19 | B24: =الأحد!B24 -> ياؤرت | C24: =SUM('الأحد (2)'!J24) -> 0 | E24: 15 | F24: 0 | H24: 15 | I24: 0 | J24: 0 | K24: 19 | R24: 0
A25: =الأحد!A25 -> 20 | B25: =الأحد!B25 -> شكولاطة | C25: =SUM('الأحد (2)'!J25) -> 0 | E25: 0 | F25: 0 | H25: 0 | I25: 0 | J25: 0 | K25: 20 | R25: 0
A26: =الأحد!A26 -> 21 | B26: =الأحد!B26 -> زيتون اسود(كغ) | C26: =SUM('الأحد (2)'!J26) -> 0 | E26: 350 | F26: 0 | H26: 350 | I26: 0 | J26: 0 | K26: 21 | M26: الغــــــذاء | R26: 0
A27: =الأحد!A27 -> 22 | B27: =الأحد!B27 -> زيتون اخضر(كغ) | C27: =SUM('الأحد (2)'!J27) -> 0 | E27: 400 | F27: 0 | H27: 400 | I27: 0 | J27: 0 | K27: 22 | M27: خبز+جبن+بيص مسلوق | R27: 0
A28: =الأحد!A28 -> 23 | B28: =الأحد!B28 -> تليتلي(كغ) | C28: =SUM('الأحد (2)'!J28) -> 0 | E28: 90 | F28: 0 | H28: 90 | I28: 0 | J28: 0 | K28: 23 | M28: سلاطة متنوعة | N28: ياؤورت | R28: 0
A29: =الأحد!A29 -> 24 | B29: =الأحد!B29 -> دويدة(كغ) | C29: =SUM('الأحد (2)'!J29) -> 0 | E29: 90 | F29: 0 | H29: 90 | I29: 0 | J29: 0 | K29: 24 | R29: 0
A30: =الأحد!A30 -> 25 | B30: =الأحد!B30 -> سباقيطي(كغ) | C30: =SUM('الأحد (2)'!J30) -> 0 | E30: 90 | F30: 0 | H30: 90 | I30: 0 | J30: 0 | K30: 25 | R30: 0
A31: =الأحد!A31 -> 26 | B31: =الأحد!B31 -> كسكسي (كغ) | C31: =SUM('الأحد (2)'!J31) -> 0 | E31: 90 | F31: 0 | H31: 90 | I31: 0 | J31: 0 | K31: 26 | M31: قائمـة المقبولين للطاولة المشتركــة | R31: 0
A32: =الأحد!A32 -> 27 | B32: =الأحد!B32 -> مقارونة | C32: =SUM('الأحد (2)'!J32) -> 0 | E32: 90 | F32: 0 | H32: 90 | I32: 0 | J32: 0 | K32: 27 | M32: الأسمــاء | N32: ف.ص | O32: غــداء | P32: ع | R32: 0
A33: =الأحد!A33 -> 28 | B33: =الأحد!B33 -> حمص | C33: =SUM('الأحد (2)'!J33) -> 0 | E33: 240 | F33: 0 | H33: 240 | I33: 0 | J33: 0 | K33: 28 | L33: =الأحد!L33 -> 1 | M33: =الأحد!M33 -> ازوال شراف الدين | R33: 0
A34: =الأحد!A34 -> 29 | B34: =الأحد!B34 -> عدس | C34: =SUM('الأحد (2)'!J34) -> 0 | E34: 120 | F34: 0 | H34: 120 | I34: 0 | J34: 0 | K34: 29 | L34: =الأحد!L34 -> 2 | M34: =الأحد!M34 -> اوشن صبرينة | R34: 0
A35: =الأحد!A35 -> 30 | B35: =الأحد!B35 -> فاصولياء(كغ) | C35: =SUM('الأحد (2)'!J35) -> 0 | E35: 200 | F35: =SUM(C35+D35) -> 0 | H35: =SUM(E35) -> 200 | I35: =SUM(G35*H35) -> 0 | J35: 0 | K35: 30 | L35: =الأحد!L35 -> 3 | M35: =الأحد!M35 -> قلي أحلام
A36: =الأحد!A36 -> 31 | B36: =الأحد!B36 -> ارزمفور(كغ) | C36: =SUM('الأحد (2)'!J36) -> 0 | E36: 0 | F36: 0 | H36: 0 | I36: 0 | J36: 0 | K36: 31 | L36: =الأحد!L36 -> 4 | M36: =الأحد!M36 -> اوش ايمان | R36: 0
A37: =الأحد!A37 -> 32 | B37: =الأحد!B37 -> حلويات | C37: =SUM('الأحد (2)'!J37) -> 0 | E37: 0 | F37: =SUM(C37+D37) -> 0 | H37: =SUM(E37) -> 0 | I37: =SUM(G37*H37) -> 0 | J37: 0 | K37: 32 | L37: =الأحد!L37 -> 5 | M37: =الأحد!M37 -> عزيون فضيلة | R37: 0
A38: =الأحد!A38 -> 33 | B38: =الأحد!B38 -> خوخ | C38: =SUM('الأحد (2)'!J38) -> 0 | E38: 0 | F38: 0 | H38: 0 | I38: 0 | J38: 0 | K38: 33 | L38: =الأحد!L38 -> 6 | M38: =الأحد!M38 -> شايب عينو السعيد | R38: 0
A39: =الأحد!A39 -> 34 | B39: =الأحد!B39 -> فلفل اسود(كيس15غ) | C39: =SUM('الأحد (2)'!J39) -> 0 | E39: 0 | F39: 0 | H39: 0 | I39: 0 | J39: 0 | K39: 34 | L39: =الأحد!L39 -> 7 | M39: =الأحد!M39 -> زيوش حدة | R39: 0
A40: =الأحد!A40 -> 35 | B40: =الأحد!B40 -> خميرة | C40: =SUM('الأحد (2)'!J40) -> 0 | E40: 0 | F40: 0 | H40: 0 | I40: 0 | J40: 0 | K40: 35 | L40: =الأحد!L40 -> 8 | M40: =الأحد!M40 -> قرازة فتحي | R40: 0
A41: =الأحد!A41 -> 36 | B41: =الأحد!B41 -> كمون | C41: =SUM('الأحد (2)'!J41) -> 0 | E41: 30 | F41: 0 | H41: 30 | I41: 0 | J41: 0 | K41: 36 | L41: =الأحد!L41 -> 9 | M41: =الأحد!M41 -> غضبان فيروز | R41: 0
A42: =الأحد!A42 -> 37 | B42: =الأحد!B42 -> ملح(كغ) | C42: =SUM('الأحد (2)'!J42) -> 0 | E42: 30 | F42: 0 | H42: 30 | I42: 0 | J42: 0 | K42: 37 | L42: =الأحد!L42 -> 10 | M42: =الأحد!M42 -> قرفي عليمة | R42: 0
A43: =الأحد!A43 -> 38 | B43: =الأحد!B43 -> طماطم مصبرة(كغ) | C43: =SUM('الأحد (2)'!J43) -> 0 | E43: 140 | F43: 0 | H43: 140 | I43: 0 | J43: 0 | K43: 38 | L43: =الأحد!L43 -> 11 | M43: =الأحد!M43 -> بوناب هوراي | R43: 0
A44: =الأحد!A44 -> 39 | B44: =الأحد!B44 -> زيت المائدة 1لتر | C44: =SUM('الأحد (2)'!J44) -> 0 | E44: 140 | F44: 0 | H44: 140 | I44: 0 | J44: 0 | K44: 39 | L44: =الأحد!L44 -> 12 | M44: =الأحد!M44 -> بوناب فريدة | R44: 0
A45: =الأحد!A45 -> 40 | B45: =الأحد!B45 -> زيدة | C45: =SUM('الأحد (2)'!J45) -> 0 | E45: 70 | F45: 0 | H45: 70 | I45: 0 | J45: 0 | K45: 40 | L45: =الأحد!L45 -> 13 | M45: =الأحد!M45 -> جمال بوناب | R45: 0
A46: =الأحد!A46 -> 41 | B46: =الأحد!B46 -> خل(قارورة) | C46: =SUM('الأحد (2)'!J46) -> 0 | D46: 0 | E46: 30 | F46: 0 | H46: 30 | I46: 0 | J46: 0 | K46: 41 | L46: =الأحد!L46 -> 14 | M46: =الأحد!M46 -> 0 | R46: 0
A47: =الأحد!A47 -> 42 | B47: =الأحد!B47 -> لحم دجاج(كغ) | C47: =SUM('الأحد (2)'!J47) -> 0 | D47: 0 | E47: 380 | F47: 0 | H47: 380 | I47: 0 | J47: 0 | K47: 42 | L47: =الأحد!L47 -> 15 | M47: =الأحد!M47 -> 0 | R47: 0
A48: =الأحد!A48 -> 43 | B48: =الأحد!B48 -> فافل | C48: =SUM('الأحد (2)'!J48) -> 0 | E48: 0 | F48: 0 | H48: 0 | I48: 0 | J48: 0 | K48: 43 | L48: =الأحد!L48 -> 16 | M48: =الأحد!M48 -> 0 | R48: 0
A49: =الأحد!A49 -> 44 | B49: =الأحد!B49 -> لحم عجل(كغ) | C49: =SUM('الأحد (2)'!J49) -> 0 | E49: 120 | F49: 0 | H49: 120 | I49: 0 | J49: 0 | K49: 44 | L49: =الأحد!L49 -> 17 | M49: =الأحد!M49 -> 0 | R49: 0
A50: =الأحد!A50 -> 45 | B50: =الأحد!B50 -> ايجاص(كغ) | C50: =SUM('الأحد (2)'!J50) -> 0 | E50: 0 | F50: 0 | H50: 0 | I50: 0 | J50: 0 | K50: 45 | L50: =الأحد!L50 -> 18 | M50: =الأحد!M50 -> 0 | R50: =SUM(D50*E50) -> 0
A51: =الأحد!A51 -> 46 | B51: =الأحد!B51 -> طونة | C51: =SUM('الأحد (2)'!J51) -> 0 | E51: 0 | F51: 0 | H51: 0 | I51: =SUM(G51*H51) -> 0 | J51: 0 | K51: 46 | L51: =الأحد!L51 -> 19 | M51: =الأحد!M51 -> 0 | R51: =SUM(D51*E51) -> 0
A52: =الأحد!A52 -> 47 | B52: =الأحد!B52 -> جلبانة خضراء(كغ) | C52: =SUM('الأحد (2)'!J52) -> 0 | E52: 0 | F52: 0 | H52: 0 | I52: 0 | J52: 0 | K52: 47 | L52: =الأحد!L52 -> 20 | M52: =الأحد!M52 -> 0 | R52: =SUM(D52*E52) -> 0
A53: =الأحد!A53 -> 48 | B53: =الأحد!B53 -> مرطبات | C53: =SUM('الأحد (2)'!J53) -> 0 | E53: 0 | F53: 0 | H53: 0 | I53: 0 | J53: 0 | K53: 48 | L53: =الأحد!L53 -> 21 | M53: =الأحد!M53 -> 0 | R53: 0
A54: =الأحد!A54 -> 49 | B54: =الأحد!B54 -> مايـونــاز500غ | C54: =SUM('الأحد (2)'!J54) -> 0 | E54: 120 | F54: 0 | H54: 120 | I54: 0 | J54: 0 | K54: 49 | L54: =الأحد!L54 -> 22 | M54: =الأحد!M54 -> 0 | R54: 0
A55: =الأحد!A55 -> 50 | B55: =الأحد!B55 -> مربى | C55: =SUM('الأحد (2)'!J55) -> 0 | E55: 100 | F55: 0 | H55: 100 | I55: 0 | J55: 0 | K55: 50 | L55: =الأحد!L55 -> 23 | M55: =الأحد!M55 -> 0 | R55: 0
A56: =الأحد!A56 -> 51 | B56: =الأحد!B56 -> مشروبات غازية | C56: =SUM('الأحد (2)'!J56) -> 0 | E56: 60 | F56: 0 | H56: 60 | I56: 0 | J56: 0 | K56: 51 | L56: =الأحد!L56 -> 24 | M56: =الأحد!M56 -> 0 | R56: 0
A57: =الأحد!A57 -> 52 | B57: =الأحد!B57 -> ماء معدني | C57: =SUM('الأحد (2)'!J57) -> 0 | E57: 0 | F57: 0 | H57: 0 | I57: 0 | J57: 0 | K57: 52 | L57: =الأحد!L57 -> 25 | M57: =الأحد!M57 -> 0 | R57: 0
A58: =الأحد!A58 -> 53 | B58: =الأحد!B58 -> تمر(كغ) | C58: =SUM('الأحد (2)'!J58) -> 0 | E58: 160 | F58: 0 | H58: 160 | I58: 0 | J58: 0 | K58: 53 | L58: =الأحد!L58 -> 26 | M58: =الأحد!M58 -> 0 | R58: 0
A59: =الأحد!A59 -> 54 | B59: =الأحد!B59 -> سكر | C59: =SUM('الأحد (2)'!J59) -> 0 | E59: 0 | F59: 0 | H59: 0 | I59: 0 | J59: 0 | K59: 54 | L59: =الأحد!L59 -> 27 | M59: =الأحد!M59 -> 0 | R59: 0
A60: =الأحد!A60 -> 55 | B60: =الأحد!B60 -> فافل حار | C60: =SUM('الأحد (2)'!J60) -> 0 | E60: 0 | F60: 0 | H60: 0 | I60: 0 | J60: 0 | K60: 55 | L60: =الأحد!L60 -> 28 | M60: =الأحد!M60 -> 0 | R60: 0
A61: =الأحد!A61 -> 56 | B61: =الأحد!B61 -> حليب سوبرلي | C61: =SUM('الأحد (2)'!J61) -> 0 | E61: 280 | F61: =SUM(C61+D61) -> 0 | H61: =SUM(E61) -> 280 | I61: =SUM(G61*H61) -> 0 | J61: 0 | K61: 56 | L61: =الأحد!L61 -> 29 | M61: =الأحد!M61 -> 0
A62: =الأحد!A62 -> 57 | B62: =الأحد!B62 -> فريك | C62: =SUM('الأحد (2)'!J62) -> 0 | E62: 0 | F62: 0 | H62: 0 | I62: 0 | J62: 0 | K62: 57 | L62: =الأحد!L62 -> 30 | M62: =الأحد!M62 -> 0
A63: =الأحد!A63 -> 58 | B63: =الأحد!B63 -> جريوات | C63: =SUM('الأحد (2)'!J63) -> 0 | E63: 0 | F63: 0 | H63: 0 | I63: 0 | J63: 0 | K63: 58 | L63: =الأحد!L63 -> 31 | M63: =الأحد!M63 -> 0
A64: =الأحد!A64 -> 59 | B64: =الأحد!B64 -> تاي | C64: =SUM('الأحد (2)'!J64) -> 0 | E64: 0 | F64: 0 | H64: 0 | I64: 0 | J64: 0 | K64: 59 | L64: =الأحد!L64 -> 32 | M64: =الأحد!M64 -> 0 | R64: 0
A65: =الأحد!A65 -> 60 | B65: =الأحد!B65 -> قهوة(كغ) | C65: =SUM('الأحد (2)'!J65) -> 0 | E65: 0 | F65: 0 | H65: 0 | I65: 0 | J65: 0 | K65: 60 | M65: المجموع | N65: =SUM(N51:N64) -> 0 | O65: =O33+O34+O35+O36+O37+O38+O39+O40+O41+O42+O43+O44+O45+O46+O47+O48+O49+O50+O51+O52+O53+O54+O55+O56+O57+O58+O59+O60+O61+O62+O63+O64 -> 0 | P65: =SUM(P51:P64) -> 0 | R65: 0
A66: =الأحد!A66 -> 61 | B66: =الأحد!B66 -> شمندر | C66: =SUM('الأحد (2)'!J66) -> 0 | E66: 0 | F66: 0 | H66: 0 | I66: 0 | J66: 0 | K66: 61 | R66: 0
A67: =الأحد!A67 -> 62 | B67: =الأحد!B67 -> توابل | C67: =SUM('الأحد (2)'!J67) -> 0 | E67: 0 | F67: 0 | H67: 0 | I67: 0 | J67: 0 | K67: 62 | R67: 0
A68: =الأحد!A68 -> 63 | B68: =الأحد!B68 -> إجاص(كغ) | C68: =SUM('الأحد (2)'!J68) -> 0 | E68: 0 | F68: 0 | H68: 0 | I68: 0 | J68: =SUM(F68-G68) -> 0 | K68: 63 | M68: مصـاريف التغذية للشخـص الواحــد | R68: 0
A69: =الأحد!A69 -> 64 | B69: =الأحد!B69 -> 0 | C69: =SUM('الأحد (2)'!J69) -> 0 | E69: 0 | F69: 0 | H69: 0 | I69: 0 | J69: 0 | K69: 64 | R69: 0
A70: =الأحد!A70 -> 65 | B70: =الأحد!B70 -> 0 | C70: =SUM('الأحد (2)'!J70) -> 0 | E70: 0 | F70: 0 | H70: 0 | I70: 0 | J70: 0 | K70: 65 | M70: قيمة مخروجات اليـوم | O70: =SUM(I77) -> 0 | R70: 0
A71: =الأحد!A71 -> 66 | B71: =الأحد!B71 -> 0 | C71: =SUM('الأحد (2)'!J71) -> 0 | E71: 0 | F71: 0 | H71: 0 | I71: 0 | J71: 0 | K71: 66 | R71: 0
A72: =الأحد!A72 -> 67 | B72: =الأحد!B72 -> 0 | C72: =SUM('الأحد (2)'!J72) -> 0 | D72: 0 | E72: 0 | F72: =SUM(C72+D72) -> 0 | H72: =SUM(E72) -> 0 | I72: =SUM(G72*H72) -> 0 | J72: 0 | K72: 67 | M72: معدل تغذية الأفراد | O72: =SUM(O14) -> 2 | R72: 0
A73: =الأحد!A73 -> 68 | B73: =الأحد!B73 -> 0 | C73: =SUM('الأحد (2)'!J73) -> 0 | D73: 0 | E73: 0 | F73: =SUM(C73+D73) -> 0 | H73: =SUM(E73) -> 0 | I73: =SUM(G73*H73) -> 0 | J73: 0 | K73: 68 | R73: 0
A74: =الأحد!A74 -> 69 | B74: =الأحد!B74 -> 0 | C74: =SUM('الأحد (2)'!J74) -> 0 | F74: 0 | H74: 0 | I74: 0 | J74: 0 | K74: 69 | M74: =SUM(I77/O14) -> 0 | O74: = | P74: =M74 -> 0 | R74: 0
A75: =الأحد!A75 -> 70 | B75: =الأحد!B75 -> 0 | C75: =SUM('الأحد (2)'!J75) -> 12.2 | F75: =SUM(C75+D75) -> 12.2 | H75: =SUM(E75) -> 0 | I75: =SUM(G75*H75) -> 0 | J75: 12.2 | K75: 70 | M75: (1) معدل تغذية الأفـراد للوجبــة | R75: 0
A76: =الأحد!A76 -> 71 | B76: =الأحد!B76 -> 0 | C76: =SUM('الأحد (2)'!J76) -> 0 | E76: 0 | F76: =SUM(C76+D76) -> 0 | H76: =SUM(E76) -> 0 | I76: =SUM(G76*H76) -> 0 | J76: 0 | K76: 71 | M76: الغــذاء + العشـاء | R76: 0
A77: المجموع | C77: =SUM(C6:C76) -> 7.2 | D77: =SUM(D6:D76) -> 0 | F77: =SUM(F6:F76) -> 7.2 | G77: =SUM(G6:G76) -> 0 | I77: =SUM(I6:I76) -> 0 | J77: =SUM(J6:J76) -> 7.2 | R77: =SUM(R12:R76) -> 0
K78: حــرر ببئر الشهداء في:15 /04 / 2013....................................

Sheet الثلاثاء(2)
A1: اســــم المؤسســــــــــــــــــــــــــــــــــــــــــــــة | E1: ورقـــــة الاستهــــلاك اليومـــــــــــــــــــي
A2: طالــــــــــب عبــــد الله-بئر الشهداء- | F2: يـوم:الثلاثاء | G2: =SUM(الخميس!G2+5) -> 16 | H2: =الخميس!H2 -> فيفري | I2: 2013 | M2: السنة المالية :2013
A3: طبيعة المواد | C3: مخزون | D3: مــــدخـــــلات اليـوم | F3: مجموع مخزون | G3: مـخرجــــــــــــــــــــات اليـوم | J3: كمية ماتبقى | K3: ملاحظـــــات | M3: تعــــــــداد اليـــوم
D4: الكمية | E4: سعر | F4: البارحـــــــــة | G4: الكمية | H4: سعر | I4: قيمة مخـروجات | J4: فـــي | M4: المستفيدون | N4: فطـور | O4: غـذاء | P4: عشـاء
A5: المستهلكـــة | C5: البارحة | E5: الوحـدة | F5: ومدخلات اليوم | H5: الوحـدة | I5: اليــوم | J5: نهاية اليــوم
A6: =الأحد!A6 -> 01 | B6: =الأحد!B6 -> الخبـــــــز | C6: =SUM('الاثنين (2)'!J6) -> 12 | E6: 7.4 | F6: =SUM(C6+D6) -> 12 | H6: =SUM(E6) -> 7.4 | I6: =SUM(G6*H6) -> 0 | J6: =SUM(F6-G6) -> 12 | K6: 01 | M6: نصف داخليون | R6: =SUM(D6*E6) -> 0
A7: =الأحد!A7 -> 02 | B7: =الأحد!B7 -> بسباس(كغ) | C7: =SUM('الاثنين (2)'!J7) -> 13 | E7: 80 | F7: 13 | H7: 80 | I7: =SUM(G7*H7) -> 0 | J7: 13 | K7: 02 | M7: م .تربويون | R7: =SUM(D7*E7) -> 0
A8: =الأحد!A8 -> 03 | B8: =الأحد!B8 -> بيض | C8: =SUM('الاثنين (2)'!J8) -> 0 | E8: 12 | F8: 0 | H8: 12 | I8: 0 | J8: 0 | K8: 03 | M8: الأساتــذة | R8: =SUM(D8*E8) -> 0
A9: =الأحد!A9 -> 04 | B9: =الأحد!B9 -> بطاطا(كغ) | C9: =SUM('الاثنين (2)'!J9) -> 12 | E9: 60 | F9: 12 | H9: 60 | I9: 0 | J9: 12 | K9: 04 | M9: العمـــال | R9: =SUM(D9*E9) -> 0
A10: =الأحد!A10 -> 05 | B10: =الأحد!B10 -> بصل(كغ) | C10: =SUM('الاثنين (2)'!J10) -> 35 | E10: 90 | F10: 35 | H10: 90 | I10: 0 | J10: 35 | K10: 05 | M10: الإداريين | O10: 1 | R10: =SUM(D10*E10) -> 0
A11: =الأحد!A11 -> 06 | B11: =الأحد!B11 -> جزر(كغ) | C11: =SUM('الاثنين (2)'!J11) -> 12 | E11: 80 | F11: 12 | H11: 80 | I11: 0 | J11: 12 | K11: 06 | M11: المجمـــــوع | N11: =SUM(N6:N10) -> 0 | O11: =SUM(O6:O10) -> 1 | P11: =SUM(P6:P10) -> 0
A12: =الأحد!A12 -> 07 | B12: =الأحد!B12 -> جبن(علبة16ق) | C12: =SUM('الاثنين (2)'!J12) -> 0 | E12: 0 | F12: 0 | H12: 0 | I12: 0 | J12: 0 | K12: 07 | R12: =SUM(D12*E12) -> 0
A13: =الأحد!A13 -> 08 | B13: =الأحد!B13 -> تفاح(كغ) | C13: =SUM('الاثنين (2)'!J13) -> 0 | E13: 0 | F13: 0 | H13: 0 | I13: 0 | J13: 0 | K13: 08 | R13: =SUM(D13*E13) -> 0
A14: =الأحد!A14 -> 09 | B14: =الأحد!B14 -> خيار(كغ) | C14: =SUM('الاثنين (2)'!J14) -> 0 | E14: 0 | F14: 0 | H14: =SUM(E14) -> 0 | I14: 0 | J14: 0 | K14: 09 | M14: معـدل المستفيدين | O14: =SUM(N11+O11+P11) -> 1 | R14: 0
A15: =الأحد!A15 -> 10 | B15: =الأحد!B15 -> طماطم حب(كغ) | C15: =SUM('الاثنين (2)'!J15) -> 0 | E15: 120 | F15: 0 | H15: 120 | I15: 0 | J15: 0 | K15: 10 | R15: 0
A16: =الأحد!A16 -> 11 | B16: =الأحد!B16 -> ثوم(كغ) | C16: =SUM('الاثنين (2)'!J16) -> 0 | E16: 400 | F16: 0 | H16: 400 | I16: 0 | J16: 0 | K16: 11 | M16: من الوجبـــات | R16: 0
A17: =الأحد!A17 -> 12 | B17: =الأحد!B17 -> سلاطة خس(كغ) | C17: =SUM('الاثنين (2)'!J17) -> 0 | E17: 80 | F17: =SUM(C17+D17) -> 0 | H17: =SUM(E17) -> 80 | I17: =SUM(G17*H17) -> 0 | J17: 0 | K17: 12 | M17: الوجبــــــــــــــات | R17: 0
A18: =الأحد!A18 -> 13 | B18: =الأحد!B18 -> برتقال(كغ) | C18: =SUM('الاثنين (2)'!J18) -> 0 | E18: 120 | F18: 0 | H18: 120 | I18: 0 | J18: 0 | K18: 13 | R18: 0
A19: =الأحد!A19 -> 14 | B19: =الأحد!B19 -> موز(كغ) | C19: =SUM('الاثنين (2)'!J19) -> -89 | E19: 160 | F19: -89 | H19: 160 | I19: 0 | J19: -89 | K19: 14 | M19: فطــــــــور الصبــاح | R19: 0
A20: =الأحد!A20 -> 15 | B20: =الأحد!B20 -> يوسفية | C20: =SUM('الاثنين (2)'!J20) -> 0 | E20: 0 | F20: 0 | H20: 0 | I20: 0 | J20: 0 | K20: 15 | R20: 0
A21: =الأحد!A21 -> 16 | B21: =الأحد!B21 -> عنب(كغ) | C21: =SUM('الاثنين (2)'!J21) -> 0 | E21: 0 | F21: 0 | H21: 0 | I21: 0 | J21: 0 | K21: 16 | R21: 0
A22: =الأحد!A22 -> 17 | B22: =الأحد!B22 -> شخشوخة(كغ) | C22: =SUM('الاثنين (2)'!J22) -> 0 | E22: 0 | F22: 0 | H22: 0 | I22: 0 | J22: 0 | K22: 17 | R22: 0
A23: =الأحد!A23 -> 18 | B23: =الأحد!B23 -> زعرورة (كغ) | C23: =SUM('الاثنين (2)'!J23) -> 0 | E23: 0 | F23: 0 | H23: 0 | I23: 0 | J23: 0 | K23: 18 | R23: 0
A24: =الأحد!A24 -> 19 | B24: =الأحد!B24 -> ياؤرت | C24: =SUM('الاثنين (2)'!J24) -> 0 | E24: 15 | F24: 0 | H24: 15 | I24: 0 | J24: 0 | K24: 19 | R24: 0
A25: =الأحد!A25 -> 20 | B25: =الأحد!B25 -> شكولاطة | C25: =SUM('الاثنين (2)'!J25) -> 0 | E25: 0 | F25: 0 | H25: 0 | I25: 0 | J25: 0 | K25: 20 | R25: 0
A26: =الأحد!A26 -> 21 | B26: =الأحد!B26 -> زيتون اسود(كغ) | C26: =SUM('الاثنين (2)'!J26) -> 0 | E26: 350 | F26: 0 | H26: 350 | I26: 0 | J26: 0 | K26: 21 | M26: الغــــــذاء | R26: 0
A27: =الأحد!A27 -> 22 | B27: =الأحد!B27 -> زيتون اخضر(كغ) | C27: =SUM('الاثنين (2)'!J27) -> 0 | E27: 0 | F27: 0 | H27: 0 | I27: 0 | J27: 0 | K27: 22 | M27: خبز +بطاطة مرحية | R27: 0
A28: =الأحد!A28 -> 23 | B28: =الأحد!B28 -> تليتلي(كغ) | C28: =SUM('الاثنين (2)'!J28) -> 0 | E28: 90 | F28: 0 | H28: 90 | I28: 0 | J28: 0 | K28: 23 | M28: سلاطة متنوعة | N28: لحم دجاج | R28: 0
A29: =الأحد!A29 -> 24 | B29: =الأحد!B29 -> دويدة(كغ) | C29: =SUM('الاثنين (2)'!J29) -> 0 | E29: 0 | F29: 0 | H29: 0 | I29: 0 | J29: 0 | K29: 24 | M29: مشروبات | N29: عضير فواكه | R29: 0
A30: =الأحد!A30 -> 25 | B30: =الأحد!B30 -> سباقيطي(كغ) | C30: =SUM('الاثنين (2)'!J30) -> 0 | E30: 90 | F30: 0 | H30: 90 | I30: 0 | J30: 0 | K30: 25 | R30: 0
A31: =الأحد!A31 -> 26 | B31: =الأحد!B31 -> كسكسي (كغ) | C31: =SUM('الاثنين (2)'!J31) -> 0 | E31: 90 | F31: 0 | H31: 90 | I31: 0 | J31: 0 | K31: 26 | M31: قائمـة المقبولين للطاولة المشتركــة | R31: 0
A32: =الأحد!A32 -> 27 | B32: =الأحد!B32 -> مقارونة | C32: =SUM('الاثنين (2)'!J32) -> 0 | E32: 90 | F32: 0 | H32: 90 | I32: 0 | J32: 0 | K32: 27 | M32: الأسمــاء | N32: ف.ص | O32: غــداء | P32: ع | R32: 0
A33: =الأحد!A33 -> 28 | B33: =الأحد!B33 -> حمص | C33: =SUM('الاثنين (2)'!J33) -> 0 | E33: 240 | F33: 0 | H33: 240 | I33: 0 | J33: 0 | K33: 28 | L33: =الأحد!L33 -> 1 | M33: =الأحد!M33 -> ازوال شراف الدين | R33: 0
A34: =الأحد!A34 -> 29 | B34: =الأحد!B34 -> عدس | C34: =SUM('الاثنين (2)'!J34) -> 0 | E34: 120 | F34: 0 | H34: =SUM(E34) -> 120 | I34: 0 | J34: 0 | K34: 29 | L34: =الأحد!L34 -> 2 | M34: =الأحد!M34 -> اوشن صبرينة | R34: 0
A35: =الأحد!A35 -> 30 | B35: =الأحد!B35 -> فاصولياء(كغ) | C35: =SUM('الاثنين (2)'!J35) -> 0 | E35: 0 | F35: =SUM(C35+D35) -> 0 | H35: =SUM(E35) -> 0 | I35: =SUM(G35*H35) -> 0 | J35: 0 | K35: 30 | L35: =الأحد!L35 -> 3 | M35: =الأحد!M35 -> قلي أحلام
A36: =الأحد!A36 -> 31 | B36: =الأحد!B36 -> ارزمفور(كغ) | C36: =SUM('الاثنين (2)'!J36) -> 0 | E36: 110 | F36: 0 | H36: =SUM(E36) -> 110 | I36: 0 | J36: 0 | K36: 31 | L36: =الأحد!L36 -> 4 | M36: =الأحد!M36 -> اوش ايمان | R36: 0
A37: =الأحد!A37 -> 32 | B37: =الأحد!B37 -> حلويات | C37: =SUM('الاثنين (2)'!J37) -> 0 | E37: 0 | F37: =SUM(C37+D37) -> 0 | H37: 0 | I37: =SUM(G37*H37) -> 0 | J37: 0 | K37: 32 | L37: =الأحد!L37 -> 5 | M37: =الأحد!M37 -> عزيون فضيلة | R37: 0
A38: =الأحد!A38 -> 33 | B38: =الأحد!B38 -> خوخ | C38: =SUM('الاثنين (2)'!J38) -> 0 | E38: 0 | F38: 0 | H38: =SUM(E38) -> 0 | I38: 0 | J38: 0 | K38: 33 | L38: =الأحد!L38 -> 6 | M38: =الأحد!M38 -> شايب عينو السعيد | R38: 0
A39: =الأحد!A39 -> 34 | B39: =الأحد!B39 -> فلفل اسود(كيس15غ) | C39: =SUM('الاثنين (2)'!J39) -> 0 | E39: 0 | F39: 0 | H39: 0 | I39: 0 | J39: 0 | K39: 34 | L39: =الأحد!L39 -> 7 | M39: =الأحد!M39 -> زيوش حدة | R39: 0
A40: =الأحد!A40 -> 35 | B40: =الأحد!B40 -> خميرة | C40: =SUM('الاثنين (2)'!J40) -> 0 | E40: 0 | F40: 0 | H40: 0 | I40: 0 | J40: 0 | K40: 35 | L40: =الأحد!L40 -> 8 | M40: =الأحد!M40 -> قرازة فتحي | R40: 0
A41: =الأحد!A41 -> 36 | B41: =الأحد!B41 -> كمون | C41: =SUM('الاثنين (2)'!J41) -> 0 | E41: 30 | F41: =SUM(C41+D41) -> 0 | H41: =SUM(E41) -> 30 | I41: =SUM(G41*H41) -> 0 | J41: 0 | K41: 36 | L41: =الأحد!L41 -> 9 | M41: =الأحد!M41 -> غضبان فيروز | R41: 0
A42: =الأحد!A42 -> 37 | B42: =الأحد!B42 -> ملح(كغ) | C42: =SUM('الاثنين (2)'!J42) -> 0 | E42: 30 | F42: 0 | H42: 30 | I42: 0 | J42: 0 | K42: 37 | L42: =الأحد!L42 -> 10 | M42: =الأحد!M42 -> قرفي عليمة | R42: 0
A43: =الأحد!A43 -> 38 | B43: =الأحد!B43 -> طماطم مصبرة(كغ) | C43: =SUM('الاثنين (2)'!J43) -> 0 | E43: 140 | F43: =SUM(C43+D43) -> 0 | H43: =SUM(E43) -> 140 | I43: =SUM(G43*H43) -> 0 | J43: 0 | K43: 38 | L43: =الأحد!L43 -> 11 | M43: =الأحد!M43 -> بوناب هوراي | R43: 0
A44: =الأحد!A44 -> 39 | B44: =الأحد!B44 -> زيت المائدة 1لتر | C44: =SUM('الاثنين (2)'!J44) -> 0 | E44: 140 | F44: 0 | H44: 140 | I44: 0 | J44: 0 | K44: 39 | L44: =الأحد!L44 -> 12 | M44: =الأحد!M44 -> بوناب فريدة | R44: 0
A45: =الأحد!A45 -> 40 | B45: =الأحد!B45 -> زيدة | C45: =SUM('الاثنين (2)'!J45) -> 0 | E45: 70 | F45: 0 | H45: 70 | I45: 0 | J45: 0 | K45: 40 | L45: =الأحد!L45 -> 13 | M45: =الأحد!M45 -> جمال بوناب | R45: 0
A46: =الأحد!A46 -> 41 | B46: =الأحد!B46 -> خل(قارورة) | C46: =SUM('الاثنين (2)'!J46) -> 0 | E46: 30 | F46: 0 | H46: =SUM(E46) -> 30 | I46: 0 | J46: 0 | K46: 41 | L46: =الأحد!L46 -> 14 | M46: =الأحد!M46 -> 0 | R46: 0
A47: =الأحد!A47 -> 42 | B47: =الأحد!B47 -> لحم دجاج(كغ) | C47: =SUM('الاثنين (2)'!J47) -> 0 | E47: 380 | F47: 0 | H47: 380 | I47: 0 | J47: 0 | K47: 42 | L47: =الأحد!L47 -> 15 | M47: =الأحد!M47 -> 0 | R47: 0
A48: =الأحد!A48 -> 43 | B48: =الأحد!B48 -> فافل | C48: =SUM('الاثنين (2)'!J48) -> 0 | E48: 0 | F48: 0 | H48: 0 | I48: 0 | J48: 0 | K48: 43 | L48: =الأحد!L48 -> 16 | M48: =الأحد!M48 -> 0 | R48: 0
A49: =الأحد!A49 -> 44 | B49: =الأحد!B49 -> لحم عجل(كغ) | C49: =SUM('الاثنين (2)'!J49) -> 0 | E49: 0 | F49: 0 | H49: 0 | I49: 0 | J49: 0 | K49: 44 | L49: =الأحد!L49 -> 17 | M49: =الأحد!M49 -> 0 | R49: 0
A50: =الأحد!A50 -> 45 | B50: =الأحد!B50 -> ايجاص(كغ) | C50: =SUM('الاثنين (2)'!J50) -> 0 | E50: 0 | F50: 0 | H50: 0 | I50: 0 | J50: 0 | K50: 45 | L50: =الأحد!L50 -> 18 | M50: =الأحد!M50 -> 0 | R50: =SUM(D50*E50) -> 0
A51: =الأحد!A51 -> 46 | B51: =الأحد!B51 -> طونة | C51: =SUM('الاثنين (2)'!J51) -> 0 | E51: 0 | F51: 0 | H51: 0 | I51: 0 | J51: 0 | K51: 46 | L51: =الأحد!L51 -> 19 | M51: =الأحد!M51 -> 0 | R51: =SUM(D51*E51) -> 0
A52: =الأحد!A52 -> 47 | B52: =الأحد!B52 -> جلبانة خضراء(كغ) | C52: =SUM('الاثنين (2)'!J52) -> 0 | E52: 0 | F52: 0 | H52: 0 | I52: 0 | J52: 0 | K52: 47 | L52: =الأحد!L52 -> 20 | M52: =الأحد!M52 -> 0 | R52: =SUM(D52*E52) -> 0
A53: =الأحد!A53 -> 48 | B53: =الأحد!B53 -> مرطبات | C53: =SUM('الاثنين (2)'!J53) -> 0 | E53: 0 | F53: 0 | H53: 0 | I53: 0 | J53: 0 | K53: 48 | L53: =الأحد!L53 -> 21 | M53: =الأحد!M53 -> 0 | R53: 0
A54: =الأحد!A54 -> 49 | B54: =الأحد!B54 -> مايـونــاز500غ | C54: =SUM('الاثنين (2)'!J54) -> 0 | E54: 0 | F54: 0 | H54: 0 | I54: 0 | J54: 0 | K54: 49 | L54: =الأحد!L54 -> 22 | M54: =الأحد!M54 -> 0 | R54: 0
A55: =الأحد!A55 -> 50 | B55: =الأحد!B55 -> مربى | C55: =SUM('الاثنين (2)'!J55) -> 0 | E55: 120 | F55: 0 | H55: 120 | I55: 0 | J55: 0 | K55: 50 | L55: =الأحد!L55 -> 23 | M55: =الأحد!M55 -> 0 | R55: 0
A56: =الأحد!A56 -> 51 | B56: =الأحد!B56 -> مشروبات غازية | C56: =SUM('الاثنين (2)'!J56) -> 0 | E56: 60 | F56: 0 | H56: 60 | I56: 0 | J56: 0 | K56: 51 | L56: =الأحد!L56 -> 24 | M56: =الأحد!M56 -> 0 | R56: 0
A57: =الأحد!A57 -> 52 | B57: =الأحد!B57 -> ماء معدني | C57: =SUM('الاثنين (2)'!J57) -> 0 | E57: 30 | F57: 0 | H57: 30 | I57: 0 | J57: 0 | K57: 52 | L57: =الأحد!L57 -> 25 | M57: =الأحد!M57 -> 0 | R57: 0
A58: =الأحد!A58 -> 53 | B58: =الأحد!B58 -> تمر(كغ) | C58: =SUM('الاثنين (2)'!J58) -> 0 | E58: 0 | F58: 0 | H58: 0 | I58: 0 | J58: 0 | K58: 53 | L58: =الأحد!L58 -> 26 | M58: =الأحد!M58 -> 0 | R58: 0
A59: =الأحد!A59 -> 54 | B59: =الأحد!B59 -> سكر | C59: =SUM('الاثنين (2)'!J59) -> 0 | E59: 0 | F59: 0 | H59: 0 | I59: 0 | J59: 0 | K59: 54 | L59: =الأحد!L59 -> 27 | M59: =الأحد!M59 -> 0 | R59: 0
A60: =الأحد!A60 -> 55 | B60: =الأحد!B60 -> فافل حار | C60: =SUM('الاثنين (2)'!J60) -> 0 | E60: 0 | F60: 0 | H60: 0 | I60: 0 | J60: 0 | K60: 55 | L60: =الأحد!L60 -> 28 | M60: =الأحد!M60 -> 0 | R60: 0
A61: =الأحد!A61 -> 56 | B61: =الأحد!B61 -> حليب سوبرلي | C61: =SUM('الاثنين (2)'!J61) -> 0 | E61: 0 | J61: 0 | K61: 56 | L61: =الأحد!L61 -> 29 | M61: =الأحد!M61 -> 0
A62: =الأحد!A62 -> 57 | B62: =الأحد!B62 -> فريك | C62: =SUM('الاثنين (2)'!J62) -> 0 | E62: 0 | F62: =SUM(C62+D62) -> 0 | H62: =SUM(E62) -> 0 | I62: =SUM(G62*H62) -> 0 | J62: 0 | K62: 57 | L62: =الأحد!L62 -> 30 | M62: =الأحد!M62 -> 0
A63: =الأحد!A63 -> 58 | B63: =الأحد!B63 -> جريوات | C63: =SUM('الاثنين (2)'!J63) -> 0 | E63: 120 | F63: 0 | H63: 120 | I63: 0 | J63: 0 | K63: 58 | L63: =الأحد!L63 -> 31 | M63: =الأحد!M63 -> 0
A64: =الأحد!A64 -> 59 | B64: =الأحد!B64 -> تاي | C64: =SUM('الاثنين (2)'!J64) -> 0 | E64: 0 | F64: 0 | H64: 0 | I64: 0 | J64: 0 | K64: 59 | L64: =الأحد!L64 -> 32 | M64: =الأحد!M64 -> 0 | R64: 0
A65: =الأحد!A65 -> 60 | B65: =الأحد!B65 -> قهوة(كغ) | C65: =SUM('الاثنين (2)'!J65) -> 0 | E65: 0 | F65: 0 | H65: 0 | I65: 0 | J65: 0 | K65: 60 | M65: المجموع | N65: =SUM(N51:N64) -> 0 | O65: =O33+O34+O35+O36+O37+O38+O39+O40+O41+O42+O43+O44+O45+O46+O47+O48+O49+O50+O51+O52+O53+O54+O55+O56+O57+O58+O59+O60+O61+O62+O63+O64 -> 0 | P65: =SUM(P51:P64) -> 0 | R65: 0
A66: =الأحد!A66 -> 61 | B66: =الأحد!B66 -> شمندر | C66: =SUM('الاثنين (2)'!J66) -> 0 | E66: 280 | F66: 0 | H66: 280 | I66: 0 | J66: 0 | K66: 61 | R66: 0
A67: =الأحد!A67 -> 62 | B67: =الأحد!B67 -> توابل | C67: =SUM('الاثنين (2)'!J67) -> 0 | E67: 0 | F67: 0 | H67: 0 | I67: 0 | J67: 0 | K67: 62 | R67: 0
A68: =الأحد!A68 -> 63 | B68: =الأحد!B68 -> إجاص(كغ) | C68: =SUM('الاثنين (2)'!J68) -> 0 | E68: 0 | F68: 0 | H68: 0 | I68: 0 | J68: 0 | K68: 63 | M68: مصـاريف التغذية للشخـص الواحــد | R68: 0
A69: =الأحد!A69 -> 64 | B69: =الأحد!B69 -> 0 | C69: =SUM('الاثنين (2)'!J69) -> 0 | F69: 0 | H69: 0 | I69: 0 | J69: 0 | K69: 64 | R69: 0
A70: =الأحد!A70 -> 65 | B70: =الأحد!B70 -> 0 | C70: =SUM('الاثنين (2)'!J70) -> 0 | F70: 0 | H70: 0 | I70: 0 | J70: =SUM(F70-G70) -> 0 | K70: 65 | M70: قيمة مخروجات اليـوم | O70: =SUM(I77) -> 0 | R70: 0
A71: =الأحد!A71 -> 66 | B71: =الأحد!B71 -> 0 | C71: =SUM('الاثنين (2)'!J71) -> 0 | F71: 0 | H71: 0 | I71: 0 | J71: 0 | K71: 66 | R71: 0
A72: =الأحد!A72 -> 67 | B72: =الأحد!B72 -> 0 | C72: =SUM('الاثنين (2)'!J72) -> 0 | F72: =SUM(C72+D72) -> 0 | H72: =SUM(E72) -> 0 | I72: =SUM(G72*H72) -> 0 | J72: 0 | K72: 67 | M72: معدل تغذية الأفراد | O72: =SUM(O14) -> 1 | R72: 0
A73: =الأحد!A73 -> 68 | B73: =الأحد!B73 -> 0 | C73: =SUM('الاثنين (2)'!J73) -> 0 | F73: =SUM(C73+D73) -> 0 | H73: =SUM(E73) -> 0 | I73: =SUM(G73*H73) -> 0 | J73: 0 | K73: 68 | R73: 0
A74: =الأحد!A74 -> 69 | B74: =الأحد!B74 -> 0 | C74: =SUM('الاثنين (2)'!J74) -> 0 | E74: 0 | F74: 0 | H74: 0 | I74: 0 | J74: 0 | K74: 69 | M74: =SUM(I77/O14) -> 0 | O74: = | P74: =M74 -> 0 | R74: 0
A75: =الأحد!A75 -> 70 | B75: =الأحد!B75 -> 0 | C75: =SUM('الاثنين (2)'!J75) -> 12.2 | F75: =SUM(C75+D75) -> 12.2 | H75: =SUM(E75) -> 0 | I75: =SUM(G75*H75) -> 0 | J75: 12.2 | K75: 70 | M75: (1) معدل تغذية الأفـراد للوجبــة | R75: 0
A76: =الأحد!A76 -> 71 | B76: =الأحد!B76 -> 0 | C76: =SUM('الاثنين (2)'!J76) -> 0 | E76: 0 | F76: =SUM(C76+D76) -> 0 | H76: =SUM(E76) -> 0 | I76: =SUM(G76*H76) -> 0 | J76: 0 | K76: 71 | M76: الغــذاء + العشـاء | R76: 0
A77: المجموع | C77: =SUM(C6:C76) -> 7.2 | D77: =SUM(D6:D76) -> 0 | F77: =SUM(F6:F76) -> 7.2 | G77: =SUM(G6:G76) -> 0 | I77: =SUM(I6:I76) -> 0 | J77: =SUM(J6:J76) -> 7.2 | R77: =SUM(R12:R76) -> 0
K78: حــرر ببئر الشهداء في: 16 / 04 / 2013....................................

Sheet الأربعاء(2)
A1: اســــم المؤسســــــــــــــــــــــــــــــــــــــــــــــة | E1: ورقـــــة الاستهــــلاك اليومــــــــــــــــــــــــــــــــي
A2: طالــــــــــب عبــــد الله-بئر الشهداء- | E2: إضراب | F2: يـوم:الأربعاء | G2: 17 | H2: =الخميس!H2 -> فيفري | I2: 2013 | J2: عام | M2: السنة المالية :2013
A3: طبيعة المواد | C3: مخزون | D3: مــــدخـــــلات اليـوم | F3: مجموع مخزون | G3: مـخرجــــــــــــــــــــات اليـوم | J3: كمية ماتبقى | K3: ملاحظـــــات | M3: تعــــــــداد اليـــوم
D4: الكمية | E4: سعر | F4: البارحـــــــــة | G4: الكمية | H4: سعر | I4: قيمة مخـروجات | J4: فـــي | M4: المستفيدون | N4: فطـور | O4: غـذاء | P4: عشـاء
A5: المستهلكـــة | C5: البارحة | E5: الوحـدة | F5: ومدخلات اليوم | H5: الوحـدة | I5: اليــوم | J5: نهاية اليــوم
A6: =الأحد!A6 -> 01 | B6: =الأحد!B6 -> الخبـــــــز | C6: =SUM('الثلاثاء(2)'!J6) -> 12 | E6: 7.4 | F6: =SUM(C6+D6) -> 12 | H6: =SUM(E6) -> 7.4 | I6: =SUM(G6*H6) -> 0 | J6: =SUM(F6-G6) -> 12 | K6: 01 | M6: نصف داخليون | R6: =SUM(D6*E6) -> 0
A7: =الأحد!A7 -> 02 | B7: =الأحد!B7 -> بسباس(كغ) | C7: =SUM('الثلاثاء(2)'!J7) -> 13 | E7: 80 | F7: 13 | H7: 80 | I7: 0 | J7: 13 | K7: 02 | M7: م .تربويون | R7: =SUM(D7*E7) -> 0
A8: =الأحد!A8 -> 03 | B8: =الأحد!B8 -> بيض | C8: =SUM('الثلاثاء(2)'!J8) -> 0 | E8: 12 | F8: 0 | H8: 12 | I8: 0 | J8: 0 | K8: 03 | M8: الأساتــذة | R8: =SUM(D8*E8) -> 0
A9: =الأحد!A9 -> 04 | B9: =الأحد!B9 -> بطاطا(كغ) | C9: =SUM('الثلاثاء(2)'!J9) -> 12 | E9: 60 | F9: 12 | H9: 60 | I9: 0 | J9: 12 | K9: 04 | M9: العمـــال | R9: =SUM(D9*E9) -> 0
A10: =الأحد!A10 -> 05 | B10: =الأحد!B10 -> بصل(كغ) | C10: =SUM('الثلاثاء(2)'!J10) -> 35 | E10: 90 | F10: 35 | H10: 90 | I10: 0 | J10: 35 | K10: 05 | M10: الإداريين | O10: 1 | R10: =SUM(D10*E10) -> 0
A11: =الأحد!A11 -> 06 | B11: =الأحد!B11 -> جزر(كغ) | C11: =SUM('الثلاثاء(2)'!J11) -> 12 | E11: 80 | F11: 12 | H11: 80 | I11: 0 | J11: 12 | K11: 06 | M11: المجمـــــوع | N11: =SUM(N6:N10) -> 0 | O11: =SUM(O6:O10) -> 1 | P11: =SUM(P6:P10) -> 0
A12: =الأحد!A12 -> 07 | B12: =الأحد!B12 -> جبن(علبة16ق) | C12: =SUM('الثلاثاء(2)'!J12) -> 0 | E12: 80 | F12: 0 | H12: 80 | I12: 0 | J12: 0 | K12: 07 | R12: =SUM(D12*E12) -> 0
A13: =الأحد!A13 -> 08 | B13: =الأحد!B13 -> تفاح(كغ) | C13: =SUM('الثلاثاء(2)'!J13) -> 0 | E13: 0 | F13: 0 | H13: 0 | I13: 0 | J13: 0 | K13: 08 | R13: =SUM(D13*E13) -> 0
A14: =الأحد!A14 -> 09 | B14: =الأحد!B14 -> خيار(كغ) | C14: =SUM('الثلاثاء(2)'!J14) -> 0 | E14: 0 | F14: 0 | H14: 0 | I14: 0 | J14: 0 | K14: 09 | M14: معـدل المستفيدين | O14: =SUM(N11+O11+P11) -> 1 | R14: 0
A15: =الأحد!A15 -> 10 | B15: =الأحد!B15 -> طماطم حب(كغ) | C15: =SUM('الثلاثاء(2)'!J15) -> 0 | E15: 90 | F15: 0 | H15: 90 | I15: 0 | J15: 0 | K15: 10 | R15: 0
A16: =الأحد!A16 -> 11 | B16: =الأحد!B16 -> ثوم(كغ) | C16: =SUM('الثلاثاء(2)'!J16) -> 0 | E16: 400 | F16: 0 | H16: 400 | I16: 0 | J16: 0 | K16: 11 | M16: من الوجبـــات | R16: 0
A17: =الأحد!A17 -> 12 | B17: =الأحد!B17 -> سلاطة خس(كغ) | C17: =SUM('الثلاثاء(2)'!J17) -> 0 | E17: 80 | F17: =SUM(C17+D17) -> 0 | H17: =SUM(E17) -> 80 | I17: =SUM(G17*H17) -> 0 | J17: 0 | K17: 12 | M17: الوجبــــــــــــــات | R17: 0
A18: =الأحد!A18 -> 13 | B18: =الأحد!B18 -> برتقال(كغ) | C18: =SUM('الثلاثاء(2)'!J18) -> 0 | E18: 130 | F18: 0 | H18: 130 | I18: 0 | J18: 0 | K18: 13 | R18: 0
A19: =الأحد!A19 -> 14 | B19: =الأحد!B19 -> موز(كغ) | C19: =SUM('الثلاثاء(2)'!J19) -> -89 | E19: 160 | F19: -89 | H19: 160 | I19: 0 | J19: -89 | K19: 14 | M19: فطــــــــور الصبــاح | R19: 0
A20: =الأحد!A20 -> 15 | B20: =الأحد!B20 -> يوسفية | C20: =SUM('الثلاثاء(2)'!J20) -> 0 | E20: 0 | F20: 0 | H20: 0 | I20: 0 | J20: 0 | K20: 15 | R20: 0
A21: =الأحد!A21 -> 16 | B21: =الأحد!B21 -> عنب(كغ) | C21: =SUM('الثلاثاء(2)'!J21) -> 0 | E21: 0 | F21: 0 | H21: 0 | I21: 0 | J21: 0 | K21: 16 | R21: 0
A22: =الأحد!A22 -> 17 | B22: =الأحد!B22 -> شخشوخة(كغ) | C22: =SUM('الثلاثاء(2)'!J22) -> 0 | E22: 0 | F22: 0 | H22: 0 | I22: 0 | J22: 0 | K22: 17 | R22: 0
A23: =الأحد!A23 -> 18 | B23: =الأحد!B23 -> زعرورة (كغ) | C23: =SUM('الثلاثاء(2)'!J23) -> 0 | E23: 0 | F23: 0 | H23: 0 | I23: 0 | J23: 0 | K23: 18 | R23: 0
A24: =الأحد!A24 -> 19 | B24: =الأحد!B24 -> ياؤرت | C24: =SUM('الثلاثاء(2)'!J24) -> 0 | E24: 15 | F24: 0 | H24: 15 | I24: 0 | J24: 0 | K24: 19 | R24: 0
A25: =الأحد!A25 -> 20 | B25: =الأحد!B25 -> شكولاطة | C25: =SUM('الثلاثاء(2)'!J25) -> 0 | E25: 0 | F25: 0 | H25: 0 | I25: 0 | J25: 0 | K25: 20 | R25: 0
A26: =الأحد!A26 -> 21 | B26: =الأحد!B26 -> زيتون اسود(كغ) | C26: =SUM('الثلاثاء(2)'!J26) -> 0 | E26: 350 | F26: 0 | H26: 350 | I26: 0 | J26: 0 | K26: 21 | M26: الغــــــذاء | R26: 0
A27: =الأحد!A27 -> 22 | B27: =الأحد!B27 -> زيتون اخضر(كغ) | C27: =SUM('الثلاثاء(2)'!J27) -> 0 | E27: 400 | F27: 0 | H27: 400 | I27: 0 | J27: 0 | K27: 22 | M27: خبطاجين الزيتون+لحم دجاج | R27: 0
A28: =الأحد!A28 -> 23 | B28: =الأحد!B28 -> تليتلي(كغ) | C28: =SUM('الثلاثاء(2)'!J28) -> 0 | E28: 90 | F28: 0 | H28: 90 | I28: 0 | J28: 0 | K28: 23 | M28: سلاطة متنوعة | N28: برتقال | R28: 0
A29: =الأحد!A29 -> 24 | B29: =الأحد!B29 -> دويدة(كغ) | C29: =SUM('الثلاثاء(2)'!J29) -> 0 | E29: 0 | F29: 0 | H29: 0 | I29: 0 | J29: 0 | K29: 24 | R29: 0
A30: =الأحد!A30 -> 25 | B30: =الأحد!B30 -> سباقيطي(كغ) | C30: =SUM('الثلاثاء(2)'!J30) -> 0 | E30: 90 | F30: 0 | H30: 90 | I30: 0 | J30: 0 | K30: 25 | R30: 0
A31: =الأحد!A31 -> 26 | B31: =الأحد!B31 -> كسكسي (كغ) | C31: =SUM('الثلاثاء(2)'!J31) -> 0 | E31: 90 | F31: 0 | H31: 90 | I31: 0 | J31: 0 | K31: 26 | M31: قائمـة المقبولين للطاولة المشتركــة | R31: 0
A32: =الأحد!A32 -> 27 | B32: =الأحد!B32 -> مقارونة | C32: =SUM('الثلاثاء(2)'!J32) -> 0 | E32: 90 | F32: 0 | H32: 90 | I32: 0 | J32: 0 | K32: 27 | M32: الأسمــاء | N32: ف.ص | O32: غــداء | P32: ع | R32: 0
A33: =الأحد!A33 -> 28 | B33: =الأحد!B33 -> حمص | C33: =SUM('الثلاثاء(2)'!J33) -> 0 | E33: 240 | F33: 0 | H33: 240 | I33: 0 | J33: 0 | K33: 28 | L33: =الأحد!L33 -> 1 | M33: =الأحد!M33 -> ازوال شراف الدين | R33: 0
A34: =الأحد!A34 -> 29 | B34: =الأحد!B34 -> عدس | C34: =SUM('الثلاثاء(2)'!J34) -> 0 | E34: 120 | F34: 0 | H34: 120 | I34: 0 | J34: 0 | K34: 29 | L34: =الأحد!L34 -> 2 | M34: =الأحد!M34 -> اوشن صبرينة | R34: 0
A35: =الأحد!A35 -> 30 | B35: =الأحد!B35 -> فاصولياء(كغ) | C35: =SUM('الثلاثاء(2)'!J35) -> 0 | E35: 0 | F35: =SUM(C35+D35) -> 0 | H35: =SUM(E35) -> 0 | I35: =SUM(G35*H35) -> 0 | J35: 0 | K35: 30 | L35: =الأحد!L35 -> 3 | M35: =الأحد!M35 -> قلي أحلام
A36: =الأحد!A36 -> 31 | B36: =الأحد!B36 -> ارزمفور(كغ) | C36: =SUM('الثلاثاء(2)'!J36) -> 0 | E36: 110 | F36: 0 | H36: 110 | I36: 0 | J36: 0 | K36: 31 | L36: =الأحد!L36 -> 4 | M36: =الأحد!M36 -> اوش ايمان | R36: 0
A37: =الأحد!A37 -> 32 | B37: =الأحد!B37 -> حلويات | C37: =SUM('الثلاثاء(2)'!J37) -> 0 | E37: 0 | F37: =SUM(C37+D37) -> 0 | H37: =SUM(E37) -> 0 | I37: =SUM(G37*H37) -> 0 | J37: 0 | K37: 32 | L37: =الأحد!L37 -> 5 | M37: =الأحد!M37 -> عزيون فضيلة | R37: 0
A38: =الأحد!A38 -> 33 | B38: =الأحد!B38 -> خوخ | C38: =SUM('الثلاثاء(2)'!J38) -> 0 | E38: 0 | F38: 0 | H38: 0 | I38: 0 | J38: 0 | K38: 33 | L38: =الأحد!L38 -> 6 | M38: =الأحد!M38 -> شايب عينو السعيد | R38: 0
A39: =الأحد!A39 -> 34 | B39: =الأحد!B39 -> فلفل اسود(كيس15غ) | C39: =SUM('الثلاثاء(2)'!J39) -> 0 | E39: 0 | F39: 0 | H39: 0 | I39: 0 | J39: 0 | K39: 34 | L39: =الأحد!L39 -> 7 | M39: =الأحد!M39 -> زيوش حدة | R39: 0
A40: =الأحد!A40 -> 35 | B40: =الأحد!B40 -> خميرة | C40: =SUM('الثلاثاء(2)'!J40) -> 0 | E40: 0 | F40: 0 | H40: 0 | I40: 0 | J40: 0 | K40: 35 | L40: =الأحد!L40 -> 8 | M40: =الأحد!M40 -> قرازة فتحي | R40: 0
A41: =الأحد!A41 -> 36 | B41: =الأحد!B41 -> كمون | C41: =SUM('الثلاثاء(2)'!J41) -> 0 | E41: 30 | F41: 0 | H41: 30 | I41: 0 | J41: 0 | K41: 36 | L41: =الأحد!L41 -> 9 | M41: =الأحد!M41 -> غضبان فيروز | R41: 0
A42: =الأحد!A42 -> 37 | B42: =الأحد!B42 -> ملح(كغ) | C42: =SUM('الثلاثاء(2)'!J42) -> 0 | E42: 30 | F42: 0 | H42: 30 | I42: 0 | J42: 0 | K42: 37 | L42: =الأحد!L42 -> 10 | M42: =الأحد!M42 -> قرفي عليمة | R42: 0
A43: =الأحد!A43 -> 38 | B43: =الأحد!B43 -> طماطم مصبرة(كغ) | C43: =SUM('الثلاثاء(2)'!J43) -> 0 | E43: 140 | F43: 0 | H43: 140 | I43: 0 | J43: 0 | K43: 38 | L43: =الأحد!L43 -> 11 | M43: =الأحد!M43 -> بوناب هوراي | R43: 0
A44: =الأحد!A44 -> 39 | B44: =الأحد!B44 -> زيت المائدة 1لتر | C44: =SUM('الثلاثاء(2)'!J44) -> 0 | E44: 140 | F44: 0 | H44: 140 | I44: 0 | J44: 0 | K44: 39 | L44: =الأحد!L44 -> 12 | M44: =الأحد!M44 -> بوناب فريدة | R44: 0
A45: =الأحد!A45 -> 40 | B45: =الأحد!B45 -> زيدة | C45: =SUM('الثلاثاء(2)'!J45) -> 0 | E45: 70 | F45: 0 | H45: 70 | I45: 0 | J45: 0 | K45: 40 | L45: =الأحد!L45 -> 13 | M45: =الأحد!M45 -> جمال بوناب | R45: 0
A46: =الأحد!A46 -> 41 | B46: =الأحد!B46 -> خل(قارورة) | C46: =SUM('الثلاثاء(2)'!J46) -> 0 | E46: 30 | F46: 0 | H46: 30 | I46: 0 | J46: 0 | K46: 41 | L46: =الأحد!L46 -> 14 | M46: =الأحد!M46 -> 0 | R46: 0
A47: =الأحد!A47 -> 42 | B47: =الأحد!B47 -> لحم دجاج(كغ) | C47: =SUM('الثلاثاء(2)'!J47) -> 0 | E47: 380 | F47: 0 | H47: 380 | I47: 0 | J47: 0 | K47: 42 | L47: =الأحد!L47 -> 15 | M47: =الأحد!M47 -> 0 | R47: 0
A48: =الأحد!A48 -> 43 | B48: =الأحد!B48 -> فافل | C48: =SUM('الثلاثاء(2)'!J48) -> 0 | E48: 0 | F48: 0 | H48: 0 | I48: 0 | J48: 0 | K48: 43 | L48: =الأحد!L48 -> 16 | M48: =الأحد!M48 -> 0 | R48: 0
A49: =الأحد!A49 -> 44 | B49: =الأحد!B49 -> لحم عجل(كغ) | C49: =SUM('الثلاثاء(2)'!J49) -> 0 | E49: 0 | F49: 0 | H49: 0 | I49: 0 | J49: 0 | K49: 44 | L49: =الأحد!L49 -> 17 | M49: =الأحد!M49 -> 0 | R49: 0
A50: =الأحد!A50 -> 45 | B50: =الأحد!B50 -> ايجاص(كغ) | C50: =SUM('الثلاثاء(2)'!J50) -> 0 | E50: 0 | F50: 0 | H50: 0 | I50: 0 | J50: 0 | K50: 45 | L50: =الأحد!L50 -> 18 | M50: =الأحد!M50 -> 0 | R50: =SUM(D50*E50) -> 0
A51: =الأحد!A51 -> 46 | B51: =الأحد!B51 -> طونة | C51: =SUM('الثلاثاء(2)'!J51) -> 0 | E51: 65 | F51: 0 | H51: 65 | I51: 0 | J51: 0 | K51: 46 | L51: =الأحد!L51 -> 19 | M51: =الأحد!M51 -> 0 | R51: =SUM(D51*E51) -> 0
A52: =الأحد!A52 -> 47 | B52: =الأحد!B52 -> جلبانة خضراء(كغ) | C52: =SUM('الثلاثاء(2)'!J52) -> 0 | E52: 0 | F52: 0 | H52: 0 | I52: 0 | J52: 0 | K52: 47 | L52: =الأحد!L52 -> 20 | M52: =الأحد!M52 -> 0 | R52: =SUM(D52*E52) -> 0
A53: =الأحد!A53 -> 48 | B53: =الأحد!B53 -> مرطبات | C53: =SUM('الثلاثاء(2)'!J53) -> 0 | E53: 0 | F53: 0 | H53: 0 | I53: 0 | J53: 0 | K53: 48 | L53: =الأحد!L53 -> 21 | M53: =الأحد!M53 -> 0 | R53: 0
A54: =الأحد!A54 -> 49 | B54: =الأحد!B54 -> مايـونــاز500غ | C54: =SUM('الثلاثاء(2)'!J54) -> 0 | E54: 0 | F54: 0 | H54: 0 | I54: 0 | J54: 0 | K54: 49 | L54: =الأحد!L54 -> 22 | M54: =الأحد!M54 -> 0 | R54: 0
A55: =الأحد!A55 -> 50 | B55: =الأحد!B55 -> مربى | C55: =SUM('الثلاثاء(2)'!J55) -> 0 | E55: 0 | F55: 0 | H55: 0 | I55: 0 | J55: 0 | K55: 50 | L55: =الأحد!L55 -> 23 | M55: =الأحد!M55 -> 0 | R55: 0
A56: =الأحد!A56 -> 51 | B56: =الأحد!B56 -> مشروبات غازية | C56: =SUM('الثلاثاء(2)'!J56) -> 0 | E56: 0 | F56: 0 | H56: 0 | I56: 0 | J56: 0 | K56: 51 | L56: =الأحد!L56 -> 24 | M56: =الأحد!M56 -> 0 | R56: 0
A57: =الأحد!A57 -> 52 | B57: =الأحد!B57 -> ماء معدني | C57: =SUM('الثلاثاء(2)'!J57) -> 0 | E57: 0 | F57: 0 | H57: 0 | I57: 0 | J57: 0 | K57: 52 | L57: =الأحد!L57 -> 25 | M57: =الأحد!M57 -> 0 | R57: 0
A58: =الأحد!A58 -> 53 | B58: =الأحد!B58 -> تمر(كغ) | C58: =SUM('الثلاثاء(2)'!J58) -> 0 | E58: 0 | F58: 0 | H58: 0 | I58: 0 | J58: 0 | K58: 53 | L58: =الأحد!L58 -> 26 | M58: =الأحد!M58 -> 0 | R58: 0
A59: =الأحد!A59 -> 54 | B59: =الأحد!B59 -> سكر | C59: =SUM('الثلاثاء(2)'!J59) -> 0 | E59: 0 | F59: 0 | H59: 0 | I59: 0 | J59: 0 | K59: 54 | L59: =الأحد!L59 -> 27 | M59: =الأحد!M59 -> 0 | R59: 0
A60: =الأحد!A60 -> 55 | B60: =الأحد!B60 -> فافل حار | C60: =SUM('الثلاثاء(2)'!J60) -> 0 | E60: 0 | F60: 0 | H60: 0 | I60: 0 | J60: 0 | K60: 55 | L60: =الأحد!L60 -> 28 | M60: =الأحد!M60 -> 0 | R60: 0
A61: =الأحد!A61 -> 56 | B61: =الأحد!B61 -> حليب سوبرلي | C61: =SUM('الثلاثاء(2)'!J61) -> 0 | E61: 0 | F61: =SUM(C61+D61) -> 0 | H61: =SUM(E61) -> 0 | I61: =SUM(G61*H61) -> 0 | J61: 0 | K61: 56 | L61: =الأحد!L61 -> 29 | M61: =الأحد!M61 -> 0
A62: =الأحد!A62 -> 57 | B62: =الأحد!B62 -> فريك | C62: =SUM('الثلاثاء(2)'!J62) -> 0 | E62: 0 | F62: 0 | H62: 0 | I62: 0 | J62: 0 | K62: 57 | L62: =الأحد!L62 -> 30 | M62: =الأحد!M62 -> 0
A63: =الأحد!A63 -> 58 | B63: =الأحد!B63 -> جريوات | C63: =SUM('الثلاثاء(2)'!J63) -> 0 | E63: 120 | F63: 0 | H63: 120 | I63: 0 | J63: 0 | K63: 58 | L63: =الأحد!L63 -> 31 | M63: =الأحد!M63 -> 0
A64: =الأحد!A64 -> 59 | B64: =الأحد!B64 -> تاي | C64: =SUM('الثلاثاء(2)'!J64) -> 0 | E64: 0 | F64: 0 | H64: 0 | I64: 0 | J64: 0 | K64: 59 | L64: =الأحد!L64 -> 32 | M64: =الأحد!M64 -> 0 | R64: 0
A65: =الأحد!A65 -> 60 | B65: =الأحد!B65 -> قهوة(كغ) | C65: =SUM('الثلاثاء(2)'!J65) -> 0 | E65: 0 | F65: 0 | H65: 0 | I65: 0 | J65: 0 | K65: 60 | M65: المجموع | N65: =SUM(N51:N64) -> 0 | O65: =O33+O34+O35+O36+O37+O38+O39+O40+O41+O42+O43+O44+O45+O46+O47+O48+O49+O50+O51+O52+O53+O54+O55+O56+O57+O58+O59+O60+O61+O62+O63+O64 -> 0 | P65: =SUM(P51:P64) -> 0 | R65: 0
A66: =الأحد!A66 -> 61 | B66: =الأحد!B66 -> شمندر | C66: =SUM('الثلاثاء(2)'!J66) -> 0 | E66: 0 | F66: 0 | G66: 0 | H66: 0 | I66: 0 | J66: 0 | K66: 61 | R66: 0
A67: =الأحد!A67 -> 62 | B67: =الأحد!B67 -> توابل | C67: =SUM('الثلاثاء(2)'!J67) -> 0 | E67: 0 | F67: 0 | H67: 0 | I67: 0 | J67: 0 | K67: 62 | R67: 0
A68: =الأحد!A68 -> 63 | B68: =الأحد!B68 -> إجاص(كغ) | C68: =SUM('الثلاثاء(2)'!J68) -> 0 | E68: 0 | F68: 0 | H68: 0 | I68: 0 | J68: 0 | K68: 63 | M68: مصـاريف التغذية للشخـص الواحــد | R68: 0
A69: =الأحد!A69 -> 64 | B69: =الأحد!B69 -> 0 | C69: =SUM('الثلاثاء(2)'!J69) -> 0 | F69: 0 | G69: 0 | H69: 0 | I69: 0 | J69: 0 | K69: 64 | R69: 0
A70: =الأحد!A70 -> 65 | B70: =الأحد!B70 -> 0 | C70: =SUM('الثلاثاء(2)'!J70) -> 0 | F70: 0 | H70: 0 | I70: 0 | J70: =SUM(F70-G70) -> 0 | K70: 65 | M70: قيمة مخروجات اليـوم | O70: =SUM(I77) -> 0 | R70: 0
A71: =الأحد!A71 -> 66 | B71: =الأحد!B71 -> 0 | C71: =SUM('الثلاثاء(2)'!J71) -> 0 | F71: 0 | H71: 0 | I71: 0 | J71: 0 | K71: 66 | R71: 0
A72: =الأحد!A72 -> 67 | B72: =الأحد!B72 -> 0 | C72: =SUM('الثلاثاء(2)'!J72) -> 0 | F72: =SUM(C72+D72) -> 0 | G72: 0 | H72: =SUM(E72) -> 0 | I72: =SUM(G72*H72) -> 0 | J72: 0 | K72: 67 | M72: معدل تغذية الأفراد | O72: =SUM(O14) -> 1 | R72: 0
A73: =الأحد!A73 -> 68 | B73: =الأحد!B73 -> 0 | C73: =SUM('الثلاثاء(2)'!J73) -> 0 | F73: =SUM(C73+D73) -> 0 | G73: 0 | H73: =SUM(E73) -> 0 | I73: =SUM(G73*H73) -> 0 | J73: 0 | K73: 68 | R73: 0
A74: =الأحد!A74 -> 69 | B74: =الأحد!B74 -> 0 | C74: =SUM('الثلاثاء(2)'!J74) -> 0 | E74: 0 | F74: 0 | G74: 0 | H74: 0 | I74: 0 | J74: 0 | K74: 69 | M74: =SUM(I77/O14) -> 0 | O74: = | P74: =M74 -> 0 | R74: 0
A75: =الأحد!A75 -> 70 | B75: =الأحد!B75 -> 0 | C75: =SUM('الثلاثاء(2)'!J75) -> 12.2 | F75: =SUM(C75+D75) -> 12.2 | G75: 0 | H75: =SUM(E75) -> 0 | I75: =SUM(G75*H75) -> 0 | J75: 12.2 | K75: 70 | M75: (1) معدل تغذية الأفـراد للوجبــة | R75: 0
A76: =الأحد!A76 -> 71 | B76: =الأحد!B76 -> 0 | C76: =SUM('الثلاثاء(2)'!J76) -> 0 | E76: 0 | F76: =SUM(C76+D76) -> 0 | G76: 0 | H76: =SUM(E76) -> 0 | I76: =SUM(G76*H76) -> 0 | J76: 0 | K76: 71 | M76: الغــذاء + العشـاء | R76: 0
A77: المجموع | C77: =SUM(C6:C76) -> 7.2 | D77: =SUM(D6:D76) -> 0 | F77: =SUM(F6:F76) -> 7.2 | G77: =SUM(G6:G76) -> 0 | I77: =SUM(I6:I76) -> 0 | J77: =SUM(J6:J76) -> 7.2 | R77: =SUM(R12:R76) -> 0
K78: حــرر ببئر الشهداء في: 17 / 04 / 2013....................................

Sheet الخميس(2)
A1: اســــم المؤسســــــــــــــــــــــــــــــــــــــــــــــة | E1: ورقـــــة الاستهــــلاك اليومـــــــــــــــــــي
A2: طالــــــــــب عبــــد الله-بئر الشهداء- | F2: يـوم:الخمبس | G2: 18 | H2: =الخميس!H2 -> فيفري | I2: 2013 | M2: السنة المالية :2013
A3: طبيعة المواد | C3: مخزون | D3: مــــدخـــــلات اليـوم | F3: مجموع مخزون | G3: مـخرجــــــــــــــــــــات اليـوم | J3: كمية ماتبقى | K3: ملاحظـــــات | M3: تعــــــــداد اليـــوم
D4: الكمية | E4: سعر | F4: البارحـــــــــة | G4: الكمية | H4: سعر | I4: قيمة مخـروجات | J4: فـــي | M4: المستفيدون | N4: فطـور | O4: غـذاء | P4: عشـاء
A5: المستهلكـــة | C5: البارحة | E5: الوحـدة | F5: ومدخلات اليوم | H5: الوحـدة | I5: اليــوم | J5: نهاية اليــوم
A6: =الأحد!A6 -> 01 | B6: =الأحد!B6 -> الخبـــــــز | C6: =SUM('الأربعاء(2)'!J6) -> 12 | E6: 7.4 | F6: =SUM(C6+D6) -> 12 | H6: =SUM(E6) -> 7.4 | I6: =SUM(G6*H6) -> 0 | J6: =SUM(F6-G6) -> 12 | K6: 01 | M6: نصف داخليون | R6: =SUM(D6*E6) -> 0
A7: =الأحد!A7 -> 02 | B7: =الأحد!B7 -> بسباس(كغ) | C7: =SUM('الأربعاء(2)'!J7) -> 13 | E7: 80 | F7: 13 | H7: 80 | I7: 0 | J7: 13 | K7: 02 | M7: م .تربويون | R7: =SUM(D7*E7) -> 0
A8: =الأحد!A8 -> 03 | B8: =الأحد!B8 -> بيض | C8: =SUM('الأربعاء(2)'!J8) -> 0 | E8: 12 | F8: 0 | H8: 12 | I8: 0 | J8: 0 | K8: 03 | M8: الأساتــذة | R8: =SUM(D8*E8) -> 0
A9: =الأحد!A9 -> 04 | B9: =الأحد!B9 -> بطاطا(كغ) | C9: =SUM('الأربعاء(2)'!J9) -> 12 | E9: 60 | F9: 12 | H9: 60 | I9: 0 | J9: 12 | K9: 04 | M9: العمـــال | R9: =SUM(D9*E9) -> 0
A10: =الأحد!A10 -> 05 | B10: =الأحد!B10 -> بصل(كغ) | C10: =SUM('الأربعاء(2)'!J10) -> 35 | E10: 90 | F10: 35 | H10: 90 | I10: 0 | J10: 35 | K10: 05 | M10: الإداريين | O10: 1 | R10: =SUM(D10*E10) -> 0
A11: =الأحد!A11 -> 06 | B11: =الأحد!B11 -> جزر(كغ) | C11: =SUM('الأربعاء(2)'!J11) -> 12 | E11: 80 | F11: 12 | H11: 80 | I11: 0 | J11: 12 | K11: 06 | M11: المجمـــــوع | N11: =SUM(N6:N10) -> 0 | O11: =SUM(O6:O10) -> 1 | P11: =SUM(P6:P10) -> 0
A12: =الأحد!A12 -> 07 | B12: =الأحد!B12 -> جبن(علبة16ق) | C12: =SUM('الأربعاء(2)'!J12) -> 0 | E12: 80 | F12: 0 | H12: 80 | I12: 0 | J12: =SUM(F12-G12) -> 0 | K12: 07 | R12: =SUM(D12*E12) -> 0
A13: =الأحد!A13 -> 08 | B13: =الأحد!B13 -> تفاح(كغ) | C13: =SUM('الأربعاء(2)'!J13) -> 0 | E13: 1151 | F13: 0 | H13: 1151 | I13: 0 | J13: 0 | K13: 08 | R13: =SUM(D13*E13) -> 0
A14: =الأحد!A14 -> 09 | B14: =الأحد!B14 -> خيار(كغ) | C14: =SUM('الأربعاء(2)'!J14) -> 0 | E14: 0 | F14: 0 | H14: 0 | I14: 0 | J14: 0 | K14: 09 | M14: معـدل المستفيدين | O14: =SUM(N11+O11+P11) -> 1 | R14: 0
A15: =الأحد!A15 -> 10 | B15: =الأحد!B15 -> طماطم حب(كغ) | C15: =SUM('الأربعاء(2)'!J15) -> 0 | E15: 120 | F15: 0 | H15: 120 | I15: 0 | J15: 0 | K15: 10 | R15: 0
A16: =الأحد!A16 -> 11 | B16: =الأحد!B16 -> ثوم(كغ) | C16: =SUM('الأربعاء(2)'!J16) -> 0 | E16: 400 | F16: 0 | H16: 400 | I16: 0 | J16: 0 | K16: 11 | M16: من الوجبـــات | R16: 0
A17: =الأحد!A17 -> 12 | B17: =الأحد!B17 -> سلاطة خس(كغ) | C17: =SUM('الأربعاء(2)'!J17) -> 0 | E17: 80 | F17: =SUM(C17+D17) -> 0 | H17: =SUM(E17) -> 80 | I17: =SUM(G17*H17) -> 0 | J17: 0 | K17: 12 | M17: الوجبــــــــــــــات | R17: 0
A18: =الأحد!A18 -> 13 | B18: =الأحد!B18 -> برتقال(كغ) | C18: =SUM('الأربعاء(2)'!J18) -> 0 | E18: 120 | F18: 0 | H18: 120 | I18: 0 | J18: 0 | K18: 13 | R18: 0
A19: =الأحد!A19 -> 14 | B19: =الأحد!B19 -> موز(كغ) | C19: =SUM('الأربعاء(2)'!J19) -> -89 | E19: 170 | F19: -89 | H19: 170 | I19: 0 | J19: -89 | K19: 14 | M19: فطــــــــور الصبــاح | R19: 0
A20: =الأحد!A20 -> 15 | B20: =الأحد!B20 -> يوسفية | C20: =SUM('الأربعاء(2)'!J20) -> 0 | E20: 0 | F20: 0 | H20: 0 | I20: 0 | J20: 0 | K20: 15 | R20: 0
A21: =الأحد!A21 -> 16 | B21: =الأحد!B21 -> عنب(كغ) | C21: =SUM('الأربعاء(2)'!J21) -> 0 | E21: 0 | F21: 0 | H21: 0 | I21: 0 | J21: 0 | K21: 16 | R21: 0
A22: =الأحد!A22 -> 17 | B22: =الأحد!B22 -> شخشوخة(كغ) | C22: =SUM('الأربعاء(2)'!J22) -> 0 | E22: 0 | F22: 0 | H22: 0 | I22: 0 | J22: 0 | K22: 17 | R22: 0
A23: =الأحد!A23 -> 18 | B23: =الأحد!B23 -> زعرورة (كغ) | C23: =SUM('الأربعاء(2)'!J23) -> 0 | E23: 0 | F23: 0 | H23: 0 | I23: 0 | J23: 0 | K23: 18 | R23: 0
A24: =الأحد!A24 -> 19 | B24: =الأحد!B24 -> ياؤرت | C24: =SUM('الأربعاء(2)'!J24) -> 0 | E24: 15 | F24: 0 | H24: 15 | I24: 0 | J24: 0 | K24: 19 | R24: 0
A25: =الأحد!A25 -> 20 | B25: =الأحد!B25 -> شكولاطة | C25: =SUM('الأربعاء(2)'!J25) -> 0 | E25: 0 | F25: 0 | H25: 0 | I25: 0 | J25: 0 | K25: 20 | R25: 0
A26: =الأحد!A26 -> 21 | B26: =الأحد!B26 -> زيتون اسود(كغ) | C26: =SUM('الأربعاء(2)'!J26) -> 0 | E26: 350 | F26: 0 | H26: 350 | I26: 0 | J26: 0 | K26: 21 | M26: الغــــــذاء | R26: 0
A27: =الأحد!A27 -> 22 | B27: =الأحد!B27 -> زيتون اخضر(كغ) | C27: =SUM('الأربعاء(2)'!J27) -> 0 | E27: 0 | F27: 0 | H27: 0 | I27: 0 | J27: 0 | K27: 22 | M27: خبز+أرز+بيص | R27: 0
A28: =الأحد!A28 -> 23 | B28: =الأحد!B28 -> تليتلي(كغ) | C28: =SUM('الأربعاء(2)'!J28) -> 0 | E28: 90 | F28: 0 | H28: 90 | I28: 0 | J28: 0 | K28: 23 | M28: سلاطـة متنوعــة | N28: ياؤورت | R28: 0
A29: =الأحد!A29 -> 24 | B29: =الأحد!B29 -> دويدة(كغ) | C29: =SUM('الأربعاء(2)'!J29) -> 0 | E29: 0 | F29: 0 | H29: 0 | I29: 0 | J29: 0 | K29: 24 | R29: 0
A30: =الأحد!A30 -> 25 | B30: =الأحد!B30 -> سباقيطي(كغ) | C30: =SUM('الأربعاء(2)'!J30) -> 0 | E30: 90 | F30: 0 | H30: 90 | I30: 0 | J30: 0 | K30: 25 | R30: 0
A31: =الأحد!A31 -> 26 | B31: =الأحد!B31 -> كسكسي (كغ) | C31: =SUM('الأربعاء(2)'!J31) -> 0 | E31: 90 | F31: 0 | H31: 90 | I31: 0 | J31: 0 | K31: 26 | M31: قائمـة المقبولين للطاولة المشتركــة | R31: 0
A32: =الأحد!A32 -> 27 | B32: =الأحد!B32 -> مقارونة | C32: =SUM('الأربعاء(2)'!J32) -> 0 | E32: 90 | F32: 0 | H32: 90 | I32: 0 | J32: 0 | K32: 27 | M32: الأسمــاء | N32: ف.ص | O32: غــداء | P32: ع | R32: 0
A33: =الأحد!A33 -> 28 | B33: =الأحد!B33 -> حمص | C33: =SUM('الأربعاء(2)'!J33) -> 0 | E33: 240 | F33: 0 | H33: 240 | I33: 0 | J33: 0 | K33: 28 | L33: =الأحد!L33 -> 1 | M33: =الأحد!M33 -> ازوال شراف الدين | R33: 0
A34: =الأحد!A34 -> 29 | B34: =الأحد!B34 -> عدس | C34: =SUM('الأربعاء(2)'!J34) -> 0 | E34: 120 | F34: 0 | H34: 120 | I34: 0 | J34: 0 | K34: 29 | L34: =الأحد!L34 -> 2 | M34: =الأحد!M34 -> اوشن صبرينة | R34: 0
A35: =الأحد!A35 -> 30 | B35: =الأحد!B35 -> فاصولياء(كغ) | C35: =SUM('الأربعاء(2)'!J35) -> 0 | E35: 200 | F35: =SUM(C35+D35) -> 0 | H35: =SUM(E35) -> 200 | I35: =SUM(G35*H35) -> 0 | J35: 0 | K35: 30 | L35: =الأحد!L35 -> 3 | M35: =الأحد!M35 -> قلي أحلام
A36: =الأحد!A36 -> 31 | B36: =الأحد!B36 -> ارزمفور(كغ) | C36: =SUM('الأربعاء(2)'!J36) -> 0 | E36: 110 | F36: 0 | H36: 110 | I36: 0 | J36: 0 | K36: 31 | L36: =الأحد!L36 -> 4 | M36: =الأحد!M36 -> اوش ايمان | R36: 0
A37: =الأحد!A37 -> 32 | B37: =الأحد!B37 -> حلويات | C37: =SUM('الأربعاء(2)'!J37) -> 0 | E37: 0 | F37: 0 | H37: 0 | I37: 0 | J37: 0 | K37: 32 | L37: =الأحد!L37 -> 5 | M37: =الأحد!M37 -> عزيون فضيلة | R37: 0
A38: =الأحد!A38 -> 33 | B38: =الأحد!B38 -> خوخ | C38: =SUM('الأربعاء(2)'!J38) -> 0 | E38: 0 | F38: 0 | H38: 0 | I38: 0 | J38: 0 | K38: 33 | L38: =الأحد!L38 -> 6 | M38: =الأحد!M38 -> شايب عينو السعيد | R38: 0
A39: =الأحد!A39 -> 34 | B39: =الأحد!B39 -> فلفل اسود(كيس15غ) | C39: =SUM('الأربعاء(2)'!J39) -> 0 | E39: 0 | F39: 0 | H39: 0 | I39: 0 | J39: 0 | K39: 34 | L39: =الأحد!L39 -> 7 | M39: =الأحد!M39 -> زيوش حدة | R39: 0
A40: =الأحد!A40 -> 35 | B40: =الأحد!B40 -> خميرة | C40: =SUM('الأربعاء(2)'!J40) -> 0 | E40: 0 | F40: 0 | H40: 0 | I40: 0 | J40: 0 | K40: 35 | L40: =الأحد!L40 -> 8 | M40: =الأحد!M40 -> قرازة فتحي | R40: 0
A41: =الأحد!A41 -> 36 | B41: =الأحد!B41 -> كمون | C41: =SUM('الأربعاء(2)'!J41) -> 0 | E41: 30 | F41: 0 | H41: 30 | I41: 0 | J41: 0 | K41: 36 | L41: =الأحد!L41 -> 9 | M41: =الأحد!M41 -> غضبان فيروز | R41: 0
A42: =الأحد!A42 -> 37 | B42: =الأحد!B42 -> ملح(كغ) | C42: =SUM('الأربعاء(2)'!J42) -> 0 | E42: 30 | F42: 0 | H42: 30 | I42: 0 | J42: 0 | K42: 37 | L42: =الأحد!L42 -> 10 | M42: =الأحد!M42 -> قرفي عليمة | R42: 0
A43: =الأحد!A43 -> 38 | B43: =الأحد!B43 -> طماطم مصبرة(كغ) | C43: =SUM('الأربعاء(2)'!J43) -> 0 | E43: 140 | F43: 0 | H43: 140 | I43: 0 | J43: 0 | K43: 38 | L43: =الأحد!L43 -> 11 | M43: =الأحد!M43 -> بوناب هوراي | R43: 0
A44: =الأحد!A44 -> 39 | B44: =الأحد!B44 -> زيت المائدة 1لتر | C44: =SUM('الأربعاء(2)'!J44) -> 0 | E44: 140 | F44: 0 | H44: 140 | I44: 0 | J44: 0 | K44: 39 | L44: =الأحد!L44 -> 12 | M44: =الأحد!M44 -> بوناب فريدة | R44: 0
A45: =الأحد!A45 -> 40 | B45: =الأحد!B45 -> زيدة | C45: =SUM('الأربعاء(2)'!J45) -> 0 | E45: 70 | F45: 0 | H45: 70 | I45: 0 | J45: 0 | K45: 40 | L45: =الأحد!L45 -> 13 | M45: =الأحد!M45 -> جمال بوناب | R45: 0
A46: =الأحد!A46 -> 41 | B46: =الأحد!B46 -> خل(قارورة) | C46: =SUM('الأربعاء(2)'!J46) -> 0 | E46: 30 | F46: 0 | H46: 30 | I46: 0 | J46: 0 | K46: 41 | L46: =الأحد!L46 -> 14 | M46: =الأحد!M46 -> 0 | R46: 0
A47: =الأحد!A47 -> 42 | B47: =الأحد!B47 -> لحم دجاج(كغ) | C47: =SUM('الأربعاء(2)'!J47) -> 0 | E47: 380 | F47: 0 | H47: 380 | I47: 0 | J47: 0 | K47: 42 | L47: =الأحد!L47 -> 15 | M47: =الأحد!M47 -> 0 | R47: 0
A48: =الأحد!A48 -> 43 | B48: =الأحد!B48 -> فافل | C48: =SUM('الأربعاء(2)'!J48) -> 0 | E48: 0 | F48: 0 | H48: 0 | I48: 0 | J48: 0 | K48: 43 | L48: =الأحد!L48 -> 16 | M48: =الأحد!M48 -> 0 | R48: 0
A49: =الأحد!A49 -> 44 | B49: =الأحد!B49 -> لحم عجل(كغ) | C49: =SUM('الأربعاء(2)'!J49) -> 0 | E49: 0 | F49: 0 | H49: 0 | I49: 0 | J49: 0 | K49: 44 | L49: =الأحد!L49 -> 17 | M49: =الأحد!M49 -> 0 | R49: 0
A50: =الأحد!A50 -> 45 | B50: =الأحد!B50 -> ايجاص(كغ) | C50: =SUM('الأربعاء(2)'!J50) -> 0 | E50: 0 | F50: 0 | H50: 0 | I50: 0 | J50: 0 | K50: 45 | L50: =الأحد!L50 -> 18 | M50: =الأحد!M50 -> 0 | R50: =SUM(D50*E50) -> 0
A51: =الأحد!A51 -> 46 | B51: =الأحد!B51 -> طونة | C51: =SUM('الأربعاء(2)'!J51) -> 0 | E51: 0 | F51: 0 | H51: 0 | I51: 0 | J51: 0 | K51: 46 | L51: =الأحد!L51 -> 19 | M51: =الأحد!M51 -> 0 | R51: =SUM(D51*E51) -> 0
A52: =الأحد!A52 -> 47 | B52: =الأحد!B52 -> جلبانة خضراء(كغ) | C52: =SUM('الأربعاء(2)'!J52) -> 0 | E52: 0 | F52: 0 | H52: 0 | I52: 0 | J52: 0 | K52: 47 | L52: =الأحد!L52 -> 20 | M52: =الأحد!M52 -> 0 | R52: =SUM(D52*E52) -> 0
A53: =الأحد!A53 -> 48 | B53: =الأحد!B53 -> مرطبات | C53: =SUM('الأربعاء(2)'!J53) -> 0 | E53: 0 | F53: 0 | H53: 0 | I53: 0 | J53: 0 | K53: 48 | L53: =الأحد!L53 -> 21 | M53: =الأحد!M53 -> 0 | R53: 0
A54: =الأحد!A54 -> 49 | B54: =الأحد!B54 -> مايـونــاز500غ | C54: =SUM('الأربعاء(2)'!J54) -> 0 | E54: 0 | F54: 0 | H54: 0 | I54: 0 | J54: 0 | K54: 49 | L54: =الأحد!L54 -> 22 | M54: =الأحد!M54 -> 0 | R54: 0
A55: =الأحد!A55 -> 50 | B55: =الأحد!B55 -> مربى | C55: =SUM('الأربعاء(2)'!J55) -> 0 | E55: 0 | F55: 0 | H55: 0 | I55: 0 | J55: 0 | K55: 50 | L55: =الأحد!L55 -> 23 | M55: =الأحد!M55 -> 0 | R55: 0
A56: =الأحد!A56 -> 51 | B56: =الأحد!B56 -> مشروبات غازية | C56: =SUM('الأربعاء(2)'!J56) -> 0 | E56: 0 | F56: 0 | H56: 0 | I56: 0 | J56: 0 | K56: 51 | L56: =الأحد!L56 -> 24 | M56: =الأحد!M56 -> 0 | R56: 0
A57: =الأحد!A57 -> 52 | B57: =الأحد!B57 -> ماء معدني | C57: =SUM('الأربعاء(2)'!J57) -> 0 | E57: 0 | F57: 0 | H57: 0 | I57: 0 | J57: 0 | K57: 52 | L57: =الأحد!L57 -> 25 | M57: =الأحد!M57 -> 0 | R57: 0
A58: =الأحد!A58 -> 53 | B58: =الأحد!B58 -> تمر(كغ) | C58: =SUM('الأربعاء(2)'!J58) -> 0 | E58: 0 | F58: 0 | H58: 0 | I58: 0 | J58: 0 | K58: 53 | L58: =الأحد!L58 -> 26 | M58: =الأحد!M58 -> 0 | R58: 0
A59: =الأحد!A59 -> 54 | B59: =الأحد!B59 -> سكر | C59: =SUM('الأربعاء(2)'!J59) -> 0 | E59: 0 | F59: 0 | H59: 0 | I59: 0 | J59: 0 | K59: 54 | L59: =الأحد!L59 -> 27 | M59: =الأحد!M59 -> 0 | R59: 0
A60: =الأحد!A60 -> 55 | B60: =الأحد!B60 -> فافل حار | C60: =SUM('الأربعاء(2)'!J60) -> 0 | E60: 0 | F60: 0 | H60: 0 | I60: 0 | J60: 0 | K60: 55 | L60: =الأحد!L60 -> 28 | M60: =الأحد!M60 -> 0 | R60: 0
A61: =الأحد!A61 -> 56 | B61: =الأحد!B61 -> حليب سوبرلي | C61: =SUM('الأربعاء(2)'!J61) -> 0 | F61: 0 | H61: 0 | I61: 0 | J61: 0 | K61: 56 | L61: =الأحد!L61 -> 29 | M61: =الأحد!M61 -> 0
A62: =الأحد!A62 -> 57 | B62: =الأحد!B62 -> فريك | C62: =SUM('الأربعاء(2)'!J62) -> 0 | E62: 0 | F62: 0 | H62: 0 | I62: 0 | J62: 0 | K62: 57 | L62: =الأحد!L62 -> 30 | M62: =الأحد!M62 -> 0
A63: =الأحد!A63 -> 58 | B63: =الأحد!B63 -> جريوات | C63: =SUM('الأربعاء(2)'!J63) -> 0 | F63: 0 | H63: 0 | I63: 0 | J63: 0 | K63: 58 | L63: =الأحد!L63 -> 31 | M63: =الأحد!M63 -> 0
A64: =الأحد!A64 -> 59 | B64: =الأحد!B64 -> تاي | C64: =SUM('الأربعاء(2)'!J64) -> 0 | E64: 0 | F64: 0 | H64: 0 | I64: 0 | J64: 0 | K64: 59 | L64: =الأحد!L64 -> 32 | M64: =الأحد!M64 -> 0 | R64: 0
A65: =الأحد!A65 -> 60 | B65: =الأحد!B65 -> قهوة(كغ) | C65: =SUM('الأربعاء(2)'!J65) -> 0 | E65: 0 | F65: 0 | H65: 0 | I65: 0 | J65: 0 | K65: 60 | M65: المجموع | N65: =SUM(N51:N64) -> 0 | O65: =O33+O34+O35+O36+O37+O38+O39+O40+O41+O42+O43+O44+O45+O46+O47+O48+O49+O50+O51+O52+O53+O54+O55+O56+O57+O58+O59+O60+O61+O62+O63+O64 -> 0 | P65: =SUM(P51:P64) -> 0 | R65: 0
A66: =الأحد!A66 -> 61 | B66: =الأحد!B66 -> شمندر | C66: =SUM('الأربعاء(2)'!J66) -> 0 | E66: 0 | F66: 0 | H66: 0 | I66: 0 | J66: 0 | K66: 61 | R66: 0
A67: =الأحد!A67 -> 62 | B67: =الأحد!B67 -> توابل | C67: =SUM('الأربعاء(2)'!J67) -> 0 | E67: 0 | F67: =SUM(C67+D67) -> 0 | H67: =SUM(E67) -> 0 | I67: =SUM(G67*H67) -> 0 | J67: 0 | K67: 62 | R67: 0
A68: =الأحد!A68 -> 63 | B68: =الأحد!B68 -> إجاص(كغ) | C68: =SUM('الأربعاء(2)'!J68) -> 0 | E68: 0 | F68: 0 | H68: 0 | I68: 0 | J68: 0 | K68: 63 | M68: مصـاريف التغذية للشخـص الواحــد | R68: 0
A69: =الأحد!A69 -> 64 | B69: =الأحد!B69 -> 0 | C69: =SUM('الأربعاء(2)'!J69) -> 0 | F69: 0 | H69: 0 | I69: 0 | J69: 0 | K69: 64 | R69: 0
A70: =الأحد!A70 -> 65 | B70: =الأحد!B70 -> 0 | C70: =SUM('الأربعاء(2)'!J70) -> 0 | F70: 0 | H70: 0 | I70: 0 | J70: =SUM(F70-G70) -> 0 | K70: 65 | M70: قيمة مخروجات اليـوم | O70: =SUM(I77) -> 0 | R70: 0
A71: =الأحد!A71 -> 66 | B71: =الأحد!B71 -> 0 | C71: =SUM('الأربعاء(2)'!J71) -> 0 | F71: 0 | H71: 0 | I71: 0 | J71: 0 | K71: 66 | R71: 0
A72: =الأحد!A72 -> 67 | B72: =الأحد!B72 -> 0 | C72: =SUM('الأربعاء(2)'!J72) -> 0 | F72: 0 | H72: 0 | I72: 0 | J72: 0 | K72: 67 | M72: معدل تغذية الأفراد | O72: =SUM(O14) -> 1 | R72: 0
A73: =الأحد!A73 -> 68 | B73: =الأحد!B73 -> 0 | C73: =SUM('الأربعاء(2)'!J73) -> 0 | F73: 0 | H73: 0 | I73: 0 | J73: 0 | K73: 68 | R73: 0
A74: =الأحد!A74 -> 69 | B74: =الأحد!B74 -> 0 | C74: =SUM('الأربعاء(2)'!J74) -> 0 | E74: 0 | F74: 0 | H74: 0 | I74: 0 | J74: 0 | K74: 69 | M74: =SUM(I77/O14) -> 0 | O74: = | P74: =M74 -> 0 | R74: 0
A75: =الأحد!A75 -> 70 | B75: =الأحد!B75 -> 0 | C75: =SUM('الأربعاء(2)'!J75) -> 12.2 | F75: 12.2 | H75: 0 | I75: 0 | J75: 12.2 | K75: 70 | M75: (1) معدل تغذية الأفـراد للوجبــة | R75: 0
A76: =الأحد!A76 -> 71 | B76: =الأحد!B76 -> 0 | C76: =SUM('الأربعاء(2)'!J76) -> 0 | E76: 0 | F76: 0 | H76: 0 | I76: 0 | J76: 0 | K76: 71 | M76: الغــذاء + العشـاء | R76: 0
A77: المجموع | C77: =SUM(C6:C76) -> 7.2 | D77: =SUM(D6:D76) -> 0 | F77: =SUM(F6:F76) -> 7.2 | G77: =SUM(G6:G76) -> 0 | I77: =SUM(I6:I76) -> 0 | J77: =SUM(J6:J76) -> 7.2 | R77: =SUM(R12:R76) -> 0
K78: حــرر ببئر الشهداء في: 18 / 04 / 2013....................................

Sheet الأحد (3)
A1: اســــم المؤسســــــــــــــــــــــــــــــــــــــــــــــة | E1: ورقـــــة الاستهــــلاك اليومـــــــــــــــــــي
A2: طالــــــــــب عبــــد الله-بئر الشهداء- | F2: يـوم:الأحـد | G2: =SUM('الخميس(2)'!G2+3) -> 21 | H2: =الخميس!H2 -> فيفري | I2: 2013 | M2: السنة المالية :2013
A3: طبيعة المواد | C3: مخزون | D3: مــــدخـــــلات اليـوم | F3: مجموع مخزون | G3: مـخرجــــــــــــــــــــات اليـوم | J3: كمية ماتبقى | K3: ملاحظـــــات | M3: تعــــــــداد اليـــوم
D4: الكمية | E4: سعر | F4: البارحـــــــــة | G4: الكمية | H4: سعر | I4: قيمة مخـروجات | J4: فـــي | M4: المستفيدون | N4: فطـور | O4: غـذاء | P4: عشـاء
A5: المستهلكـــة | C5: البارحة | E5: الوحـدة | F5: ومدخلات اليوم | H5: الوحـدة | I5: اليــوم | J5: نهاية اليــوم
A6: =الأحد!A6 -> 01 | B6: =الأحد!B6 -> الخبـــــــز | C6: =SUM('الخميس(2)'!J6) -> 12 | E6: 7.4 | F6: =SUM(C6+D6) -> 12 | H6: =SUM(E6) -> 7.4 | I6: =SUM(G6*H6) -> 0 | J6: =SUM(F6-G6) -> 12 | K6: 01 | M6: نصف داخليون | R6: =SUM(D6*E6) -> 0
A7: =الأحد!A7 -> 02 | B7: =الأحد!B7 -> بسباس(كغ) | C7: =SUM('الخميس(2)'!J7) -> 13 | E7: 80 | F7: 13 | H7: 80 | I7: 0 | J7: 13 | K7: 02 | M7: م .تربويون | R7: 0
A8: =الأحد!A8 -> 03 | B8: =الأحد!B8 -> بيض | C8: =SUM('الخميس(2)'!J8) -> 0 | E8: 12 | F8: 0 | H8: 12 | I8: 0 | J8: 0 | K8: 03 | M8: الأساتــذة | R8: 0
A9: =الأحد!A9 -> 04 | B9: =الأحد!B9 -> بطاطا(كغ) | C9: =SUM('الخميس(2)'!J9) -> 12 | E9: 60 | F9: 12 | H9: 60 | I9: 0 | J9: 12 | K9: 04 | M9: العمـــال | R9: 0
A10: =الأحد!A10 -> 05 | B10: =الأحد!B10 -> بصل(كغ) | C10: =SUM('الخميس(2)'!J10) -> 35 | E10: 90 | F10: 35 | H10: 90 | I10: 0 | J10: 35 | K10: 05 | M10: أعوان متعاقدون | O10: 4 | R10: 0
A11: =الأحد!A11 -> 06 | B11: =الأحد!B11 -> جزر(كغ) | C11: =SUM('الخميس(2)'!J11) -> 12 | E11: 80 | F11: 12 | H11: 80 | I11: 0 | J11: 12 | K11: 06 | M11: المجمـــــوع | N11: =SUM(N6:N10) -> 0 | O11: =SUM(O6:O10) -> 4 | P11: =SUM(P6:P10) -> 0 | R11: 0
A12: =الأحد!A12 -> 07 | B12: =الأحد!B12 -> جبن(علبة16ق) | C12: =SUM('الخميس(2)'!J12) -> 0 | E12: 90 | F12: 0 | H12: 90 | I12: 0 | J12: 0 | K12: 07 | R12: 0
A13: =الأحد!A13 -> 08 | B13: =الأحد!B13 -> تفاح(كغ) | C13: =SUM('الخميس(2)'!J13) -> 0 | E13: 0 | F13: 0 | H13: 0 | I13: 0 | J13: 0 | K13: 08 | R13: =SUM(D13*E13) -> 0
A14: =الأحد!A14 -> 09 | B14: =الأحد!B14 -> خيار(كغ) | C14: =SUM('الخميس(2)'!J14) -> 0 | E14: 0 | F14: 0 | H14: 0 | I14: 0 | J14: 0 | K14: 09 | M14: معـدل المستفيدين | O14: =SUM(N11+O11+P11) -> 4 | R14: 0
A15: =الأحد!A15 -> 10 | B15: =الأحد!B15 -> طماطم حب(كغ) | C15: =SUM('الخميس(2)'!J15) -> 0 | E15: 120 | F15: 0 | H15: 120 | I15: 0 | J15: 0 | K15: 10 | R15: 0
A16: =الأحد!A16 -> 11 | B16: =الأحد!B16 -> ثوم(كغ) | C16: =SUM('الخميس(2)'!J16) -> 0 | E16: 400 | F16: 0 | H16: 400 | I16: 0 | J16: 0 | K16: 11 | M16: من الوجبـــات | R16: 0
A17: =الأحد!A17 -> 12 | B17: =الأحد!B17 -> سلاطة خس(كغ) | C17: =SUM('الخميس(2)'!J17) -> 0 | E17: 80 | F17: =SUM(C17+D17) -> 0 | H17: =SUM(E17) -> 80 | I17: =SUM(G17*H17) -> 0 | J17: 0 | K17: 12 | M17: الوجبــــــــــــــات | R17: 0
A18: =الأحد!A18 -> 13 | B18: =الأحد!B18 -> برتقال(كغ) | C18: =SUM('الخميس(2)'!J18) -> 0 | E18: 120 | F18: 0 | H18: 120 | I18: 0 | J18: 0 | K18: 13 | R18: 0
A19: =الأحد!A19 -> 14 | B19: =الأحد!B19 -> موز(كغ) | C19: =SUM('الخميس(2)'!J19) -> -89 | E19: 170 | F19: -89 | H19: 170 | I19: 0 | J19: -89 | K19: 14 | M19: فطــــــــور الصبــاح | R19: 0
A20: =الأحد!A20 -> 15 | B20: =الأحد!B20 -> يوسفية | C20: =SUM('الخميس(2)'!J20) -> 0 | E20: 0 | F20: 0 | H20: 0 | I20: 0 | J20: 0 | K20: 15 | R20: 0
A21: =الأحد!A21 -> 16 | B21: =الأحد!B21 -> عنب(كغ) | C21: =SUM('الخميس(2)'!J21) -> 0 | E21: 0 | F21: 0 | H21: 0 | I21: 0 | J21: 0 | K21: 16 | R21: 0
A22: =الأحد!A22 -> 17 | B22: =الأحد!B22 -> شخشوخة(كغ) | C22: =SUM('الخميس(2)'!J22) -> 0 | E22: 160 | F22: 0 | H22: 160 | I22: 0 | J22: 0 | K22: 17 | R22: 0
A23: =الأحد!A23 -> 18 | B23: =الأحد!B23 -> زعرورة (كغ) | C23: =SUM('الخميس(2)'!J23) -> 0 | E23: 0 | F23: 0 | H23: 0 | I23: 0 | J23: 0 | K23: 18 | R23: 0
A24: =الأحد!A24 -> 19 | B24: =الأحد!B24 -> ياؤرت | C24: =SUM('الخميس(2)'!J24) -> 0 | E24: 15 | F24: 0 | H24: 15 | I24: 0 | J24: 0 | K24: 19 | R24: 0
A25: =الأحد!A25 -> 20 | B25: =الأحد!B25 -> شكولاطة | C25: =SUM('الخميس(2)'!J25) -> 0 | E25: 0 | F25: 0 | H25: 0 | I25: 0 | J25: 0 | K25: 20 | R25: 0
A26: =الأحد!A26 -> 21 | B26: =الأحد!B26 -> زيتون اسود(كغ) | C26: =SUM('الخميس(2)'!J26) -> 0 | E26: 350 | F26: 0 | H26: 350 | I26: 0 | J26: 0 | K26: 21 | M26: الغــــــذاء | R26: 0
A27: =الأحد!A27 -> 22 | B27: =الأحد!B27 -> زيتون اخضر(كغ) | C27: =SUM('الخميس(2)'!J27) -> 0 | E27: 0 | F27: 0 | H27: 0 | I27: 0 | J27: 0 | K27: 22 | M27: خبز+جبن+بيص | R27: 0
A28: =الأحد!A28 -> 23 | B28: =الأحد!B28 -> تليتلي(كغ) | C28: =SUM('الخميس(2)'!J28) -> 0 | E28: 90 | F28: 0 | H28: 90 | I28: 0 | J28: 0 | K28: 23 | M28: سلاطة متنوعة | N28: موز | R28: 0
A29: =الأحد!A29 -> 24 | B29: =الأحد!B29 -> دويدة(كغ) | C29: =SUM('الخميس(2)'!J29) -> 0 | E29: 0 | F29: 0 | H29: 0 | I29: 0 | J29: 0 | K29: 24 | R29: 0
A30: =الأحد!A30 -> 25 | B30: =الأحد!B30 -> سباقيطي(كغ) | C30: =SUM('الخميس(2)'!J30) -> 0 | E30: 90 | F30: 0 | H30: 90 | I30: 0 | J30: 0 | K30: 25 | R30: 0
A31: =الأحد!A31 -> 26 | B31: =الأحد!B31 -> كسكسي (كغ) | C31: =SUM('الخميس(2)'!J31) -> 0 | E31: 90 | F31: 0 | H31: 90 | I31: 0 | J31: 0 | K31: 26 | M31: قائمـة المقبولين للطاولة المشتركــة | R31: 0
A32: =الأحد!A32 -> 27 | B32: =الأحد!B32 -> مقارونة | C32: =SUM('الخميس(2)'!J32) -> 0 | E32: 90 | F32: 0 | H32: 90 | I32: 0 | J32: 0 | K32: 27 | M32: الأسمــاء | N32: ف.ص | O32: غــداء | P32: ع | R32: 0
A33: =الأحد!A33 -> 28 | B33: =الأحد!B33 -> حمص | C33: =SUM('الخميس(2)'!J33) -> 0 | E33: 240 | F33: 0 | H33: 240 | I33: 0 | J33: 0 | K33: 28 | L33: =الأحد!L33 -> 1 | M33: =الأحد!M33 -> ازوال شراف الدين | R33: 0
A34: =الأحد!A34 -> 29 | B34: =الأحد!B34 -> عدس | C34: =SUM('الخميس(2)'!J34) -> 0 | E34: 120 | F34: 0 | H34: 120 | I34: 0 | J34: 0 | K34: 29 | L34: =الأحد!L34 -> 2 | M34: =الأحد!M34 -> اوشن صبرينة | R34: 0
A35: =الأحد!A35 -> 30 | B35: =الأحد!B35 -> فاصولياء(كغ) | C35: =SUM('الخميس(2)'!J35) -> 0 | E35: 200 | F35: =SUM(C35+D35) -> 0 | H35: =SUM(E35) -> 200 | I35: =SUM(G35*H35) -> 0 | J35: 0 | K35: 30 | L35: =الأحد!L35 -> 3 | M35: =الأحد!M35 -> قلي أحلام
A36: =الأحد!A36 -> 31 | B36: =الأحد!B36 -> ارزمفور(كغ) | C36: =SUM('الخميس(2)'!J36) -> 0 | E36: 110 | F36: 0 | H36: 110 | I36: 0 | J36: 0 | K36: 31 | L36: =الأحد!L36 -> 4 | M36: =الأحد!M36 -> اوش ايمان | R36: 0
A37: =الأحد!A37 -> 32 | B37: =الأحد!B37 -> حلويات | C37: =SUM('الخميس(2)'!J37) -> 0 | E37: 0 | F37: =SUM(C37+D37) -> 0 | H37: =SUM(E37) -> 0 | I37: =SUM(G37*H37) -> 0 | J37: 0 | K37: 32 | L37: =الأحد!L37 -> 5 | M37: =الأحد!M37 -> عزيون فضيلة | R37: 0
A38: =الأحد!A38 -> 33 | B38: =الأحد!B38 -> خوخ | C38: =SUM('الخميس(2)'!J38) -> 0 | E38: 0 | F38: 0 | H38: 0 | I38: 0 | J38: 0 | K38: 33 | L38: =الأحد!L38 -> 6 | M38: =الأحد!M38 -> شايب عينو السعيد | R38: 0
A39: =الأحد!A39 -> 34 | B39: =الأحد!B39 -> فلفل اسود(كيس15غ) | C39: =SUM('الخميس(2)'!J39) -> 0 | E39: 0 | F39: 0 | H39: 0 | I39: 0 | J39: 0 | K39: 34 | L39: =الأحد!L39 -> 7 | M39: =الأحد!M39 -> زيوش حدة | R39: 0
A40: =الأحد!A40 -> 35 | B40: =الأحد!B40 -> خميرة | C40: =SUM('الخميس(2)'!J40) -> 0 | E40: 0 | F40: 0 | H40: 0 | I40: 0 | J40: 0 | K40: 35 | L40: =الأحد!L40 -> 8 | M40: =الأحد!M40 -> قرازة فتحي | R40: 0
A41: =الأحد!A41 -> 36 | B41: =الأحد!B41 -> كمون | C41: =SUM('الخميس(2)'!J41) -> 0 | E41: 30 | F41: 0 | H41: 30 | I41: 0 | J41: 0 | K41: 36 | L41: =الأحد!L41 -> 9 | M41: =الأحد!M41 -> غضبان فيروز | R41: 0
A42: =الأحد!A42 -> 37 | B42: =الأحد!B42 -> ملح(كغ) | C42: =SUM('الخميس(2)'!J42) -> 0 | E42: 30 | F42: 0 | H42: 30 | I42: 0 | J42: 0 | K42: 37 | L42: =الأحد!L42 -> 10 | M42: =الأحد!M42 -> قرفي عليمة | R42: 0
A43: =الأحد!A43 -> 38 | B43: =الأحد!B43 -> طماطم مصبرة(كغ) | C43: =SUM('الخميس(2)'!J43) -> 0 | E43: 150 | F43: 0 | H43: 150 | I43: 0 | J43: 0 | K43: 38 | L43: =الأحد!L43 -> 11 | M43: =الأحد!M43 -> بوناب هوراي | R43: 0
A44: =الأحد!A44 -> 39 | B44: =الأحد!B44 -> زيت المائدة 1لتر | C44: =SUM('الخميس(2)'!J44) -> 0 | E44: 140 | F44: 0 | H44: 140 | I44: 0 | J44: 0 | K44: 39 | L44: =الأحد!L44 -> 12 | M44: =الأحد!M44 -> بوناب فريدة | R44: 0
A45: =الأحد!A45 -> 40 | B45: =الأحد!B45 -> زيدة | C45: =SUM('الخميس(2)'!J45) -> 0 | E45: 70 | F45: 0 | H45: 70 | I45: 0 | J45: 0 | K45: 40 | L45: =الأحد!L45 -> 13 | M45: =الأحد!M45 -> جمال بوناب | R45: 0
A46: =الأحد!A46 -> 41 | B46: =الأحد!B46 -> خل(قارورة) | C46: =SUM('الخميس(2)'!J46) -> 0 | E46: 30 | F46: 0 | H46: 30 | I46: 0 | J46: 0 | K46: 41 | L46: =الأحد!L46 -> 14 | M46: =الأحد!M46 -> 0 | R46: 0
A47: =الأحد!A47 -> 42 | B47: =الأحد!B47 -> لحم دجاج(كغ) | C47: =SUM('الخميس(2)'!J47) -> 0 | E47: 380 | F47: 0 | H47: 380 | I47: 0 | J47: 0 | K47: 42 | L47: =الأحد!L47 -> 15 | M47: =الأحد!M47 -> 0 | R47: 0
A48: =الأحد!A48 -> 43 | B48: =الأحد!B48 -> فافل | C48: =SUM('الخميس(2)'!J48) -> 0 | E48: 0 | F48: 0 | H48: 0 | I48: 0 | J48: 0 | K48: 43 | L48: =الأحد!L48 -> 16 | M48: =الأحد!M48 -> 0 | R48: 0
A49: =الأحد!A49 -> 44 | B49: =الأحد!B49 -> لحم عجل(كغ) | C49: =SUM('الخميس(2)'!J49) -> 0 | E49: 0 | F49: 0 | H49: 0 | I49: 0 | J49: 0 | K49: 44 | L49: =الأحد!L49 -> 17 | M49: =الأحد!M49 -> 0 | R49: 0
A50: =الأحد!A50 -> 45 | B50: =الأحد!B50 -> ايجاص(كغ) | C50: =SUM('الخميس(2)'!J50) -> 0 | E50: 0 | F50: 0 | H50: 0 | I50: 0 | J50: 0 | K50: 45 | L50: =الأحد!L50 -> 18 | M50: =الأحد!M50 -> 0 | R50: =SUM(D50*E50) -> 0
A51: =الأحد!A51 -> 46 | B51: =الأحد!B51 -> طونة | C51: =SUM('الخميس(2)'!J51) -> 0 | E51: 0 | F51: 0 | H51: 0 | I51: 0 | J51: 0 | K51: 46 | L51: =الأحد!L51 -> 19 | M51: =الأحد!M51 -> 0 | R51: =SUM(D51*E51) -> 0
A52: =الأحد!A52 -> 47 | B52: =الأحد!B52 -> جلبانة خضراء(كغ) | C52: =SUM('الخميس(2)'!J52) -> 0 | E52: 0 | F52: 0 | H52: 0 | I52: 0 | J52: 0 | K52: 47 | L52: =الأحد!L52 -> 20 | M52: =الأحد!M52 -> 0 | R52: =SUM(D52*E52) -> 0
A53: =الأحد!A53 -> 48 | B53: =الأحد!B53 -> مرطبات | C53: =SUM('الخميس(2)'!J53) -> 0 | E53: 0 | F53: 0 | H53: 0 | I53: 0 | J53: 0 | K53: 48 | L53: =الأحد!L53 -> 21 | M53: =الأحد!M53 -> 0 | R53: 0
A54: =الأحد!A54 -> 49 | B54: =الأحد!B54 -> مايـونــاز500غ | C54: =SUM('الخميس(2)'!J54) -> 0 | E54: 0 | F54: 0 | H54: 0 | I54: 0 | J54: 0 | K54: 49 | L54: =الأحد!L54 -> 22 | M54: =الأحد!M54 -> 0 | R54: 0
A55: =الأحد!A55 -> 50 | B55: =الأحد!B55 -> مربى | C55: =SUM('الخميس(2)'!J55) -> 0 | E55: 0 | F55: 0 | H55: 0 | I55: 0 | J55: 0 | K55: 50 | L55: =الأحد!L55 -> 23 | M55: =الأحد!M55 -> 0 | R55: 0
A56: =الأحد!A56 -> 51 | B56: =الأحد!B56 -> مشروبات غازية | C56: =SUM('الخميس(2)'!J56) -> 0 | E56: 110 | F56: 0 | H56: 110 | I56: 0 | J56: 0 | K56: 51 | L56: =الأحد!L56 -> 24 | M56: =الأحد!M56 -> 0 | R56: 0
A57: =الأحد!A57 -> 52 | B57: =الأحد!B57 -> ماء معدني | C57: =SUM('الخميس(2)'!J57) -> 0 | E57: 0 | F57: 0 | H57: 0 | I57: 0 | J57: 0 | K57: 52 | L57: =الأحد!L57 -> 25 | M57: =الأحد!M57 -> 0 | R57: 0
A58: =الأحد!A58 -> 53 | B58: =الأحد!B58 -> تمر(كغ) | C58: =SUM('الخميس(2)'!J58) -> 0 | E58: 0 | F58: 0 | H58: 0 | I58: 0 | J58: 0 | K58: 53 | L58: =الأحد!L58 -> 26 | M58: =الأحد!M58 -> 0 | R58: 0
A59: =الأحد!A59 -> 54 | B59: =الأحد!B59 -> سكر | C59: =SUM('الخميس(2)'!J59) -> 0 | E59: 0 | F59: 0 | H59: 0 | I59: 0 | J59: 0 | K59: 54 | L59: =الأحد!L59 -> 27 | M59: =الأحد!M59 -> 0 | R59: 0
A60: =الأحد!A60 -> 55 | B60: =الأحد!B60 -> فافل حار | C60: =SUM('الخميس(2)'!J60) -> 0 | E60: 0 | F60: 0 | H60: 0 | I60: 0 | J60: 0 | K60: 55 | L60: =الأحد!L60 -> 28 | M60: =الأحد!M60 -> 0 | R60: 0
A61: =الأحد!A61 -> 56 | B61: =الأحد!B61 -> حليب سوبرلي | C61: =SUM('الخميس(2)'!J61) -> 0 | E61: 160 | F61: =SUM(C61+D61) -> 0 | H61: =SUM(E61) -> 160 | I61: =SUM(G61*H61) -> 0 | J61: 0 | K61: 56 | L61: =الأحد!L61 -> 29 | M61: =الأحد!M61 -> 0
A62: =الأحد!A62 -> 57 | B62: =الأحد!B62 -> فريك | C62: =SUM('الخميس(2)'!J62) -> 0 | E62: 0 | F62: 0 | H62: 0 | I62: 0 | J62: 0 | K62: 57 | L62: =الأحد!L62 -> 30 | M62: =الأحد!M62 -> 0
A63: =الأحد!A63 -> 58 | B63: =الأحد!B63 -> جريوات | C63: =SUM('الخميس(2)'!J63) -> 0 | E63: 120 | F63: 0 | H63: 120 | I63: 0 | J63: 0 | K63: 58 | L63: =الأحد!L63 -> 31 | M63: =الأحد!M63 -> 0
A64: =الأحد!A64 -> 59 | B64: =الأحد!B64 -> تاي | C64: =SUM('الخميس(2)'!J64) -> 0 | E64: 110 | F64: 0 | H64: 110 | I64: 0 | J64: 0 | K64: 59 | L64: =الأحد!L64 -> 32 | M64: =الأحد!M64 -> 0 | R64: 0
A65: =الأحد!A65 -> 60 | B65: =الأحد!B65 -> قهوة(كغ) | C65: =SUM('الخميس(2)'!J65) -> 0 | E65: 0 | F65: 0 | H65: 0 | I65: 0 | J65: 0 | K65: 60 | M65: المجموع | N65: =SUM(N51:N64) -> 0 | O65: =O33+O34+O35+O36+O37+O38+O39+O40+O41+O42+O43+O44+O45+O46+O47+O48+O49+O50+O51+O52+O53+O54+O55+O56+O57+O58+O59+O60+O61+O62+O63+O64 -> 0 | P65: =SUM(P51:P64) -> 0 | R65: 0
A66: =الأحد!A66 -> 61 | B66: =الأحد!B66 -> شمندر | C66: =SUM('الخميس(2)'!J66) -> 0 | E66: 0 | F66: 0 | H66: 0 | I66: 0 | J66: 0 | K66: 61 | R66: 0
A67: =الأحد!A67 -> 62 | B67: =الأحد!B67 -> توابل | C67: =SUM('الخميس(2)'!J67) -> 0 | E67: 0 | F67: 0 | H67: 0 | I67: 0 | J67: 0 | K67: 62 | R67: 0
A68: =الأحد!A68 -> 63 | B68: =الأحد!B68 -> إجاص(كغ) | C68: =SUM('الخميس(2)'!J68) -> 0 | E68: 0 | F68: 0 | H68: 0 | I68: 0 | J68: 0 | K68: 63 | M68: مصـاريف التغذية للشخـص الواحــد | R68: 0
A69: =الأحد!A69 -> 64 | B69: =الأحد!B69 -> 0 | C69: =SUM('الخميس(2)'!J69) -> 0 | F69: 0 | H69: 0 | I69: 0 | J69: 0 | K69: 64 | R69: 0
A70: =الأحد!A70 -> 65 | B70: =الأحد!B70 -> 0 | C70: =SUM('الخميس(2)'!J70) -> 0 | F70: 0 | H70: 0 | I70: 0 | J70: =SUM(F70-G70) -> 0 | K70: 65 | M70: قيمة مخروجات اليـوم | O70: =SUM(I77) -> 0 | R70: 0
A71: =الأحد!A71 -> 66 | B71: =الأحد!B71 -> 0 | C71: =SUM('الخميس(2)'!J71) -> 0 | F71: 0 | H71: 0 | I71: 0 | J71: 0 | K71: 66 | R71: 0
A72: =الأحد!A72 -> 67 | B72: =الأحد!B72 -> 0 | C72: =SUM('الخميس(2)'!J72) -> 0 | F72: =SUM(C72+D72) -> 0 | H72: =SUM(E72) -> 0 | I72: =SUM(G72*H72) -> 0 | J72: 0 | K72: 67 | M72: معدل تغذية الأفراد | O72: =SUM(O14) -> 4 | R72: 0
A73: =الأحد!A73 -> 68 | B73: =الأحد!B73 -> 0 | C73: =SUM('الخميس(2)'!J73) -> 0 | F73: =SUM(C73+D73) -> 0 | H73: =SUM(E73) -> 0 | I73: =SUM(G73*H73) -> 0 | J73: 0 | K73: 68 | R73: 0
A74: =الأحد!A74 -> 69 | B74: =الأحد!B74 -> 0 | C74: =SUM('الخميس(2)'!J74) -> 0 | E74: 0 | F74: 0 | H74: 0 | I74: 0 | J74: 0 | K74: 69 | M74: =SUM(I77/O14) -> 0 | O74: = | P74: =M74 -> 0 | R74: 0
A75: =الأحد!A75 -> 70 | B75: =الأحد!B75 -> 0 | C75: =SUM('الخميس(2)'!J75) -> 12.2 | F75: =SUM(C75+D75) -> 12.2 | H75: =SUM(E75) -> 0 | I75: =SUM(G75*H75) -> 0 | J75: 12.2 | K75: 70 | M75: (1) معدل تغذية الأفـراد للوجبــة | R75: 0
A76: =الأحد!A76 -> 71 | B76: =الأحد!B76 -> 0 | C76: =SUM('الخميس(2)'!J76) -> 0 | E76: 0 | F76: =SUM(C76+D76) -> 0 | H76: =SUM(E76) -> 0 | I76: =SUM(G76*H76) -> 0 | J76: 0 | K76: 71 | M76: الغــذاء + العشـاء | R76: 0
A77: المجموع | C77: =SUM(C6:C76) -> 7.2 | D77: =SUM(D6:D76) -> 0 | F77: =SUM(F6:F76) -> 7.2 | G77: 0 | I77: =SUM(I6:I76) -> 0 | J77: =SUM(J6:J76) -> 7.2 | R77: =SUM(R12:R76) -> 0
G78: 0 | K78: حــررببئرالشهداء في:21 / 04 / 2013....................................

Sheet الإثنين (3)
A1: اســــم المؤسســــــــــــــــــــــــــــــــــــــــــــــة | E1: ورقـــــة الاستهــــلاك اليومـــــــــــــــــــي
A2: طالــــــــــب عبــــد الله-بئر الشهداء- | E2: اضراب | F2: يـوم:الإثنين | G2: =SUM('الخميس(2)'!G2+4) -> 22 | H2: =الخميس!H2 -> فيفري | I2: 2013 | M2: السنة المالية :2013
A3: طبيعة المواد | C3: مخزون | D3: مــــدخـــــلات اليـوم | F3: مجموع مخزون | G3: مـخرجــــــــــــــــــــات اليـوم | J3: كمية ماتبقى | K3: ملاحظـــــات | M3: تعــــــــداد اليـــوم
D4: الكمية | E4: سعر | F4: البارحـــــــــة | G4: الكمية | H4: سعر | I4: قيمة مخـروجات | J4: فـــي | M4: المستفيدون | N4: فطـور | O4: غـذاء | P4: عشـاء
A5: المستهلكـــة | C5: البارحة | E5: الوحـدة | F5: ومدخلات اليوم | H5: الوحـدة | I5: اليــوم | J5: نهاية اليــوم
A6: =الأحد!A6 -> 01 | B6: =الأحد!B6 -> الخبـــــــز | C6: =SUM('الأحد (3)'!J6) -> 12 | E6: 7.4 | F6: =SUM(C6+D6) -> 12 | H6: =SUM(E6) -> 7.4 | I6: =SUM(G6*H6) -> 0 | J6: =SUM(F6-G6) -> 12 | K6: 01 | M6: نصف داخليون | O6: 243 | R6: =SUM(D6*E6) -> 0
A7: =الأحد!A7 -> 02 | B7: =الأحد!B7 -> بسباس(كغ) | C7: =SUM('الأحد (3)'!J7) -> 13 | E7: 80 | F7: 13 | H7: 80 | I7: 0 | J7: 13 | K7: 02 | M7: م .تربويون | O7: 1 | R7: =SUM(D7*E7) -> 0
A8: =الأحد!A8 -> 03 | B8: =الأحد!B8 -> بيض | C8: =SUM('الأحد (3)'!J8) -> 0 | E8: 12 | F8: 0 | H8: 12 | I8: 0 | J8: 0 | K8: 03 | M8: الأساتــذة | O8: 12 | R8: =SUM(D8*E8) -> 0
A9: =الأحد!A9 -> 04 | B9: =الأحد!B9 -> بطاطا(كغ) | C9: =SUM('الأحد (3)'!J9) -> 12 | E9: 60 | F9: 12 | H9: 60 | I9: 0 | J9: 12 | K9: 04 | M9: العمـــال | O9: 2 | R9: =SUM(D9*E9) -> 0
A10: =الأحد!A10 -> 05 | B10: =الأحد!B10 -> بصل(كغ) | C10: =SUM('الأحد (3)'!J10) -> 35 | E10: 90 | F10: 35 | H10: 90 | I10: 0 | J10: 35 | K10: 05 | M10: الإداريين | O10: 4 | R10: =SUM(D10*E10) -> 0
A11: =الأحد!A11 -> 06 | B11: =الأحد!B11 -> جزر(كغ) | C11: =SUM('الأحد (3)'!J11) -> 12 | E11: 80 | F11: 12 | H11: 80 | I11: 0 | J11: 12 | K11: 06 | M11: المجمـــــوع | N11: =SUM(N6:N10) -> 0 | O11: =SUM(O6:O10) -> 262 | P11: =SUM(P6:P10) -> 0
A12: =الأحد!A12 -> 07 | B12: =الأحد!B12 -> جبن(علبة16ق) | C12: =SUM('الأحد (3)'!J12) -> 0 | E12: 80 | F12: 0 | H12: 80 | I12: 0 | J12: 0 | K12: 07 | R12: =SUM(D12*E12) -> 0
A13: =الأحد!A13 -> 08 | B13: =الأحد!B13 -> تفاح(كغ) | C13: =SUM('الأحد (3)'!J13) -> 0 | E13: 0 | F13: 0 | H13: =E13 -> 0 | I13: 0 | J13: 0 | K13: 08 | R13: =SUM(D13*E13) -> 0
A14: =الأحد!A14 -> 09 | B14: =الأحد!B14 -> خيار(كغ) | C14: =SUM('الأحد (3)'!J14) -> 0 | E14: 0 | F14: 0 | H14: =SUM(E14) -> 0 | I14: 0 | J14: 0 | K14: 09 | M14: معـدل المستفيدين | O14: =SUM(N11+O11+P11) -> 262 | R14: 0
A15: =الأحد!A15 -> 10 | B15: =الأحد!B15 -> طماطم حب(كغ) | C15: =SUM('الأحد (3)'!J15) -> 0 | E15: 90 | F15: 0 | H15: 90 | I15: 0 | J15: 0 | K15: 10 | R15: 0
A16: =الأحد!A16 -> 11 | B16: =الأحد!B16 -> ثوم(كغ) | C16: =SUM('الأحد (3)'!J16) -> 0 | E16: 400 | F16: 0 | H16: 400 | I16: 0 | J16: 0 | K16: 11 | M16: من الوجبـــات | R16: 0
A17: =الأحد!A17 -> 12 | B17: =الأحد!B17 -> سلاطة خس(كغ) | C17: =SUM('الأحد (3)'!J17) -> 0 | E17: 80 | F17: =SUM(C17+D17) -> 0 | H17: =SUM(E17) -> 80 | I17: =SUM(G17*H17) -> 0 | J17: 0 | K17: 12 | M17: الوجبــــــــــــــات | R17: 0
A18: =الأحد!A18 -> 13 | B18: =الأحد!B18 -> برتقال(كغ) | C18: =SUM('الأحد (3)'!J18) -> 0 | E18: 120 | F18: 0 | H18: 120 | I18: 0 | J18: 0 | K18: 13 | R18: 0
A19: =الأحد!A19 -> 14 | B19: =الأحد!B19 -> موز(كغ) | C19: =SUM('الأحد (3)'!J19) -> -89 | E19: 160 | F19: -89 | H19: 160 | I19: 0 | J19: -89 | K19: 14 | M19: فطــــــــور الصبــاح | R19: 0
A20: =الأحد!A20 -> 15 | B20: =الأحد!B20 -> يوسفية | C20: =SUM('الأحد (3)'!J20) -> 0 | E20: 0 | F20: 0 | H20: 0 | I20: 0 | J20: 0 | K20: 15 | R20: 0
A21: =الأحد!A21 -> 16 | B21: =الأحد!B21 -> عنب(كغ) | C21: =SUM('الأحد (3)'!J21) -> 0 | E21: 0 | F21: 0 | H21: 0 | I21: 0 | J21: 0 | K21: 16 | R21: 0
A22: =الأحد!A22 -> 17 | B22: =الأحد!B22 -> شخشوخة(كغ) | C22: =SUM('الأحد (3)'!J22) -> 0 | E22: 0 | F22: 0 | H22: 0 | I22: 0 | J22: 0 | K22: 17 | R22: 0
A23: =الأحد!A23 -> 18 | B23: =الأحد!B23 -> زعرورة (كغ) | C23: =SUM('الأحد (3)'!J23) -> 0 | E23: 0 | F23: 0 | H23: 0 | I23: 0 | J23: 0 | K23: 18 | R23: 0
A24: =الأحد!A24 -> 19 | B24: =الأحد!B24 -> ياؤرت | C24: =SUM('الأحد (3)'!J24) -> 0 | E24: 15 | F24: 0 | H24: 15 | I24: 0 | J24: 0 | K24: 19 | R24: 0
A25: =الأحد!A25 -> 20 | B25: =الأحد!B25 -> شكولاطة | C25: =SUM('الأحد (3)'!J25) -> 0 | E25: 0 | F25: 0 | G25: 0 | H25: 0 | I25: 0 | J25: 0 | K25: 20 | R25: 0
A26: =الأحد!A26 -> 21 | B26: =الأحد!B26 -> زيتون اسود(كغ) | C26: =SUM('الأحد (3)'!J26) -> 0 | E26: 350 | F26: 0 | H26: 350 | I26: 0 | J26: 0 | K26: 21 | M26: الغــــــذاء | R26: 0
A27: =الأحد!A27 -> 22 | B27: =الأحد!B27 -> زيتون اخضر(كغ) | C27: =SUM('الأحد (3)'!J27) -> 0 | E27: 400 | F27: 0 | H27: 400 | I27: 0 | J27: 0 | K27: 22 | M27: خبز+تليتلي+لحم دجاج | R27: 0
A28: =الأحد!A28 -> 23 | B28: =الأحد!B28 -> تليتلي(كغ) | C28: =SUM('الأحد (3)'!J28) -> 0 | E28: 90 | F28: 0 | H28: 90 | I28: 0 | J28: 0 | K28: 23 | M28: سلاطة متنوعة | N28: ياؤورت | R28: 0
A29: =الأحد!A29 -> 24 | B29: =الأحد!B29 -> دويدة(كغ) | C29: =SUM('الأحد (3)'!J29) -> 0 | E29: 0 | F29: 0 | H29: 0 | I29: 0 | J29: 0 | K29: 24 | R29: 0
A30: =الأحد!A30 -> 25 | B30: =الأحد!B30 -> سباقيطي(كغ) | C30: =SUM('الأحد (3)'!J30) -> 0 | E30: 90 | F30: 0 | H30: 90 | I30: 0 | J30: 0 | K30: 25 | R30: 0
A31: =الأحد!A31 -> 26 | B31: =الأحد!B31 -> كسكسي (كغ) | C31: =SUM('الأحد (3)'!J31) -> 0 | E31: 90 | F31: 0 | H31: 90 | I31: 0 | J31: 0 | K31: 26 | M31: قائمـة المقبولين للطاولة المشتركــة | R31: 0
A32: =الأحد!A32 -> 27 | B32: =الأحد!B32 -> مقارونة | C32: =SUM('الأحد (3)'!J32) -> 0 | E32: 90 | F32: 0 | H32: 90 | I32: 0 | J32: 0 | K32: 27 | M32: الأسمــاء | N32: ف.ص | O32: غــداء | P32: ع | R32: 0
A33: =الأحد!A33 -> 28 | B33: =الأحد!B33 -> حمص | C33: =SUM('الأحد (3)'!J33) -> 0 | E33: 240 | F33: 0 | H33: 240 | I33: 0 | J33: 0 | K33: 28 | L33: =الأحد!L33 -> 1 | M33: =الأحد!M33 -> ازوال شراف الدين | R33: 0
A34: =الأحد!A34 -> 29 | B34: =الأحد!B34 -> عدس | C34: =SUM('الأحد (3)'!J34) -> 0 | E34: 120 | F34: 0 | H34: =SUM(E34) -> 120 | I34: 0 | J34: 0 | K34: 29 | L34: =الأحد!L34 -> 2 | M34: =الأحد!M34 -> اوشن صبرينة | R34: 0
A35: =الأحد!A35 -> 30 | B35: =الأحد!B35 -> فاصولياء(كغ) | C35: =SUM('الأحد (3)'!J35) -> 0 | E35: 0 | F35: =SUM(C35+D35) -> 0 | H35: =SUM(E35) -> 0 | I35: =SUM(G35*H35) -> 0 | J35: 0 | K35: 30 | L35: =الأحد!L35 -> 3 | M35: =الأحد!M35 -> قلي أحلام
A36: =الأحد!A36 -> 31 | B36: =الأحد!B36 -> ارزمفور(كغ) | C36: =SUM('الأحد (3)'!J36) -> 0 | E36: 110 | F36: 0 | H36: =SUM(E36) -> 110 | I36: 0 | J36: 0 | K36: 31 | L36: =الأحد!L36 -> 4 | M36: =الأحد!M36 -> اوش ايمان | R36: 0
A37: =الأحد!A37 -> 32 | B37: =الأحد!B37 -> حلويات | C37: =SUM('الأحد (3)'!J37) -> 0 | E37: 0 | F37: =SUM(C37+D37) -> 0 | H37: 0 | I37: =SUM(G37*H37) -> 0 | J37: 0 | K37: 32 | L37: =الأحد!L37 -> 5 | M37: =الأحد!M37 -> عزيون فضيلة | R37: 0
A38: =الأحد!A38 -> 33 | B38: =الأحد!B38 -> خوخ | C38: =SUM('الأحد (3)'!J38) -> 0 | E38: 0 | F38: 0 | H38: =SUM(E38) -> 0 | I38: 0 | J38: 0 | K38: 33 | L38: =الأحد!L38 -> 6 | M38: =الأحد!M38 -> شايب عينو السعيد | R38: 0
A39: =الأحد!A39 -> 34 | B39: =الأحد!B39 -> فلفل اسود(كيس15غ) | C39: =SUM('الأحد (3)'!J39) -> 0 | E39: 0 | F39: 0 | H39: 0 | I39: 0 | J39: 0 | K39: 34 | L39: =الأحد!L39 -> 7 | M39: =الأحد!M39 -> زيوش حدة | R39: 0
A40: =الأحد!A40 -> 35 | B40: =الأحد!B40 -> خميرة | C40: =SUM('الأحد (3)'!J40) -> 0 | E40: 0 | F40: 0 | H40: 0 | I40: 0 | J40: 0 | K40: 35 | L40: =الأحد!L40 -> 8 | M40: =الأحد!M40 -> قرازة فتحي | R40: 0
A41: =الأحد!A41 -> 36 | B41: =الأحد!B41 -> كمون | C41: =SUM('الأحد (3)'!J41) -> 0 | E41: 30 | F41: 0 | H41: 30 | I41: 0 | J41: 0 | K41: 36 | L41: =الأحد!L41 -> 9 | M41: =الأحد!M41 -> غضبان فيروز | R41: 0
A42: =الأحد!A42 -> 37 | B42: =الأحد!B42 -> ملح(كغ) | C42: =SUM('الأحد (3)'!J42) -> 0 | E42: 30 | F42: 0 | H42: 30 | I42: 0 | J42: 0 | K42: 37 | L42: =الأحد!L42 -> 10 | M42: =الأحد!M42 -> قرفي عليمة | R42: 0
A43: =الأحد!A43 -> 38 | B43: =الأحد!B43 -> طماطم مصبرة(كغ) | C43: =SUM('الأحد (3)'!J43) -> 0 | E43: 140 | F43: 0 | H43: 140 | I43: 0 | J43: 0 | K43: 38 | L43: =الأحد!L43 -> 11 | M43: =الأحد!M43 -> بوناب هوراي | R43: 0
A44: =الأحد!A44 -> 39 | B44: =الأحد!B44 -> زيت المائدة 1لتر | C44: =SUM('الأحد (3)'!J44) -> 0 | E44: 140 | F44: 0 | H44: 140 | I44: 0 | J44: 0 | K44: 39 | L44: =الأحد!L44 -> 12 | M44: =الأحد!M44 -> بوناب فريدة | R44: 0
A45: =الأحد!A45 -> 40 | B45: =الأحد!B45 -> زيدة | C45: =SUM('الأحد (3)'!J45) -> 0 | E45: 70 | F45: 0 | H45: 70 | I45: 0 | J45: 0 | K45: 40 | L45: =الأحد!L45 -> 13 | M45: =الأحد!M45 -> جمال بوناب | R45: 0
A46: =الأحد!A46 -> 41 | B46: =الأحد!B46 -> خل(قارورة) | C46: =SUM('الأحد (3)'!J46) -> 0 | E46: 30 | F46: 0 | H46: =SUM(E46) -> 30 | I46: 0 | J46: 0 | K46: 41 | L46: =الأحد!L46 -> 14 | M46: =الأحد!M46 -> 0 | R46: 0
A47: =الأحد!A47 -> 42 | B47: =الأحد!B47 -> لحم دجاج(كغ) | C47: =SUM('الأحد (3)'!J47) -> 0 | E47: 380 | F47: 0 | H47: 380 | I47: 0 | J47: 0 | K47: 42 | L47: =الأحد!L47 -> 15 | M47: =الأحد!M47 -> 0 | R47: 0
A48: =الأحد!A48 -> 43 | B48: =الأحد!B48 -> فافل | C48: =SUM('الأحد (3)'!J48) -> 0 | E48: 0 | F48: 0 | H48: 0 | I48: 0 | J48: 0 | K48: 43 | L48: =الأحد!L48 -> 16 | M48: =الأحد!M48 -> 0 | R48: 0
A49: =الأحد!A49 -> 44 | B49: =الأحد!B49 -> لحم عجل(كغ) | C49: =SUM('الأحد (3)'!J49) -> 0 | E49: 0 | F49: 0 | H49: 0 | I49: 0 | J49: 0 | K49: 44 | L49: =الأحد!L49 -> 17 | M49: =الأحد!M49 -> 0 | R49: 0
A50: =الأحد!A50 -> 45 | B50: =الأحد!B50 -> ايجاص(كغ) | C50: =SUM('الأحد (3)'!J50) -> 0 | E50: 0 | F50: 0 | H50: 0 | I50: 0 | J50: 0 | K50: 45 | L50: =الأحد!L50 -> 18 | M50: =الأحد!M50 -> 0 | R50: =SUM(D50*E50) -> 0
A51: =الأحد!A51 -> 46 | B51: =الأحد!B51 -> طونة | C51: =SUM('الأحد (3)'!J51) -> 0 | E51: 0 | F51: 0 | H51: 0 | I51: 0 | J51: 0 | K51: 46 | L51: =الأحد!L51 -> 19 | M51: =الأحد!M51 -> 0 | R51: =SUM(D51*E51) -> 0
A52: =الأحد!A52 -> 47 | B52: =الأحد!B52 -> جلبانة خضراء(كغ) | C52: =SUM('الأحد (3)'!J52) -> 0 | E52: 0 | F52: 0 | H52: 0 | I52: 0 | J52: 0 | K52: 47 | L52: =الأحد!L52 -> 20 | M52: =الأحد!M52 -> 0 | R52: =SUM(D52*E52) -> 0
A53: =الأحد!A53 -> 48 | B53: =الأحد!B53 -> مرطبات | C53: =SUM('الأحد (3)'!J53) -> 0 | E53: 0 | F53: 0 | H53: 0 | I53: 0 | J53: 0 | K53: 48 | L53: =الأحد!L53 -> 21 | M53: =الأحد!M53 -> 0 | R53: 0
A54: =الأحد!A54 -> 49 | B54: =الأحد!B54 -> مايـونــاز500غ | C54: =SUM('الأحد (3)'!J54) -> 0 | E54: 0 | F54: 0 | H54: 0 | I54: 0 | J54: 0 | K54: 49 | L54: =الأحد!L54 -> 22 | M54: =الأحد!M54 -> 0 | R54: 0
A55: =الأحد!A55 -> 50 | B55: =الأحد!B55 -> مربى | C55: =SUM('الأحد (3)'!J55) -> 0 | E55: 0 | F55: 0 | H55: 0 | I55: 0 | J55: 0 | K55: 50 | L55: =الأحد!L55 -> 23 | M55: =الأحد!M55 -> 0 | R55: 0
A56: =الأحد!A56 -> 51 | B56: =الأحد!B56 -> مشروبات غازية | C56: =SUM('الأحد (3)'!J56) -> 0 | E56: 0 | F56: 0 | H56: 0 | I56: 0 | J56: 0 | K56: 51 | L56: =الأحد!L56 -> 24 | M56: =الأحد!M56 -> 0 | R56: 0
A57: =الأحد!A57 -> 52 | B57: =الأحد!B57 -> ماء معدني | C57: =SUM('الأحد (3)'!J57) -> 0 | E57: 0 | F57: 0 | H57: 0 | I57: 0 | J57: 0 | K57: 52 | L57: =الأحد!L57 -> 25 | M57: =الأحد!M57 -> 0 | R57: 0
A58: =الأحد!A58 -> 53 | B58: =الأحد!B58 -> تمر(كغ) | C58: =SUM('الأحد (3)'!J58) -> 0 | E58: 0 | F58: 0 | H58: 0 | I58: 0 | J58: 0 | K58: 53 | L58: =الأحد!L58 -> 26 | M58: =الأحد!M58 -> 0 | R58: 0
A59: =الأحد!A59 -> 54 | B59: =الأحد!B59 -> سكر | C59: =SUM('الأحد (3)'!J59) -> 0 | E59: 0 | F59: 0 | H59: 0 | I59: 0 | J59: 0 | K59: 54 | L59: =الأحد!L59 -> 27 | M59: =الأحد!M59 -> 0 | R59: 0
A60: =الأحد!A60 -> 55 | B60: =الأحد!B60 -> فافل حار | C60: =SUM('الأحد (3)'!J60) -> 0 | E60: 0 | F60: 0 | H60: 0 | I60: 0 | J60: 0 | K60: 55 | L60: =الأحد!L60 -> 28 | M60: =الأحد!M60 -> 0 | R60: 0
A61: =الأحد!A61 -> 56 | B61: =الأحد!B61 -> حليب سوبرلي | C61: =SUM('الأحد (3)'!J61) -> 0 | E61: 0 | F61: =SUM(C61+D61) -> 0 | H61: =SUM(E61) -> 0 | I61: =SUM(G61*H61) -> 0 | J61: 0 | K61: 56 | L61: =الأحد!L61 -> 29 | M61: =الأحد!M61 -> 0
A62: =الأحد!A62 -> 57 | B62: =الأحد!B62 -> فريك | C62: =SUM('الأحد (3)'!J62) -> 0 | E62: 0 | F62: 0 | H62: 0 | I62: 0 | J62: 0 | K62: 57 | L62: =الأحد!L62 -> 30 | M62: =الأحد!M62 -> 0
A63: =الأحد!A63 -> 58 | B63: =الأحد!B63 -> جريوات | C63: =SUM('الأحد (3)'!J63) -> 0 | E63: 120 | F63: 0 | H63: 120 | I63: 0 | J63: 0 | K63: 58 | L63: =الأحد!L63 -> 31 | M63: =الأحد!M63 -> 0
A64: =الأحد!A64 -> 59 | B64: =الأحد!B64 -> تاي | C64: =SUM('الأحد (3)'!J64) -> 0 | E64: 280 | F64: 0 | H64: 280 | I64: 0 | J64: 0 | K64: 59 | L64: =الأحد!L64 -> 32 | M64: =الأحد!M64 -> 0 | R64: 0
A65: =الأحد!A65 -> 60 | B65: =الأحد!B65 -> قهوة(كغ) | C65: =SUM('الأحد (3)'!J65) -> 0 | E65: 0 | F65: 0 | H65: 0 | I65: 0 | J65: 0 | K65: 60 | M65: المجموع | N65: =SUM(N51:N64) -> 0 | O65: =O33+O34+O35+O36+O37+O38+O39+O40+O41+O42+O43+O44+O45+O46+O47+O48+O49+O50+O51+O52+O53+O54+O55+O56+O57+O58+O59+O60+O61+O62+O63+O64 -> 0 | P65: =SUM(P51:P64) -> 0 | R65: 0
A66: =الأحد!A66 -> 61 | B66: =الأحد!B66 -> شمندر | C66: =SUM('الأحد (3)'!J66) -> 0 | E66: 0 | F66: 0 | H66: 0 | I66: 0 | J66: 0 | K66: 61 | R66: 0
A67: =الأحد!A67 -> 62 | B67: =الأحد!B67 -> توابل | C67: =SUM('الأحد (3)'!J67) -> 0 | E67: 0 | F67: 0 | H67: 0 | I67: 0 | J67: 0 | K67: 62 | R67: 0
A68: =الأحد!A68 -> 63 | B68: =الأحد!B68 -> إجاص(كغ) | C68: =SUM('الأحد (3)'!J68) -> 0 | E68: 0 | F68: 0 | H68: 0 | I68: 0 | J68: 0 | K68: 63 | M68: مصـاريف التغذية للشخـص الواحــد | R68: 0
A69: =الأحد!A69 -> 64 | B69: =الأحد!B69 -> 0 | C69: =SUM('الأحد (3)'!J69) -> 0 | F69: 0 | H69: 0 | I69: 0 | J69: 0 | K69: 64 | R69: 0
A70: =الأحد!A70 -> 65 | B70: =الأحد!B70 -> 0 | C70: =SUM('الأحد (3)'!J70) -> 0 | F70: 0 | H70: 0 | I70: 0 | J70: =SUM(F70-G70) -> 0 | K70: 65 | M70: قيمة مخروجات اليـوم | O70: =SUM(I77) -> 0 | R70: 0
A71: =الأحد!A71 -> 66 | B71: =الأحد!B71 -> 0 | C71: =SUM('الأحد (3)'!J71) -> 0 | F71: 0 | H71: 0 | I71: 0 | J71: 0 | K71: 66 | R71: 0
A72: =الأحد!A72 -> 67 | B72: =الأحد!B72 -> 0 | C72: =SUM('الأحد (3)'!J72) -> 0 | F72: =SUM(C72+D72) -> 0 | H72: =SUM(E72) -> 0 | I72: =SUM(G72*H72) -> 0 | J72: 0 | K72: 67 | M72: معدل تغذية الأفراد | O72: =SUM(O14) -> 262 | R72: 0
A73: =الأحد!A73 -> 68 | B73: =الأحد!B73 -> 0 | C73: =SUM('الأحد (3)'!J73) -> 0 | F73: =SUM(C73+D73) -> 0 | H73: =SUM(E73) -> 0 | I73: =SUM(G73*H73) -> 0 | J73: 0 | K73: 68 | R73: 0
A74: =الأحد!A74 -> 69 | B74: =الأحد!B74 -> 0 | C74: =SUM('الأحد (3)'!J74) -> 0 | E74: 0 | F74: 0 | H74: 0 | I74: 0 | J74: 0 | K74: 69 | M74: =SUM(I77/O14) -> 0 | O74: = | P74: =M74 -> 0 | R74: 0
A75: =الأحد!A75 -> 70 | B75: =الأحد!B75 -> 0 | C75: =SUM('الأحد (3)'!J75) -> 12.2 | F75: =SUM(C75+D75) -> 12.2 | H75: =SUM(E75) -> 0 | I75: =SUM(G75*H75) -> 0 | J75: 12.2 | K75: 70 | M75: (1) معدل تغذية الأفـراد للوجبــة | R75: 0
A76: =الأحد!A76 -> 71 | B76: =الأحد!B76 -> 0 | C76: =SUM('الأحد (3)'!J76) -> 0 | E76: 0 | F76: =SUM(C76+D76) -> 0 | H76: =SUM(E76) -> 0 | I76: =SUM(G76*H76) -> 0 | J76: 0 | K76: 71 | M76: الغــذاء + العشـاء | R76: 0
A77: المجموع | C77: =SUM(C6:C76) -> 7.2 | D77: =SUM(D6:D76) -> 0 | F77: =SUM(F6:F76) -> 7.2 | G77: =SUM(G6:G76) -> 0 | I77: =SUM(I6:I76) -> 0 | J77: =SUM(J6:J76) -> 7.2 | R77: =SUM(R12:R76) -> 0
K78: حــررببئرالشهداء في:22 / 04 / 2013....................................

Sheet الثلاثاء (3)
A1: اســــم المؤسســــــــــــــــــــــــــــــــــــــــــــــة | E1: ورقـــــة الاستهــــلاك اليومـــــــــــــــــــي
A2: طالــــــــــب عبــــد الله-بئر الشهداء- | E2: اضراب | F2: يـوم: الثلاثاء | G2: =SUM('الخميس(2)'!G2+5) -> 23 | H2: =الخميس!H2 -> فيفري | I2: 2013 | M2: السنة المالية :2013
A3: طبيعة المواد | C3: مخزون | D3: مــــدخـــــلات اليـوم | F3: مجموع مخزون | G3: مـخرجــــــــــــــــــــات اليـوم | J3: كمية ماتبقى | K3: ملاحظـــــات | M3: تعــــــــداد اليـــوم
D4: الكمية | E4: سعر | F4: البارحـــــــــة | G4: الكمية | H4: سعر | I4: قيمة مخـروجات | J4: فـــي | M4: المستفيدون | N4: فطـور | O4: غـذاء | P4: عشـاء
A5: المستهلكـــة | C5: البارحة | E5: الوحـدة | F5: ومدخلات اليوم | H5: الوحـدة | I5: اليــوم | J5: نهاية اليــوم
A6: =الأحد!A6 -> 01 | B6: =الأحد!B6 -> الخبـــــــز | C6: =SUM('الإثنين (3)'!J6) -> 12 | E6: 7.4 | F6: =SUM(C6+D6) -> 12 | H6: =SUM(E6) -> 7.4 | I6: =SUM(G6*H6) -> 0 | J6: =SUM(F6-G6) -> 12 | K6: 01 | M6: نصف داخليون | R6: =SUM(D6*E6) -> 0
A7: =الأحد!A7 -> 02 | B7: =الأحد!B7 -> بسباس(كغ) | C7: =SUM('الإثنين (3)'!J7) -> 13 | E7: 80 | F7: 13 | H7: 80 | I7: 0 | J7: 13 | K7: 02 | M7: م .تربويون | R7: =SUM(D7*E7) -> 0
A8: =الأحد!A8 -> 03 | B8: =الأحد!B8 -> بيض | C8: =SUM('الإثنين (3)'!J8) -> 0 | E8: 12 | F8: 0 | H8: 12 | I8: 0 | J8: 0 | K8: 03 | M8: الأساتــذة | R8: =SUM(D8*E8) -> 0
A9: =الأحد!A9 -> 04 | B9: =الأحد!B9 -> بطاطا(كغ) | C9: =SUM('الإثنين (3)'!J9) -> 12 | E9: 60 | F9: 12 | H9: 60 | I9: 0 | J9: 12 | K9: 04 | M9: العمـــال | R9: =SUM(D9*E9) -> 0
A10: =الأحد!A10 -> 05 | B10: =الأحد!B10 -> بصل(كغ) | C10: =SUM('الإثنين (3)'!J10) -> 35 | E10: 90 | F10: 35 | H10: 90 | I10: 0 | J10: 35 | K10: 05 | M10: الإداريين | O10: 1 | R10: =SUM(D10*E10) -> 0
A11: =الأحد!A11 -> 06 | B11: =الأحد!B11 -> جزر(كغ) | C11: =SUM('الإثنين (3)'!J11) -> 12 | E11: 80 | F11: 12 | H11: 80 | I11: 0 | J11: 12 | K11: 06 | M11: المجمـــــوع | N11: =SUM(N6:N10) -> 0 | O11: =SUM(O6:O10) -> 1 | P11: =SUM(P6:P10) -> 0
A12: =الأحد!A12 -> 07 | B12: =الأحد!B12 -> جبن(علبة16ق) | C12: =SUM('الإثنين (3)'!J12) -> 0 | E12: 80 | F12: 0 | H12: 80 | I12: 0 | J12: 0 | K12: 07 | R12: =SUM(D12*E12) -> 0
A13: =الأحد!A13 -> 08 | B13: =الأحد!B13 -> تفاح(كغ) | C13: =SUM('الإثنين (3)'!J13) -> 0 | E13: 0 | F13: 0 | H13: 0 | I13: 0 | J13: 0 | K13: 08 | R13: =SUM(D13*E13) -> 0
A14: =الأحد!A14 -> 09 | B14: =الأحد!B14 -> خيار(كغ) | C14: =SUM('الإثنين (3)'!J14) -> 0 | E14: 0 | F14: 0 | H14: 0 | I14: 0 | J14: 0 | K14: 09 | M14: معـدل المستفيدين | O14: =SUM(N11+O11+P11) -> 1 | R14: 0
A15: =الأحد!A15 -> 10 | B15: =الأحد!B15 -> طماطم حب(كغ) | C15: =SUM('الإثنين (3)'!J15) -> 0 | E15: 90 | F15: 0 | H15: 90 | I15: 0 | J15: 0 | K15: 10 | R15: 0
A16: =الأحد!A16 -> 11 | B16: =الأحد!B16 -> ثوم(كغ) | C16: =SUM('الإثنين (3)'!J16) -> 0 | E16: 400 | F16: 0 | H16: 400 | I16: 0 | J16: 0 | K16: 11 | M16: من الوجبـــات | R16: 0
A17: =الأحد!A17 -> 12 | B17: =الأحد!B17 -> سلاطة خس(كغ) | C17: =SUM('الإثنين (3)'!J17) -> 0 | E17: 80 | F17: =SUM(C17+D17) -> 0 | H17: =SUM(E17) -> 80 | I17: =SUM(G17*H17) -> 0 | J17: 0 | K17: 12 | M17: الوجبــــــــــــــات | R17: 0
A18: =الأحد!A18 -> 13 | B18: =الأحد!B18 -> برتقال(كغ) | C18: =SUM('الإثنين (3)'!J18) -> 0 | E18: 120 | F18: 0 | H18: 120 | I18: 0 | J18: 0 | K18: 13 | R18: 0
A19: =الأحد!A19 -> 14 | B19: =الأحد!B19 -> موز(كغ) | C19: =SUM('الإثنين (3)'!J19) -> -89 | E19: 170 | F19: -89 | H19: 170 | I19: 0 | J19: -89 | K19: 14 | M19: فطــــــــور الصبــاح | R19: 0
A20: =الأحد!A20 -> 15 | B20: =الأحد!B20 -> يوسفية | C20: =SUM('الإثنين (3)'!J20) -> 0 | E20: 0 | F20: 0 | H20: 0 | I20: 0 | J20: 0 | K20: 15 | R20: 0
A21: =الأحد!A21 -> 16 | B21: =الأحد!B21 -> عنب(كغ) | C21: =SUM('الإثنين (3)'!J21) -> 0 | E21: 0 | F21: 0 | G21: 0 | H21: 0 | I21: 0 | J21: 0 | K21: 16 | R21: 0
A22: =الأحد!A22 -> 17 | B22: =الأحد!B22 -> شخشوخة(كغ) | C22: =SUM('الإثنين (3)'!J22) -> 0 | E22: 0 | F22: 0 | H22: 0 | I22: 0 | J22: 0 | K22: 17 | R22: 0
A23: =الأحد!A23 -> 18 | B23: =الأحد!B23 -> زعرورة (كغ) | C23: =SUM('الإثنين (3)'!J23) -> 0 | E23: 0 | F23: 0 | H23: 0 | I23: 0 | J23: 0 | K23: 18 | R23: 0
A24: =الأحد!A24 -> 19 | B24: =الأحد!B24 -> ياؤرت | C24: =SUM('الإثنين (3)'!J24) -> 0 | E24: 15 | F24: 0 | H24: 15 | I24: 0 | J24: 0 | K24: 19 | R24: 0
A25: =الأحد!A25 -> 20 | B25: =الأحد!B25 -> شكولاطة | C25: =SUM('الإثنين (3)'!J25) -> 0 | E25: 0 | F25: 0 | H25: 0 | I25: 0 | J25: 0 | K25: 20 | R25: 0
A26: =الأحد!A26 -> 21 | B26: =الأحد!B26 -> زيتون اسود(كغ) | C26: =SUM('الإثنين (3)'!J26) -> 0 | E26: 350 | F26: 0 | H26: 350 | I26: 0 | J26: 0 | K26: 21 | M26: الغــــــذاء | R26: 0
A27: =الأحد!A27 -> 22 | B27: =الأحد!B27 -> زيتون اخضر(كغ) | C27: =SUM('الإثنين (3)'!J27) -> 0 | E27: 400 | F27: 0 | H27: 400 | I27: 0 | J27: 0 | K27: 22 | M27: خبز+موز+جبن | R27: 0
A28: =الأحد!A28 -> 23 | B28: =الأحد!B28 -> تليتلي(كغ) | C28: =SUM('الإثنين (3)'!J28) -> 0 | E28: 90 | F28: 0 | H28: 90 | I28: 0 | J28: 0 | K28: 23 | M28: سلاطة متنوعة | N28: بيض | R28: 0
A29: =الأحد!A29 -> 24 | B29: =الأحد!B29 -> دويدة(كغ) | C29: =SUM('الإثنين (3)'!J29) -> 0 | E29: 0 | F29: 0 | H29: 0 | I29: 0 | J29: 0 | K29: 24 | R29: 0
A30: =الأحد!A30 -> 25 | B30: =الأحد!B30 -> سباقيطي(كغ) | C30: =SUM('الإثنين (3)'!J30) -> 0 | E30: 90 | F30: 0 | H30: 90 | I30: 0 | J30: 0 | K30: 25 | R30: 0
A31: =الأحد!A31 -> 26 | B31: =الأحد!B31 -> كسكسي (كغ) | C31: =SUM('الإثنين (3)'!J31) -> 0 | E31: 90 | F31: 0 | H31: 90 | I31: 0 | J31: 0 | K31: 26 | M31: قائمـة المقبولين للطاولة المشتركــة | R31: 0
A32: =الأحد!A32 -> 27 | B32: =الأحد!B32 -> مقارونة | C32: =SUM('الإثنين (3)'!J32) -> 0 | E32: 90 | F32: 0 | H32: 90 | I32: 0 | J32: 0 | K32: 27 | M32: الأسمــاء | N32: ف.ص | O32: غــداء | P32: ع | R32: 0
A33: =الأحد!A33 -> 28 | B33: =الأحد!B33 -> حمص | C33: =SUM('الإثنين (3)'!J33) -> 0 | E33: 240 | F33: 0 | H33: 240 | I33: 0 | J33: 0 | K33: 28 | L33: =الأحد!L33 -> 1 | M33: =الأحد!M33 -> ازوال شراف الدين | R33: 0
A34: =الأحد!A34 -> 29 | B34: =الأحد!B34 -> عدس | C34: =SUM('الإثنين (3)'!J34) -> 0 | E34: 120 | F34: 0 | H34: 120 | I34: 0 | J34: 0 | K34: 29 | L34: =الأحد!L34 -> 2 | M34: =الأحد!M34 -> اوشن صبرينة | R34: 0
A35: =الأحد!A35 -> 30 | B35: =الأحد!B35 -> فاصولياء(كغ) | C35: =SUM('الإثنين (3)'!J35) -> 0 | E35: 0 | F35: =SUM(C35+D35) -> 0 | H35: =SUM(E35) -> 0 | I35: =SUM(G35*H35) -> 0 | J35: 0 | K35: 30 | L35: =الأحد!L35 -> 3 | M35: =الأحد!M35 -> قلي أحلام
A36: =الأحد!A36 -> 31 | B36: =الأحد!B36 -> ارزمفور(كغ) | C36: =SUM('الإثنين (3)'!J36) -> 0 | E36: 110 | F36: 0 | H36: 110 | I36: 0 | J36: 0 | K36: 31 | L36: =الأحد!L36 -> 4 | M36: =الأحد!M36 -> اوش ايمان | R36: 0
A37: =الأحد!A37 -> 32 | B37: =الأحد!B37 -> حلويات | C37: =SUM('الإثنين (3)'!J37) -> 0 | E37: 0 | F37: =SUM(C37+D37) -> 0 | H37: =SUM(E37) -> 0 | I37: =SUM(G37*H37) -> 0 | J37: 0 | K37: 32 | L37: =الأحد!L37 -> 5 | M37: =الأحد!M37 -> عزيون فضيلة | R37: 0
A38: =الأحد!A38 -> 33 | B38: =الأحد!B38 -> خوخ | C38: =SUM('الإثنين (3)'!J38) -> 0 | E38: 0 | F38: 0 | H38: 0 | I38: 0 | J38: 0 | K38: 33 | L38: =الأحد!L38 -> 6 | M38: =الأحد!M38 -> شايب عينو السعيد | R38: 0
A39: =الأحد!A39 -> 34 | B39: =الأحد!B39 -> فلفل اسود(كيس15غ) | C39: =SUM('الإثنين (3)'!J39) -> 0 | E39: 0 | F39: 0 | H39: 0 | I39: 0 | J39: 0 | K39: 34 | L39: =الأحد!L39 -> 7 | M39: =الأحد!M39 -> زيوش حدة | R39: 0
A40: =الأحد!A40 -> 35 | B40: =الأحد!B40 -> خميرة | C40: =SUM('الإثنين (3)'!J40) -> 0 | E40: 0 | F40: 0 | H40: 0 | I40: 0 | J40: 0 | K40: 35 | L40: =الأحد!L40 -> 8 | M40: =الأحد!M40 -> قرازة فتحي | R40: 0
A41: =الأحد!A41 -> 36 | B41: =الأحد!B41 -> كمون | C41: =SUM('الإثنين (3)'!J41) -> 0 | E41: 30 | F41: 0 | H41: 30 | I41: 0 | J41: 0 | K41: 36 | L41: =الأحد!L41 -> 9 | M41: =الأحد!M41 -> غضبان فيروز | R41: 0
A42: =الأحد!A42 -> 37 | B42: =الأحد!B42 -> ملح(كغ) | C42: =SUM('الإثنين (3)'!J42) -> 0 | E42: 30 | F42: 0 | H42: 30 | I42: 0 | J42: 0 | K42: 37 | L42: =الأحد!L42 -> 10 | M42: =الأحد!M42 -> قرفي عليمة | R42: 0
A43: =الأحد!A43 -> 38 | B43: =الأحد!B43 -> طماطم مصبرة(كغ) | C43: =SUM('الإثنين (3)'!J43) -> 0 | E43: 140 | F43: 0 | H43: 140 | I43: 0 | J43: 0 | K43: 38 | L43: =الأحد!L43 -> 11 | M43: =الأحد!M43 -> بوناب هوراي | R43: 0
A44: =الأحد!A44 -> 39 | B44: =الأحد!B44 -> زيت المائدة 1لتر | C44: =SUM('الإثنين (3)'!J44) -> 0 | E44: 140 | F44: 0 | H44: 140 | I44: 0 | J44: 0 | K44: 39 | L44: =الأحد!L44 -> 12 | M44: =الأحد!M44 -> بوناب فريدة | R44: 0
A45: =الأحد!A45 -> 40 | B45: =الأحد!B45 -> زيدة | C45: =SUM('الإثنين (3)'!J45) -> 0 | E45: 70 | F45: 0 | H45: 70 | I45: 0 | J45: 0 | K45: 40 | L45: =الأحد!L45 -> 13 | M45: =الأحد!M45 -> جمال بوناب | R45: 0
A46: =الأحد!A46 -> 41 | B46: =الأحد!B46 -> خل(قارورة) | C46: =SUM('الإثنين (3)'!J46) -> 0 | E46: 30 | F46: 0 | H46: 30 | I46: 0 | J46: 0 | K46: 41 | L46: =الأحد!L46 -> 14 | M46: =الأحد!M46 -> 0 | R46: 0
A47: =الأحد!A47 -> 42 | B47: =الأحد!B47 -> لحم دجاج(كغ) | C47: =SUM('الإثنين (3)'!J47) -> 0 | E47: 380 | F47: 0 | H47: 380 | I47: 0 | J47: 0 | K47: 42 | L47: =الأحد!L47 -> 15 | M47: =الأحد!M47 -> 0 | R47: 0
A48: =الأحد!A48 -> 43 | B48: =الأحد!B48 -> فافل | C48: =SUM('الإثنين (3)'!J48) -> 0 | E48: 0 | F48: 0 | H48: 0 | I48: 0 | J48: 0 | K48: 43 | L48: =الأحد!L48 -> 16 | M48: =الأحد!M48 -> 0 | R48: 0
A49: =الأحد!A49 -> 44 | B49: =الأحد!B49 -> لحم عجل(كغ) | C49: =SUM('الإثنين (3)'!J49) -> 0 | E49: 0 | F49: 0 | H49: 0 | I49: 0 | J49: 0 | K49: 44 | L49: =الأحد!L49 -> 17 | M49: =الأحد!M49 -> 0 | R49: 0
A50: =الأحد!A50 -> 45 | B50: =الأحد!B50 -> ايجاص(كغ) | C50: =SUM('الإثنين (3)'!J50) -> 0 | E50: 0 | F50: 0 | H50: 0 | I50: 0 | J50: 0 | K50: 45 | L50: =الأحد!L50 -> 18 | M50: =الأحد!M50 -> 0 | R50: =SUM(D50*E50) -> 0
A51: =الأحد!A51 -> 46 | B51: =الأحد!B51 -> طونة | C51: =SUM('الإثنين (3)'!J51) -> 0 | E51: 0 | F51: 0 | H51: 0 | I51: 0 | J51: 0 | K51: 46 | L51: =الأحد!L51 -> 19 | M51: =الأحد!M51 -> 0 | R51: =SUM(D51*E51) -> 0
A52: =الأحد!A52 -> 47 | B52: =الأحد!B52 -> جلبانة خضراء(كغ) | C52: =SUM('الإثنين (3)'!J52) -> 0 | E52: 0 | F52: 0 | H52: 0 | I52: 0 | J52: 0 | K52: 47 | L52: =الأحد!L52 -> 20 | M52: =الأحد!M52 -> 0 | R52: =SUM(D52*E52) -> 0
A53: =الأحد!A53 -> 48 | B53: =الأحد!B53 -> مرطبات | C53: =SUM('الإثنين (3)'!J53) -> 0 | E53: 0 | F53: 0 | H53: 0 | I53: 0 | J53: 0 | K53: 48 | L53: =الأحد!L53 -> 21 | M53: =الأحد!M53 -> 0 | R53: 0
A54: =الأحد!A54 -> 49 | B54: =الأحد!B54 -> مايـونــاز500غ | C54: =SUM('الإثنين (3)'!J54) -> 0 | E54: 0 | F54: 0 | H54: 0 | I54: 0 | J54: 0 | K54: 49 | L54: =الأحد!L54 -> 22 | M54: =الأحد!M54 -> 0 | R54: 0
A55: =الأحد!A55 -> 50 | B55: =الأحد!B55 -> مربى | C55: =SUM('الإثنين (3)'!J55) -> 0 | E55: 0 | F55: 0 | H55: 0 | I55: 0 | J55: 0 | K55: 50 | L55: =الأحد!L55 -> 23 | M55: =الأحد!M55 -> 0 | R55: 0
A56: =الأحد!A56 -> 51 | B56: =الأحد!B56 -> مشروبات غازية | C56: =SUM('الإثنين (3)'!J56) -> 0 | E56: 0 | F56: 0 | H56: 0 | I56: 0 | J56: 0 | K56: 51 | L56: =الأحد!L56 -> 24 | M56: =الأحد!M56 -> 0 | R56: 0
A57: =الأحد!A57 -> 52 | B57: =الأحد!B57 -> ماء معدني | C57: =SUM('الإثنين (3)'!J57) -> 0 | E57: 0 | F57: 0 | H57: 0 | I57: 0 | J57: 0 | K57: 52 | L57: =الأحد!L57 -> 25 | M57: =الأحد!M57 -> 0 | R57: 0
A58: =الأحد!A58 -> 53 | B58: =الأحد!B58 -> تمر(كغ) | C58: =SUM('الإثنين (3)'!J58) -> 0 | E58: 0 | F58: 0 | H58: 0 | I58: 0 | J58: 0 | K58: 53 | L58: =الأحد!L58 -> 26 | M58: =الأحد!M58 -> 0 | R58: 0
A59: =الأحد!A59 -> 54 | B59: =الأحد!B59 -> سكر | C59: =SUM('الإثنين (3)'!J59) -> 0 | E59: 0 | F59: 0 | H59: 0 | I59: 0 | J59: 0 | K59: 54 | L59: =الأحد!L59 -> 27 | M59: =الأحد!M59 -> 0 | R59: 0
A60: =الأحد!A60 -> 55 | B60: =الأحد!B60 -> فافل حار | C60: =SUM('الإثنين (3)'!J60) -> 0 | E60: 0 | F60: 0 | H60: 0 | I60: 0 | J60: 0 | K60: 55 | L60: =الأحد!L60 -> 28 | M60: =الأحد!M60 -> 0 | R60: 0
A61: =الأحد!A61 -> 56 | B61: =الأحد!B61 -> حليب سوبرلي | C61: =SUM('الإثنين (3)'!J61) -> 0 | E61: 0 | F61: =SUM(C61+D61) -> 0 | H61: =SUM(E61) -> 0 | I61: =SUM(G61*H61) -> 0 | J61: 0 | K61: 56 | L61: =الأحد!L61 -> 29 | M61: =الأحد!M61 -> 0
A62: =الأحد!A62 -> 57 | B62: =الأحد!B62 -> فريك | C62: =SUM('الإثنين (3)'!J62) -> 0 | E62: 0 | F62: 0 | H62: 0 | I62: 0 | J62: 0 | K62: 57 | L62: =الأحد!L62 -> 30 | M62: =الأحد!M62 -> 0
A63: =الأحد!A63 -> 58 | B63: =الأحد!B63 -> جريوات | C63: =SUM('الإثنين (3)'!J63) -> 0 | E63: 120 | F63: 0 | H63: 120 | I63: 0 | J63: 0 | K63: 58 | L63: =الأحد!L63 -> 31 | M63: =الأحد!M63 -> 0
A64: =الأحد!A64 -> 59 | B64: =الأحد!B64 -> تاي | C64: =SUM('الإثنين (3)'!J64) -> 0 | E64: 280 | F64: 0 | H64: 280 | I64: 0 | J64: 0 | K64: 59 | L64: =الأحد!L64 -> 32 | M64: =الأحد!M64 -> 0 | R64: 0
A65: =الأحد!A65 -> 60 | B65: =الأحد!B65 -> قهوة(كغ) | C65: =SUM('الإثنين (3)'!J65) -> 0 | E65: 0 | F65: 0 | H65: 0 | I65: 0 | J65: 0 | K65: 60 | M65: المجموع | N65: =SUM(N51:N64) -> 0 | O65: =O33+O34+O35+O36+O37+O38+O39+O40+O41+O42+O43+O44+O45+O46+O47+O48+O49+O50+O51+O52+O53+O54+O55+O56+O57+O58+O59+O60+O61+O62+O63+O64 -> 0 | P65: =SUM(P51:P64) -> 0 | R65: 0
A66: =الأحد!A66 -> 61 | B66: =الأحد!B66 -> شمندر | C66: =SUM('الإثنين (3)'!J66) -> 0 | E66: 0 | F66: 0 | H66: 0 | I66: 0 | J66: 0 | K66: 61 | R66: 0
A67: =الأحد!A67 -> 62 | B67: =الأحد!B67 -> توابل | C67: =SUM('الإثنين (3)'!J67) -> 0 | E67: 0 | F67: 0 | H67: 0 | I67: 0 | J67: 0 | K67: 62 | R67: 0
A68: =الأحد!A68 -> 63 | B68: =الأحد!B68 -> إجاص(كغ) | C68: =SUM('الإثنين (3)'!J68) -> 0 | E68: 0 | F68: 0 | H68: 0 | I68: 0 | J68: 0 | K68: 63 | M68: مصـاريف التغذية للشخـص الواحــد | R68: 0
A69: =الأحد!A69 -> 64 | B69: =الأحد!B69 -> 0 | C69: =SUM('الإثنين (3)'!J69) -> 0 | F69: 0 | H69: 0 | I69: 0 | J69: 0 | K69: 64 | R69: 0
A70: =الأحد!A70 -> 65 | B70: =الأحد!B70 -> 0 | C70: =SUM('الإثنين (3)'!J70) -> 0 | F70: 0 | H70: 0 | I70: 0 | J70: =SUM(F70-G70) -> 0 | K70: 65 | M70: قيمة مخروجات اليـوم | O70: =SUM(I77) -> 0 | R70: 0
A71: =الأحد!A71 -> 66 | B71: =الأحد!B71 -> 0 | C71: =SUM('الإثنين (3)'!J71) -> 0 | F71: 0 | H71: 0 | I71: 0 | J71: 0 | K71: 66 | R71: 0
A72: =الأحد!A72 -> 67 | B72: =الأحد!B72 -> 0 | C72: =SUM('الإثنين (3)'!J72) -> 0 | F72: =SUM(C72+D72) -> 0 | H72: =SUM(E72) -> 0 | I72: =SUM(G72*H72) -> 0 | J72: 0 | K72: 67 | M72: معدل تغذية الأفراد | O72: =SUM(O14) -> 1 | R72: 0
A73: =الأحد!A73 -> 68 | B73: =الأحد!B73 -> 0 | C73: =SUM('الإثنين (3)'!J73) -> 0 | F73: =SUM(C73+D73) -> 0 | H73: =SUM(E73) -> 0 | I73: =SUM(G73*H73) -> 0 | J73: 0 | K73: 68 | R73: 0
A74: =الأحد!A74 -> 69 | B74: =الأحد!B74 -> 0 | C74: =SUM('الإثنين (3)'!J74) -> 0 | E74: 0 | F74: 0 | H74: 0 | I74: 0 | J74: 0 | K74: 69 | M74: =SUM(I77/O14) -> 0 | O74: = | P74: =M74 -> 0 | R74: 0
A75: =الأحد!A75 -> 70 | B75: =الأحد!B75 -> 0 | C75: =SUM('الإثنين (3)'!J75) -> 12.2 | F75: =SUM(C75+D75) -> 12.2 | H75: =SUM(E75) -> 0 | I75: =SUM(G75*H75) -> 0 | J75: 12.2 | K75: 70 | M75: (1) معدل تغذية الأفـراد للوجبــة | R75: 0
A76: =الأحد!A76 -> 71 | B76: =الأحد!B76 -> 0 | C76: =SUM('الإثنين (3)'!J76) -> 0 | E76: 0 | F76: =SUM(C76+D76) -> 0 | H76: =SUM(E76) -> 0 | I76: =SUM(G76*H76) -> 0 | J76: 0 | K76: 71 | M76: الغــذاء + العشـاء | R76: 0
A77: المجموع | C77: =SUM(C6:C76) -> 7.2 | D77: =SUM(D6:D76) -> 0 | F77: =SUM(F6:F76) -> 7.2 | G77: =SUM(G6:G76) -> 0 | I77: =SUM(I6:I76) -> 0 | J77: =SUM(J6:J76) -> 7.2 | R77: =SUM(R12:R76) -> 0
K78: حــررببئرالشهداء في:23/ 04 / 2013....................................

Sheet الأربعاء (3)
A1: اســــم المؤسســــــــــــــــــــــــــــــــــــــــــــــة | E1: ورقـــــة الاستهــــلاك اليومـــــــــــــــــــي
A2: طالــــــــــب عبــــد الله-بئر الشهداء- | F2: يـوم: الأربعاء | G2: =SUM('الخميس(2)'!G2+6) -> 24 | H2: =الخميس!H2 -> فيفري | I2: 2013 | M2: السنة المالية :2013
A3: طبيعة المواد | C3: مخزون | D3: مــــدخـــــلات اليـوم | F3: مجموع مخزون | G3: مـخرجــــــــــــــــــــات اليـوم | J3: كمية ماتبقى | K3: ملاحظـــــات | M3: تعــــــــداد اليـــوم
D4: الكمية | E4: سعر | F4: البارحـــــــــة | G4: الكمية | H4: سعر | I4: قيمة مخـروجات | J4: فـــي | M4: المستفيدون | N4: فطـور | O4: غـذاء | P4: عشـاء
A5: المستهلكـــة | C5: البارحة | E5: الوحـدة | F5: ومدخلات اليوم | H5: الوحـدة | I5: اليــوم | J5: نهاية اليــوم
A6: =الأحد!A6 -> 01 | B6: =الأحد!B6 -> الخبـــــــز | C6: =SUM('الثلاثاء (3)'!J6) -> 12 | E6: 7.4 | F6: =SUM(C6+D6) -> 12 | H6: =SUM(E6) -> 7.4 | I6: =SUM(G6*H6) -> 0 | J6: =SUM(F6-G6) -> 12 | K6: 01 | M6: نصف داخليون | O6: 239 | R6: =SUM(D6*E6) -> 0
A7: =الأحد!A7 -> 02 | B7: =الأحد!B7 -> بسباس(كغ) | C7: =SUM('الثلاثاء (3)'!J7) -> 13 | E7: 80 | F7: 13 | H7: 80 | I7: 0 | J7: 13 | K7: 02 | M7: م .تربويون | O7: 1 | R7: =SUM(D7*E7) -> 0
A8: =الأحد!A8 -> 03 | B8: =الأحد!B8 -> بيض | C8: =SUM('الثلاثاء (3)'!J8) -> 0 | E8: 12 | F8: 0 | H8: 12 | I8: 0 | J8: 0 | K8: 03 | M8: الأساتــذة | O8: 8 | R8: =SUM(D8*E8) -> 0
A9: =الأحد!A9 -> 04 | B9: =الأحد!B9 -> بطاطا(كغ) | C9: =SUM('الثلاثاء (3)'!J9) -> 12 | E9: 60 | F9: 12 | H9: 60 | I9: 0 | J9: 12 | K9: 04 | M9: العمـــال | O9: 1 | R9: =SUM(D9*E9) -> 0
A10: =الأحد!A10 -> 05 | B10: =الأحد!B10 -> بصل(كغ) | C10: =SUM('الثلاثاء (3)'!J10) -> 35 | E10: 90 | F10: 35 | H10: 90 | I10: 0 | J10: 35 | K10: 05 | M10: الإداريين | O10: 2 | R10: =SUM(D10*E10) -> 0
A11: =الأحد!A11 -> 06 | B11: =الأحد!B11 -> جزر(كغ) | C11: =SUM('الثلاثاء (3)'!J11) -> 12 | E11: 80 | F11: 12 | H11: 80 | I11: 0 | J11: 12 | K11: 06 | M11: المجمـــــوع | N11: =SUM(N6:N10) -> 0 | O11: =SUM(O6:O10) -> 251 | P11: =SUM(P6:P10) -> 0
A12: =الأحد!A12 -> 07 | B12: =الأحد!B12 -> جبن(علبة16ق) | C12: =SUM('الثلاثاء (3)'!J12) -> 0 | E12: 80 | F12: 0 | H12: 80 | I12: 0 | J12: 0 | K12: 07 | R12: =SUM(D12*E12) -> 0
A13: =الأحد!A13 -> 08 | B13: =الأحد!B13 -> تفاح(كغ) | C13: =SUM('الثلاثاء (3)'!J13) -> 0 | E13: 0 | F13: 0 | H13: 0 | I13: 0 | J13: 0 | K13: 08 | R13: =SUM(D13*E13) -> 0
A14: =الأحد!A14 -> 09 | B14: =الأحد!B14 -> خيار(كغ) | C14: =SUM('الثلاثاء (3)'!J14) -> 0 | E14: 0 | F14: 0 | H14: 0 | I14: 0 | J14: 0 | K14: 09 | M14: معـدل المستفيدين | O14: =SUM(N11+O11+P11) -> 251 | R14: 0
A15: =الأحد!A15 -> 10 | B15: =الأحد!B15 -> طماطم حب(كغ) | C15: =SUM('الثلاثاء (3)'!J15) -> 0 | E15: 120 | F15: 0 | H15: 120 | I15: 0 | J15: 0 | K15: 10 | R15: 0
A16: =الأحد!A16 -> 11 | B16: =الأحد!B16 -> ثوم(كغ) | C16: =SUM('الثلاثاء (3)'!J16) -> 0 | E16: 400 | F16: 0 | H16: 400 | I16: 0 | J16: 0 | K16: 11 | M16: من الوجبـــات | R16: 0
A17: =الأحد!A17 -> 12 | B17: =الأحد!B17 -> سلاطة خس(كغ) | C17: =SUM('الثلاثاء (3)'!J17) -> 0 | E17: 80 | F17: =SUM(C17+D17) -> 0 | H17: =SUM(E17) -> 80 | I17: =SUM(G17*H17) -> 0 | J17: 0 | K17: 12 | M17: الوجبــــــــــــــات | R17: 0
A18: =الأحد!A18 -> 13 | B18: =الأحد!B18 -> برتقال(كغ) | C18: =SUM('الثلاثاء (3)'!J18) -> 0 | E18: 120 | F18: 0 | H18: 120 | I18: 0 | J18: 0 | K18: 13 | R18: 0
A19: =الأحد!A19 -> 14 | B19: =الأحد!B19 -> موز(كغ) | C19: =SUM('الثلاثاء (3)'!J19) -> -89 | E19: 160 | F19: -89 | H19: 160 | I19: 0 | J19: -89 | K19: 14 | M19: فطــــــــور الصبــاح | R19: 0
A20: =الأحد!A20 -> 15 | B20: =الأحد!B20 -> يوسفية | C20: =SUM('الثلاثاء (3)'!J20) -> 0 | E20: 0 | F20: 0 | H20: 0 | I20: 0 | J20: 0 | K20: 15 | R20: 0
A21: =الأحد!A21 -> 16 | B21: =الأحد!B21 -> عنب(كغ) | C21: =SUM('الثلاثاء (3)'!J21) -> 0 | E21: 0 | F21: 0 | H21: 0 | I21: 0 | J21: 0 | K21: 16 | R21: 0
A22: =الأحد!A22 -> 17 | B22: =الأحد!B22 -> شخشوخة(كغ) | C22: =SUM('الثلاثاء (3)'!J22) -> 0 | E22: 0 | F22: 0 | H22: 0 | I22: 0 | J22: 0 | K22: 17 | R22: 0
A23: =الأحد!A23 -> 18 | B23: =الأحد!B23 -> زعرورة (كغ) | C23: =SUM('الثلاثاء (3)'!J23) -> 0 | E23: 0 | F23: 0 | H23: 0 | I23: 0 | J23: 0 | K23: 18 | R23: 0
A24: =الأحد!A24 -> 19 | B24: =الأحد!B24 -> ياؤرت | C24: =SUM('الثلاثاء (3)'!J24) -> 0 | E24: 15 | F24: 0 | H24: 15 | I24: 0 | J24: 0 | K24: 19 | R24: 0
A25: =الأحد!A25 -> 20 | B25: =الأحد!B25 -> شكولاطة | C25: =SUM('الثلاثاء (3)'!J25) -> 0 | E25: 0 | F25: 0 | H25: 0 | I25: 0 | J25: 0 | K25: 20 | R25: 0
A26: =الأحد!A26 -> 21 | B26: =الأحد!B26 -> زيتون اسود(كغ) | C26: =SUM('الثلاثاء (3)'!J26) -> 0 | E26: 350 | F26: 0 | H26: 350 | I26: 0 | J26: 0 | K26: 21 | M26: الغــــــذاء | R26: 0
A27: =الأحد!A27 -> 22 | B27: =الأحد!B27 -> زيتون اخضر(كغ) | C27: =SUM('الثلاثاء (3)'!J27) -> 0 | E27: 400 | F27: 0 | H27: 400 | I27: 0 | J27: 0 | K27: 22 | M27: خبز+مقارونة+لحم دجاج | R27: 0
A28: =الأحد!A28 -> 23 | B28: =الأحد!B28 -> تليتلي(كغ) | C28: =SUM('الثلاثاء (3)'!J28) -> 0 | E28: 90 | F28: 0 | H28: 90 | I28: 0 | J28: 0 | K28: 23 | M28: سلاطة متنوعة | N28: عصير فواكه | R28: 0
A29: =الأحد!A29 -> 24 | B29: =الأحد!B29 -> دويدة(كغ) | C29: =SUM('الثلاثاء (3)'!J29) -> 0 | E29: 0 | F29: 0 | H29: 0 | I29: 0 | J29: 0 | K29: 24 | R29: 0
A30: =الأحد!A30 -> 25 | B30: =الأحد!B30 -> سباقيطي(كغ) | C30: =SUM('الثلاثاء (3)'!J30) -> 0 | E30: 90 | F30: 0 | H30: 90 | I30: 0 | J30: 0 | K30: 25 | R30: 0
A31: =الأحد!A31 -> 26 | B31: =الأحد!B31 -> كسكسي (كغ) | C31: =SUM('الثلاثاء (3)'!J31) -> 0 | E31: 90 | F31: 0 | H31: 90 | I31: 0 | J31: 0 | K31: 26 | M31: قائمـة المقبولين للطاولة المشتركــة | R31: 0
A32: =الأحد!A32 -> 27 | B32: =الأحد!B32 -> مقارونة | C32: =SUM('الثلاثاء (3)'!J32) -> 0 | E32: 90 | F32: 0 | H32: 90 | I32: 0 | J32: 0 | K32: 27 | M32: الأسمــاء | N32: ف.ص | O32: غــداء | P32: ع | R32: 0
A33: =الأحد!A33 -> 28 | B33: =الأحد!B33 -> حمص | C33: =SUM('الثلاثاء (3)'!J33) -> 0 | E33: 240 | F33: 0 | H33: 240 | I33: 0 | J33: 0 | K33: 28 | L33: =الأحد!L33 -> 1 | M33: =الأحد!M33 -> ازوال شراف الدين | R33: 0
A34: =الأحد!A34 -> 29 | B34: =الأحد!B34 -> عدس | C34: =SUM('الثلاثاء (3)'!J34) -> 0 | E34: 120 | F34: 0 | H34: 120 | I34: 0 | J34: 0 | K34: 29 | L34: =الأحد!L34 -> 2 | M34: =الأحد!M34 -> اوشن صبرينة | R34: 0
A35: =الأحد!A35 -> 30 | B35: =الأحد!B35 -> فاصولياء(كغ) | C35: =SUM('الثلاثاء (3)'!J35) -> 0 | E35: 0 | F35: =SUM(C35+D35) -> 0 | H35: =SUM(E35) -> 0 | I35: =SUM(G35*H35) -> 0 | J35: 0 | K35: 30 | L35: =الأحد!L35 -> 3 | M35: =الأحد!M35 -> قلي أحلام
A36: =الأحد!A36 -> 31 | B36: =الأحد!B36 -> ارزمفور(كغ) | C36: =SUM('الثلاثاء (3)'!J36) -> 0 | E36: 110 | F36: 0 | H36: 110 | I36: 0 | J36: 0 | K36: 31 | L36: =الأحد!L36 -> 4 | M36: =الأحد!M36 -> اوش ايمان | R36: 0
A37: =الأحد!A37 -> 32 | B37: =الأحد!B37 -> حلويات | C37: =SUM('الثلاثاء (3)'!J37) -> 0 | E37: 0 | F37: =SUM(C37+D37) -> 0 | H37: =SUM(E37) -> 0 | I37: =SUM(G37*H37) -> 0 | J37: 0 | K37: 32 | L37: =الأحد!L37 -> 5 | M37: =الأحد!M37 -> عزيون فضيلة | R37: 0
A38: =الأحد!A38 -> 33 | B38: =الأحد!B38 -> خوخ | C38: =SUM('الثلاثاء (3)'!J38) -> 0 | E38: 0 | F38: 0 | H38: 0 | I38: 0 | J38: 0 | K38: 33 | L38: =الأحد!L38 -> 6 | M38: =الأحد!M38 -> شايب عينو السعيد | R38: 0
A39: =الأحد!A39 -> 34 | B39: =الأحد!B39 -> فلفل اسود(كيس15غ) | C39: =SUM('الثلاثاء (3)'!J39) -> 0 | E39: 0 | F39: 0 | H39: 0 | I39: 0 | J39: 0 | K39: 34 | L39: =الأحد!L39 -> 7 | M39: =الأحد!M39 -> زيوش حدة | R39: 0
A40: =الأحد!A40 -> 35 | B40: =الأحد!B40 -> خميرة | C40: =SUM('الثلاثاء (3)'!J40) -> 0 | E40: 0 | F40: 0 | H40: 0 | I40: 0 | J40: 0 | K40: 35 | L40: =الأحد!L40 -> 8 | M40: =الأحد!M40 -> قرازة فتحي | R40: 0
A41: =الأحد!A41 -> 36 | B41: =الأحد!B41 -> كمون | C41: =SUM('الثلاثاء (3)'!J41) -> 0 | E41: 30 | F41: 0 | H41: 30 | I41: 0 | J41: 0 | K41: 36 | L41: =الأحد!L41 -> 9 | M41: =الأحد!M41 -> غضبان فيروز | R41: 0
A42: =الأحد!A42 -> 37 | B42: =الأحد!B42 -> ملح(كغ) | C42: =SUM('الثلاثاء (3)'!J42) -> 0 | E42: 30 | F42: 0 | H42: 30 | I42: 0 | J42: 0 | K42: 37 | L42: =الأحد!L42 -> 10 | M42: =الأحد!M42 -> قرفي عليمة | R42: 0
A43: =الأحد!A43 -> 38 | B43: =الأحد!B43 -> طماطم مصبرة(كغ) | C43: =SUM('الثلاثاء (3)'!J43) -> 0 | E43: 150 | F43: 0 | H43: 150 | I43: 0 | J43: 0 | K43: 38 | L43: =الأحد!L43 -> 11 | M43: =الأحد!M43 -> بوناب هوراي | R43: 0
A44: =الأحد!A44 -> 39 | B44: =الأحد!B44 -> زيت المائدة 1لتر | C44: =SUM('الثلاثاء (3)'!J44) -> 0 | E44: 140 | F44: 0 | H44: 140 | I44: 0 | J44: 0 | K44: 39 | L44: =الأحد!L44 -> 12 | M44: =الأحد!M44 -> بوناب فريدة | R44: 0
A45: =الأحد!A45 -> 40 | B45: =الأحد!B45 -> زيدة | C45: =SUM('الثلاثاء (3)'!J45) -> 0 | E45: 70 | F45: 0 | H45: 70 | I45: 0 | J45: 0 | K45: 40 | L45: =الأحد!L45 -> 13 | M45: =الأحد!M45 -> جمال بوناب | R45: 0
A46: =الأحد!A46 -> 41 | B46: =الأحد!B46 -> خل(قارورة) | C46: =SUM('الثلاثاء (3)'!J46) -> 0 | E46: 30 | F46: 0 | H46: 30 | I46: 0 | J46: 0 | K46: 41 | L46: =الأحد!L46 -> 14 | M46: =الأحد!M46 -> 0 | R46: 0
A47: =الأحد!A47 -> 42 | B47: =الأحد!B47 -> لحم دجاج(كغ) | C47: =SUM('الثلاثاء (3)'!J47) -> 0 | E47: 340 | F47: 0 | H47: 340 | I47: 0 | J47: 0 | K47: 42 | L47: =الأحد!L47 -> 15 | M47: =الأحد!M47 -> 0 | R47: 0
A48: =الأحد!A48 -> 43 | B48: =الأحد!B48 -> فافل | C48: =SUM('الثلاثاء (3)'!J48) -> 0 | E48: 0 | F48: 0 | H48: 0 | I48: 0 | J48: 0 | K48: 43 | L48: =الأحد!L48 -> 16 | M48: =الأحد!M48 -> 0 | R48: 0
A49: =الأحد!A49 -> 44 | B49: =الأحد!B49 -> لحم عجل(كغ) | C49: =SUM('الثلاثاء (3)'!J49) -> 0 | E49: 0 | F49: 0 | H49: 0 | I49: 0 | J49: 0 | K49: 44 | L49: =الأحد!L49 -> 17 | M49: =الأحد!M49 -> 0 | R49: 0
A50: =الأحد!A50 -> 45 | B50: =الأحد!B50 -> ايجاص(كغ) | C50: =SUM('الثلاثاء (3)'!J50) -> 0 | E50: 0 | F50: 0 | H50: 0 | I50: 0 | J50: 0 | K50: 45 | L50: =الأحد!L50 -> 18 | M50: =الأحد!M50 -> 0 | R50: =SUM(D50*E50) -> 0
A51: =الأحد!A51 -> 46 | B51: =الأحد!B51 -> طونة | C51: =SUM('الثلاثاء (3)'!J51) -> 0 | E51: 0 | F51: 0 | H51: 0 | I51: 0 | J51: 0 | K51: 46 | L51: =الأحد!L51 -> 19 | M51: =الأحد!M51 -> 0 | R51: =SUM(D51*E51) -> 0
A52: =الأحد!A52 -> 47 | B52: =الأحد!B52 -> جلبانة خضراء(كغ) | C52: =SUM('الثلاثاء (3)'!J52) -> 0 | E52: 0 | F52: 0 | H52: 0 | I52: 0 | J52: 0 | K52: 47 | L52: =الأحد!L52 -> 20 | M52: =الأحد!M52 -> 0 | R52: =SUM(D52*E52) -> 0
A53: =الأحد!A53 -> 48 | B53: =الأحد!B53 -> مرطبات | C53: =SUM('الثلاثاء (3)'!J53) -> 0 | E53: 0 | F53: 0 | H53: 0 | I53: 0 | J53: 0 | K53: 48 | L53: =الأحد!L53 -> 21 | M53: =الأحد!M53 -> 0 | R53: 0
A54: =الأحد!A54 -> 49 | B54: =الأحد!B54 -> مايـونــاز500غ | C54: =SUM('الثلاثاء (3)'!J54) -> 0 | E54: 0 | F54: 0 | H54: 0 | I54: 0 | J54: 0 | K54: 49 | L54: =الأحد!L54 -> 22 | M54: =الأحد!M54 -> 0 | R54: 0
A55: =الأحد!A55 -> 50 | B55: =الأحد!B55 -> مربى | C55: =SUM('الثلاثاء (3)'!J55) -> 0 | E55: 0 | F55: 0 | H55: 0 | I55: 0 | J55: 0 | K55: 50 | L55: =الأحد!L55 -> 23 | M55: =الأحد!M55 -> 0 | R55: 0
A56: =الأحد!A56 -> 51 | B56: =الأحد!B56 -> مشروبات غازية | C56: =SUM('الثلاثاء (3)'!J56) -> 0 | E56: 110 | F56: 0 | H56: 110 | I56: 0 | J56: 0 | K56: 51 | L56: =الأحد!L56 -> 24 | M56: =الأحد!M56 -> 0 | R56: 0
A57: =الأحد!A57 -> 52 | B57: =الأحد!B57 -> ماء معدني | C57: =SUM('الثلاثاء (3)'!J57) -> 0 | E57: 0 | F57: 0 | H57: 0 | I57: 0 | J57: 0 | K57: 52 | L57: =الأحد!L57 -> 25 | M57: =الأحد!M57 -> 0 | R57: 0
A58: =الأحد!A58 -> 53 | B58: =الأحد!B58 -> تمر(كغ) | C58: =SUM('الثلاثاء (3)'!J58) -> 0 | E58: 0 | F58: 0 | H58: 0 | I58: 0 | J58: 0 | K58: 53 | L58: =الأحد!L58 -> 26 | M58: =الأحد!M58 -> 0 | R58: 0
A59: =الأحد!A59 -> 54 | B59: =الأحد!B59 -> سكر | C59: =SUM('الثلاثاء (3)'!J59) -> 0 | E59: 0 | F59: 0 | H59: 0 | I59: 0 | J59: 0 | K59: 54 | L59: =الأحد!L59 -> 27 | M59: =الأحد!M59 -> 0 | R59: 0
A60: =الأحد!A60 -> 55 | B60: =الأحد!B60 -> فافل حار | C60: =SUM('الثلاثاء (3)'!J60) -> 0 | E60: 0 | F60: 0 | H60: 0 | I60: 0 | J60: 0 | K60: 55 | L60: =الأحد!L60 -> 28 | M60: =الأحد!M60 -> 0 | R60: 0
A61: =الأحد!A61 -> 56 | B61: =الأحد!B61 -> حليب سوبرلي | C61: =SUM('الثلاثاء (3)'!J61) -> 0 | E61: 0 | F61: =SUM(C61+D61) -> 0 | H61: =SUM(E61) -> 0 | I61: =SUM(G61*H61) -> 0 | J61: 0 | K61: 56 | L61: =الأحد!L61 -> 29 | M61: =الأحد!M61 -> 0
A62: =الأحد!A62 -> 57 | B62: =الأحد!B62 -> فريك | C62: =SUM('الثلاثاء (3)'!J62) -> 0 | E62: 0 | F62: 0 | H62: 0 | I62: 0 | J62: 0 | K62: 57 | L62: =الأحد!L62 -> 30 | M62: =الأحد!M62 -> 0
A63: =الأحد!A63 -> 58 | B63: =الأحد!B63 -> جريوات | C63: =SUM('الثلاثاء (3)'!J63) -> 0 | E63: 120 | F63: 0 | H63: 120 | I63: 0 | J63: 0 | K63: 58 | L63: =الأحد!L63 -> 31 | M63: =الأحد!M63 -> 0
A64: =الأحد!A64 -> 59 | B64: =الأحد!B64 -> تاي | C64: =SUM('الثلاثاء (3)'!J64) -> 0 | E64: 280 | F64: 0 | H64: 280 | I64: 0 | J64: 0 | K64: 59 | L64: =الأحد!L64 -> 32 | M64: =الأحد!M64 -> 0 | R64: 0
A65: =الأحد!A65 -> 60 | B65: =الأحد!B65 -> قهوة(كغ) | C65: =SUM('الثلاثاء (3)'!J65) -> 0 | E65: 0 | F65: 0 | H65: 0 | I65: 0 | J65: 0 | K65: 60 | M65: المجموع | N65: =SUM(N51:N64) -> 0 | O65: =O33+O34+O35+O36+O37+O38+O39+O40+O41+O42+O43+O44+O45+O46+O47+O48+O49+O50+O51+O52+O53+O54+O55+O56+O57+O58+O59+O60+O61+O62+O63+O64 -> 0 | P65: =SUM(P51:P64) -> 0 | R65: 0
A66: =الأحد!A66 -> 61 | B66: =الأحد!B66 -> شمندر | C66: =SUM('الثلاثاء (3)'!J66) -> 0 | E66: 0 | F66: 0 | H66: 0 | I66: 0 | J66: 0 | K66: 61 | R66: 0
A67: =الأحد!A67 -> 62 | B67: =الأحد!B67 -> توابل | C67: =SUM('الثلاثاء (3)'!J67) -> 0 | E67: 0 | F67: 0 | H67: 0 | I67: 0 | J67: 0 | K67: 62 | R67: 0
A68: =الأحد!A68 -> 63 | B68: =الأحد!B68 -> إجاص(كغ) | C68: =SUM('الثلاثاء (3)'!J68) -> 0 | E68: 0 | F68: 0 | H68: 0 | I68: 0 | J68: 0 | K68: 63 | M68: مصـاريف التغذية للشخـص الواحــد | R68: 0
A69: =الأحد!A69 -> 64 | B69: =الأحد!B69 -> 0 | C69: =SUM('الثلاثاء (3)'!J69) -> 0 | F69: 0 | H69: 0 | I69: 0 | J69: 0 | K69: 64 | R69: 0
A70: =الأحد!A70 -> 65 | B70: =الأحد!B70 -> 0 | C70: =SUM('الثلاثاء (3)'!J70) -> 0 | F70: 0 | H70: 0 | I70: 0 | J70: =SUM(F70-G70) -> 0 | K70: 65 | M70: قيمة مخروجات اليـوم | O70: =SUM(I77) -> 0 | R70: 0
A71: =الأحد!A71 -> 66 | B71: =الأحد!B71 -> 0 | C71: =SUM('الثلاثاء (3)'!J71) -> 0 | F71: 0 | H71: 0 | I71: 0 | J71: 0 | K71: 66 | R71: 0
A72: =الأحد!A72 -> 67 | B72: =الأحد!B72 -> 0 | C72: =SUM('الثلاثاء (3)'!J72) -> 0 | F72: =SUM(C72+D72) -> 0 | H72: =SUM(E72) -> 0 | I72: =SUM(G72*H72) -> 0 | J72: 0 | K72: 67 | M72: معدل تغذية الأفراد | O72: =SUM(O14) -> 251 | R72: 0
A73: =الأحد!A73 -> 68 | B73: =الأحد!B73 -> 0 | C73: =SUM('الثلاثاء (3)'!J73) -> 0 | F73: =SUM(C73+D73) -> 0 | H73: =SUM(E73) -> 0 | I73: =SUM(G73*H73) -> 0 | J73: 0 | K73: 68 | R73: 0
A74: =الأحد!A74 -> 69 | B74: =الأحد!B74 -> 0 | C74: =SUM('الثلاثاء (3)'!J74) -> 0 | E74: 0 | F74: 0 | H74: 0 | I74: 0 | J74: 0 | K74: 69 | M74: =SUM(I77/O14) -> 0 | O74: = | P74: =M74 -> 0 | R74: 0
A75: =الأحد!A75 -> 70 | B75: =الأحد!B75 -> 0 | C75: =SUM('الثلاثاء (3)'!J75) -> 12.2 | F75: =SUM(C75+D75) -> 12.2 | H75: =SUM(E75) -> 0 | I75: =SUM(G75*H75) -> 0 | J75: 12.2 | K75: 70 | M75: (1) معدل تغذية الأفـراد للوجبــة | R75: 0
A76: =الأحد!A76 -> 71 | B76: =الأحد!B76 -> 0 | C76: =SUM('الثلاثاء (3)'!J76) -> 0 | E76: 0 | F76: =SUM(C76+D76) -> 0 | H76: =SUM(E76) -> 0 | I76: =SUM(G76*H76) -> 0 | J76: 0 | K76: 71 | M76: الغــذاء + العشـاء | R76: 0
A77: المجموع | C77: =SUM(C6:C76) -> 7.2 | D77: =SUM(D6:D76) -> 0 | F77: =SUM(F6:F76) -> 7.2 | G77: =SUM(G6:G76) -> 0 | I77: =SUM(I6:I76) -> 0 | J77: =SUM(J6:J76) -> 7.2 | R77: =SUM(R12:R76) -> 0
K78: حــررببئرالشهداء في:24 / 04 / 2013....................................

Sheet الخميس (3)
A1: اســــم المؤسســــــــــــــــــــــــــــــــــــــــــــــة | E1: ورقـــــة الاستهــــلاك اليومـــــــــــــــــــي
A2: طالــــــــــب عبــــد الله-بئر الشهداء- | F2: يـوم: الخميس | G2: =SUM('الخميس(2)'!G2+7) -> 25 | H2: =الخميس!H2 -> فيفري | I2: 2013 | M2: السنة المالية :2013
A3: طبيعة المواد | C3: مخزون | D3: مــــدخـــــلات اليـوم | F3: مجموع مخزون | G3: مـخرجــــــــــــــــــــات اليـوم | J3: كمية ماتبقى | K3: ملاحظـــــات | M3: تعــــــــداد اليـــوم
D4: الكمية | E4: سعر | F4: البارحـــــــــة | G4: الكمية | H4: سعر | I4: قيمة مخـروجات | J4: فـــي | M4: المستفيدون | N4: فطـور | O4: غـذاء | P4: عشـاء
A5: المستهلكـــة | C5: البارحة | E5: الوحـدة | F5: ومدخلات اليوم | H5: الوحـدة | I5: اليــوم | J5: نهاية اليــوم
A6: =الأحد!A6 -> 01 | B6: =الأحد!B6 -> الخبـــــــز | C6: =SUM('الأربعاء (3)'!J6) -> 12 | E6: 7.4 | F6: =SUM(C6+D6) -> 12 | H6: =SUM(E6) -> 7.4 | I6: =SUM(G6*H6) -> 0 | J6: =SUM(F6-G6) -> 12 | K6: 01 | M6: نصف داخليون | O6: 236 | R6: =SUM(D6*E6) -> 0
A7: =الأحد!A7 -> 02 | B7: =الأحد!B7 -> بسباس(كغ) | C7: =SUM('الأربعاء (3)'!J7) -> 13 | E7: 80 | F7: 13 | H7: 80 | I7: 0 | J7: 13 | K7: 02 | M7: م .تربويون | O7: 2 | R7: =SUM(D7*E7) -> 0
A8: =الأحد!A8 -> 03 | B8: =الأحد!B8 -> بيض | C8: =SUM('الأربعاء (3)'!J8) -> 0 | E8: 12 | F8: 0 | H8: 12 | I8: 0 | J8: 0 | K8: 03 | M8: الأساتــذة | O8: 8 | R8: =SUM(D8*E8) -> 0
A9: =الأحد!A9 -> 04 | B9: =الأحد!B9 -> بطاطا(كغ) | C9: =SUM('الأربعاء (3)'!J9) -> 12 | E9: 60 | F9: 12 | H9: 60 | I9: 0 | J9: 12 | K9: 04 | M9: العمـــال | O9: 2 | R9: =SUM(D9*E9) -> 0
A10: =الأحد!A10 -> 05 | B10: =الأحد!B10 -> بصل(كغ) | C10: =SUM('الأربعاء (3)'!J10) -> 35 | E10: 90 | F10: 35 | H10: 90 | I10: 0 | J10: 35 | K10: 05 | M10: الإداريين | O10: 3 | R10: =SUM(D10*E10) -> 0
A11: =الأحد!A11 -> 06 | B11: =الأحد!B11 -> جزر(كغ) | C11: =SUM('الأربعاء (3)'!J11) -> 12 | E11: 80 | F11: 12 | H11: 80 | I11: 0 | J11: 12 | K11: 06 | M11: المجمـــــوع | N11: =SUM(N6:N10) -> 0 | O11: =SUM(O6:O10) -> 251 | P11: =SUM(P6:P10) -> 0
A12: =الأحد!A12 -> 07 | B12: =الأحد!B12 -> جبن(علبة16ق) | C12: =SUM('الأربعاء (3)'!J12) -> 0 | E12: 80 | F12: 0 | H12: 80 | I12: 0 | J12: 0 | K12: 07 | R12: =SUM(D12*E12) -> 0
A13: =الأحد!A13 -> 08 | B13: =الأحد!B13 -> تفاح(كغ) | C13: =SUM('الأربعاء (3)'!J13) -> 0 | E13: 0 | F13: 0 | H13: 0 | I13: 0 | J13: 0 | K13: 08 | R13: =SUM(D13*E13) -> 0
A14: =الأحد!A14 -> 09 | B14: =الأحد!B14 -> خيار(كغ) | C14: =SUM('الأربعاء (3)'!J14) -> 0 | E14: 0 | F14: 0 | H14: 0 | I14: 0 | J14: 0 | K14: 09 | M14: معـدل المستفيدين | O14: =SUM(N11+O11+P11) -> 251 | R14: 0
A15: =الأحد!A15 -> 10 | B15: =الأحد!B15 -> طماطم حب(كغ) | C15: =SUM('الأربعاء (3)'!J15) -> 0 | E15: 90 | F15: 0 | H15: 90 | I15: 0 | J15: 0 | K15: 10 | R15: 0
A16: =الأحد!A16 -> 11 | B16: =الأحد!B16 -> ثوم(كغ) | C16: =SUM('الأربعاء (3)'!J16) -> 0 | E16: 400 | F16: 0 | H16: 400 | I16: 0 | J16: 0 | K16: 11 | M16: من الوجبـــات | R16: 0
A17: =الأحد!A17 -> 12 | B17: =الأحد!B17 -> سلاطة خس(كغ) | C17: =SUM('الأربعاء (3)'!J17) -> 0 | E17: 80 | F17: =SUM(C17+D17) -> 0 | H17: =SUM(E17) -> 80 | I17: =SUM(G17*H17) -> 0 | J17: 0 | K17: 12 | M17: الوجبــــــــــــــات | R17: 0
A18: =الأحد!A18 -> 13 | B18: =الأحد!B18 -> برتقال(كغ) | C18: =SUM('الأربعاء (3)'!J18) -> 0 | E18: 120 | F18: 0 | H18: 120 | I18: 0 | J18: 0 | K18: 13 | R18: 0
A19: =الأحد!A19 -> 14 | B19: =الأحد!B19 -> موز(كغ) | C19: =SUM('الأربعاء (3)'!J19) -> -89 | E19: 160 | F19: -89 | H19: 160 | I19: 0 | J19: -89 | K19: 14 | M19: فطــــــــور الصبــاح | R19: 0
A20: =الأحد!A20 -> 15 | B20: =الأحد!B20 -> يوسفية | C20: =SUM('الأربعاء (3)'!J20) -> 0 | E20: 0 | F20: 0 | H20: 0 | I20: 0 | J20: 0 | K20: 15 | R20: 0
A21: =الأحد!A21 -> 16 | B21: =الأحد!B21 -> عنب(كغ) | C21: =SUM('الأربعاء (3)'!J21) -> 0 | E21: 0 | F21: 0 | H21: 0 | I21: 0 | J21: 0 | K21: 16 | R21: 0
A22: =الأحد!A22 -> 17 | B22: =الأحد!B22 -> شخشوخة(كغ) | C22: =SUM('الأربعاء (3)'!J22) -> 0 | E22: 0 | F22: 0 | H22: 0 | I22: 0 | J22: 0 | K22: 17 | R22: 0
A23: =الأحد!A23 -> 18 | B23: =الأحد!B23 -> زعرورة (كغ) | C23: =SUM('الأربعاء (3)'!J23) -> 0 | E23: 0 | F23: 0 | H23: 0 | I23: 0 | J23: 0 | K23: 18 | R23: 0
A24: =الأحد!A24 -> 19 | B24: =الأحد!B24 -> ياؤرت | C24: =SUM('الأربعاء (3)'!J24) -> 0 | E24: 15 | F24: 0 | H24: 15 | I24: 0 | J24: 0 | K24: 19 | R24: 0
A25: =الأحد!A25 -> 20 | B25: =الأحد!B25 -> شكولاطة | C25: =SUM('الأربعاء (3)'!J25) -> 0 | E25: 0 | F25: 0 | H25: 0 | I25: 0 | J25: 0 | K25: 20 | R25: 0
A26: =الأحد!A26 -> 21 | B26: =الأحد!B26 -> زيتون اسود(كغ) | C26: =SUM('الأربعاء (3)'!J26) -> 0 | E26: 350 | F26: 0 | H26: 350 | I26: 0 | J26: 0 | K26: 21 | M26: الغــــــذاء | R26: 0
A27: =الأحد!A27 -> 22 | B27: =الأحد!B27 -> زيتون اخضر(كغ) | C27: =SUM('الأربعاء (3)'!J27) -> 0 | E27: 400 | F27: 0 | H27: 400 | I27: 0 | J27: 0 | K27: 22 | M27: خبز+تليتلي+بيض | R27: 0
A28: =الأحد!A28 -> 23 | B28: =الأحد!B28 -> تليتلي(كغ) | C28: =SUM('الأربعاء (3)'!J28) -> 0 | E28: 90 | F28: 0 | H28: 90 | I28: 0 | J28: 0 | K28: 23 | M28: سلاطة متنوعة | N28: ياؤورت | R28: 0
A29: =الأحد!A29 -> 24 | B29: =الأحد!B29 -> دويدة(كغ) | C29: =SUM('الأربعاء (3)'!J29) -> 0 | E29: 0 | F29: 0 | H29: 0 | I29: 0 | J29: 0 | K29: 24 | R29: 0
A30: =الأحد!A30 -> 25 | B30: =الأحد!B30 -> سباقيطي(كغ) | C30: =SUM('الأربعاء (3)'!J30) -> 0 | E30: 90 | F30: 0 | H30: 90 | I30: 0 | J30: 0 | K30: 25 | R30: 0
A31: =الأحد!A31 -> 26 | B31: =الأحد!B31 -> كسكسي (كغ) | C31: =SUM('الأربعاء (3)'!J31) -> 0 | E31: 90 | F31: 0 | H31: 90 | I31: 0 | J31: 0 | K31: 26 | M31: قائمـة المقبولين للطاولة المشتركــة | R31: 0
A32: =الأحد!A32 -> 27 | B32: =الأحد!B32 -> مقارونة | C32: =SUM('الأربعاء (3)'!J32) -> 0 | E32: 90 | F32: 0 | H32: 90 | I32: 0 | J32: 0 | K32: 27 | M32: الأسمــاء | N32: ف.ص | O32: غــداء | P32: ع | R32: 0
A33: =الأحد!A33 -> 28 | B33: =الأحد!B33 -> حمص | C33: =SUM('الأربعاء (3)'!J33) -> 0 | E33: 240 | F33: 0 | H33: 240 | I33: 0 | J33: 0 | K33: 28 | L33: =الأحد!L33 -> 1 | M33: =الأحد!M33 -> ازوال شراف الدين | R33: 0
A34: =الأحد!A34 -> 29 | B34: =الأحد!B34 -> عدس | C34: =SUM('الأربعاء (3)'!J34) -> 0 | E34: 120 | F34: 0 | H34: 120 | I34: 0 | J34: 0 | K34: 29 | L34: =الأحد!L34 -> 2 | M34: =الأحد!M34 -> اوشن صبرينة | R34: 0
A35: =الأحد!A35 -> 30 | B35: =الأحد!B35 -> فاصولياء(كغ) | C35: =SUM('الأربعاء (3)'!J35) -> 0 | E35: 200 | F35: =SUM(C35+D35) -> 0 | H35: =SUM(E35) -> 200 | I35: =SUM(G35*H35) -> 0 | J35: 0 | K35: 30 | L35: =الأحد!L35 -> 3 | M35: =الأحد!M35 -> قلي أحلام
A36: =الأحد!A36 -> 31 | B36: =الأحد!B36 -> ارزمفور(كغ) | C36: =SUM('الأربعاء (3)'!J36) -> 0 | E36: 110 | F36: 0 | H36: 110 | I36: 0 | J36: 0 | K36: 31 | L36: =الأحد!L36 -> 4 | M36: =الأحد!M36 -> اوش ايمان | R36: 0
A37: =الأحد!A37 -> 32 | B37: =الأحد!B37 -> حلويات | C37: =SUM('الأربعاء (3)'!J37) -> 0 | E37: 0 | F37: 0 | H37: 0 | I37: 0 | J37: 0 | K37: 32 | L37: =الأحد!L37 -> 5 | M37: =الأحد!M37 -> عزيون فضيلة | R37: 0
A38: =الأحد!A38 -> 33 | B38: =الأحد!B38 -> خوخ | C38: =SUM('الأربعاء (3)'!J38) -> 0 | E38: 0 | F38: 0 | H38: 0 | I38: 0 | J38: 0 | K38: 33 | L38: =الأحد!L38 -> 6 | M38: =الأحد!M38 -> شايب عينو السعيد | R38: 0
A39: =الأحد!A39 -> 34 | B39: =الأحد!B39 -> فلفل اسود(كيس15غ) | C39: =SUM('الأربعاء (3)'!J39) -> 0 | E39: 0 | F39: 0 | H39: 0 | I39: 0 | J39: 0 | K39: 34 | L39: =الأحد!L39 -> 7 | M39: =الأحد!M39 -> زيوش حدة | R39: 0
A40: =الأحد!A40 -> 35 | B40: =الأحد!B40 -> خميرة | C40: =SUM('الأربعاء (3)'!J40) -> 0 | E40: 0 | F40: 0 | H40: 0 | I40: 0 | J40: 0 | K40: 35 | L40: =الأحد!L40 -> 8 | M40: =الأحد!M40 -> قرازة فتحي | R40: 0
A41: =الأحد!A41 -> 36 | B41: =الأحد!B41 -> كمون | C41: =SUM('الأربعاء (3)'!J41) -> 0 | E41: 30 | F41: 0 | H41: 30 | I41: 0 | J41: 0 | K41: 36 | L41: =الأحد!L41 -> 9 | M41: =الأحد!M41 -> غضبان فيروز | R41: 0
A42: =الأحد!A42 -> 37 | B42: =الأحد!B42 -> ملح(كغ) | C42: =SUM('الأربعاء (3)'!J42) -> 0 | E42: 30 | F42: 0 | H42: 30 | I42: 0 | J42: 0 | K42: 37 | L42: =الأحد!L42 -> 10 | M42: =الأحد!M42 -> قرفي عليمة | R42: 0
A43: =الأحد!A43 -> 38 | B43: =الأحد!B43 -> طماطم مصبرة(كغ) | C43: =SUM('الأربعاء (3)'!J43) -> 0 | E43: 150 | F43: 0 | H43: 150 | I43: 0 | J43: 0 | K43: 38 | L43: =الأحد!L43 -> 11 | M43: =الأحد!M43 -> بوناب هوراي | R43: 0
A44: =الأحد!A44 -> 39 | B44: =الأحد!B44 -> زيت المائدة 1لتر | C44: =SUM('الأربعاء (3)'!J44) -> 0 | E44: 140 | F44: 0 | H44: 140 | I44: 0 | J44: 0 | K44: 39 | L44: =الأحد!L44 -> 12 | M44: =الأحد!M44 -> بوناب فريدة | R44: 0
A45: =الأحد!A45 -> 40 | B45: =الأحد!B45 -> زيدة | C45: =SUM('الأربعاء (3)'!J45) -> 0 | E45: 70 | F45: 0 | H45: 70 | I45: 0 | J45: 0 | K45: 40 | L45: =الأحد!L45 -> 13 | M45: =الأحد!M45 -> جمال بوناب | R45: 0
A46: =الأحد!A46 -> 41 | B46: =الأحد!B46 -> خل(قارورة) | C46: =SUM('الأربعاء (3)'!J46) -> 0 | E46: 30 | F46: 0 | H46: 30 | I46: 0 | J46: 0 | K46: 41 | L46: =الأحد!L46 -> 14 | M46: =الأحد!M46 -> 0 | R46: 0
A47: =الأحد!A47 -> 42 | B47: =الأحد!B47 -> لحم دجاج(كغ) | C47: =SUM('الأربعاء (3)'!J47) -> 0 | E47: 0 | F47: 0 | H47: 0 | I47: 0 | J47: 0 | K47: 42 | L47: =الأحد!L47 -> 15 | M47: =الأحد!M47 -> 0 | R47: 0
A48: =الأحد!A48 -> 43 | B48: =الأحد!B48 -> فافل | C48: =SUM('الأربعاء (3)'!J48) -> 0 | E48: 0 | F48: 0 | H48: 0 | I48: 0 | J48: 0 | K48: 43 | L48: =الأحد!L48 -> 16 | M48: =الأحد!M48 -> 0 | R48: 0
A49: =الأحد!A49 -> 44 | B49: =الأحد!B49 -> لحم عجل(كغ) | C49: =SUM('الأربعاء (3)'!J49) -> 0 | E49: 0 | F49: 0 | H49: 0 | I49: 0 | J49: 0 | K49: 44 | L49: =الأحد!L49 -> 17 | M49: =الأحد!M49 -> 0 | R49: 0
A50: =الأحد!A50 -> 45 | B50: =الأحد!B50 -> ايجاص(كغ) | C50: =SUM('الأربعاء (3)'!J50) -> 0 | E50: 0 | F50: 0 | H50: 0 | I50: 0 | J50: 0 | K50: 45 | L50: =الأحد!L50 -> 18 | M50: =الأحد!M50 -> 0 | R50: =SUM(D50*E50) -> 0
A51: =الأحد!A51 -> 46 | B51: =الأحد!B51 -> طونة | C51: =SUM('الأربعاء (3)'!J51) -> 0 | E51: 0 | F51: 0 | H51: 0 | I51: 0 | J51: 0 | K51: 46 | L51: =الأحد!L51 -> 19 | M51: =الأحد!M51 -> 0 | R51: =SUM(D51*E51) -> 0
A52: =الأحد!A52 -> 47 | B52: =الأحد!B52 -> جلبانة خضراء(كغ) | C52: =SUM('الأربعاء (3)'!J52) -> 0 | E52: 0 | F52: 0 | H52: 0 | I52: 0 | J52: 0 | K52: 47 | L52: =الأحد!L52 -> 20 | M52: =الأحد!M52 -> 0 | R52: =SUM(D52*E52) -> 0
A53: =الأحد!A53 -> 48 | B53: =الأحد!B53 -> مرطبات | C53: =SUM('الأربعاء (3)'!J53) -> 0 | E53: 0 | F53: 0 | H53: 0 | I53: 0 | J53: 0 | K53: 48 | L53: =الأحد!L53 -> 21 | M53: =الأحد!M53 -> 0 | R53: 0
A54: =الأحد!A54 -> 49 | B54: =الأحد!B54 -> مايـونــاز500غ | C54: =SUM('الأربعاء (3)'!J54) -> 0 | E54: 0 | F54: 0 | H54: 0 | I54: 0 | J54: 0 | K54: 49 | L54: =الأحد!L54 -> 22 | M54: =الأحد!M54 -> 0 | R54: 0
A55: =الأحد!A55 -> 50 | B55: =الأحد!B55 -> مربى | C55: =SUM('الأربعاء (3)'!J55) -> 0 | E55: 0 | F55: 0 | H55: 0 | I55: 0 | J55: 0 | K55: 50 | L55: =الأحد!L55 -> 23 | M55: =الأحد!M55 -> 0 | R55: 0
A56: =الأحد!A56 -> 51 | B56: =الأحد!B56 -> مشروبات غازية | C56: =SUM('الأربعاء (3)'!J56) -> 0 | E56: 0 | F56: 0 | H56: 0 | I56: 0 | J56: 0 | K56: 51 | L56: =الأحد!L56 -> 24 | M56: =الأحد!M56 -> 0 | R56: 0
A57: =الأحد!A57 -> 52 | B57: =الأحد!B57 -> ماء معدني | C57: =SUM('الأربعاء (3)'!J57) -> 0 | E57: 0 | F57: 0 | H57: 0 | I57: 0 | J57: 0 | K57: 52 | L57: =الأحد!L57 -> 25 | M57: =الأحد!M57 -> 0 | R57: 0
A58: =الأحد!A58 -> 53 | B58: =الأحد!B58 -> تمر(كغ) | C58: =SUM('الأربعاء (3)'!J58) -> 0 | E58: 0 | F58: 0 | H58: 0 | I58: 0 | J58: 0 | K58: 53 | L58: =الأحد!L58 -> 26 | M58: =الأحد!M58 -> 0 | R58: 0
A59: =الأحد!A59 -> 54 | B59: =الأحد!B59 -> سكر | C59: =SUM('الأربعاء (3)'!J59) -> 0 | E59: 0 | F59: 0 | H59: 0 | I59: 0 | J59: 0 | K59: 54 | L59: =الأحد!L59 -> 27 | M59: =الأحد!M59 -> 0 | R59: 0
A60: =الأحد!A60 -> 55 | B60: =الأحد!B60 -> فافل حار | C60: =SUM('الأربعاء (3)'!J60) -> 0 | E60: 0 | F60: 0 | H60: 0 | I60: 0 | J60: 0 | K60: 55 | L60: =الأحد!L60 -> 28 | M60: =الأحد!M60 -> 0 | R60: 0
A61: =الأحد!A61 -> 56 | B61: =الأحد!B61 -> حليب سوبرلي | C61: =SUM('الأربعاء (3)'!J61) -> 0 | E61: 1600 | F61: 0 | H61: 1600 | I61: 0 | J61: 0 | K61: 56 | L61: =الأحد!L61 -> 29 | M61: =الأحد!M61 -> 0
A62: =الأحد!A62 -> 57 | B62: =الأحد!B62 -> فريك | C62: =SUM('الأربعاء (3)'!J62) -> 0 | E62: 0 | F62: 0 | H62: 0 | I62: 0 | J62: 0 | K62: 57 | L62: =الأحد!L62 -> 30 | M62: =الأحد!M62 -> 0
A63: =الأحد!A63 -> 58 | B63: =الأحد!B63 -> جريوات | C63: =SUM('الأربعاء (3)'!J63) -> 0 | E63: 120 | F63: 0 | H63: 120 | I63: 0 | J63: 0 | K63: 58 | L63: =الأحد!L63 -> 31 | M63: =الأحد!M63 -> 0
A64: =الأحد!A64 -> 59 | B64: =الأحد!B64 -> تاي | C64: =SUM('الأربعاء (3)'!J64) -> 0 | E64: 280 | F64: 0 | H64: 280 | I64: 0 | J64: 0 | K64: 59 | L64: =الأحد!L64 -> 32 | M64: =الأحد!M64 -> 0 | R64: 0
A65: =الأحد!A65 -> 60 | B65: =الأحد!B65 -> قهوة(كغ) | C65: =SUM('الأربعاء (3)'!J65) -> 0 | E65: 0 | F65: 0 | H65: 0 | I65: 0 | J65: 0 | K65: 60 | M65: المجموع | N65: =SUM(N51:N64) -> 0 | O65: =O33+O34+O35+O36+O37+O38+O39+O40+O41+O42+O43+O44+O45+O46+O47+O48+O49+O50+O51+O52+O53+O54+O55+O56+O57+O58+O59+O60+O61+O62+O63+O64 -> 0 | P65: =SUM(P51:P64) -> 0 | R65: 0
A66: =الأحد!A66 -> 61 | B66: =الأحد!B66 -> شمندر | C66: =SUM('الأربعاء (3)'!J66) -> 0 | E66: 0 | F66: 0 | H66: 0 | I66: 0 | J66: 0 | K66: 61 | R66: 0
A67: =الأحد!A67 -> 62 | B67: =الأحد!B67 -> توابل | C67: =SUM('الأربعاء (3)'!J67) -> 0 | E67: 0 | F67: =SUM(C67+D67) -> 0 | H67: =SUM(E67) -> 0 | I67: =SUM(G67*H67) -> 0 | J67: 0 | K67: 62 | R67: 0
A68: =الأحد!A68 -> 63 | B68: =الأحد!B68 -> إجاص(كغ) | C68: =SUM('الأربعاء (3)'!J68) -> 0 | E68: 0 | F68: 0 | H68: 0 | I68: 0 | J68: 0 | K68: 63 | M68: مصـاريف التغذية للشخـص الواحــد | R68: 0
A69: =الأحد!A69 -> 64 | B69: =الأحد!B69 -> 0 | C69: =SUM('الأربعاء (3)'!J69) -> 0 | F69: 0 | H69: 0 | I69: 0 | J69: 0 | K69: 64 | R69: 0
A70: =الأحد!A70 -> 65 | B70: =الأحد!B70 -> 0 | C70: =SUM('الأربعاء (3)'!J70) -> 0 | F70: 0 | H70: 0 | I70: 0 | J70: =SUM(F70-G70) -> 0 | K70: 65 | M70: قيمة مخروجات اليـوم | O70: =SUM(I77) -> 0 | R70: 0
A71: =الأحد!A71 -> 66 | B71: =الأحد!B71 -> 0 | C71: =SUM('الأربعاء (3)'!J71) -> 0 | F71: 0 | H71: 0 | I71: 0 | J71: 0 | K71: 66 | R71: 0
A72: =الأحد!A72 -> 67 | B72: =الأحد!B72 -> 0 | C72: =SUM('الأربعاء (3)'!J72) -> 0 | F72: 0 | H72: 0 | I72: 0 | J72: 0 | K72: 67 | M72: معدل تغذية الأفراد | O72: =SUM(O14) -> 251 | R72: 0
A73: =الأحد!A73 -> 68 | B73: =الأحد!B73 -> 0 | C73: =SUM('الأربعاء (3)'!J73) -> 0 | F73: 0 | H73: 0 | I73: 0 | J73: 0 | K73: 68 | R73: 0
A74: =الأحد!A74 -> 69 | B74: =الأحد!B74 -> 0 | C74: =SUM('الأربعاء (3)'!J74) -> 0 | E74: 0 | F74: 0 | H74: 0 | I74: 0 | J74: 0 | K74: 69 | M74: =SUM(I77/O14) -> 0 | O74: = | P74: =M74 -> 0 | R74: 0
A75: =الأحد!A75 -> 70 | B75: =الأحد!B75 -> 0 | C75: =SUM('الأربعاء (3)'!J75) -> 12.2 | F75: 12.2 | H75: 0 | I75: 0 | J75: 12.2 | K75: 70 | M75: (1) معدل تغذية الأفـراد للوجبــة | R75: 0
A76: =الأحد!A76 -> 71 | B76: =الأحد!B76 -> 0 | C76: =SUM('الأربعاء (3)'!J76) -> 0 | E76: 0 | F76: 0 | H76: 0 | I76: 0 | J76: 0 | K76: 71 | M76: الغــذاء + العشـاء | R76: 0
A77: المجموع | C77: =SUM(C6:C76) -> 7.2 | D77: =SUM(D6:D76) -> 0 | F77: =SUM(F6:F76) -> 7.2 | G77: =SUM(G6:G76) -> 0 | I77: =SUM(I6:I76) -> 0 | J77: =SUM(J6:J76) -> 7.2 | R77: =SUM(R12:R76) -> 0
L78: حــررببئرالشهداء في:25/ 04 / 2013....................................

Sheet الأحد(4)
A1: اســــم المؤسســــــــــــــــــــــــــــــــــــــــــــــة | E1: ورقـــــة الاستهــــلاك اليومـــــــــــــــــــي
A2: طالــــــــــب عبــــد الله-بئر الشهداء- | F2: يـوم:الأحد | G2: 28 | H2: =الخميس!H2 -> فيفري | I2: 2013 | M2: السنة المالية :2013
A3: طبيعة المواد | C3: مخزون | D3: مــــدخـــــلات اليـوم | F3: مجموع مخزون | G3: مـخرجــــــــــــــــــــات اليـوم | J3: كمية ماتبقى | K3: ملاحظـــــات | M3: تعــــــــداد اليـــوم
D4: الكمية | E4: سعر | F4: البارحـــــــــة | G4: الكمية | H4: سعر | I4: قيمة مخـروجات | J4: فـــي | M4: المستفيدون | N4: فطـور | O4: غـذاء | P4: عشـاء
A5: المستهلكـــة | C5: البارحة | E5: الوحـدة | F5: ومدخلات اليوم | H5: الوحـدة | I5: اليــوم | J5: نهاية اليــوم
A6: =الأحد!A6 -> 01 | B6: =الأحد!B6 -> الخبـــــــز | C6: =SUM('الخميس (3)'!J6) -> 12 | E6: 7.4 | F6: =SUM(C6+D6) -> 12 | H6: =SUM(E6) -> 7.4 | I6: =SUM(G6*H6) -> 0 | J6: =SUM(F6-G6) -> 12 | K6: 01 | M6: نصف داخليون | O6: 0 | R6: =SUM(D6*E6) -> 0
A7: =الأحد!A7 -> 02 | B7: =الأحد!B7 -> بسباس(كغ) | C7: =SUM('الخميس (3)'!J7) -> 13 | E7: 80 | F7: 13 | H7: 80 | I7: 0 | J7: 13 | K7: 02 | M7: م .تربويون | O7: 0 | R7: =SUM(D7*E7) -> 0
A8: =الأحد!A8 -> 03 | B8: =الأحد!B8 -> بيض | C8: =SUM('الخميس (3)'!J8) -> 0 | E8: 12 | F8: 0 | H8: 12 | I8: 0 | J8: 0 | K8: 03 | M8: الأساتــذة | O8: 0 | R8: =SUM(D8*E8) -> 0
A9: =الأحد!A9 -> 04 | B9: =الأحد!B9 -> بطاطا(كغ) | C9: =SUM('الخميس (3)'!J9) -> 12 | E9: 60 | F9: 12 | H9: 60 | I9: 0 | J9: 12 | K9: 04 | M9: العمـــال | O9: 0 | R9: =SUM(D9*E9) -> 0
A10: =الأحد!A10 -> 05 | B10: =الأحد!B10 -> بصل(كغ) | C10: =SUM('الخميس (3)'!J10) -> 35 | E10: 90 | F10: 35 | H10: 90 | I10: 0 | J10: 35 | K10: 05 | M10: ضيوف القطاع | O10: 40 | R10: =SUM(D10*E10) -> 0
A11: =الأحد!A11 -> 06 | B11: =الأحد!B11 -> جزر(كغ) | C11: =SUM('الخميس (3)'!J11) -> 12 | E11: 80 | F11: 12 | H11: 80 | I11: 0 | J11: 12 | K11: 06 | M11: المجمـــــوع | N11: =SUM(N6:N10) -> 0 | O11: =SUM(O6:O10) -> 40 | P11: =SUM(P6:P10) -> 0
A12: =الأحد!A12 -> 07 | B12: =الأحد!B12 -> جبن(علبة16ق) | C12: =SUM('الخميس (3)'!J12) -> 0 | E12: 80 | F12: 0 | H12: 80 | I12: 0 | J12: 0 | K12: 07 | R12: =SUM(D12*E12) -> 0
A13: =الأحد!A13 -> 08 | B13: =الأحد!B13 -> تفاح(كغ) | C13: =SUM('الخميس (3)'!J13) -> 0 | E13: 240 | F13: 0 | H13: 240 | I13: 0 | J13: 0 | K13: 08 | R13: =SUM(D13*E13) -> 0
A14: =الأحد!A14 -> 09 | B14: =الأحد!B14 -> خيار(كغ) | C14: =SUM('الخميس (3)'!J14) -> 0 | E14: 0 | F14: 0 | H14: 0 | I14: 0 | J14: 0 | K14: 09 | M14: معـدل المستفيدين | O14: =SUM(N11+O11+P11) -> 40 | R14: 0
A15: =الأحد!A15 -> 10 | B15: =الأحد!B15 -> طماطم حب(كغ) | C15: =SUM('الخميس (3)'!J15) -> 0 | E15: 90 | F15: 0 | H15: 90 | I15: 0 | J15: 0 | K15: 10 | R15: 0
A16: =الأحد!A16 -> 11 | B16: =الأحد!B16 -> ثوم(كغ) | C16: =SUM('الخميس (3)'!J16) -> 0 | E16: 400 | F16: 0 | H16: 400 | I16: 0 | J16: 0 | K16: 11 | M16: من الوجبـــات | R16: 0
A17: =الأحد!A17 -> 12 | B17: =الأحد!B17 -> سلاطة خس(كغ) | C17: =SUM('الخميس (3)'!J17) -> 0 | E17: 80 | F17: =SUM(C17+D17) -> 0 | H17: =SUM(E17) -> 80 | I17: =SUM(G17*H17) -> 0 | J17: 0 | K17: 12 | M17: الوجبــــــــــــــات | R17: 0
A18: =الأحد!A18 -> 13 | B18: =الأحد!B18 -> برتقال(كغ) | C18: =SUM('الخميس (3)'!J18) -> 0 | E18: 160 | F18: 0 | H18: 160 | I18: 0 | J18: 0 | K18: 13 | R18: 0
A19: =الأحد!A19 -> 14 | B19: =الأحد!B19 -> موز(كغ) | C19: =SUM('الخميس (3)'!J19) -> -89 | E19: 170 | F19: -89 | H19: 170 | I19: 0 | J19: -89 | K19: 14 | M19: فطــــــــور الصبــاح | R19: 0
A20: =الأحد!A20 -> 15 | B20: =الأحد!B20 -> يوسفية | C20: =SUM('الخميس (3)'!J20) -> 0 | E20: 0 | F20: 0 | H20: 0 | I20: 0 | J20: 0 | K20: 15 | R20: 0
A21: =الأحد!A21 -> 16 | B21: =الأحد!B21 -> عنب(كغ) | C21: =SUM('الخميس (3)'!J21) -> 0 | E21: 0 | F21: 0 | H21: 0 | I21: 0 | J21: 0 | K21: 16 | R21: 0
A22: =الأحد!A22 -> 17 | B22: =الأحد!B22 -> شخشوخة(كغ) | C22: =SUM('الخميس (3)'!J22) -> 0 | E22: 160 | F22: 0 | H22: 160 | I22: 0 | J22: 0 | K22: 17 | R22: 0
A23: =الأحد!A23 -> 18 | B23: =الأحد!B23 -> زعرورة (كغ) | C23: =SUM('الخميس (3)'!J23) -> 0 | E23: 0 | F23: 0 | H23: 0 | I23: 0 | J23: 0 | K23: 18 | R23: 0
A24: =الأحد!A24 -> 19 | B24: =الأحد!B24 -> ياؤرت | C24: =SUM('الخميس (3)'!J24) -> 0 | E24: 15 | F24: 0 | H24: 15 | I24: 0 | J24: 0 | K24: 19 | R24: 0
A25: =الأحد!A25 -> 20 | B25: =الأحد!B25 -> شكولاطة | C25: =SUM('الخميس (3)'!J25) -> 0 | E25: 0 | F25: 0 | H25: 0 | I25: 0 | J25: 0 | K25: 20 | R25: 0
A26: =الأحد!A26 -> 21 | B26: =الأحد!B26 -> زيتون اسود(كغ) | C26: =SUM('الخميس (3)'!J26) -> 0 | E26: 350 | F26: 0 | H26: 350 | I26: 0 | J26: 0 | K26: 21 | M26: الغــــــذاء | R26: 0
A27: =الأحد!A27 -> 22 | B27: =الأحد!B27 -> زيتون اخضر(كغ) | C27: =SUM('الخميس (3)'!J27) -> 0 | E27: 400 | F27: 0 | H27: 400 | I27: 0 | J27: 0 | K27: 22 | M27: خبز+شخشوخة + لحم عجل | R27: 0
A28: =الأحد!A28 -> 23 | B28: =الأحد!B28 -> تليتلي(كغ) | C28: =SUM('الخميس (3)'!J28) -> 0 | E28: 90 | F28: 0 | H28: 90 | I28: 0 | J28: 0 | K28: 23 | M28: سلاطة متنوعة | N28: موز | R28: 0
A29: =الأحد!A29 -> 24 | B29: =الأحد!B29 -> دويدة(كغ) | C29: =SUM('الخميس (3)'!J29) -> 0 | E29: 0 | F29: 0 | H29: 0 | I29: 0 | J29: 0 | K29: 24 | M29: ماء معدني | R29: 0
A30: =الأحد!A30 -> 25 | B30: =الأحد!B30 -> سباقيطي(كغ) | C30: =SUM('الخميس (3)'!J30) -> 0 | E30: 90 | F30: 0 | H30: 90 | I30: 0 | J30: 0 | K30: 25 | R30: 0
A31: =الأحد!A31 -> 26 | B31: =الأحد!B31 -> كسكسي (كغ) | C31: =SUM('الخميس (3)'!J31) -> 0 | E31: 90 | F31: 0 | H31: 90 | I31: 0 | J31: 0 | K31: 26 | M31: قائمـة المقبولين للطاولة المشتركــة | R31: 0
A32: =الأحد!A32 -> 27 | B32: =الأحد!B32 -> مقارونة | C32: =SUM('الخميس (3)'!J32) -> 0 | E32: 90 | F32: 0 | H32: 90 | I32: 0 | J32: 0 | K32: 27 | M32: الأسمــاء | N32: ف.ص | O32: غــداء | P32: ع | R32: 0
A33: =الأحد!A33 -> 28 | B33: =الأحد!B33 -> حمص | C33: =SUM('الخميس (3)'!J33) -> 0 | E33: 240 | F33: 0 | H33: 240 | I33: 0 | J33: 0 | K33: 28 | L33: =الأحد!L33 -> 1 | M33: =الأحد!M33 -> ازوال شراف الدين | R33: 0
A34: =الأحد!A34 -> 29 | B34: =الأحد!B34 -> عدس | C34: =SUM('الخميس (3)'!J34) -> 0 | E34: 120 | F34: 0 | H34: 120 | I34: 0 | J34: 0 | K34: 29 | L34: =الأحد!L34 -> 2 | M34: =الأحد!M34 -> اوشن صبرينة | R34: 0
A35: =الأحد!A35 -> 30 | B35: =الأحد!B35 -> فاصولياء(كغ) | C35: =SUM('الخميس (3)'!J35) -> 0 | E35: 200 | F35: =SUM(C35+D35) -> 0 | H35: =SUM(E35) -> 200 | I35: =SUM(G35*H35) -> 0 | J35: 0 | K35: 30 | L35: =الأحد!L35 -> 3 | M35: =الأحد!M35 -> قلي أحلام
A36: =الأحد!A36 -> 31 | B36: =الأحد!B36 -> ارزمفور(كغ) | C36: =SUM('الخميس (3)'!J36) -> 0 | E36: 110 | F36: 0 | H36: 110 | I36: 0 | J36: 0 | K36: 31 | L36: =الأحد!L36 -> 4 | M36: =الأحد!M36 -> اوش ايمان | R36: 0
A37: =الأحد!A37 -> 32 | B37: =الأحد!B37 -> حلويات | C37: =SUM('الخميس (3)'!J37) -> 0 | E37: 0 | F37: =SUM(C37+D37) -> 0 | H37: =SUM(E37) -> 0 | I37: =SUM(G37*H37) -> 0 | J37: 0 | K37: 32 | L37: =الأحد!L37 -> 5 | M37: =الأحد!M37 -> عزيون فضيلة | R37: 0
A38: =الأحد!A38 -> 33 | B38: =الأحد!B38 -> خوخ | C38: =SUM('الخميس (3)'!J38) -> 0 | E38: 0 | F38: 0 | H38: 0 | I38: 0 | J38: 0 | K38: 33 | L38: =الأحد!L38 -> 6 | M38: =الأحد!M38 -> شايب عينو السعيد | R38: 0
A39: =الأحد!A39 -> 34 | B39: =الأحد!B39 -> فلفل اسود(كيس15غ) | C39: =SUM('الخميس (3)'!J39) -> 0 | E39: 0 | F39: 0 | H39: 0 | I39: 0 | J39: 0 | K39: 34 | L39: =الأحد!L39 -> 7 | M39: =الأحد!M39 -> زيوش حدة | R39: 0
A40: =الأحد!A40 -> 35 | B40: =الأحد!B40 -> خميرة | C40: =SUM('الخميس (3)'!J40) -> 0 | E40: 0 | F40: 0 | H40: 0 | I40: 0 | J40: 0 | K40: 35 | L40: =الأحد!L40 -> 8 | M40: =الأحد!M40 -> قرازة فتحي | R40: 0
A41: =الأحد!A41 -> 36 | B41: =الأحد!B41 -> كمون | C41: =SUM('الخميس (3)'!J41) -> 0 | E41: 30 | F41: 0 | H41: 30 | I41: 0 | J41: 0 | K41: 36 | L41: =الأحد!L41 -> 9 | M41: =الأحد!M41 -> غضبان فيروز | R41: 0
A42: =الأحد!A42 -> 37 | B42: =الأحد!B42 -> ملح(كغ) | C42: =SUM('الخميس (3)'!J42) -> 0 | E42: 30 | F42: 0 | H42: 30 | I42: 0 | J42: 0 | K42: 37 | L42: =الأحد!L42 -> 10 | M42: =الأحد!M42 -> قرفي عليمة | R42: 0
A43: =الأحد!A43 -> 38 | B43: =الأحد!B43 -> طماطم مصبرة(كغ) | C43: =SUM('الخميس (3)'!J43) -> 0 | E43: 140 | F43: 0 | H43: 140 | I43: 0 | J43: 0 | K43: 38 | L43: =الأحد!L43 -> 11 | M43: =الأحد!M43 -> بوناب هوراي | R43: 0
A44: =الأحد!A44 -> 39 | B44: =الأحد!B44 -> زيت المائدة 1لتر | C44: =SUM('الخميس (3)'!J44) -> 0 | E44: 140 | F44: 0 | H44: 140 | I44: 0 | J44: 0 | K44: 39 | L44: =الأحد!L44 -> 12 | M44: =الأحد!M44 -> بوناب فريدة | R44: 0
A45: =الأحد!A45 -> 40 | B45: =الأحد!B45 -> زيدة | C45: =SUM('الخميس (3)'!J45) -> 0 | E45: 70 | F45: 0 | H45: 70 | I45: 0 | J45: 0 | K45: 40 | L45: =الأحد!L45 -> 13 | M45: =الأحد!M45 -> جمال بوناب | R45: 0
A46: =الأحد!A46 -> 41 | B46: =الأحد!B46 -> خل(قارورة) | C46: =SUM('الخميس (3)'!J46) -> 0 | E46: 30 | F46: 0 | H46: 30 | I46: 0 | J46: 0 | K46: 41 | L46: =الأحد!L46 -> 14 | M46: =الأحد!M46 -> 0 | R46: 0
A47: =الأحد!A47 -> 42 | B47: =الأحد!B47 -> لحم دجاج(كغ) | C47: =SUM('الخميس (3)'!J47) -> 0 | E47: 0 | F47: 0 | H47: 0 | I47: 0 | J47: 0 | K47: 42 | L47: =الأحد!L47 -> 15 | M47: =الأحد!M47 -> 0 | R47: 0
A48: =الأحد!A48 -> 43 | B48: =الأحد!B48 -> فافل | C48: =SUM('الخميس (3)'!J48) -> 0 | E48: 0 | F48: 0 | H48: 0 | I48: 0 | J48: 0 | K48: 43 | L48: =الأحد!L48 -> 16 | M48: =الأحد!M48 -> 0 | R48: 0
A49: =الأحد!A49 -> 44 | B49: =الأحد!B49 -> لحم عجل(كغ) | C49: =SUM('الخميس (3)'!J49) -> 0 | E49: 1150 | F49: 0 | H49: 1150 | I49: 0 | J49: 0 | K49: 44 | L49: =الأحد!L49 -> 17 | M49: =الأحد!M49 -> 0 | R49: 0
A50: =الأحد!A50 -> 45 | B50: =الأحد!B50 -> ايجاص(كغ) | C50: =SUM('الخميس (3)'!J50) -> 0 | E50: 0 | F50: 0 | H50: 0 | I50: 0 | J50: 0 | K50: 45 | L50: =الأحد!L50 -> 18 | M50: =الأحد!M50 -> 0 | R50: =SUM(D50*E50) -> 0
A51: =الأحد!A51 -> 46 | B51: =الأحد!B51 -> طونة | C51: =SUM('الخميس (3)'!J51) -> 0 | E51: 0 | F51: 0 | H51: 0 | I51: 0 | J51: 0 | K51: 46 | L51: =الأحد!L51 -> 19 | M51: =الأحد!M51 -> 0 | R51: =SUM(D51*E51) -> 0
A52: =الأحد!A52 -> 47 | B52: =الأحد!B52 -> جلبانة خضراء(كغ) | C52: =SUM('الخميس (3)'!J52) -> 0 | E52: 0 | F52: 0 | H52: 0 | I52: 0 | J52: 0 | K52: 47 | L52: =الأحد!L52 -> 20 | M52: =الأحد!M52 -> 0 | R52: =SUM(D52*E52) -> 0
A53: =الأحد!A53 -> 48 | B53: =الأحد!B53 -> مرطبات | C53: =SUM('الخميس (3)'!J53) -> 0 | E53: 0 | F53: 0 | H53: 0 | I53: 0 | J53: 0 | K53: 48 | L53: =الأحد!L53 -> 21 | M53: =الأحد!M53 -> 0 | R53: 0
A54: =الأحد!A54 -> 49 | B54: =الأحد!B54 -> مايـونــاز500غ | C54: =SUM('الخميس (3)'!J54) -> 0 | E54: 0 | F54: 0 | H54: 0 | I54: 0 | J54: 0 | K54: 49 | L54: =الأحد!L54 -> 22 | M54: =الأحد!M54 -> 0 | R54: 0
A55: =الأحد!A55 -> 50 | B55: =الأحد!B55 -> مربى | C55: =SUM('الخميس (3)'!J55) -> 0 | E55: 0 | F55: 0 | H55: 0 | I55: 0 | J55: 0 | K55: 50 | L55: =الأحد!L55 -> 23 | M55: =الأحد!M55 -> 0 | R55: 0
A56: =الأحد!A56 -> 51 | B56: =الأحد!B56 -> مشروبات غازية | C56: =SUM('الخميس (3)'!J56) -> 0 | E56: 0 | F56: 0 | H56: 0 | I56: 0 | J56: 0 | K56: 51 | L56: =الأحد!L56 -> 24 | M56: =الأحد!M56 -> 0 | R56: 0
A57: =الأحد!A57 -> 52 | B57: =الأحد!B57 -> ماء معدني | C57: =SUM('الخميس (3)'!J57) -> 0 | E57: 30 | F57: 0 | H57: 30 | I57: 0 | J57: 0 | K57: 52 | L57: =الأحد!L57 -> 25 | M57: =الأحد!M57 -> 0 | R57: 0
A58: =الأحد!A58 -> 53 | B58: =الأحد!B58 -> تمر(كغ) | C58: =SUM('الخميس (3)'!J58) -> 0 | E58: 0 | F58: 0 | H58: 0 | I58: 0 | J58: 0 | K58: 53 | L58: =الأحد!L58 -> 26 | M58: =الأحد!M58 -> 0 | R58: 0
A59: =الأحد!A59 -> 54 | B59: =الأحد!B59 -> سكر | C59: =SUM('الخميس (3)'!J59) -> 0 | E59: 90 | F59: 0 | H59: 90 | I59: 0 | J59: 0 | K59: 54 | L59: =الأحد!L59 -> 27 | M59: =الأحد!M59 -> 0 | R59: 0
A60: =الأحد!A60 -> 55 | B60: =الأحد!B60 -> فافل حار | C60: =SUM('الخميس (3)'!J60) -> 0 | E60: 0 | F60: 0 | H60: 0 | I60: 0 | J60: 0 | K60: 55 | L60: =الأحد!L60 -> 28 | M60: =الأحد!M60 -> 0 | R60: 0
A61: =الأحد!A61 -> 56 | B61: =الأحد!B61 -> حليب سوبرلي | C61: =SUM('الخميس (3)'!J61) -> 0 | E61: 0 | F61: =SUM(C61+D61) -> 0 | H61: =SUM(E61) -> 0 | I61: =SUM(G61*H61) -> 0 | J61: 0 | K61: 56 | L61: =الأحد!L61 -> 29 | M61: =الأحد!M61 -> 0
A62: =الأحد!A62 -> 57 | B62: =الأحد!B62 -> فريك | C62: =SUM('الخميس (3)'!J62) -> 0 | E62: 360 | F62: 0 | H62: 360 | I62: 0 | J62: 0 | K62: 57 | L62: =الأحد!L62 -> 30 | M62: =الأحد!M62 -> 0
A63: =الأحد!A63 -> 58 | B63: =الأحد!B63 -> جريوات | C63: =SUM('الخميس (3)'!J63) -> 0 | E63: 120 | F63: 0 | H63: 120 | I63: 0 | J63: 0 | K63: 58 | L63: =الأحد!L63 -> 31 | M63: =الأحد!M63 -> 0
A64: =الأحد!A64 -> 59 | B64: =الأحد!B64 -> تاي | C64: =SUM('الخميس (3)'!J64) -> 0 | E64: 110 | F64: 0 | H64: 110 | I64: 0 | J64: 0 | K64: 59 | L64: =الأحد!L64 -> 32 | M64: =الأحد!M64 -> 0 | R64: 0
A65: =الأحد!A65 -> 60 | B65: =الأحد!B65 -> قهوة(كغ) | C65: =SUM('الخميس (3)'!J65) -> 0 | E65: 640 | F65: 0 | H65: 640 | I65: 0 | J65: 0 | K65: 60 | M65: المجموع | N65: =SUM(N51:N64) -> 0 | O65: =O33+O34+O35+O36+O37+O38+O39+O40+O41+O42+O43+O44+O45+O46+O47+O48+O49+O50+O51+O52+O53+O54+O55+O56+O57+O58+O59+O60+O61+O62+O63+O64 -> 0 | P65: =SUM(P51:P64) -> 0 | R65: 0
A66: =الأحد!A66 -> 61 | B66: =الأحد!B66 -> شمندر | C66: =SUM('الخميس (3)'!J66) -> 0 | E66: 130 | F66: 0 | H66: 130 | I66: 0 | J66: 0 | K66: 61 | R66: 0
A67: =الأحد!A67 -> 62 | B67: =الأحد!B67 -> توابل | C67: =SUM('الخميس (3)'!J67) -> 0 | E67: 0 | F67: 0 | H67: 0 | I67: 0 | J67: 0 | K67: 62 | R67: 0
A68: =الأحد!A68 -> 63 | B68: =الأحد!B68 -> إجاص(كغ) | C68: =SUM('الخميس (3)'!J68) -> 0 | E68: 0 | F68: 0 | H68: 0 | I68: 0 | J68: 0 | K68: 63 | M68: مصـاريف التغذية للشخـص الواحــد | R68: 0
A69: =الأحد!A69 -> 64 | B69: =الأحد!B69 -> 0 | C69: =SUM('الخميس (3)'!J69) -> 0 | F69: 0 | H69: 0 | I69: 0 | J69: 0 | K69: 64 | R69: 0
A70: =الأحد!A70 -> 65 | B70: =الأحد!B70 -> 0 | C70: =SUM('الخميس (3)'!J70) -> 0 | F70: 0 | H70: 0 | I70: 0 | J70: =SUM(F70-G70) -> 0 | K70: 65 | M70: قيمة مخروجات اليـوم | O70: =SUM(I77) -> 0 | R70: 0
A71: =الأحد!A71 -> 66 | B71: =الأحد!B71 -> 0 | C71: =SUM('الخميس (3)'!J71) -> 0 | F71: 0 | H71: 0 | I71: 0 | J71: 0 | K71: 66 | R71: 0
A72: =الأحد!A72 -> 67 | B72: =الأحد!B72 -> 0 | C72: =SUM('الخميس (3)'!J72) -> 0 | F72: =SUM(C72+D72) -> 0 | H72: =SUM(E72) -> 0 | I72: =SUM(G72*H72) -> 0 | J72: 0 | K72: 67 | M72: معدل تغذية الأفراد | O72: =SUM(O14) -> 40 | R72: 0
A73: =الأحد!A73 -> 68 | B73: =الأحد!B73 -> 0 | C73: =SUM('الخميس (3)'!J73) -> 0 | F73: =SUM(C73+D73) -> 0 | H73: =SUM(E73) -> 0 | I73: =SUM(G73*H73) -> 0 | J73: 0 | K73: 68 | R73: 0
A74: =الأحد!A74 -> 69 | B74: =الأحد!B74 -> 0 | C74: =SUM('الخميس (3)'!J74) -> 0 | E74: 0 | F74: 0 | H74: 0 | I74: 0 | J74: 0 | K74: 69 | M74: =SUM(I77/O14) -> 0 | O74: = | P74: =M74 -> 0 | R74: 0
A75: =الأحد!A75 -> 70 | B75: =الأحد!B75 -> 0 | C75: =SUM('الخميس (3)'!J75) -> 12.2 | F75: =SUM(C75+D75) -> 12.2 | H75: =SUM(E75) -> 0 | I75: =SUM(G75*H75) -> 0 | J75: 12.2 | K75: 70 | M75: (1) معدل تغذية الأفـراد للوجبــة | R75: 0
A76: =الأحد!A76 -> 71 | B76: =الأحد!B76 -> 0 | C76: =SUM('الخميس (3)'!J76) -> 0 | E76: 0 | F76: =SUM(C76+D76) -> 0 | H76: =SUM(E76) -> 0 | I76: =SUM(G76*H76) -> 0 | J76: 0 | K76: 71 | M76: الغــذاء + العشـاء | R76: 0
A77: المجموع | C77: =SUM(C6:C76) -> 7.2 | D77: =SUM(D6:D76) -> 0 | F77: =SUM(F6:F76) -> 7.2 | G77: =SUM(G6:G76) -> 0 | I77: =SUM(I6:I76) -> 0 | J77: =SUM(J6:J76) -> 7.2 | R77: =SUM(R12:R76) -> 0
K78: حــررببئرالشهداء في:28 / 04/ 2013....................................

Sheet الإ ثنين(4)
A1: اســــم المؤسســــــــــــــــــــــــــــــــــــــــــــــة | E1: ورقـــــة الاستهــــلاك اليومـــــــــــــــــــي
A2: طالــــــــــب عبــــد الله-بئر الشهداء- | F2: يـوم:الإثنين | G2: 29 | H2: =الخميس!H2 -> فيفري | I2: 2013 | M2: السنة المالية :2013
A3: طبيعة المواد | C3: مخزون | D3: مــــدخـــــلات اليـوم | F3: مجموع مخزون | G3: مـخرجــــــــــــــــــــات اليـوم | J3: كمية ماتبقى | K3: ملاحظـــــات | M3: تعــــــــداد اليـــوم
D4: الكمية | E4: سعر | F4: البارحـــــــــة | G4: الكمية | H4: سعر | I4: قيمة مخـروجات | J4: فـــي | M4: المستفيدون | N4: فطـور | O4: غـذاء | P4: عشـاء
A5: المستهلكـــة | C5: البارحة | E5: الوحـدة | F5: ومدخلات اليوم | H5: الوحـدة | I5: اليــوم | J5: نهاية اليــوم
A6: =الأحد!A6 -> 01 | B6: =الأحد!B6 -> الخبـــــــز | C6: =SUM('الأحد(4)'!J6) -> 12 | E6: 7.4 | F6: =SUM(C6+D6) -> 12 | H6: =SUM(E6) -> 7.4 | I6: =SUM(G6*H6) -> 0 | J6: =SUM(F6-G6) -> 12 | K6: 01 | M6: نصف داخليون | O6: 0 | R6: =SUM(D6*E6) -> 0
A7: =الأحد!A7 -> 02 | B7: =الأحد!B7 -> بسباس(كغ) | C7: =SUM('الأحد(4)'!J7) -> 13 | E7: 80 | F7: 13 | H7: 80 | I7: 0 | J7: 13 | K7: 02 | M7: م .تربويون | O7: 0 | R7: =SUM(D7*E7) -> 0
A8: =الأحد!A8 -> 03 | B8: =الأحد!B8 -> بيض | C8: =SUM('الأحد(4)'!J8) -> 0 | E8: 12 | F8: 0 | H8: 12 | I8: 0 | J8: 0 | K8: 03 | M8: الأساتــذة | O8: 0 | R8: =SUM(D8*E8) -> 0
A9: =الأحد!A9 -> 04 | B9: =الأحد!B9 -> بطاطا(كغ) | C9: =SUM('الأحد(4)'!J9) -> 12 | E9: 60 | F9: 12 | H9: 60 | I9: 0 | J9: 12 | K9: 04 | M9: العمـــال | O9: 0 | R9: =SUM(D9*E9) -> 0
A10: =الأحد!A10 -> 05 | B10: =الأحد!B10 -> بصل(كغ) | C10: =SUM('الأحد(4)'!J10) -> 35 | E10: 90 | F10: 35 | H10: 90 | I10: 0 | J10: 35 | K10: 05 | M10: ضيوف القطاع | O10: 40 | R10: =SUM(D10*E10) -> 0
A11: =الأحد!A11 -> 06 | B11: =الأحد!B11 -> جزر(كغ) | C11: =SUM('الأحد(4)'!J11) -> 12 | E11: 80 | F11: 12 | H11: 80 | I11: 0 | J11: 12 | K11: 06 | M11: المجمـــــوع | N11: =SUM(N6:N10) -> 0 | O11: =SUM(O6:O10) -> 40 | P11: =SUM(P6:P10) -> 0
A12: =الأحد!A12 -> 07 | B12: =الأحد!B12 -> جبن(علبة16ق) | C12: =SUM('الأحد(4)'!J12) -> 0 | E12: 80 | F12: 0 | H12: 80 | I12: 0 | J12: 0 | K12: 07 | R12: =SUM(D12*E12) -> 0
A13: =الأحد!A13 -> 08 | B13: =الأحد!B13 -> تفاح(كغ) | C13: =SUM('الأحد(4)'!J13) -> 0 | E13: 240 | F13: 0 | I13: 0 | J13: 0 | K13: 08 | R13: =SUM(D13*E13) -> 0
A14: =الأحد!A14 -> 09 | B14: =الأحد!B14 -> خيار(كغ) | C14: =SUM('الأحد(4)'!J14) -> 0 | E14: 0 | F14: 0 | H14: =SUM(E14) -> 0 | I14: 0 | J14: 0 | K14: 09 | M14: معـدل المستفيدين | O14: =SUM(N11+O11+P11) -> 40 | R14: 0
A15: =الأحد!A15 -> 10 | B15: =الأحد!B15 -> طماطم حب(كغ) | C15: =SUM('الأحد(4)'!J15) -> 0 | E15: 90 | F15: 0 | H15: 90 | I15: 0 | J15: 0 | K15: 10 | R15: 0
A16: =الأحد!A16 -> 11 | B16: =الأحد!B16 -> ثوم(كغ) | C16: =SUM('الأحد(4)'!J16) -> 0 | E16: 400 | F16: 0 | H16: 400 | I16: 0 | J16: 0 | K16: 11 | M16: من الوجبـــات | R16: 0
A17: =الأحد!A17 -> 12 | B17: =الأحد!B17 -> سلاطة خس(كغ) | C17: =SUM('الأحد(4)'!J17) -> 0 | E17: 80 | F17: =SUM(C17+D17) -> 0 | H17: =SUM(E17) -> 80 | I17: =SUM(G17*H17) -> 0 | J17: 0 | K17: 12 | M17: الوجبــــــــــــــات | R17: 0
A18: =الأحد!A18 -> 13 | B18: =الأحد!B18 -> برتقال(كغ) | C18: =SUM('الأحد(4)'!J18) -> 0 | E18: 160 | F18: 0 | H18: 160 | I18: 0 | J18: 0 | K18: 13 | R18: 0
A19: =الأحد!A19 -> 14 | B19: =الأحد!B19 -> موز(كغ) | C19: =SUM('الأحد(4)'!J19) -> -89 | E19: 170 | F19: -89 | H19: 170 | I19: 0 | J19: -89 | K19: 14 | M19: فطــــــــور الصبــاح | R19: 0
A20: =الأحد!A20 -> 15 | B20: =الأحد!B20 -> يوسفية | C20: =SUM('الأحد(4)'!J20) -> 0 | E20: 0 | F20: 0 | H20: 0 | I20: 0 | J20: 0 | K20: 15 | R20: 0
A21: =الأحد!A21 -> 16 | B21: =الأحد!B21 -> عنب(كغ) | C21: =SUM('الأحد(4)'!J21) -> 0 | E21: 0 | F21: 0 | H21: 0 | I21: 0 | J21: 0 | K21: 16 | R21: 0
A22: =الأحد!A22 -> 17 | B22: =الأحد!B22 -> شخشوخة(كغ) | C22: =SUM('الأحد(4)'!J22) -> 0 | E22: 160 | F22: 0 | H22: 160 | I22: 0 | J22: 0 | K22: 17 | R22: 0
A23: =الأحد!A23 -> 18 | B23: =الأحد!B23 -> زعرورة (كغ) | C23: =SUM('الأحد(4)'!J23) -> 0 | E23: 0 | F23: 0 | H23: 0 | I23: 0 | J23: 0 | K23: 18 | R23: 0
A24: =الأحد!A24 -> 19 | B24: =الأحد!B24 -> ياؤرت | C24: =SUM('الأحد(4)'!J24) -> 0 | E24: 15 | F24: 0 | H24: 15 | I24: 0 | J24: 0 | K24: 19 | R24: 0
A25: =الأحد!A25 -> 20 | B25: =الأحد!B25 -> شكولاطة | C25: =SUM('الأحد(4)'!J25) -> 0 | E25: 0 | F25: 0 | H25: 0 | I25: 0 | J25: 0 | K25: 20 | R25: 0
A26: =الأحد!A26 -> 21 | B26: =الأحد!B26 -> زيتون اسود(كغ) | C26: =SUM('الأحد(4)'!J26) -> 0 | E26: 350 | F26: 0 | H26: 350 | I26: 0 | J26: 0 | K26: 21 | M26: الغــــــذاء | R26: 0
A27: =الأحد!A27 -> 22 | B27: =الأحد!B27 -> زيتون اخضر(كغ) | C27: =SUM('الأحد(4)'!J27) -> 0 | E27: 400 | F27: 0 | H27: 400 | I27: 0 | J27: 0 | K27: 22 | M27: خبز+بطاطا مرحية | R27: 0
A28: =الأحد!A28 -> 23 | B28: =الأحد!B28 -> تليتلي(كغ) | C28: =SUM('الأحد(4)'!J28) -> 0 | E28: 90 | F28: 0 | H28: 90 | I28: 0 | J28: 0 | K28: 23 | M28: لحم دجاج | N28: برتقال | R28: 0
A29: =الأحد!A29 -> 24 | B29: =الأحد!B29 -> دويدة(كغ) | C29: =SUM('الأحد(4)'!J29) -> 0 | E29: 0 | F29: 0 | H29: 0 | I29: 0 | J29: 0 | K29: 24 | M29: سلاطة متنوعة | R29: 0
A30: =الأحد!A30 -> 25 | B30: =الأحد!B30 -> سباقيطي(كغ) | C30: =SUM('الأحد(4)'!J30) -> 0 | E30: 90 | F30: 0 | H30: 90 | I30: 0 | J30: 0 | K30: 25 | M30: ماء معدني | R30: 0
A31: =الأحد!A31 -> 26 | B31: =الأحد!B31 -> كسكسي (كغ) | C31: =SUM('الأحد(4)'!J31) -> 0 | E31: 90 | F31: 0 | H31: 90 | I31: 0 | J31: 0 | K31: 26 | M31: قائمـة المقبولين للطاولة المشتركــة | R31: 0
A32: =الأحد!A32 -> 27 | B32: =الأحد!B32 -> مقارونة | C32: =SUM('الأحد(4)'!J32) -> 0 | E32: 90 | F32: 0 | H32: 90 | I32: 0 | J32: 0 | K32: 27 | M32: الأسمــاء | N32: ف.ص | O32: غــداء | P32: ع | R32: 0
A33: =الأحد!A33 -> 28 | B33: =الأحد!B33 -> حمص | C33: =SUM('الأحد(4)'!J33) -> 0 | E33: 240 | F33: 0 | H33: 240 | I33: 0 | J33: 0 | K33: 28 | L33: =الأحد!L33 -> 1 | M33: =الأحد!M33 -> ازوال شراف الدين | R33: 0
A34: =الأحد!A34 -> 29 | B34: =الأحد!B34 -> عدس | C34: =SUM('الأحد(4)'!J34) -> 0 | E34: 120 | F34: 0 | H34: =SUM(E34) -> 120 | I34: 0 | J34: 0 | K34: 29 | L34: =الأحد!L34 -> 2 | M34: =الأحد!M34 -> اوشن صبرينة | R34: 0
A35: =الأحد!A35 -> 30 | B35: =الأحد!B35 -> فاصولياء(كغ) | C35: =SUM('الأحد(4)'!J35) -> 0 | E35: 200 | F35: =SUM(C35+D35) -> 0 | H35: =SUM(E35) -> 200 | I35: =SUM(G35*H35) -> 0 | J35: 0 | K35: 30 | L35: =الأحد!L35 -> 3 | M35: =الأحد!M35 -> قلي أحلام
A36: =الأحد!A36 -> 31 | B36: =الأحد!B36 -> ارزمفور(كغ) | C36: =SUM('الأحد(4)'!J36) -> 0 | E36: 110 | F36: 0 | H36: =SUM(E36) -> 110 | I36: 0 | J36: 0 | K36: 31 | L36: =الأحد!L36 -> 4 | M36: =الأحد!M36 -> اوش ايمان | R36: 0
A37: =الأحد!A37 -> 32 | B37: =الأحد!B37 -> حلويات | C37: =SUM('الأحد(4)'!J37) -> 0 | E37: 0 | F37: =SUM(C37+D37) -> 0 | H37: 0 | I37: =SUM(G37*H37) -> 0 | J37: 0 | K37: 32 | L37: =الأحد!L37 -> 5 | M37: =الأحد!M37 -> عزيون فضيلة | R37: 0
A38: =الأحد!A38 -> 33 | B38: =الأحد!B38 -> خوخ | C38: =SUM('الأحد(4)'!J38) -> 0 | E38: 0 | F38: 0 | H38: =SUM(E38) -> 0 | I38: 0 | J38: 0 | K38: 33 | L38: =الأحد!L38 -> 6 | M38: =الأحد!M38 -> شايب عينو السعيد | R38: 0
A39: =الأحد!A39 -> 34 | B39: =الأحد!B39 -> فلفل اسود(كيس15غ) | C39: =SUM('الأحد(4)'!J39) -> 0 | E39: 0 | F39: 0 | H39: 0 | I39: 0 | J39: 0 | K39: 34 | L39: =الأحد!L39 -> 7 | M39: =الأحد!M39 -> زيوش حدة | R39: 0
A40: =الأحد!A40 -> 35 | B40: =الأحد!B40 -> خميرة | C40: =SUM('الأحد(4)'!J40) -> 0 | E40: 0 | F40: 0 | H40: 0 | I40: 0 | J40: 0 | K40: 35 | L40: =الأحد!L40 -> 8 | M40: =الأحد!M40 -> قرازة فتحي | R40: 0
A41: =الأحد!A41 -> 36 | B41: =الأحد!B41 -> كمون | C41: =SUM('الأحد(4)'!J41) -> 0 | E41: 30 | F41: 0 | H41: 30 | I41: 0 | J41: 0 | K41: 36 | L41: =الأحد!L41 -> 9 | M41: =الأحد!M41 -> غضبان فيروز | R41: 0
A42: =الأحد!A42 -> 37 | B42: =الأحد!B42 -> ملح(كغ) | C42: =SUM('الأحد(4)'!J42) -> 0 | E42: 30 | F42: 0 | H42: 30 | I42: 0 | J42: 0 | K42: 37 | L42: =الأحد!L42 -> 10 | M42: =الأحد!M42 -> قرفي عليمة | R42: 0
A43: =الأحد!A43 -> 38 | B43: =الأحد!B43 -> طماطم مصبرة(كغ) | C43: =SUM('الأحد(4)'!J43) -> 0 | E43: 140 | F43: 0 | H43: 140 | I43: 0 | J43: 0 | K43: 38 | L43: =الأحد!L43 -> 11 | M43: =الأحد!M43 -> بوناب هوراي | R43: 0
A44: =الأحد!A44 -> 39 | B44: =الأحد!B44 -> زيت المائدة 1لتر | C44: =SUM('الأحد(4)'!J44) -> 0 | E44: 140 | F44: 0 | H44: 140 | I44: 0 | J44: 0 | K44: 39 | L44: =الأحد!L44 -> 12 | M44: =الأحد!M44 -> بوناب فريدة | R44: 0
A45: =الأحد!A45 -> 40 | B45: =الأحد!B45 -> زيدة | C45: =SUM('الأحد(4)'!J45) -> 0 | E45: 70 | F45: 0 | H45: 70 | I45: 0 | J45: 0 | K45: 40 | L45: =الأحد!L45 -> 13 | M45: =الأحد!M45 -> جمال بوناب | R45: 0
A46: =الأحد!A46 -> 41 | B46: =الأحد!B46 -> خل(قارورة) | C46: =SUM('الأحد(4)'!J46) -> 0 | E46: 30 | F46: 0 | H46: =SUM(E46) -> 30 | I46: 0 | J46: 0 | K46: 41 | L46: =الأحد!L46 -> 14 | M46: =الأحد!M46 -> 0 | R46: 0
A47: =الأحد!A47 -> 42 | B47: =الأحد!B47 -> لحم دجاج(كغ) | C47: =SUM('الأحد(4)'!J47) -> 0 | E47: 0 | F47: 0 | H47: 0 | I47: 0 | J47: 0 | K47: 42 | L47: =الأحد!L47 -> 15 | M47: =الأحد!M47 -> 0 | R47: 0
A48: =الأحد!A48 -> 43 | B48: =الأحد!B48 -> فافل | C48: =SUM('الأحد(4)'!J48) -> 0 | E48: 0 | F48: 0 | H48: 0 | I48: 0 | J48: 0 | K48: 43 | L48: =الأحد!L48 -> 16 | M48: =الأحد!M48 -> 0 | R48: 0
A49: =الأحد!A49 -> 44 | B49: =الأحد!B49 -> لحم عجل(كغ) | C49: =SUM('الأحد(4)'!J49) -> 0 | E49: 1150 | F49: 0 | H49: 1150 | I49: 0 | J49: 0 | K49: 44 | L49: =الأحد!L49 -> 17 | M49: =الأحد!M49 -> 0 | R49: 0
A50: =الأحد!A50 -> 45 | B50: =الأحد!B50 -> ايجاص(كغ) | C50: =SUM('الأحد(4)'!J50) -> 0 | E50: 0 | F50: 0 | H50: 0 | I50: 0 | J50: 0 | K50: 45 | L50: =الأحد!L50 -> 18 | M50: =الأحد!M50 -> 0 | R50: =SUM(D50*E50) -> 0
A51: =الأحد!A51 -> 46 | B51: =الأحد!B51 -> طونة | C51: =SUM('الأحد(4)'!J51) -> 0 | E51: 0 | F51: 0 | H51: 0 | I51: 0 | J51: 0 | K51: 46 | L51: =الأحد!L51 -> 19 | M51: =الأحد!M51 -> 0 | R51: =SUM(D51*E51) -> 0
A52: =الأحد!A52 -> 47 | B52: =الأحد!B52 -> جلبانة خضراء(كغ) | C52: =SUM('الأحد(4)'!J52) -> 0 | E52: 0 | F52: 0 | H52: 0 | I52: 0 | J52: 0 | K52: 47 | L52: =الأحد!L52 -> 20 | M52: =الأحد!M52 -> 0 | R52: =SUM(D52*E52) -> 0
A53: =الأحد!A53 -> 48 | B53: =الأحد!B53 -> مرطبات | C53: =SUM('الأحد(4)'!J53) -> 0 | E53: 0 | F53: 0 | H53: 0 | I53: 0 | J53: 0 | K53: 48 | L53: =الأحد!L53 -> 21 | M53: =الأحد!M53 -> 0 | R53: 0
A54: =الأحد!A54 -> 49 | B54: =الأحد!B54 -> مايـونــاز500غ | C54: =SUM('الأحد(4)'!J54) -> 0 | E54: 0 | F54: 0 | H54: 0 | I54: 0 | J54: 0 | K54: 49 | L54: =الأحد!L54 -> 22 | M54: =الأحد!M54 -> 0 | R54: 0
A55: =الأحد!A55 -> 50 | B55: =الأحد!B55 -> مربى | C55: =SUM('الأحد(4)'!J55) -> 0 | E55: 0 | F55: 0 | H55: 0 | I55: 0 | J55: 0 | K55: 50 | L55: =الأحد!L55 -> 23 | M55: =الأحد!M55 -> 0 | R55: 0
A56: =الأحد!A56 -> 51 | B56: =الأحد!B56 -> مشروبات غازية | C56: =SUM('الأحد(4)'!J56) -> 0 | E56: 0 | F56: 0 | H56: 0 | I56: 0 | J56: 0 | K56: 51 | L56: =الأحد!L56 -> 24 | M56: =الأحد!M56 -> 0 | R56: 0
A57: =الأحد!A57 -> 52 | B57: =الأحد!B57 -> ماء معدني | C57: =SUM('الأحد(4)'!J57) -> 0 | E57: 30 | F57: 0 | H57: 30 | I57: 0 | J57: 0 | K57: 52 | L57: =الأحد!L57 -> 25 | M57: =الأحد!M57 -> 0 | R57: 0
A58: =الأحد!A58 -> 53 | B58: =الأحد!B58 -> تمر(كغ) | C58: =SUM('الأحد(4)'!J58) -> 0 | E58: 0 | F58: 0 | H58: 0 | I58: 0 | J58: 0 | K58: 53 | L58: =الأحد!L58 -> 26 | M58: =الأحد!M58 -> 0 | R58: 0
A59: =الأحد!A59 -> 54 | B59: =الأحد!B59 -> سكر | C59: =SUM('الأحد(4)'!J59) -> 0 | E59: 90 | F59: 0 | H59: 90 | I59: 0 | J59: 0 | K59: 54 | L59: =الأحد!L59 -> 27 | M59: =الأحد!M59 -> 0 | R59: 0
A60: =الأحد!A60 -> 55 | B60: =الأحد!B60 -> فافل حار | C60: =SUM('الأحد(4)'!J60) -> 0 | E60: 0 | F60: 0 | H60: 0 | I60: 0 | J60: 0 | K60: 55 | L60: =الأحد!L60 -> 28 | M60: =الأحد!M60 -> 0 | R60: 0
A61: =الأحد!A61 -> 56 | B61: =الأحد!B61 -> حليب سوبرلي | C61: =SUM('الأحد(4)'!J61) -> 0 | E61: 0 | F61: =SUM(C61+D61) -> 0 | H61: =SUM(E61) -> 0 | I61: =SUM(G61*H61) -> 0 | J61: 0 | K61: 56 | L61: =الأحد!L61 -> 29 | M61: =الأحد!M61 -> 0
A62: =الأحد!A62 -> 57 | B62: =الأحد!B62 -> فريك | C62: =SUM('الأحد(4)'!J62) -> 0 | E62: 360 | F62: 0 | H62: 360 | I62: 0 | J62: 0 | K62: 57 | L62: =الأحد!L62 -> 30 | M62: =الأحد!M62 -> 0
A63: =الأحد!A63 -> 58 | B63: =الأحد!B63 -> جريوات | C63: =SUM('الأحد(4)'!J63) -> 0 | E63: 120 | F63: 0 | H63: 120 | I63: 0 | J63: 0 | K63: 58 | L63: =الأحد!L63 -> 31 | M63: =الأحد!M63 -> 0
A64: =الأحد!A64 -> 59 | B64: =الأحد!B64 -> تاي | C64: =SUM('الأحد(4)'!J64) -> 0 | E64: 280 | F64: 0 | H64: 280 | I64: 0 | J64: 0 | K64: 59 | L64: =الأحد!L64 -> 32 | M64: =الأحد!M64 -> 0 | R64: 0
A65: =الأحد!A65 -> 60 | B65: =الأحد!B65 -> قهوة(كغ) | C65: =SUM('الأحد(4)'!J65) -> 0 | E65: 160 | F65: 0 | H65: 160 | I65: 0 | J65: 0 | K65: 60 | M65: المجموع | N65: =SUM(N51:N64) -> 0 | O65: =O33+O34+O35+O36+O37+O38+O39+O40+O41+O42+O43+O44+O45+O46+O47+O48+O49+O50+O51+O52+O53+O54+O55+O56+O57+O58+O59+O60+O61+O62+O63+O64 -> 0 | P65: =SUM(P51:P64) -> 0 | R65: 0
A66: =الأحد!A66 -> 61 | B66: =الأحد!B66 -> شمندر | C66: =SUM('الأحد(4)'!J66) -> 0 | E66: 130 | F66: 0 | H66: 130 | I66: 0 | J66: 0 | K66: 61 | R66: 0
A67: =الأحد!A67 -> 62 | B67: =الأحد!B67 -> توابل | C67: =SUM('الأحد(4)'!J67) -> 0 | E67: 0 | F67: 0 | H67: 0 | I67: 0 | J67: 0 | K67: 62 | R67: 0
A68: =الأحد!A68 -> 63 | B68: =الأحد!B68 -> إجاص(كغ) | C68: =SUM('الأحد(4)'!J68) -> 0 | E68: 0 | F68: 0 | H68: 0 | I68: 0 | J68: 0 | K68: 63 | M68: مصـاريف التغذية للشخـص الواحــد | R68: 0
A69: =الأحد!A69 -> 64 | B69: =الأحد!B69 -> 0 | C69: =SUM('الأحد(4)'!J69) -> 0 | F69: 0 | H69: 0 | I69: 0 | J69: 0 | K69: 64 | R69: 0
A70: =الأحد!A70 -> 65 | B70: =الأحد!B70 -> 0 | C70: =SUM('الأحد(4)'!J70) -> 0 | F70: 0 | H70: 0 | I70: 0 | J70: =SUM(F70-G70) -> 0 | K70: 65 | M70: قيمة مخروجات اليـوم | O70: =SUM(I77) -> 0 | R70: 0
A71: =الأحد!A71 -> 66 | B71: =الأحد!B71 -> 0 | C71: =SUM('الأحد(4)'!J71) -> 0 | F71: 0 | H71: 0 | I71: 0 | J71: 0 | K71: 66 | R71: 0
A72: =الأحد!A72 -> 67 | B72: =الأحد!B72 -> 0 | C72: =SUM('الأحد(4)'!J72) -> 0 | F72: =SUM(C72+D72) -> 0 | H72: =SUM(E72) -> 0 | I72: =SUM(G72*H72) -> 0 | J72: 0 | K72: 67 | M72: معدل تغذية الأفراد | O72: =SUM(O14) -> 40 | R72: 0
A73: =الأحد!A73 -> 68 | B73: =الأحد!B73 -> 0 | C73: =SUM('الأحد(4)'!J73) -> 0 | F73: =SUM(C73+D73) -> 0 | H73: =SUM(E73) -> 0 | I73: =SUM(G73*H73) -> 0 | J73: 0 | K73: 68 | R73: 0
A74: =الأحد!A74 -> 69 | B74: =الأحد!B74 -> 0 | C74: =SUM('الأحد(4)'!J74) -> 0 | E74: 0 | F74: 0 | H74: 0 | I74: 0 | J74: 0 | K74: 69 | M74: =SUM(I77/O14) -> 0 | O74: = | P74: =M74 -> 0 | R74: 0
A75: =الأحد!A75 -> 70 | B75: =الأحد!B75 -> 0 | C75: =SUM('الأحد(4)'!J75) -> 12.2 | F75: =SUM(C75+D75) -> 12.2 | H75: =SUM(E75) -> 0 | I75: =SUM(G75*H75) -> 0 | J75: 12.2 | K75: 70 | M75: (1) معدل تغذية الأفـراد للوجبــة | R75: 0
A76: =الأحد!A76 -> 71 | B76: =الأحد!B76 -> 0 | C76: =SUM('الأحد(4)'!J76) -> 0 | E76: 0 | F76: =SUM(C76+D76) -> 0 | H76: =SUM(E76) -> 0 | I76: =SUM(G76*H76) -> 0 | J76: 0 | K76: 71 | M76: الغــذاء + العشـاء | R76: 0
A77: المجموع | C77: =SUM(C6:C76) -> 7.2 | D77: =SUM(D6:D76) -> 0 | F77: =SUM(F6:F76) -> 7.2 | G77: =SUM(G6:G76) -> 0 | I77: =SUM(I6:I76) -> 0 | J77: =SUM(J6:J76) -> 7.2 | R77: =SUM(R12:R76) -> 0
K78: حــررببئرالشهداء في:29 / 04 / 2013....................................

Sheet الثلا ثاء(4)
A1: اســــم المؤسســــــــــــــــــــــــــــــــــــــــــــــة | E1: ورقـــــة الاستهــــلاك اليومـــــــــــــــــــي
A2: طالــــــــــب عبــــد الله-بئر الشهداء- | F2: يـوم: االإثنين | G2: 30 | H2: =الخميس!H2 -> فيفري | I2: 2013 | M2: السنة المالية :2013
A3: طبيعة المواد | C3: مخزون | D3: مــــدخـــــلات اليـوم | F3: مجموع مخزون | G3: مـخرجــــــــــــــــــــات اليـوم | J3: كمية ماتبقى | K3: ملاحظـــــات | M3: تعــــــــداد اليـــوم
D4: الكمية | E4: سعر | F4: البارحـــــــــة | G4: الكمية | H4: سعر | I4: قيمة مخـروجات | J4: فـــي | M4: المستفيدون | N4: فطـور | O4: غـذاء | P4: عشـاء
A5: المستهلكـــة | C5: البارحة | E5: الوحـدة | F5: ومدخلات اليوم | H5: الوحـدة | I5: اليــوم | J5: نهاية اليــوم
A6: =الأحد!A6 -> 01 | B6: =الأحد!B6 -> الخبـــــــز | C6: =SUM('الإ ثنين(4)'!J6) -> 12 | E6: 7.4 | F6: =SUM(C6+D6) -> 12 | H6: =SUM(E6) -> 7.4 | I6: =SUM(G6*H6) -> 0 | J6: =SUM(F6-G6) -> 12 | K6: 01 | M6: نصف داخليون | O6: 0 | R6: =SUM(D6*E6) -> 0
A7: =الأحد!A7 -> 02 | B7: =الأحد!B7 -> بسباس(كغ) | C7: =SUM('الإ ثنين(4)'!J7) -> 13 | E7: 80 | F7: 13 | H7: 80 | I7: 0 | J7: 13 | K7: 02 | M7: م .تربويون | O7: 0 | R7: 0
A8: =الأحد!A8 -> 03 | B8: =الأحد!B8 -> بيض | C8: =SUM('الإ ثنين(4)'!J8) -> 0 | E8: 12 | F8: 0 | H8: 12 | I8: 0 | J8: 0 | K8: 03 | M8: الأساتــذة | O8: 0 | R8: 0
A9: =الأحد!A9 -> 04 | B9: =الأحد!B9 -> بطاطا(كغ) | C9: =SUM('الإ ثنين(4)'!J9) -> 12 | E9: 60 | F9: 12 | H9: 60 | I9: 0 | J9: 12 | K9: 04 | M9: العمـــال | O9: 0 | R9: 0
A10: =الأحد!A10 -> 05 | B10: =الأحد!B10 -> بصل(كغ) | C10: =SUM('الإ ثنين(4)'!J10) -> 35 | E10: 90 | F10: 35 | H10: 90 | I10: 0 | J10: 35 | K10: 05 | M10: ضيوف القطاع | O10: 40 | R10: 0
A11: =الأحد!A11 -> 06 | B11: =الأحد!B11 -> جزر(كغ) | C11: =SUM('الإ ثنين(4)'!J11) -> 12 | E11: 80 | F11: 12 | H11: 80 | I11: 0 | J11: 12 | K11: 06 | M11: المجمـــــوع | N11: =SUM(N6:N10) -> 0 | O11: =SUM(O6:O10) -> 40 | P11: =SUM(P6:P10) -> 0 | R11: 0
A12: =الأحد!A12 -> 07 | B12: =الأحد!B12 -> جبن(علبة16ق) | C12: =SUM('الإ ثنين(4)'!J12) -> 0 | E12: 80 | F12: 0 | H12: 80 | I12: 0 | J12: 0 | K12: 07 | R12: 0
A13: =الأحد!A13 -> 08 | B13: =الأحد!B13 -> تفاح(كغ) | C13: =SUM('الإ ثنين(4)'!J13) -> 0 | E13: 240 | F13: 0 | H13: 240 | I13: 0 | J13: 0 | K13: 08 | R13: =SUM(D13*E13) -> 0
A14: =الأحد!A14 -> 09 | B14: =الأحد!B14 -> خيار(كغ) | C14: =SUM('الإ ثنين(4)'!J14) -> 0 | E14: 0 | F14: 0 | H14: 0 | I14: 0 | J14: 0 | K14: 09 | M14: معـدل المستفيدين | O14: =SUM(N11+O11+P11) -> 40 | R14: 0
A15: =الأحد!A15 -> 10 | B15: =الأحد!B15 -> طماطم حب(كغ) | C15: =SUM('الإ ثنين(4)'!J15) -> 0 | E15: 90 | F15: 0 | H15: 90 | I15: 0 | J15: 0 | K15: 10 | R15: 0
A16: =الأحد!A16 -> 11 | B16: =الأحد!B16 -> ثوم(كغ) | C16: =SUM('الإ ثنين(4)'!J16) -> 0 | E16: 400 | F16: 0 | H16: 400 | I16: 0 | J16: 0 | K16: 11 | M16: من الوجبـــات | R16: 0
A17: =الأحد!A17 -> 12 | B17: =الأحد!B17 -> سلاطة خس(كغ) | C17: =SUM('الإ ثنين(4)'!J17) -> 0 | E17: 80 | F17: =SUM(C17+D17) -> 0 | H17: =SUM(E17) -> 80 | I17: =SUM(G17*H17) -> 0 | J17: 0 | K17: 12 | M17: الوجبــــــــــــــات | R17: 0
A18: =الأحد!A18 -> 13 | B18: =الأحد!B18 -> برتقال(كغ) | C18: =SUM('الإ ثنين(4)'!J18) -> 0 | E18: 160 | F18: 0 | H18: 160 | I18: 0 | J18: 0 | K18: 13 | R18: 0
A19: =الأحد!A19 -> 14 | B19: =الأحد!B19 -> موز(كغ) | C19: =SUM('الإ ثنين(4)'!J19) -> -89 | E19: 170 | F19: -89 | H19: 170 | I19: 0 | J19: -89 | K19: 14 | M19: فطــــــــور الصبــاح | R19: 0
A20: =الأحد!A20 -> 15 | B20: =الأحد!B20 -> يوسفية | C20: =SUM('الإ ثنين(4)'!J20) -> 0 | E20: 0 | F20: 0 | H20: 0 | I20: 0 | J20: 0 | K20: 15 | R20: 0
A21: =الأحد!A21 -> 16 | B21: =الأحد!B21 -> عنب(كغ) | C21: =SUM('الإ ثنين(4)'!J21) -> 0 | E21: 0 | F21: 0 | H21: 0 | I21: 0 | J21: 0 | K21: 16 | R21: 0
A22: =الأحد!A22 -> 17 | B22: =الأحد!B22 -> شخشوخة(كغ) | C22: =SUM('الإ ثنين(4)'!J22) -> 0 | E22: 160 | F22: 0 | H22: 160 | I22: 0 | J22: 0 | K22: 17 | R22: 0
A23: =الأحد!A23 -> 18 | B23: =الأحد!B23 -> زعرورة (كغ) | C23: =SUM('الإ ثنين(4)'!J23) -> 0 | E23: 0 | F23: 0 | H23: 0 | I23: 0 | J23: 0 | K23: 18 | R23: 0
A24: =الأحد!A24 -> 19 | B24: =الأحد!B24 -> ياؤرت | C24: =SUM('الإ ثنين(4)'!J24) -> 0 | E24: 15 | F24: 0 | H24: 15 | I24: 0 | J24: 0 | K24: 19 | R24: 0
A25: =الأحد!A25 -> 20 | B25: =الأحد!B25 -> شكولاطة | C25: =SUM('الإ ثنين(4)'!J25) -> 0 | E25: 0 | F25: 0 | H25: 0 | I25: 0 | J25: 0 | K25: 20 | R25: 0
A26: =الأحد!A26 -> 21 | B26: =الأحد!B26 -> زيتون اسود(كغ) | C26: =SUM('الإ ثنين(4)'!J26) -> 0 | E26: 350 | F26: 0 | H26: 350 | I26: 0 | J26: 0 | K26: 21 | M26: الغــــــذاء | R26: 0
A27: =الأحد!A27 -> 22 | B27: =الأحد!B27 -> زيتون اخضر(كغ) | C27: =SUM('الإ ثنين(4)'!J27) -> 0 | E27: 400 | F27: 0 | H27: 400 | I27: 0 | J27: 0 | K27: 22 | M27: خبز+كسكسي+لحم دجاج | R27: 0
A28: =الأحد!A28 -> 23 | B28: =الأحد!B28 -> تليتلي(كغ) | C28: =SUM('الإ ثنين(4)'!J28) -> 0 | E28: 90 | F28: 0 | H28: 90 | I28: 0 | J28: 0 | K28: 23 | M28: سلاطة متنوعة | N28: موز | R28: 0
A29: =الأحد!A29 -> 24 | B29: =الأحد!B29 -> دويدة(كغ) | C29: =SUM('الإ ثنين(4)'!J29) -> 0 | E29: 0 | F29: 0 | H29: 0 | I29: 0 | J29: 0 | K29: 24 | M29: ماء معدني | R29: 0
A30: =الأحد!A30 -> 25 | B30: =الأحد!B30 -> سباقيطي(كغ) | C30: =SUM('الإ ثنين(4)'!J30) -> 0 | E30: 90 | F30: 0 | H30: 90 | I30: 0 | J30: 0 | K30: 25 | R30: 0
A31: =الأحد!A31 -> 26 | B31: =الأحد!B31 -> كسكسي (كغ) | C31: =SUM('الإ ثنين(4)'!J31) -> 0 | E31: 90 | F31: 0 | H31: 90 | I31: 0 | J31: 0 | K31: 26 | M31: قائمـة المقبولين للطاولة المشتركــة | R31: 0
A32: =الأحد!A32 -> 27 | B32: =الأحد!B32 -> مقارونة | C32: =SUM('الإ ثنين(4)'!J32) -> 0 | E32: 90 | F32: 0 | H32: 90 | I32: 0 | J32: 0 | K32: 27 | M32: الأسمــاء | N32: ف.ص | O32: غــداء | P32: ع | R32: 0
A33: =الأحد!A33 -> 28 | B33: =الأحد!B33 -> حمص | C33: =SUM('الإ ثنين(4)'!J33) -> 0 | E33: 240 | F33: 0 | H33: 240 | I33: 0 | J33: 0 | K33: 28 | L33: =الأحد!L33 -> 1 | M33: =الأحد!M33 -> ازوال شراف الدين | R33: 0
A34: =الأحد!A34 -> 29 | B34: =الأحد!B34 -> عدس | C34: =SUM('الإ ثنين(4)'!J34) -> 0 | E34: 120 | F34: 0 | H34: 120 | I34: 0 | J34: 0 | K34: 29 | L34: =الأحد!L34 -> 2 | M34: =الأحد!M34 -> اوشن صبرينة | R34: 0
A35: =الأحد!A35 -> 30 | B35: =الأحد!B35 -> فاصولياء(كغ) | C35: =SUM('الإ ثنين(4)'!J35) -> 0 | E35: 200 | F35: =SUM(C35+D35) -> 0 | H35: =SUM(E35) -> 200 | I35: =SUM(G35*H35) -> 0 | J35: 0 | K35: 30 | L35: =الأحد!L35 -> 3 | M35: =الأحد!M35 -> قلي أحلام
A36: =الأحد!A36 -> 31 | B36: =الأحد!B36 -> ارزمفور(كغ) | C36: =SUM('الإ ثنين(4)'!J36) -> 0 | E36: 110 | F36: 0 | H36: 110 | I36: 0 | J36: 0 | K36: 31 | L36: =الأحد!L36 -> 4 | M36: =الأحد!M36 -> اوش ايمان | R36: 0
A37: =الأحد!A37 -> 32 | B37: =الأحد!B37 -> حلويات | C37: =SUM('الإ ثنين(4)'!J37) -> 0 | E37: 0 | F37: =SUM(C37+D37) -> 0 | H37: =SUM(E37) -> 0 | I37: =SUM(G37*H37) -> 0 | J37: 0 | K37: 32 | L37: =الأحد!L37 -> 5 | M37: =الأحد!M37 -> عزيون فضيلة | R37: 0
A38: =الأحد!A38 -> 33 | B38: =الأحد!B38 -> خوخ | C38: =SUM('الإ ثنين(4)'!J38) -> 0 | E38: 0 | F38: 0 | H38: 0 | I38: 0 | J38: 0 | K38: 33 | L38: =الأحد!L38 -> 6 | M38: =الأحد!M38 -> شايب عينو السعيد | R38: 0
A39: =الأحد!A39 -> 34 | B39: =الأحد!B39 -> فلفل اسود(كيس15غ) | C39: =SUM('الإ ثنين(4)'!J39) -> 0 | E39: 0 | F39: 0 | H39: 0 | I39: 0 | J39: 0 | K39: 34 | L39: =الأحد!L39 -> 7 | M39: =الأحد!M39 -> زيوش حدة | R39: 0
A40: =الأحد!A40 -> 35 | B40: =الأحد!B40 -> خميرة | C40: =SUM('الإ ثنين(4)'!J40) -> 0 | E40: 0 | F40: 0 | H40: 0 | I40: 0 | J40: 0 | K40: 35 | L40: =الأحد!L40 -> 8 | M40: =الأحد!M40 -> قرازة فتحي | R40: 0
A41: =الأحد!A41 -> 36 | B41: =الأحد!B41 -> كمون | C41: =SUM('الإ ثنين(4)'!J41) -> 0 | E41: 30 | F41: 0 | H41: 30 | I41: 0 | J41: 0 | K41: 36 | L41: =الأحد!L41 -> 9 | M41: =الأحد!M41 -> غضبان فيروز | R41: 0
A42: =الأحد!A42 -> 37 | B42: =الأحد!B42 -> ملح(كغ) | C42: =SUM('الإ ثنين(4)'!J42) -> 0 | E42: 30 | F42: 0 | H42: 30 | I42: 0 | J42: 0 | K42: 37 | L42: =الأحد!L42 -> 10 | M42: =الأحد!M42 -> قرفي عليمة | R42: 0
A43: =الأحد!A43 -> 38 | B43: =الأحد!B43 -> طماطم مصبرة(كغ) | C43: =SUM('الإ ثنين(4)'!J43) -> 0 | E43: 140 | F43: 0 | H43: 140 | I43: 0 | J43: 0 | K43: 38 | L43: =الأحد!L43 -> 11 | M43: =الأحد!M43 -> بوناب هوراي | R43: 0
A44: =الأحد!A44 -> 39 | B44: =الأحد!B44 -> زيت المائدة 1لتر | C44: =SUM('الإ ثنين(4)'!J44) -> 0 | E44: 140 | F44: 0 | H44: 140 | I44: 0 | J44: 0 | K44: 39 | L44: =الأحد!L44 -> 12 | M44: =الأحد!M44 -> بوناب فريدة | R44: 0
A45: =الأحد!A45 -> 40 | B45: =الأحد!B45 -> زيدة | C45: =SUM('الإ ثنين(4)'!J45) -> 0 | E45: 70 | F45: 0 | H45: 70 | I45: 0 | J45: 0 | K45: 40 | L45: =الأحد!L45 -> 13 | M45: =الأحد!M45 -> جمال بوناب | R45: 0
A46: =الأحد!A46 -> 41 | B46: =الأحد!B46 -> خل(قارورة) | C46: =SUM('الإ ثنين(4)'!J46) -> 0 | E46: 30 | F46: 0 | H46: 30 | I46: 0 | J46: 0 | K46: 41 | L46: =الأحد!L46 -> 14 | M46: =الأحد!M46 -> 0 | R46: 0
A47: =الأحد!A47 -> 42 | B47: =الأحد!B47 -> لحم دجاج(كغ) | C47: =SUM('الإ ثنين(4)'!J47) -> 0 | E47: 380 | F47: 0 | H47: 380 | I47: 0 | J47: 0 | K47: 42 | L47: =الأحد!L47 -> 15 | M47: =الأحد!M47 -> 0 | R47: 0
A48: =الأحد!A48 -> 43 | B48: =الأحد!B48 -> فافل | C48: =SUM('الإ ثنين(4)'!J48) -> 0 | E48: 0 | F48: 0 | H48: 0 | I48: 0 | J48: 0 | K48: 43 | L48: =الأحد!L48 -> 16 | M48: =الأحد!M48 -> 0 | R48: 0
A49: =الأحد!A49 -> 44 | B49: =الأحد!B49 -> لحم عجل(كغ) | C49: =SUM('الإ ثنين(4)'!J49) -> 0 | E49: 1150 | F49: 0 | H49: 1150 | I49: 0 | J49: 0 | K49: 44 | L49: =الأحد!L49 -> 17 | M49: =الأحد!M49 -> 0 | R49: 0
A50: =الأحد!A50 -> 45 | B50: =الأحد!B50 -> ايجاص(كغ) | C50: =SUM('الإ ثنين(4)'!J50) -> 0 | E50: 0 | F50: 0 | H50: 0 | I50: 0 | J50: 0 | K50: 45 | L50: =الأحد!L50 -> 18 | M50: =الأحد!M50 -> 0 | R50: =SUM(D50*E50) -> 0
A51: =الأحد!A51 -> 46 | B51: =الأحد!B51 -> طونة | C51: =SUM('الإ ثنين(4)'!J51) -> 0 | E51: 0 | F51: 0 | H51: 0 | I51: 0 | J51: 0 | K51: 46 | L51: =الأحد!L51 -> 19 | M51: =الأحد!M51 -> 0 | R51: =SUM(D51*E51) -> 0
A52: =الأحد!A52 -> 47 | B52: =الأحد!B52 -> جلبانة خضراء(كغ) | C52: =SUM('الإ ثنين(4)'!J52) -> 0 | E52: 0 | F52: 0 | H52: 0 | I52: 0 | J52: 0 | K52: 47 | L52: =الأحد!L52 -> 20 | M52: =الأحد!M52 -> 0 | R52: =SUM(D52*E52) -> 0
A53: =الأحد!A53 -> 48 | B53: =الأحد!B53 -> مرطبات | C53: =SUM('الإ ثنين(4)'!J53) -> 0 | E53: 0 | F53: 0 | H53: 0 | I53: 0 | J53: 0 | K53: 48 | L53: =الأحد!L53 -> 21 | M53: =الأحد!M53 -> 0 | R53: 0
A54: =الأحد!A54 -> 49 | B54: =الأحد!B54 -> مايـونــاز500غ | C54: =SUM('الإ ثنين(4)'!J54) -> 0 | E54: 0 | F54: 0 | H54: 0 | I54: 0 | J54: 0 | K54: 49 | L54: =الأحد!L54 -> 22 | M54: =الأحد!M54 -> 0 | R54: 0
A55: =الأحد!A55 -> 50 | B55: =الأحد!B55 -> مربى | C55: =SUM('الإ ثنين(4)'!J55) -> 0 | E55: 0 | F55: 0 | H55: 0 | I55: 0 | J55: 0 | K55: 50 | L55: =الأحد!L55 -> 23 | M55: =الأحد!M55 -> 0 | R55: 0
A56: =الأحد!A56 -> 51 | B56: =الأحد!B56 -> مشروبات غازية | C56: =SUM('الإ ثنين(4)'!J56) -> 0 | E56: 0 | F56: 0 | H56: 0 | I56: 0 | J56: 0 | K56: 51 | L56: =الأحد!L56 -> 24 | M56: =الأحد!M56 -> 0 | R56: 0
A57: =الأحد!A57 -> 52 | B57: =الأحد!B57 -> ماء معدني | C57: =SUM('الإ ثنين(4)'!J57) -> 0 | E57: 30 | F57: 0 | H57: 30 | I57: 0 | J57: 0 | K57: 52 | L57: =الأحد!L57 -> 25 | M57: =الأحد!M57 -> 0 | R57: 0
A58: =الأحد!A58 -> 53 | B58: =الأحد!B58 -> تمر(كغ) | C58: =SUM('الإ ثنين(4)'!J58) -> 0 | E58: 0 | F58: 0 | H58: 0 | I58: 0 | J58: 0 | K58: 53 | L58: =الأحد!L58 -> 26 | M58: =الأحد!M58 -> 0 | R58: 0
A59: =الأحد!A59 -> 54 | B59: =الأحد!B59 -> سكر | C59: =SUM('الإ ثنين(4)'!J59) -> 0 | E59: 90 | F59: 0 | H59: 90 | I59: 0 | J59: 0 | K59: 54 | L59: =الأحد!L59 -> 27 | M59: =الأحد!M59 -> 0 | R59: 0
A60: =الأحد!A60 -> 55 | B60: =الأحد!B60 -> فافل حار | C60: =SUM('الإ ثنين(4)'!J60) -> 0 | E60: 0 | F60: 0 | H60: 0 | I60: 0 | J60: 0 | K60: 55 | L60: =الأحد!L60 -> 28 | M60: =الأحد!M60 -> 0 | R60: 0
A61: =الأحد!A61 -> 56 | B61: =الأحد!B61 -> حليب سوبرلي | C61: =SUM('الإ ثنين(4)'!J61) -> 0 | E61: 0 | F61: =SUM(C61+D61) -> 0 | H61: =SUM(E61) -> 0 | I61: =SUM(G61*H61) -> 0 | J61: 0 | K61: 56 | L61: =الأحد!L61 -> 29 | M61: =الأحد!M61 -> 0
A62: =الأحد!A62 -> 57 | B62: =الأحد!B62 -> فريك | C62: =SUM('الإ ثنين(4)'!J62) -> 0 | E62: 360 | F62: 0 | H62: 360 | I62: 0 | J62: 0 | K62: 57 | L62: =الأحد!L62 -> 30 | M62: =الأحد!M62 -> 0
A63: =الأحد!A63 -> 58 | B63: =الأحد!B63 -> جريوات | C63: =SUM('الإ ثنين(4)'!J63) -> 0 | E63: 120 | F63: 0 | H63: 120 | I63: 0 | J63: 0 | K63: 58 | L63: =الأحد!L63 -> 31 | M63: =الأحد!M63 -> 0
A64: =الأحد!A64 -> 59 | B64: =الأحد!B64 -> تاي | C64: =SUM('الإ ثنين(4)'!J64) -> 0 | E64: 280 | F64: 0 | H64: 280 | I64: 0 | J64: 0 | K64: 59 | L64: =الأحد!L64 -> 32 | M64: =الأحد!M64 -> 0 | R64: 0
A65: =الأحد!A65 -> 60 | B65: =الأحد!B65 -> قهوة(كغ) | C65: =SUM('الإ ثنين(4)'!J65) -> 0 | E65: 160 | F65: 0 | H65: 160 | I65: 0 | J65: 0 | K65: 60 | M65: المجموع | N65: =SUM(N51:N64) -> 0 | O65: =O33+O34+O35+O36+O37+O38+O39+O40+O41+O42+O43+O44+O45+O46+O47+O48+O49+O50+O51+O52+O53+O54+O55+O56+O57+O58+O59+O60+O61+O62+O63+O64 -> 0 | P65: =SUM(P51:P64) -> 0 | R65: 0
A66: =الأحد!A66 -> 61 | B66: =الأحد!B66 -> شمندر | C66: =SUM('الإ ثنين(4)'!J66) -> 0 | E66: 130 | F66: 0 | H66: 130 | I66: 0 | J66: 0 | K66: 61 | R66: 0
A67: =الأحد!A67 -> 62 | B67: =الأحد!B67 -> توابل | C67: =SUM('الإ ثنين(4)'!J67) -> 0 | E67: 0 | F67: 0 | H67: 0 | I67: 0 | J67: 0 | K67: 62 | R67: 0
A68: =الأحد!A68 -> 63 | B68: =الأحد!B68 -> إجاص(كغ) | C68: =SUM('الإ ثنين(4)'!J68) -> 0 | E68: 0 | F68: 0 | H68: 0 | I68: 0 | J68: 0 | K68: 63 | M68: مصـاريف التغذية للشخـص الواحــد | R68: 0
A69: =الأحد!A69 -> 64 | B69: =الأحد!B69 -> 0 | C69: =SUM('الإ ثنين(4)'!J69) -> 0 | F69: 0 | H69: 0 | I69: 0 | J69: 0 | K69: 64 | R69: 0
A70: =الأحد!A70 -> 65 | B70: =الأحد!B70 -> 0 | C70: =SUM('الإ ثنين(4)'!J70) -> 0 | F70: 0 | H70: 0 | I70: 0 | J70: =SUM(F70-G70) -> 0 | K70: 65 | M70: قيمة مخروجات اليـوم | O70: =SUM(I77) -> 0 | R70: 0
A71: =الأحد!A71 -> 66 | B71: =الأحد!B71 -> 0 | C71: =SUM('الإ ثنين(4)'!J71) -> 0 | F71: 0 | H71: 0 | I71: 0 | J71: 0 | K71: 66 | R71: 0
A72: =الأحد!A72 -> 67 | B72: =الأحد!B72 -> 0 | C72: =SUM('الإ ثنين(4)'!J72) -> 0 | F72: =SUM(C72+D72) -> 0 | H72: =SUM(E72) -> 0 | I72: =SUM(G72*H72) -> 0 | J72: 0 | K72: 67 | M72: معدل تغذية الأفراد | O72: =SUM(O14) -> 40 | R72: 0
A73: =الأحد!A73 -> 68 | B73: =الأحد!B73 -> 0 | C73: =SUM('الإ ثنين(4)'!J73) -> 0 | F73: =SUM(C73+D73) -> 0 | H73: =SUM(E73) -> 0 | I73: =SUM(G73*H73) -> 0 | J73: 0 | K73: 68 | R73: 0
A74: =الأحد!A74 -> 69 | B74: =الأحد!B74 -> 0 | C74: =SUM('الإ ثنين(4)'!J74) -> 0 | E74: 0 | F74: 0 | H74: 0 | I74: 0 | J74: 0 | K74: 69 | M74: =SUM(I77/O14) -> 0 | O74: = | P74: =M74 -> 0 | R74: 0
A75: =الأحد!A75 -> 70 | B75: =الأحد!B75 -> 0 | C75: =SUM('الإ ثنين(4)'!J75) -> 12.2 | F75: =SUM(C75+D75) -> 12.2 | H75: =SUM(E75) -> 0 | I75: =SUM(G75*H75) -> 0 | J75: 12.2 | K75: 70 | M75: (1) معدل تغذية الأفـراد للوجبــة | R75: 0
A76: =الأحد!A76 -> 71 | B76: =الأحد!B76 -> 0 | C76: =SUM('الإ ثنين(4)'!J76) -> 0 | E76: 0 | F76: =SUM(C76+D76) -> 0 | H76: =SUM(E76) -> 0 | I76: =SUM(G76*H76) -> 0 | J76: 0 | K76: 71 | M76: الغــذاء + العشـاء | R76: 0
A77: المجموع | C77: =SUM(C6:C76) -> 7.2 | D77: =SUM(D6:D76) -> 0 | F77: =SUM(F6:F76) -> 7.2 | G77: =SUM(G6:G76) -> 0 | I77: =SUM(I6:I76) -> 0 | J77: =SUM(J6:J76) -> 7.2 | R77: =SUM(R12:R76) -> 0
K78: حــررببئرالشهداء في:30/ 04 / 2013....................................

Sheet الاربعاء(4)
A1: اســــم المؤسســــــــــــــــــــــــــــــــــــــــــــــة | E1: ورقـــــة الاستهــــلاك اليومـــــــــــــــــــي
A2: طالــــــــــب عبــــد الله-بئر الشهداء- | F2: يـوم: االثلاثاء | G2: 26 | H2: =الخميس!H2 -> فيفري | I2: 2013 | M2: السنة المالية :2013
A3: طبيعة المواد | C3: مخزون | D3: مــــدخـــــلات اليـوم | F3: مجموع مخزون | G3: مـخرجــــــــــــــــــــات اليـوم | J3: كمية ماتبقى | K3: ملاحظـــــات | M3: تعــــــــداد اليـــوم
D4: الكمية | E4: سعر | F4: البارحـــــــــة | G4: الكمية | H4: سعر | I4: قيمة مخـروجات | J4: فـــي | M4: المستفيدون | N4: فطـور | O4: غـذاء | P4: عشـاء
A5: المستهلكـــة | C5: البارحة | E5: الوحـدة | F5: ومدخلات اليوم | H5: الوحـدة | I5: اليــوم | J5: نهاية اليــوم
A6: =الأحد!A6 -> 01 | B6: =الأحد!B6 -> الخبـــــــز | C6: =SUM('الثلا ثاء(4)'!J6) -> 12 | E6: 7.4 | F6: =SUM(C6+D6) -> 12 | H6: =SUM(E6) -> 7.4 | I6: =SUM(G6*H6) -> 0 | J6: =SUM(F6-G6) -> 12 | K6: 01 | M6: نصف داخليون | O6: 0 | R6: =SUM(D6*E6) -> 0
A7: =الأحد!A7 -> 02 | B7: =الأحد!B7 -> بسباس(كغ) | C7: =SUM('الثلا ثاء(4)'!J7) -> 13 | E7: 80 | F7: 13 | H7: 80 | I7: 0 | J7: 13 | K7: 02 | M7: م .تربويون | O7: 0 | R7: =SUM(D7*E7) -> 0
A8: =الأحد!A8 -> 03 | B8: =الأحد!B8 -> بيض | C8: =SUM('الثلا ثاء(4)'!J8) -> 0 | E8: 12 | F8: 0 | H8: 12 | I8: 0 | J8: 0 | K8: 03 | M8: الأساتــذة | O8: 0 | R8: =SUM(D8*E8) -> 0
A9: =الأحد!A9 -> 04 | B9: =الأحد!B9 -> بطاطا(كغ) | C9: =SUM('الثلا ثاء(4)'!J9) -> 12 | E9: 60 | F9: 12 | H9: 60 | I9: 0 | J9: 12 | K9: 04 | M9: العمـــال | O9: 0 | R9: =SUM(D9*E9) -> 0
A10: =الأحد!A10 -> 05 | B10: =الأحد!B10 -> بصل(كغ) | C10: =SUM('الثلا ثاء(4)'!J10) -> 35 | E10: 90 | F10: 35 | H10: 90 | I10: 0 | J10: 35 | K10: 05 | M10: ضيوف القطاع | O10: 40 | R10: =SUM(D10*E10) -> 0
A11: =الأحد!A11 -> 06 | B11: =الأحد!B11 -> جزر(كغ) | C11: =SUM('الثلا ثاء(4)'!J11) -> 12 | E11: 80 | F11: 12 | H11: 80 | I11: 0 | J11: 12 | K11: 06 | M11: المجمـــــوع | N11: =SUM(N6:N10) -> 0 | O11: =SUM(O6:O10) -> 40 | P11: =SUM(P6:P10) -> 0
A12: =الأحد!A12 -> 07 | B12: =الأحد!B12 -> جبن(علبة16ق) | C12: =SUM('الثلا ثاء(4)'!J12) -> 0 | E12: 80 | F12: 0 | H12: 80 | I12: 0 | J12: 0 | K12: 07 | R12: =SUM(D12*E12) -> 0
A13: =الأحد!A13 -> 08 | B13: =الأحد!B13 -> تفاح(كغ) | C13: =SUM('الثلا ثاء(4)'!J13) -> 0 | E13: 0 | F13: 0 | H13: 0 | I13: 0 | J13: 0 | K13: 08 | R13: =SUM(D13*E13) -> 0
A14: =الأحد!A14 -> 09 | B14: =الأحد!B14 -> خيار(كغ) | C14: =SUM('الثلا ثاء(4)'!J14) -> 0 | E14: 0 | F14: 0 | H14: 0 | I14: 0 | J14: 0 | K14: 09 | M14: معـدل المستفيدين | O14: =SUM(N11+O11+P11) -> 40 | R14: 0
A15: =الأحد!A15 -> 10 | B15: =الأحد!B15 -> طماطم حب(كغ) | C15: =SUM('الثلا ثاء(4)'!J15) -> 0 | E15: 90 | F15: 0 | H15: 90 | I15: 0 | J15: 0 | K15: 10 | R15: 0
A16: =الأحد!A16 -> 11 | B16: =الأحد!B16 -> ثوم(كغ) | C16: =SUM('الثلا ثاء(4)'!J16) -> 0 | E16: 400 | F16: 0 | H16: 400 | I16: 0 | J16: 0 | K16: 11 | M16: من الوجبـــات | R16: 0
A17: =الأحد!A17 -> 12 | B17: =الأحد!B17 -> سلاطة خس(كغ) | C17: =SUM('الثلا ثاء(4)'!J17) -> 0 | E17: 80 | F17: =SUM(C17+D17) -> 0 | H17: =SUM(E17) -> 80 | I17: =SUM(G17*H17) -> 0 | J17: 0 | K17: 12 | M17: الوجبــــــــــــــات | R17: 0
A18: =الأحد!A18 -> 13 | B18: =الأحد!B18 -> برتقال(كغ) | C18: =SUM('الثلا ثاء(4)'!J18) -> 0 | E18: 160 | F18: 0 | H18: 160 | I18: 0 | J18: 0 | K18: 13 | R18: 0
A19: =الأحد!A19 -> 14 | B19: =الأحد!B19 -> موز(كغ) | C19: =SUM('الثلا ثاء(4)'!J19) -> -89 | E19: 160 | F19: -89 | H19: 160 | I19: 0 | J19: -89 | K19: 14 | M19: فطــــــــور الصبــاح | R19: 0
A20: =الأحد!A20 -> 15 | B20: =الأحد!B20 -> يوسفية | C20: =SUM('الثلا ثاء(4)'!J20) -> 0 | E20: 0 | F20: 0 | H20: 0 | I20: 0 | J20: 0 | K20: 15 | R20: 0
A21: =الأحد!A21 -> 16 | B21: =الأحد!B21 -> عنب(كغ) | C21: =SUM('الثلا ثاء(4)'!J21) -> 0 | E21: 0 | F21: 0 | H21: 0 | I21: 0 | J21: 0 | K21: 16 | R21: 0
A22: =الأحد!A22 -> 17 | B22: =الأحد!B22 -> شخشوخة(كغ) | C22: =SUM('الثلا ثاء(4)'!J22) -> 0 | E22: 0 | F22: 0 | H22: 0 | I22: 0 | J22: 0 | K22: 17 | R22: 0
A23: =الأحد!A23 -> 18 | B23: =الأحد!B23 -> زعرورة (كغ) | C23: =SUM('الثلا ثاء(4)'!J23) -> 0 | E23: 0 | F23: 0 | H23: 0 | I23: 0 | J23: 0 | K23: 18 | R23: 0
A24: =الأحد!A24 -> 19 | B24: =الأحد!B24 -> ياؤرت | C24: =SUM('الثلا ثاء(4)'!J24) -> 0 | E24: 15 | F24: 0 | H24: 15 | I24: 0 | J24: 0 | K24: 19 | R24: 0
A25: =الأحد!A25 -> 20 | B25: =الأحد!B25 -> شكولاطة | C25: =SUM('الثلا ثاء(4)'!J25) -> 0 | E25: 0 | F25: 0 | H25: 0 | I25: 0 | J25: 0 | K25: 20 | R25: 0
A26: =الأحد!A26 -> 21 | B26: =الأحد!B26 -> زيتون اسود(كغ) | C26: =SUM('الثلا ثاء(4)'!J26) -> 0 | E26: 350 | F26: 0 | H26: 350 | I26: 0 | J26: 0 | K26: 21 | M26: الغــــــذاء | R26: 0
A27: =الأحد!A27 -> 22 | B27: =الأحد!B27 -> زيتون اخضر(كغ) | C27: =SUM('الثلا ثاء(4)'!J27) -> 0 | E27: 400 | F27: 0 | H27: 400 | I27: 0 | J27: 0 | K27: 22 | M27: خبز+شربة فريك+لحم خروف | R27: 0
A28: =الأحد!A28 -> 23 | B28: =الأحد!B28 -> تليتلي(كغ) | C28: =SUM('الثلا ثاء(4)'!J28) -> 0 | E28: 90 | F28: 0 | H28: 90 | I28: 0 | J28: 0 | K28: 23 | M28: ماء معدني | N28: برتقال | R28: 0
A29: =الأحد!A29 -> 24 | B29: =الأحد!B29 -> دويدة(كغ) | C29: =SUM('الثلا ثاء(4)'!J29) -> 0 | E29: 0 | F29: 0 | H29: 0 | I29: 0 | J29: 0 | K29: 24 | M29: سلاطة متنوعة | R29: 0
A30: =الأحد!A30 -> 25 | B30: =الأحد!B30 -> سباقيطي(كغ) | C30: =SUM('الثلا ثاء(4)'!J30) -> 0 | E30: 90 | F30: 0 | H30: 90 | I30: 0 | J30: 0 | K30: 25 | R30: 0
A31: =الأحد!A31 -> 26 | B31: =الأحد!B31 -> كسكسي (كغ) | C31: =SUM('الثلا ثاء(4)'!J31) -> 0 | E31: 90 | F31: 0 | H31: 90 | I31: 0 | J31: 0 | K31: 26 | M31: قائمـة المقبولين للطاولة المشتركــة | R31: 0
A32: =الأحد!A32 -> 27 | B32: =الأحد!B32 -> مقارونة | C32: =SUM('الثلا ثاء(4)'!J32) -> 0 | E32: 90 | F32: 0 | H32: 90 | I32: 0 | J32: 0 | K32: 27 | M32: الأسمــاء | N32: ف.ص | O32: غــداء | P32: ع | R32: 0
A33: =الأحد!A33 -> 28 | B33: =الأحد!B33 -> حمص | C33: =SUM('الثلا ثاء(4)'!J33) -> 0 | E33: 240 | F33: 0 | H33: 240 | I33: 0 | J33: 0 | K33: 28 | L33: =الأحد!L33 -> 1 | M33: =الأحد!M33 -> ازوال شراف الدين | R33: 0
A34: =الأحد!A34 -> 29 | B34: =الأحد!B34 -> عدس | C34: =SUM('الثلا ثاء(4)'!J34) -> 0 | E34: 120 | F34: 0 | H34: 120 | I34: 0 | J34: 0 | K34: 29 | L34: =الأحد!L34 -> 2 | M34: =الأحد!M34 -> اوشن صبرينة | R34: 0
A35: =الأحد!A35 -> 30 | B35: =الأحد!B35 -> فاصولياء(كغ) | C35: =SUM('الثلا ثاء(4)'!J35) -> 0 | E35: 200 | F35: =SUM(C35+D35) -> 0 | H35: =SUM(E35) -> 200 | I35: =SUM(G35*H35) -> 0 | J35: 0 | K35: 30 | L35: =الأحد!L35 -> 3 | M35: =الأحد!M35 -> قلي أحلام
A36: =الأحد!A36 -> 31 | B36: =الأحد!B36 -> ارزمفور(كغ) | C36: =SUM('الثلا ثاء(4)'!J36) -> 0 | E36: 110 | F36: 0 | H36: 110 | I36: 0 | J36: 0 | K36: 31 | L36: =الأحد!L36 -> 4 | M36: =الأحد!M36 -> اوش ايمان | R36: 0
A37: =الأحد!A37 -> 32 | B37: =الأحد!B37 -> حلويات | C37: =SUM('الثلا ثاء(4)'!J37) -> 0 | E37: 0 | F37: =SUM(C37+D37) -> 0 | H37: =SUM(E37) -> 0 | I37: =SUM(G37*H37) -> 0 | J37: 0 | K37: 32 | L37: =الأحد!L37 -> 5 | M37: =الأحد!M37 -> عزيون فضيلة | R37: 0
A38: =الأحد!A38 -> 33 | B38: =الأحد!B38 -> خوخ | C38: =SUM('الثلا ثاء(4)'!J38) -> 0 | E38: 0 | F38: 0 | H38: 0 | I38: 0 | J38: 0 | K38: 33 | L38: =الأحد!L38 -> 6 | M38: =الأحد!M38 -> شايب عينو السعيد | R38: 0
A39: =الأحد!A39 -> 34 | B39: =الأحد!B39 -> فلفل اسود(كيس15غ) | C39: =SUM('الثلا ثاء(4)'!J39) -> 0 | E39: 0 | F39: 0 | H39: 0 | I39: 0 | J39: 0 | K39: 34 | L39: =الأحد!L39 -> 7 | M39: =الأحد!M39 -> زيوش حدة | R39: 0
A40: =الأحد!A40 -> 35 | B40: =الأحد!B40 -> خميرة | C40: =SUM('الثلا ثاء(4)'!J40) -> 0 | E40: 0 | F40: 0 | H40: 0 | I40: 0 | J40: 0 | K40: 35 | L40: =الأحد!L40 -> 8 | M40: =الأحد!M40 -> قرازة فتحي | R40: 0
A41: =الأحد!A41 -> 36 | B41: =الأحد!B41 -> كمون | C41: =SUM('الثلا ثاء(4)'!J41) -> 0 | E41: 30 | F41: 0 | H41: 30 | I41: 0 | J41: 0 | K41: 36 | L41: =الأحد!L41 -> 9 | M41: =الأحد!M41 -> غضبان فيروز | R41: 0
A42: =الأحد!A42 -> 37 | B42: =الأحد!B42 -> ملح(كغ) | C42: =SUM('الثلا ثاء(4)'!J42) -> 0 | E42: 30 | F42: 0 | H42: 30 | I42: 0 | J42: 0 | K42: 37 | L42: =الأحد!L42 -> 10 | M42: =الأحد!M42 -> قرفي عليمة | R42: 0
A43: =الأحد!A43 -> 38 | B43: =الأحد!B43 -> طماطم مصبرة(كغ) | C43: =SUM('الثلا ثاء(4)'!J43) -> 0 | E43: 140 | F43: 0 | H43: 140 | I43: 0 | J43: 0 | K43: 38 | L43: =الأحد!L43 -> 11 | M43: =الأحد!M43 -> بوناب هوراي | R43: 0
A44: =الأحد!A44 -> 39 | B44: =الأحد!B44 -> زيت المائدة 1لتر | C44: =SUM('الثلا ثاء(4)'!J44) -> 0 | E44: 140 | F44: 0 | H44: 140 | I44: 0 | J44: 0 | K44: 39 | L44: =الأحد!L44 -> 12 | M44: =الأحد!M44 -> بوناب فريدة | R44: 0
A45: =الأحد!A45 -> 40 | B45: =الأحد!B45 -> زيدة | C45: =SUM('الثلا ثاء(4)'!J45) -> 0 | E45: 70 | F45: 0 | H45: 70 | I45: 0 | J45: 0 | K45: 40 | L45: =الأحد!L45 -> 13 | M45: =الأحد!M45 -> جمال بوناب | R45: 0
A46: =الأحد!A46 -> 41 | B46: =الأحد!B46 -> خل(قارورة) | C46: =SUM('الثلا ثاء(4)'!J46) -> 0 | E46: 30 | F46: 0 | H46: 30 | I46: 0 | J46: 0 | K46: 41 | L46: =الأحد!L46 -> 14 | M46: =الأحد!M46 -> 0 | R46: 0
A47: =الأحد!A47 -> 42 | B47: =الأحد!B47 -> لحم دجاج(كغ) | C47: =SUM('الثلا ثاء(4)'!J47) -> 0 | E47: 380 | F47: 0 | H47: 380 | I47: 0 | J47: 0 | K47: 42 | L47: =الأحد!L47 -> 15 | M47: =الأحد!M47 -> 0 | R47: 0
A48: =الأحد!A48 -> 43 | B48: =الأحد!B48 -> فافل | C48: =SUM('الثلا ثاء(4)'!J48) -> 0 | E48: 0 | F48: 0 | H48: 0 | I48: 0 | J48: 0 | K48: 43 | L48: =الأحد!L48 -> 16 | M48: =الأحد!M48 -> 0 | R48: 0
A49: =الأحد!A49 -> 44 | B49: =الأحد!B49 -> لحم عجل(كغ) | C49: =SUM('الثلا ثاء(4)'!J49) -> 0 | E49: 1200 | F49: 0 | H49: 1200 | I49: 0 | J49: 0 | K49: 44 | L49: =الأحد!L49 -> 17 | M49: =الأحد!M49 -> 0 | R49: 0
A50: =الأحد!A50 -> 45 | B50: =الأحد!B50 -> ايجاص(كغ) | C50: =SUM('الثلا ثاء(4)'!J50) -> 0 | E50: 0 | F50: 0 | H50: 0 | I50: 0 | J50: 0 | K50: 45 | L50: =الأحد!L50 -> 18 | M50: =الأحد!M50 -> 0 | R50: =SUM(D50*E50) -> 0
A51: =الأحد!A51 -> 46 | B51: =الأحد!B51 -> طونة | C51: =SUM('الثلا ثاء(4)'!J51) -> 0 | E51: 0 | F51: 0 | H51: 0 | I51: 0 | J51: 0 | K51: 46 | L51: =الأحد!L51 -> 19 | M51: =الأحد!M51 -> 0 | R51: =SUM(D51*E51) -> 0
A52: =الأحد!A52 -> 47 | B52: =الأحد!B52 -> جلبانة خضراء(كغ) | C52: =SUM('الثلا ثاء(4)'!J52) -> 0 | E52: 0 | F52: 0 | H52: 0 | I52: 0 | J52: 0 | K52: 47 | L52: =الأحد!L52 -> 20 | M52: =الأحد!M52 -> 0 | R52: =SUM(D52*E52) -> 0
A53: =الأحد!A53 -> 48 | B53: =الأحد!B53 -> مرطبات | C53: =SUM('الثلا ثاء(4)'!J53) -> 0 | E53: 0 | F53: 0 | H53: 0 | I53: 0 | J53: 0 | K53: 48 | L53: =الأحد!L53 -> 21 | M53: =الأحد!M53 -> 0 | R53: 0
A54: =الأحد!A54 -> 49 | B54: =الأحد!B54 -> مايـونــاز500غ | C54: =SUM('الثلا ثاء(4)'!J54) -> 0 | E54: 0 | F54: 0 | H54: 0 | I54: 0 | J54: 0 | K54: 49 | L54: =الأحد!L54 -> 22 | M54: =الأحد!M54 -> 0 | R54: 0
A55: =الأحد!A55 -> 50 | B55: =الأحد!B55 -> مربى | C55: =SUM('الثلا ثاء(4)'!J55) -> 0 | E55: 0 | F55: 0 | H55: 0 | I55: 0 | J55: 0 | K55: 50 | L55: =الأحد!L55 -> 23 | M55: =الأحد!M55 -> 0 | R55: 0
A56: =الأحد!A56 -> 51 | B56: =الأحد!B56 -> مشروبات غازية | C56: =SUM('الثلا ثاء(4)'!J56) -> 0 | E56: 0 | F56: 0 | H56: 0 | I56: 0 | J56: 0 | K56: 51 | L56: =الأحد!L56 -> 24 | M56: =الأحد!M56 -> 0 | R56: 0
A57: =الأحد!A57 -> 52 | B57: =الأحد!B57 -> ماء معدني | C57: =SUM('الثلا ثاء(4)'!J57) -> 0 | E57: 7 | F57: 0 | H57: 7 | I57: 0 | J57: 0 | K57: 52 | L57: =الأحد!L57 -> 25 | M57: =الأحد!M57 -> 0 | R57: 0
A58: =الأحد!A58 -> 53 | B58: =الأحد!B58 -> تمر(كغ) | C58: =SUM('الثلا ثاء(4)'!J58) -> 0 | E58: 0 | F58: 0 | H58: 0 | I58: 0 | J58: 0 | K58: 53 | L58: =الأحد!L58 -> 26 | M58: =الأحد!M58 -> 0 | R58: 0
A59: =الأحد!A59 -> 54 | B59: =الأحد!B59 -> سكر | C59: =SUM('الثلا ثاء(4)'!J59) -> 0 | E59: 0 | F59: 0 | H59: 0 | I59: 0 | J59: 0 | K59: 54 | L59: =الأحد!L59 -> 27 | M59: =الأحد!M59 -> 0 | R59: 0
A60: =الأحد!A60 -> 55 | B60: =الأحد!B60 -> فافل حار | C60: =SUM('الثلا ثاء(4)'!J60) -> 0 | E60: 0 | F60: 0 | H60: 0 | I60: 0 | J60: 0 | K60: 55 | L60: =الأحد!L60 -> 28 | M60: =الأحد!M60 -> 0 | R60: 0
A61: =الأحد!A61 -> 56 | B61: =الأحد!B61 -> حليب سوبرلي | C61: =SUM('الثلا ثاء(4)'!J61) -> 0 | E61: 0 | F61: =SUM(C61+D61) -> 0 | H61: =SUM(E61) -> 0 | I61: =SUM(G61*H61) -> 0 | J61: 0 | K61: 56 | L61: =الأحد!L61 -> 29 | M61: =الأحد!M61 -> 0
A62: =الأحد!A62 -> 57 | B62: =الأحد!B62 -> فريك | C62: =SUM('الثلا ثاء(4)'!J62) -> 0 | E62: 360 | F62: 0 | H62: 360 | I62: 0 | J62: 0 | K62: 57 | L62: =الأحد!L62 -> 30 | M62: =الأحد!M62 -> 0
A63: =الأحد!A63 -> 58 | B63: =الأحد!B63 -> جريوات | C63: =SUM('الثلا ثاء(4)'!J63) -> 0 | E63: 0 | F63: 0 | H63: 0 | I63: 0 | J63: 0 | K63: 58 | L63: =الأحد!L63 -> 31 | M63: =الأحد!M63 -> 0
A64: =الأحد!A64 -> 59 | B64: =الأحد!B64 -> تاي | C64: =SUM('الثلا ثاء(4)'!J64) -> 0 | E64: 0 | F64: 0 | H64: 0 | I64: 0 | J64: 0 | K64: 59 | L64: =الأحد!L64 -> 32 | M64: =الأحد!M64 -> 0 | R64: 0
A65: =الأحد!A65 -> 60 | B65: =الأحد!B65 -> قهوة(كغ) | C65: =SUM('الثلا ثاء(4)'!J65) -> 0 | E65: 0 | F65: 0 | H65: 0 | I65: 0 | J65: 0 | K65: 60 | M65: المجموع | N65: =SUM(N51:N64) -> 0 | O65: =O33+O34+O35+O36+O37+O38+O39+O40+O41+O42+O43+O44+O45+O46+O47+O48+O49+O50+O51+O52+O53+O54+O55+O56+O57+O58+O59+O60+O61+O62+O63+O64 -> 0 | P65: =SUM(P51:P64) -> 0 | R65: 0
A66: =الأحد!A66 -> 61 | B66: =الأحد!B66 -> شمندر | C66: =SUM('الثلا ثاء(4)'!J66) -> 0 | E66: 130 | F66: 0 | H66: 130 | I66: 0 | J66: 0 | K66: 61 | R66: 0
A67: =الأحد!A67 -> 62 | B67: =الأحد!B67 -> توابل | C67: =SUM('الثلا ثاء(4)'!J67) -> 0 | E67: 0 | F67: 0 | H67: 0 | I67: 0 | J67: 0 | K67: 62 | R67: 0
A68: =الأحد!A68 -> 63 | B68: =الأحد!B68 -> إجاص(كغ) | C68: =SUM('الثلا ثاء(4)'!J68) -> 0 | E68: 0 | F68: 0 | H68: 0 | I68: 0 | J68: 0 | K68: 63 | M68: مصـاريف التغذية للشخـص الواحــد | R68: 0
A69: =الأحد!A69 -> 64 | B69: =الأحد!B69 -> 0 | C69: =SUM('الثلا ثاء(4)'!J69) -> 0 | F69: 0 | H69: 0 | I69: 0 | J69: =SUM(F69-G69) -> 0 | K69: 64 | R69: 0
A70: =الأحد!A70 -> 65 | B70: =الأحد!B70 -> 0 | C70: =SUM('الثلا ثاء(4)'!J71) -> 0 | F70: 0 | H70: 0 | I70: 0 | J70: 0 | K70: 65 | M70: قيمة مخروجات اليـوم | O70: =SUM(I77) -> 0 | R70: 0
A71: =الأحد!A71 -> 66 | B71: =الأحد!B71 -> 0 | C71: =SUM('الثلا ثاء(4)'!J72) -> 0 | F71: 0 | H71: 0 | I71: 0 | J71: 0 | K71: 66 | R71: 0
A72: =الأحد!A72 -> 67 | B72: =الأحد!B72 -> 0 | C72: =SUM('الثلا ثاء(4)'!J73) -> 0 | F72: =SUM(C72+D72) -> 0 | H72: =SUM(E72) -> 0 | I72: =SUM(G72*H72) -> 0 | J72: 0 | K72: 67 | M72: معدل تغذية الأفراد | O72: =SUM(O14) -> 40 | R72: 0
A73: =الأحد!A73 -> 68 | B73: =الأحد!B73 -> 0 | C73: =SUM('الثلا ثاء(4)'!J73) -> 0 | F73: =SUM(C73+D73) -> 0 | H73: =SUM(E73) -> 0 | I73: =SUM(G73*H73) -> 0 | J73: 0 | K73: 68 | R73: 0
A74: =الأحد!A74 -> 69 | B74: =الأحد!B74 -> 0 | C74: =SUM('الثلا ثاء(4)'!J74) -> 0 | E74: 0 | F74: 0 | H74: 0 | I74: 0 | J74: 0 | K74: 69 | M74: =SUM(I77/O14) -> 0 | O74: = | P74: =M74 -> 0 | R74: 0
A75: =الأحد!A75 -> 70 | B75: =الأحد!B75 -> 0 | C75: =SUM('الثلا ثاء(4)'!J75) -> 12.2 | F75: =SUM(C75+D75) -> 12.2 | H75: =SUM(E75) -> 0 | I75: =SUM(G75*H75) -> 0 | J75: 12.2 | K75: 70 | M75: (1) معدل تغذية الأفـراد للوجبــة | R75: 0
A76: =الأحد!A76 -> 71 | B76: =الأحد!B76 -> 0 | C76: =SUM('الثلا ثاء(4)'!J76) -> 0 | E76: 0 | F76: =SUM(C76+D76) -> 0 | H76: =SUM(E76) -> 0 | I76: =SUM(G76*H76) -> 0 | J76: 0 | K76: 71 | M76: الغــذاء + العشـاء | R76: =SUM(R12:R75) -> 0
A77: المجموع | C77: =SUM(C6:C76) -> 7.2 | D77: =SUM(D6:D76) -> 0 | F77: =SUM(F6:F76) -> 7.2 | G77: =SUM(G6:G76) -> 0 | I77: =SUM(I6:I76) -> 0 | J77: =SUM(J6:J76) -> 7.2 | R77: =SUM(R12:R76) -> 0
K78: حــررببئرالشهداء في:26/ 03 / 2013....................................

Sheet الخميس(4)
A1: اســــم المؤسســــــــــــــــــــــــــــــــــــــــــــــة | E1: ورقـــــة الاستهــــلاك اليومـــــــــــــــــــي
A2: طالــــــــــب عبــــد الله-بئر الشهداء- | E2: تكوين في إ ع ألي | F2: يـوم:الأربعاء | G2: 27 | H2: =الخميس!H2 -> فيفري | I2: 2013 | J2: معلموا الإبتدائي | M2: السنة المالية :2013
A3: طبيعة المواد | C3: مخزون | D3: مــــدخـــــلات اليـوم | F3: مجموع مخزون | G3: مـخرجــــــــــــــــــــات اليـوم | J3: كمية ماتبقى | K3: ملاحظـــــات | M3: تعــــــــداد اليـــوم
D4: الكمية | E4: سعر | F4: البارحـــــــــة | G4: الكمية | H4: سعر | I4: قيمة مخـروجات | J4: فـــي | M4: المستفيدون | N4: فطـور | O4: غـذاء | P4: عشـاء
A5: المستهلكـــة | C5: البارحة | E5: الوحـدة | F5: ومدخلات اليوم | H5: الوحـدة | I5: اليــوم | J5: نهاية اليــوم
A6: =الأحد!A6 -> 01 | B6: =الأحد!B6 -> الخبـــــــز | C6: =SUM('الاربعاء(4)'!J6) -> 12 | E6: 7.4 | F6: =SUM(C6+D6) -> 12 | H6: =SUM(E6) -> 7.4 | I6: =SUM(G6*H6) -> 0 | J6: =SUM(F6-G6) -> 12 | K6: 01 | M6: نصف داخليون | O6: 0 | R6: =SUM(D6*E6) -> 0
A7: =الأحد!A7 -> 02 | B7: =الأحد!B7 -> بسباس(كغ) | C7: =SUM('الاربعاء(4)'!J7) -> 13 | E7: 80 | F7: 13 | H7: 80 | I7: 0 | J7: 13 | K7: 02 | M7: م .تربويون | O7: 0 | R7: =SUM(D7*E7) -> 0
A8: =الأحد!A8 -> 03 | B8: =الأحد!B8 -> بيض | C8: =SUM('الاربعاء(4)'!J8) -> 0 | E8: 12 | F8: 0 | H8: 12 | I8: 0 | J8: 0 | K8: 03 | M8: الأساتــذة | O8: 0 | R8: =SUM(D8*E8) -> 0
A9: =الأحد!A9 -> 04 | B9: =الأحد!B9 -> بطاطا(كغ) | C9: =SUM('الاربعاء(4)'!J9) -> 12 | E9: 60 | F9: 12 | H9: 60 | I9: 0 | J9: 12 | K9: 04 | M9: العمـــال | O9: 0 | R9: =SUM(D9*E9) -> 0
A10: =الأحد!A10 -> 05 | B10: =الأحد!B10 -> بصل(كغ) | C10: =SUM('الاربعاء(4)'!J10) -> 35 | E10: 90 | F10: 35 | H10: 90 | I10: 0 | J10: 35 | K10: 05 | M10: ضيوف القطاع | O10: 40 | R10: =SUM(D10*E10) -> 0
A11: =الأحد!A11 -> 06 | B11: =الأحد!B11 -> جزر(كغ) | C11: =SUM('الاربعاء(4)'!J11) -> 12 | E11: 80 | F11: 12 | H11: 80 | I11: 0 | J11: 12 | K11: 06 | M11: المجمـــــوع | N11: =SUM(N6:N10) -> 0 | O11: =SUM(O6:O10) -> 40 | P11: =SUM(P6:P10) -> 0
A12: =الأحد!A12 -> 07 | B12: =الأحد!B12 -> جبن(علبة16ق) | C12: =SUM('الاربعاء(4)'!J12) -> 0 | E12: 80 | F12: 0 | H12: 80 | I12: 0 | J12: 0 | K12: 07 | R12: =SUM(D12*E12) -> 0
A13: =الأحد!A13 -> 08 | B13: =الأحد!B13 -> تفاح(كغ) | C13: =SUM('الاربعاء(4)'!J13) -> 0 | E13: 240 | F13: 0 | H13: 240 | I13: 0 | J13: 0 | K13: 08 | R13: =SUM(D13*E13) -> 0
A14: =الأحد!A14 -> 09 | B14: =الأحد!B14 -> خيار(كغ) | C14: =SUM('الاربعاء(4)'!J14) -> 0 | E14: 1230 | F14: 0 | H14: 1230 | I14: 0 | J14: 0 | K14: 09 | M14: معـدل المستفيدين | O14: =SUM(N11+O11+P11) -> 40 | R14: 0
A15: =الأحد!A15 -> 10 | B15: =الأحد!B15 -> طماطم حب(كغ) | C15: =SUM('الاربعاء(4)'!J15) -> 0 | E15: 90 | F15: 0 | H15: 90 | I15: 0 | J15: 0 | K15: 10 | R15: 0
A16: =الأحد!A16 -> 11 | B16: =الأحد!B16 -> ثوم(كغ) | C16: =SUM('الاربعاء(4)'!J16) -> 0 | E16: 400 | F16: 0 | H16: 400 | I16: 0 | J16: 0 | K16: 11 | M16: من الوجبـــات | R16: 0
A17: =الأحد!A17 -> 12 | B17: =الأحد!B17 -> سلاطة خس(كغ) | C17: =SUM('الاربعاء(4)'!J17) -> 0 | E17: 80 | F17: =SUM(C17+D17) -> 0 | H17: =SUM(E17) -> 80 | I17: =SUM(G17*H17) -> 0 | J17: 0 | K17: 12 | M17: الوجبــــــــــــــات | R17: 0
A18: =الأحد!A18 -> 13 | B18: =الأحد!B18 -> برتقال(كغ) | C18: =SUM('الاربعاء(4)'!J18) -> 0 | E18: 120 | F18: 0 | H18: 120 | I18: 0 | J18: 0 | K18: 13 | R18: 0
A19: =الأحد!A19 -> 14 | B19: =الأحد!B19 -> موز(كغ) | C19: =SUM('الاربعاء(4)'!J19) -> -89 | E19: 160 | F19: -89 | H19: 160 | I19: 0 | J19: -89 | K19: 14 | M19: فطــــــــور الصبــاح | R19: 0
A20: =الأحد!A20 -> 15 | B20: =الأحد!B20 -> يوسفية | C20: =SUM('الاربعاء(4)'!J20) -> 0 | E20: 0 | F20: 0 | H20: 0 | I20: 0 | J20: 0 | K20: 15 | R20: 0
A21: =الأحد!A21 -> 16 | B21: =الأحد!B21 -> عنب(كغ) | C21: =SUM('الاربعاء(4)'!J21) -> 0 | E21: 0 | F21: 0 | H21: 0 | I21: 0 | J21: 0 | K21: 16 | R21: 0
A22: =الأحد!A22 -> 17 | B22: =الأحد!B22 -> شخشوخة(كغ) | C22: =SUM('الاربعاء(4)'!J22) -> 0 | E22: 0 | F22: 0 | H22: 0 | I22: 0 | J22: 0 | K22: 17 | R22: 0
A23: =الأحد!A23 -> 18 | B23: =الأحد!B23 -> زعرورة (كغ) | C23: =SUM('الاربعاء(4)'!J23) -> 0 | E23: 0 | F23: 0 | H23: 0 | I23: 0 | J23: 0 | K23: 18 | R23: 0
A24: =الأحد!A24 -> 19 | B24: =الأحد!B24 -> ياؤرت | C24: =SUM('الاربعاء(4)'!J24) -> 0 | E24: 15 | F24: 0 | H24: 15 | I24: 0 | J24: 0 | K24: 19 | R24: 0
A25: =الأحد!A25 -> 20 | B25: =الأحد!B25 -> شكولاطة | C25: =SUM('الاربعاء(4)'!J25) -> 0 | E25: 0 | F25: 0 | H25: 0 | I25: =SUM(G25*H25) -> 0 | J25: 0 | K25: 20 | R25: 0
A26: =الأحد!A26 -> 21 | B26: =الأحد!B26 -> زيتون اسود(كغ) | C26: =SUM('الاربعاء(4)'!J26) -> 0 | E26: 350 | F26: 0 | H26: 350 | I26: 0 | J26: 0 | K26: 21 | M26: الغــــــذاء | R26: 0
A27: =الأحد!A27 -> 22 | B27: =الأحد!B27 -> زيتون اخضر(كغ) | C27: =SUM('الاربعاء(4)'!J27) -> 0 | E27: 400 | F27: 0 | H27: 400 | I27: 0 | J27: 0 | K27: 22 | M27: خبز+طاجين الزيتون | R27: 0
A28: =الأحد!A28 -> 23 | B28: =الأحد!B28 -> تليتلي(كغ) | C28: =SUM('الاربعاء(4)'!J28) -> 0 | E28: 90 | F28: 0 | H28: 90 | I28: 0 | J28: 0 | K28: 23 | M28: لحم دجاج | N28: برتفال +ماء معدني | R28: 0
A29: =الأحد!A29 -> 24 | B29: =الأحد!B29 -> دويدة(كغ) | C29: =SUM('الاربعاء(4)'!J29) -> 0 | E29: 0 | F29: 0 | H29: 0 | I29: 0 | J29: 0 | K29: 24 | M29: سلاطة متنوعة | R29: 0
A30: =الأحد!A30 -> 25 | B30: =الأحد!B30 -> سباقيطي(كغ) | C30: =SUM('الاربعاء(4)'!J30) -> 0 | E30: 90 | F30: 0 | H30: 90 | I30: 0 | J30: 0 | K30: 25 | R30: 0
A31: =الأحد!A31 -> 26 | B31: =الأحد!B31 -> كسكسي (كغ) | C31: =SUM('الاربعاء(4)'!J31) -> 0 | E31: 90 | F31: 0 | H31: 90 | I31: 0 | J31: 0 | K31: 26 | M31: قائمـة المقبولين للطاولة المشتركــة | R31: 0
A32: =الأحد!A32 -> 27 | B32: =الأحد!B32 -> مقارونة | C32: =SUM('الاربعاء(4)'!J32) -> 0 | E32: 90 | F32: 0 | H32: 90 | I32: 0 | J32: 0 | K32: 27 | M32: الأسمــاء | N32: ف.ص | O32: غــداء | P32: ع | R32: 0
A33: =الأحد!A33 -> 28 | B33: =الأحد!B33 -> حمص | C33: =SUM('الاربعاء(4)'!J33) -> 0 | E33: 240 | F33: 0 | H33: 240 | I33: 0 | J33: 0 | K33: 28 | L33: =الأحد!L33 -> 1 | M33: =الأحد!M33 -> ازوال شراف الدين | R33: 0
A34: =الأحد!A34 -> 29 | B34: =الأحد!B34 -> عدس | C34: =SUM('الاربعاء(4)'!J34) -> 0 | E34: 120 | F34: 0 | H34: 120 | I34: 0 | J34: 0 | K34: 29 | L34: =الأحد!L34 -> 2 | M34: =الأحد!M34 -> اوشن صبرينة | R34: 0
A35: =الأحد!A35 -> 30 | B35: =الأحد!B35 -> فاصولياء(كغ) | C35: =SUM('الاربعاء(4)'!J35) -> 0 | E35: 200 | F35: =SUM(C35+D35) -> 0 | H35: =SUM(E35) -> 200 | I35: =SUM(G35*H35) -> 0 | J35: 0 | K35: 30 | L35: =الأحد!L35 -> 3 | M35: =الأحد!M35 -> قلي أحلام
A36: =الأحد!A36 -> 31 | B36: =الأحد!B36 -> ارزمفور(كغ) | C36: =SUM('الاربعاء(4)'!J36) -> 0 | E36: 110 | F36: 0 | H36: 110 | I36: 0 | J36: 0 | K36: 31 | L36: =الأحد!L36 -> 4 | M36: =الأحد!M36 -> اوش ايمان | R36: 0
A37: =الأحد!A37 -> 32 | B37: =الأحد!B37 -> حلويات | C37: =SUM('الاربعاء(4)'!J37) -> 0 | E37: 0 | F37: 0 | H37: 0 | I37: 0 | J37: 0 | K37: 32 | L37: =الأحد!L37 -> 5 | M37: =الأحد!M37 -> عزيون فضيلة | R37: 0
A38: =الأحد!A38 -> 33 | B38: =الأحد!B38 -> خوخ | C38: =SUM('الاربعاء(4)'!J38) -> 0 | E38: 0 | F38: 0 | H38: 0 | I38: 0 | J38: 0 | K38: 33 | L38: =الأحد!L38 -> 6 | M38: =الأحد!M38 -> شايب عينو السعيد | R38: 0
A39: =الأحد!A39 -> 34 | B39: =الأحد!B39 -> فلفل اسود(كيس15غ) | C39: =SUM('الاربعاء(4)'!J39) -> 0 | E39: 0 | F39: 0 | H39: 0 | I39: 0 | J39: 0 | K39: 34 | L39: =الأحد!L39 -> 7 | M39: =الأحد!M39 -> زيوش حدة | R39: 0
A40: =الأحد!A40 -> 35 | B40: =الأحد!B40 -> خميرة | C40: =SUM('الاربعاء(4)'!J40) -> 0 | E40: 0 | F40: 0 | H40: 0 | I40: 0 | J40: 0 | K40: 35 | L40: =الأحد!L40 -> 8 | M40: =الأحد!M40 -> قرازة فتحي | R40: 0
A41: =الأحد!A41 -> 36 | B41: =الأحد!B41 -> كمون | C41: =SUM('الاربعاء(4)'!J41) -> 0 | E41: 30 | F41: 0 | H41: 30 | I41: 0 | J41: 0 | K41: 36 | L41: =الأحد!L41 -> 9 | M41: =الأحد!M41 -> غضبان فيروز | R41: 0
A42: =الأحد!A42 -> 37 | B42: =الأحد!B42 -> ملح(كغ) | C42: =SUM('الاربعاء(4)'!J42) -> 0 | E42: 30 | F42: 0 | H42: 30 | I42: 0 | J42: 0 | K42: 37 | L42: =الأحد!L42 -> 10 | M42: =الأحد!M42 -> قرفي عليمة | R42: 0
A43: =الأحد!A43 -> 38 | B43: =الأحد!B43 -> طماطم مصبرة(كغ) | C43: =SUM('الاربعاء(4)'!J43) -> 0 | E43: 140 | F43: 0 | H43: 140 | I43: 0 | J43: 0 | K43: 38 | L43: =الأحد!L43 -> 11 | M43: =الأحد!M43 -> بوناب هوراي | R43: 0
A44: =الأحد!A44 -> 39 | B44: =الأحد!B44 -> زيت المائدة 1لتر | C44: =SUM('الاربعاء(4)'!J44) -> 0 | E44: 140 | F44: 0 | H44: 140 | I44: 0 | J44: 0 | K44: 39 | L44: =الأحد!L44 -> 12 | M44: =الأحد!M44 -> بوناب فريدة | R44: 0
A45: =الأحد!A45 -> 40 | B45: =الأحد!B45 -> زيدة | C45: =SUM('الاربعاء(4)'!J45) -> 0 | E45: 70 | F45: 0 | H45: 70 | I45: 0 | J45: 0 | K45: 40 | L45: =الأحد!L45 -> 13 | M45: =الأحد!M45 -> جمال بوناب | R45: 0
A46: =الأحد!A46 -> 41 | B46: =الأحد!B46 -> خل(قارورة) | C46: =SUM('الاربعاء(4)'!J46) -> 0 | E46: 30 | F46: 0 | H46: 30 | I46: 0 | J46: 0 | K46: 41 | L46: =الأحد!L46 -> 14 | M46: =الأحد!M46 -> 0 | R46: 0
A47: =الأحد!A47 -> 42 | B47: =الأحد!B47 -> لحم دجاج(كغ) | C47: =SUM('الاربعاء(4)'!J47) -> 0 | E47: 380 | F47: 0 | H47: 380 | I47: 0 | J47: 0 | K47: 42 | L47: =الأحد!L47 -> 15 | M47: =الأحد!M47 -> 0 | R47: 0
A48: =الأحد!A48 -> 43 | B48: =الأحد!B48 -> فافل | C48: =SUM('الاربعاء(4)'!J48) -> 0 | E48: 0 | F48: 0 | H48: 0 | I48: 0 | J48: 0 | K48: 43 | L48: =الأحد!L48 -> 16 | M48: =الأحد!M48 -> 0 | R48: 0
A49: =الأحد!A49 -> 44 | B49: =الأحد!B49 -> لحم عجل(كغ) | C49: =SUM('الاربعاء(4)'!J49) -> 0 | E49: 0 | F49: 0 | H49: 0 | I49: 0 | J49: 0 | K49: 44 | L49: =الأحد!L49 -> 17 | M49: =الأحد!M49 -> 0 | R49: 0
A50: =الأحد!A50 -> 45 | B50: =الأحد!B50 -> ايجاص(كغ) | C50: =SUM('الاربعاء(4)'!J50) -> 0 | E50: 0 | F50: 0 | H50: 0 | I50: 0 | J50: 0 | K50: 45 | L50: =الأحد!L50 -> 18 | M50: =الأحد!M50 -> 0 | R50: =SUM(D50*E50) -> 0
A51: =الأحد!A51 -> 46 | B51: =الأحد!B51 -> طونة | C51: =SUM('الاربعاء(4)'!J51) -> 0 | E51: 0 | F51: 0 | H51: 0 | I51: 0 | J51: 0 | K51: 46 | L51: =الأحد!L51 -> 19 | M51: =الأحد!M51 -> 0 | R51: =SUM(D51*E51) -> 0
A52: =الأحد!A52 -> 47 | B52: =الأحد!B52 -> جلبانة خضراء(كغ) | C52: =SUM('الاربعاء(4)'!J52) -> 0 | E52: 0 | F52: 0 | H52: 0 | I52: 0 | J52: 0 | K52: 47 | L52: =الأحد!L52 -> 20 | M52: =الأحد!M52 -> 0 | R52: =SUM(D52*E52) -> 0
A53: =الأحد!A53 -> 48 | B53: =الأحد!B53 -> مرطبات | C53: =SUM('الاربعاء(4)'!J53) -> 0 | E53: 0 | F53: 0 | H53: 0 | I53: 0 | J53: 0 | K53: 48 | L53: =الأحد!L53 -> 21 | M53: =الأحد!M53 -> 0 | R53: 0
A54: =الأحد!A54 -> 49 | B54: =الأحد!B54 -> مايـونــاز500غ | C54: =SUM('الاربعاء(4)'!J54) -> 0 | E54: 0 | F54: 0 | H54: 0 | I54: 0 | J54: 0 | K54: 49 | L54: =الأحد!L54 -> 22 | M54: =الأحد!M54 -> 0 | R54: 0
A55: =الأحد!A55 -> 50 | B55: =الأحد!B55 -> مربى | C55: =SUM('الاربعاء(4)'!J55) -> 0 | E55: 0 | F55: 0 | H55: 0 | I55: 0 | J55: 0 | K55: 50 | L55: =الأحد!L55 -> 23 | M55: =الأحد!M55 -> 0 | R55: 0
A56: =الأحد!A56 -> 51 | B56: =الأحد!B56 -> مشروبات غازية | C56: =SUM('الاربعاء(4)'!J56) -> 0 | E56: 0 | F56: 0 | H56: 0 | I56: 0 | J56: 0 | K56: 51 | L56: =الأحد!L56 -> 24 | M56: =الأحد!M56 -> 0 | R56: 0
A57: =الأحد!A57 -> 52 | B57: =الأحد!B57 -> ماء معدني | C57: =SUM('الاربعاء(4)'!J57) -> 0 | E57: 30 | F57: 0 | H57: 30 | I57: 0 | J57: 0 | K57: 52 | L57: =الأحد!L57 -> 25 | M57: =الأحد!M57 -> 0 | R57: 0
A58: =الأحد!A58 -> 53 | B58: =الأحد!B58 -> تمر(كغ) | C58: =SUM('الاربعاء(4)'!J58) -> 0 | E58: 0 | F58: 0 | H58: 0 | I58: 0 | J58: 0 | K58: 53 | L58: =الأحد!L58 -> 26 | M58: =الأحد!M58 -> 0 | R58: 0
A59: =الأحد!A59 -> 54 | B59: =الأحد!B59 -> سكر | C59: =SUM('الاربعاء(4)'!J59) -> 0 | E59: 0 | F59: 0 | H59: 0 | I59: 0 | J59: 0 | K59: 54 | L59: =الأحد!L59 -> 27 | M59: =الأحد!M59 -> 0 | R59: 0
A60: =الأحد!A60 -> 55 | B60: =الأحد!B60 -> فافل حار | C60: =SUM('الاربعاء(4)'!J60) -> 0 | E60: 0 | F60: 0 | H60: 0 | I60: 0 | J60: 0 | K60: 55 | L60: =الأحد!L60 -> 28 | M60: =الأحد!M60 -> 0 | R60: 0
A61: =الأحد!A61 -> 56 | B61: =الأحد!B61 -> حليب سوبرلي | C61: =SUM('الاربعاء(4)'!J61) -> 0 | E61: 0 | F61: 0 | H61: 0 | I61: 0 | J61: 0 | K61: 56 | L61: =الأحد!L61 -> 29 | M61: =الأحد!M61 -> 0
A62: =الأحد!A62 -> 57 | B62: =الأحد!B62 -> فريك | C62: =SUM('الاربعاء(4)'!J62) -> 0 | E62: 0 | F62: 0 | H62: 0 | I62: 0 | J62: 0 | K62: 57 | L62: =الأحد!L62 -> 30 | M62: =الأحد!M62 -> 0
A63: =الأحد!A63 -> 58 | B63: =الأحد!B63 -> جريوات | C63: =SUM('الاربعاء(4)'!J63) -> 0 | E63: 0 | F63: 0 | H63: 0 | I63: 0 | J63: 0 | K63: 58 | L63: =الأحد!L63 -> 31 | M63: =الأحد!M63 -> 0 | R63: 0
A64: =الأحد!A64 -> 59 | B64: =الأحد!B64 -> تاي | C64: =SUM('الاربعاء(4)'!J64) -> 0 | E64: 0 | F64: 0 | H64: 0 | I64: 0 | J64: 0 | K64: 59 | L64: =الأحد!L64 -> 32 | M64: =الأحد!M64 -> 0 | R64: 0
A65: =الأحد!A65 -> 60 | B65: =الأحد!B65 -> قهوة(كغ) | C65: =SUM('الاربعاء(4)'!J65) -> 0 | E65: 0 | F65: 0 | H65: 0 | I65: 0 | J65: 0 | K65: 60 | M65: المجموع | N65: =SUM(N51:N64) -> 0 | O65: =O33+O34+O35+O36+O37+O38+O39+O40+O41+O42+O43+O44+O45+O46+O47+O48+O49+O50+O51+O52+O53+O54+O55+O56+O57+O58+O59+O60+O61+O62+O63+O64 -> 0 | P65: =SUM(P51:P64) -> 0 | R65: 0
A66: =الأحد!A66 -> 61 | B66: =الأحد!B66 -> شمندر | C66: =SUM('الاربعاء(4)'!J66) -> 0 | E66: 130 | F66: 0 | H66: 130 | I66: 0 | J66: 0 | K66: 61 | R66: 0
A67: =الأحد!A67 -> 62 | B67: =الأحد!B67 -> توابل | C67: =SUM('الاربعاء(4)'!J67) -> 0 | E67: 0 | F67: =SUM(C67+D67) -> 0 | H67: =SUM(E67) -> 0 | I67: =SUM(G67*H67) -> 0 | J67: 0 | K67: 62 | R67: 0
A68: =الأحد!A68 -> 63 | B68: =الأحد!B68 -> إجاص(كغ) | C68: =SUM('الاربعاء(4)'!J68) -> 0 | E68: 0 | F68: 0 | H68: 0 | I68: 0 | J68: 0 | K68: 63 | M68: مصـاريف التغذية للشخـص الواحــد | R68: 0
A69: =الأحد!A69 -> 64 | B69: =الأحد!B69 -> 0 | C69: =SUM('الاربعاء(4)'!J69) -> 0 | F69: 0 | H69: 0 | I69: 0 | J69: =SUM(F69-G69) -> 0 | K69: 64 | R69: 0
A70: =الأحد!A70 -> 65 | B70: =الأحد!B70 -> 0 | C70: =SUM('الاربعاء(4)'!J70) -> 0 | F70: 0 | H70: 0 | I70: 0 | J70: 0 | K70: 65 | M70: قيمة مخروجات اليـوم | O70: =SUM(I77) -> 0 | R70: 0
A71: =الأحد!A71 -> 66 | B71: =الأحد!B71 -> 0 | C71: =SUM('الاربعاء(4)'!J71) -> 0 | F71: 0 | H71: 0 | I71: 0 | J71: 0 | K71: 66 | R71: 0
A72: =الأحد!A72 -> 67 | B72: =الأحد!B72 -> 0 | C72: =SUM('الاربعاء(4)'!J72) -> 0 | F72: 0 | H72: 0 | I72: 0 | J72: 0 | K72: 67 | M72: معدل تغذية الأفراد | O72: =SUM(O14) -> 40 | R72: 0
A73: =الأحد!A73 -> 68 | B73: =الأحد!B73 -> 0 | C73: =SUM('الاربعاء(4)'!J73) -> 0 | F73: 0 | H73: 0 | I73: 0 | J73: 0 | K73: 68 | R73: 0
A74: =الأحد!A74 -> 69 | B74: =الأحد!B74 -> 0 | C74: =SUM('الاربعاء(4)'!J74) -> 0 | E74: 0 | F74: 0 | H74: 0 | I74: 0 | J74: 0 | K74: 69 | M74: =SUM(I77/O14) -> 0 | O74: = | P74: =M74 -> 0 | R74: 0
A75: =الأحد!A75 -> 70 | B75: =الأحد!B75 -> 0 | C75: =SUM('الاربعاء(4)'!J75) -> 12.2 | F75: 12.2 | H75: 0 | I75: 0 | J75: 12.2 | K75: 70 | M75: (1) معدل تغذية الأفـراد للوجبــة | R75: 0
A76: =الأحد!A76 -> 71 | B76: =الأحد!B76 -> 0 | C76: =SUM('الاربعاء(4)'!J76) -> 0 | E76: 0 | F76: 0 | H76: 0 | I76: 0 | J76: 0 | K76: 71 | M76: الغــذاء + العشـاء | R76: =SUM(R12:R75) -> 0
A77: المجموع | C77: =SUM(C6:C76) -> 7.2 | D77: =SUM(D6:D76) -> 0 | F77: =SUM(F6:F76) -> 7.2 | G77: =SUM(G6:G76) -> 0 | I77: =SUM(I6:I76) -> 0 | J77: =SUM(J6:J76) -> 7.2 | R77: =SUM(R12:R76) -> 0
K78: حــررببئرالشهداء في:27/ 03 / 2013....................................

Sheet حقو ق طاولة المشتركة
C3: الجمهورية الجزائرية الديمقراطية الشعبية
C4: وزراة التربية الوطنية
A6: مديرية التـــــــــــــربية | E6: ثانوية : فراق عيـــــــسى
A7: ام البوا قي | F7: بئــــــــر الشهــداء
B9: حقوق الطاولة المشتركة لشهر | E9: =الأحد!H2&" "&الأحد!I2 -> فيفري 2019
A11: الرقــم | B11: اللقب والإســم | C11: الوظيفة | D11: عدد الوجبات | E11: ثمن الوجبة | F11: المجموع | G11: ملاحضة
A12: =الأحد!L33 -> 1 | B12: =IF(الأحد!M33="","",الأحد!M33) -> ازوال شراف الدين | C12: أ.ت.ثا | D12: =IF(الأحد!O33+الإثنين!O33+الثلاثاء!O33+الأربعاء!O33+الخميس!O33+'الأحد (2)'!O33+'الاثنين (2)'!O33+'الثلاثاء(2)'!O33+'الأربعاء(2)'!O33+'الخميس(2)'!O33+'الأحد (3)'!O33+'الإثنين (3)'!O33+'الثلاثاء (3)'!O33+'الأربعاء (3)'!O33+'الخميس (3)'!O33+'الأحد(4)'!O33+'الإ ثنين(4)'!O33+'الثلا ثاء(4)'!O33+'الاربعاء(4)'!O33+'الخميس(4)'!O33=0,"",الأحد!O33+الإثنين!O33+الثلاثاء!O33+الأربعاء!O33+الخميس!O33+'الأحد (2)'!O33+'الاثنين (2)'!O33+'الثلاثاء(2)'!O33+'الأربعاء(2)'!O33+'الخميس(2)'!O33+'الأحد (3)'!O33+'الإثنين (3)'!O33+'الثلاثاء (3)'!O33+'الأربعاء (3)'!O33+'الخميس (3)'!O33+'الأحد(4)'!O33+'الإ ثنين(4)'!O33+'الثلا ثاء(4)'!O33+'الاربعاء(4)'!O33+'الخميس(4)'!O3) -> 8 | E12: 100 | F12: =IFERROR(IF(E12*D12=0,"",E12*D12),"") -> 800
A13: =الأحد!L34 -> 2 | B13: =IF(الأحد!M34="","",الأحد!M34) -> اوشن صبرينة | C13: أ.ت.ثا | D13: =IF(الأحد!O34+الإثنين!O34+الثلاثاء!O34+الأربعاء!O34+الخميس!O34+'الأحد (2)'!O34+'الاثنين (2)'!O34+'الثلاثاء(2)'!O34+'الأربعاء(2)'!O34+'الخميس(2)'!O34+'الأحد (3)'!O34+'الإثنين (3)'!O34+'الثلاثاء (3)'!O34+'الأربعاء (3)'!O34+'الخميس (3)'!O34+'الأحد(4)'!O34+'الإ ثنين(4)'!O34+'الثلا ثاء(4)'!O34+'الاربعاء(4)'!O34+'الخميس(4)'!O34=0,"",الأحد!O34+الإثنين!O34+الثلاثاء!O34+الأربعاء!O34+الخميس!O34+'الأحد (2)'!O34+'الاثنين (2)'!O34+'الثلاثاء(2)'!O34+'الأربعاء(2)'!O34+'الخميس(2)'!O34+'الأحد (3)'!O34+'الإثنين (3)'!O34+'الثلاثاء (3)'!O34+'الأربعاء (3)'!O34+'الخميس (3)'!O34+'الأحد(4)'!O34+'الإ ثنين(4)'!O34+'الثلا ثاء(4)'!O34+'الاربعاء(4)'!O34+'الخميس(4)'!O34) -> 7 | E13: 100 | F13: =IFERROR(IF(E13*D13=0,"",E13*D13),"") -> 700
A14: =الأحد!L35 -> 3 | B14: =IF(الأحد!M35="","",الأحد!M35) -> قلي أحلام | C14: أ.ت.ثا | D14: =IF(الأحد!O35+الإثنين!O35+الثلاثاء!O35+الأربعاء!O35+الخميس!O35+'الأحد (2)'!O35+'الاثنين (2)'!O35+'الثلاثاء(2)'!O35+'الأربعاء(2)'!O35+'الخميس(2)'!O35+'الأحد (3)'!O35+'الإثنين (3)'!O35+'الثلاثاء (3)'!O35+'الأربعاء (3)'!O35+'الخميس (3)'!O35+'الأحد(4)'!O35+'الإ ثنين(4)'!O35+'الثلا ثاء(4)'!O35+'الاربعاء(4)'!O35+'الخميس(4)'!O35=0,"",الأحد!O35+الإثنين!O35+الثلاثاء!O35+الأربعاء!O35+الخميس!O35+'الأحد (2)'!O35+'الاثنين (2)'!O35+'الثلاثاء(2)'!O35+'الأربعاء(2)'!O35+'الخميس(2)'!O35+'الأحد (3)'!O35+'الإثنين (3)'!O35+'الثلاثاء (3)'!O35+'الأربعاء (3)'!O35+'الخميس (3)'!O35+'الأحد(4)'!O35+'الإ ثنين(4)'!O35+'الثلا ثاء(4)'!O35+'الاربعاء(4)'!O35+'الخميس(4)'!O35) -> 3 | E14: 100 | F14: =IFERROR(IF(E14*D14=0,"",E14*D14),"") -> 300
A15: =الأحد!L36 -> 4 | B15: =IF(الأحد!M36="","",الأحد!M36) -> اوش ايمان | C15: م ت | D15: =IF(الأحد!O36+الإثنين!O36+الثلاثاء!O36+الأربعاء!O36+الخميس!O36+'الأحد (2)'!O36+'الاثنين (2)'!O36+'الثلاثاء(2)'!O36+'الأربعاء(2)'!O36+'الخميس(2)'!O36+'الأحد (3)'!O36+'الإثنين (3)'!O36+'الثلاثاء (3)'!O36+'الأربعاء (3)'!O36+'الخميس (3)'!O36+'الأحد(4)'!O36+'الإ ثنين(4)'!O36+'الثلا ثاء(4)'!O36+'الاربعاء(4)'!O36+'الخميس(4)'!O36=0,"",الأحد!O36+الإثنين!O36+الثلاثاء!O36+الأربعاء!O36+الخميس!O36+'الأحد (2)'!O36+'الاثنين (2)'!O36+'الثلاثاء(2)'!O36+'الأربعاء(2)'!O36+'الخميس(2)'!O36+'الأحد (3)'!O36+'الإثنين (3)'!O36+'الثلاثاء (3)'!O36+'الأربعاء (3)'!O36+'الخميس (3)'!O36+'الأحد(4)'!O36+'الإ ثنين(4)'!O36+'الثلا ثاء(4)'!O36+'الاربعاء(4)'!O36+'الخميس(4)'!O36) -> 1 | E15: 750 | F15: 750
A16: =الأحد!L37 -> 5 | B16: =IF(الأحد!M37="","",الأحد!M37) -> عزيون فضيلة | C16: م ت | D16: =IF(الأحد!O37+الإثنين!O37+الثلاثاء!O37+الأربعاء!O37+الخميس!O37+'الأحد (2)'!O37+'الاثنين (2)'!O37+'الثلاثاء(2)'!O37+'الأربعاء(2)'!O37+'الخميس(2)'!O37+'الأحد (3)'!O37+'الإثنين (3)'!O37+'الثلاثاء (3)'!O37+'الأربعاء (3)'!O37+'الخميس (3)'!O37+'الأحد(4)'!O37+'الإ ثنين(4)'!O37+'الثلا ثاء(4)'!O37+'الاربعاء(4)'!O37+'الخميس(4)'!O37=0,"",الأحد!O37+الإثنين!O37+الثلاثاء!O37+الأربعاء!O37+الخميس!O37+'الأحد (2)'!O37+'الاثنين (2)'!O37+'الثلاثاء(2)'!O37+'الأربعاء(2)'!O37+'الخميس(2)'!O37+'الأحد (3)'!O37+'الإثنين (3)'!O37+'الثلاثاء (3)'!O37+'الأربعاء (3)'!O37+'الخميس (3)'!O37+'الأحد(4)'!O37+'الإ ثنين(4)'!O37+'الثلا ثاء(4)'!O37+'الاربعاء(4)'!O37+'الخميس(4)'!O37) -> 1 | E16: 750 | F16: 750
A17: =الأحد!L38 -> 6 | B17: =IF(الأحد!M38="","",الأحد!M38) -> شايب عينو السعيد | C17: ع ا | D17: =IF(الأحد!O38+الإثنين!O38+الثلاثاء!O38+الأربعاء!O38+الخميس!O38+'الأحد (2)'!O38+'الاثنين (2)'!O38+'الثلاثاء(2)'!O38+'الأربعاء(2)'!O38+'الخميس(2)'!O38+'الأحد (3)'!O38+'الإثنين (3)'!O38+'الثلاثاء (3)'!O38+'الأربعاء (3)'!O38+'الخميس (3)'!O38+'الأحد(4)'!O38+'الإ ثنين(4)'!O38+'الثلا ثاء(4)'!O38+'الاربعاء(4)'!O38+'الخميس(4)'!O38=0,"",الأحد!O38+الإثنين!O38+الثلاثاء!O38+الأربعاء!O38+الخميس!O38+'الأحد (2)'!O38+'الاثنين (2)'!O38+'الثلاثاء(2)'!O38+'الأربعاء(2)'!O38+'الخميس(2)'!O38+'الأحد (3)'!O38+'الإثنين (3)'!O38+'الثلاثاء (3)'!O38+'الأربعاء (3)'!O38+'الخميس (3)'!O38+'الأحد(4)'!O38+'الإ ثنين(4)'!O38+'الثلا ثاء(4)'!O38+'الاربعاء(4)'!O38+'الخميس(4)'!O38) -> 8 | E17: 80 | F17: 640
